Workbook

Sheet ACCUEIL
F7: 2021-02-07

Sheet Accueilagence
A1: Accueil
E7: =ACCUEIL!F7 -> 2021-02-07

Sheet Accueilsecteur
A1: Accueil
E7: =ACCUEIL!F7 -> 2021-02-07

Sheet AccueilDircom
A1: Accueil
E7: =ACCUEIL!F7 -> 2021-02-07

Sheet DC_FICHE
A1: Accueil
A2: BAROMETRE BDD
A4: UNITE: | B4: DIRECTION REGIONALE | E4: ETP perf : | F4: =VLOOKUP(A5,'RECAP DIRCOM'!$G$6:$I$12,3,FALSE) -> 269.10
A5: =VLOOKUP(B5,LISTES!$M$6:$N$12,2,FALSE) -> 262 | B5: BAS-RHIN
C6: Coefficient du critére | E6: Résultats | I6: Ecart au 1ier | M6: Evolution | O6: Rang
E7: du 1ier | G7: DIRECTION | I7: Du mois | K7: Au 31/12/2019
A9: RANG au CLASSEMENT GENERAL | K9: =VLOOKUP($A$5,'RECAP DIRCOM AN'!$G$6:$FS$312,168,FALSE) -> 6 | M9: =+K9-O9 ->  | O9: =VLOOKUP($A$5,'RECAP DIRCOM'!$G$6:$DG$312,168,FALSE) -> 
A11: CRITERE CLIENTS | C11: 15% | O11: =VLOOKUP($A$5,'RECAP DIRCOM'!$G$6:$DG$312,23,FALSE) -> 4.336722908
B12: PNB Evolution nette Clients BP | C12: 4% | E12: ='RECAP DIRCOM'!#REF! ->  | G12: =VLOOKUP($A$5,'RECAP DIRCOM'!$G$6:$DG$312,6,FALSE) -> 1.3 | I12: =VLOOKUP($A$5,'RECAP DIRCOM'!$G$6:$DG$312,7,FALSE) -> 600% | K12: =VLOOKUP($A$5,'RECAP DIRCOM AN'!$G$6:$FS$312,7,FALSE) -> 130% | M12: =+K12-I12 -> -470% | O12: =VLOOKUP($A$5,'RECAP DIRCOM'!$G$6:$DG$312,8,FALSE) -> 0.4158
B13: PNB Evolution nette Clients PREMIUM | C13: 5% | E13: ='RECAP DIRCOM'!#REF! ->  | G13: =VLOOKUP($A$5,'RECAP DIRCOM'!$G$6:$DG$312,10,FALSE) -> 6.0 | I13: =VLOOKUP($A$5,'RECAP DIRCOM'!$G$6:$DG$312,11,FALSE) -> 79% | K13: =VLOOKUP($A$5,'RECAP DIRCOM AN'!$G$6:$FS$312,11,FALSE) -> 1% | M13: =+K13-I13 -> -79% | O13: =VLOOKUP($A$5,'RECAP DIRCOM'!$G$6:$DG$312,12,FALSE) -> 0.7936126374
B14: PNB Evolution nette Clients Jeunes Equipés | C14: 3% | E14: ='RECAP DIRCOM'!#REF! ->  | G14: =VLOOKUP($A$5,'RECAP DIRCOM'!$G$6:$DG$312,14,FALSE) -> 0.0 | I14: =VLOOKUP($A$5,'RECAP DIRCOM'!$G$6:$DG$312,15,FALSE) -> 0% | K14: =VLOOKUP($A$5,'RECAP DIRCOM AN'!$G$6:$FS$312,15,FALSE) -> 69% | M14: =+K14-I14 -> 69% | O14: =VLOOKUP($A$5,'RECAP DIRCOM'!$G$6:$DG$312,16,FALSE) -> 0
B15: PNB Evolution nette Clients Pro Actifs Equipés | C15: 3% | E15: ='RECAP DIRCOM'!W4 -> 0.0 | G15: =VLOOKUP($A$5,'RECAP DIRCOM'!$G$6:$DG$312,18,FALSE) -> 1140.3 | I15: =VLOOKUP($A$5,'RECAP DIRCOM'!$G$6:$DG$312,19,FALSE) -> 424% | K15: =VLOOKUP($A$5,'RECAP DIRCOM AN'!$G$6:$FS$312,19,FALSE) -> 0% | M15: =+K15-I15 -> -424% | O15: =VLOOKUP($A$5,'RECAP DIRCOM'!$G$6:$DG$312,20,FALSE) -> 0
A17: CRITERE BANCARISATION | C17: 15% | O17: =VLOOKUP($A$5,'RECAP DIRCOM'!$G$6:$DG$312,48,FALSE) -> 3
B18: PNB Ventes nettes forfaits | C18: 4% | E18: ='RECAP DIRCOM'!X4 -> 4.2 | G18: =VLOOKUP($A$5,'RECAP DIRCOM'!$G$6:$DG$312,31,FALSE) -> -0.3 | I18: =VLOOKUP($A$5,'RECAP DIRCOM'!$G$6:$DG$312,32,FALSE) -> 24% | K18: =VLOOKUP($A$5,'RECAP DIRCOM AN'!$G$6:$FS$312,32,FALSE) -> 126% | M18: =+K18-I18 -> 102% | O18: =VLOOKUP($A$5,'RECAP DIRCOM'!$G$6:$DG$312,33,FALSE) -> 7
B19: PNB Ventes nettes IZICARTES Débit Différé | C19: 4% | E19: ='RECAP DIRCOM'!AB4 -> 5.3 | G19: =VLOOKUP($A$5,'RECAP DIRCOM'!$G$6:$DG$312,35,FALSE) -> 0.1 | I19: =VLOOKUP($A$5,'RECAP DIRCOM'!$G$6:$DG$312,36,FALSE) -> 300% | K19: =VLOOKUP($A$5,'RECAP DIRCOM AN'!$G$6:$FS$312,36,FALSE) -> 0% | M19: =+K19-I19 -> -300% | O19: =VLOOKUP($A$5,'RECAP DIRCOM'!$G$6:$DG$312,37,FALSE) -> 0
B20: PNB Ventes nettes cartes HDG Débit Différé | C20: 4% | E20: ='RECAP DIRCOM'!AF4 -> 1.3 | G20: =VLOOKUP($A$5,'RECAP DIRCOM'!$G$6:$DG$312,39,FALSE) -> 0.0 | I20: =VLOOKUP($A$5,'RECAP DIRCOM'!$G$6:$DG$312,40,FALSE) -> 0% | K20: =VLOOKUP($A$5,'RECAP DIRCOM AN'!$G$6:$FS$312,40,FALSE) -> 0% | M20: =+K20-I20 -> 0% | O20: =VLOOKUP($A$5,'RECAP DIRCOM'!$G$6:$DG$312,41,FALSE) -> 23992.45581
B21: PNB Ventes nettes Forfaits Pro, Carte pro | C21: 3% | E21: ='RECAP DIRCOM'!AJ4 -> -0.2 | G21: =VLOOKUP($A$5,'RECAP DIRCOM'!$G$6:$DG$312,43,FALSE) -> 0.3 | I21: =VLOOKUP($A$5,'RECAP DIRCOM'!$G$6:$DG$312,44,FALSE) -> 300% | K21: =VLOOKUP($A$5,'RECAP DIRCOM AN'!$G$6:$FS$312,44,FALSE) -> 44% | M21: =+K21-I21 -> -256% | O21: =VLOOKUP($A$5,'RECAP DIRCOM'!$G$6:$DG$312,45,FALSE) -> 626
A23: CRITERE EPARGNE | C23: 10% | O23: =VLOOKUP($A$5,'RECAP DIRCOM'!$G$6:$DG$312,69,FALSE) -> 0.2611441769
B24: PNB Epargne Liquide | C24: 3% | E24: ='RECAP DIRCOM'!AU4 -> 131.7 | G24: =VLOOKUP($A$5,'RECAP DIRCOM'!$G$6:$DG$312,56,FALSE) -> 1662.9 | I24: =VLOOKUP($A$5,'RECAP DIRCOM'!$G$6:$DG$312,57,FALSE) -> 618% | K24: =VLOOKUP($A$5,'RECAP DIRCOM AN'!$G$6:$FS$312,57,FALSE) -> 23% | M24: =+K24-I24 -> -595% | O24: =VLOOKUP($A$5,'RECAP DIRCOM'!$G$6:$DG$312,58,FALSE) -> 0.5047039355
B25: PNB CA UC + arbitrage | C25: 4% | E25: ='RECAP DIRCOM'!AY4 -> 3.3 | G25: =VLOOKUP($A$5,'RECAP DIRCOM'!$G$6:$DG$312,60,FALSE) -> 1558.5 | I25: =VLOOKUP($A$5,'RECAP DIRCOM'!$G$6:$DG$312,61,FALSE) -> 579% | K25: =VLOOKUP($A$5,'RECAP DIRCOM AN'!$G$6:$FS$312,61,FALSE) -> 0% | M25: =+K25-I25 -> -579% | O25: =VLOOKUP($A$5,'RECAP DIRCOM'!$G$6:$DG$312,62,FALSE) -> 0.01802489205
B26: PNB Excédent assurance vie | C26: 3% | E26: ='RECAP DIRCOM'!#REF! ->  | G26: =VLOOKUP($A$5,'RECAP DIRCOM'!$G$6:$DG$312,64,FALSE) -> 295.0 | I26: =VLOOKUP($A$5,'RECAP DIRCOM'!$G$6:$DG$312,65,FALSE) -> 110% | K26: =VLOOKUP($A$5,'RECAP DIRCOM AN'!$G$6:$FS$312,65,FALSE) -> 63% | M26: =+K26-I26 -> -46% | O26: =VLOOKUP($A$5,'RECAP DIRCOM'!$G$6:$DG$312,66,FALSE) -> 0.3896880853
A28: CRITERE CREDITS | C28: 15% | O28: =VLOOKUP($A$5,'RECAP DIRCOM'!$G$6:$DG$312,102,FALSE) -> 0.2689588855
B29: PNB crédit conso | C29: 4% | E29: ='RECAP DIRCOM'!BJ4 -> 12.5 | G29: =VLOOKUP($A$5,'RECAP DIRCOM'!$G$6:$DG$312,77,FALSE) -> 0.0 | I29: =VLOOKUP($A$5,'RECAP DIRCOM'!$G$6:$DG$312,78,FALSE) -> 100% | K29: =VLOOKUP($A$5,'RECAP DIRCOM AN'!$G$6:$FS$312,78,FALSE) -> 29% | M29: =+K29-I29 -> -71% | O29: =VLOOKUP($A$5,'RECAP DIRCOM'!$G$6:$DG$312,79,FALSE) -> 1253
B30: PNB ADE crédit conso | C30: 1% | E30: ='RECAP DIRCOM'!#REF! ->  | G30: =VLOOKUP($A$5,'RECAP DIRCOM'!$G$6:$DG$312,81,FALSE) -> 0.1 | I30: =VLOOKUP($A$5,'RECAP DIRCOM'!$G$6:$DG$312,82,FALSE) -> 200% | K30: =VLOOKUP($A$5,'RECAP DIRCOM AN'!$G$6:$FS$312,82,FALSE) -> 29% | M30: -171% | O30: =VLOOKUP($A$5,'RECAP DIRCOM'!$G$6:$DG$312,83,FALSE) -> 0.02199392253
B31: PNB crédit immo | C31: 4% | E31: ='RECAP DIRCOM'!BN4 -> 5.9 | G31: =VLOOKUP($A$5,'RECAP DIRCOM'!$G$6:$DG$312,85,FALSE) -> 2.0 | I31: =VLOOKUP($A$5,'RECAP DIRCOM'!$G$6:$DG$312,86,FALSE) -> 0% | K31: =VLOOKUP($A$5,'RECAP DIRCOM AN'!$G$6:$FS$312,86,FALSE) -> 33% | M31: 33% | O31: =VLOOKUP($A$5,'RECAP DIRCOM'!$G$6:$DG$312,87,FALSE) -> 0
B32: PNB ADE crédit immo | C32: 2% | E32: ='RECAP DIRCOM'!#REF! ->  | G32: =VLOOKUP($A$5,'RECAP DIRCOM'!$G$6:$DG$312,89,FALSE) -> 0.0 | I32: =VLOOKUP($A$5,'RECAP DIRCOM'!$G$6:$DG$312,90,FALSE) -> 0% | K32: =VLOOKUP($A$5,'RECAP DIRCOM AN'!$G$6:$FS$312,90,FALSE) -> 47% | M32: 47% | O32: =VLOOKUP($A$5,'RECAP DIRCOM'!$G$6:$DG$312,91,FALSE) -> 0
B33: PNB SACCEF | C33: 2% | E33: ='RECAP DIRCOM'!#REF! ->  | G33: =VLOOKUP($A$5,'RECAP DIRCOM'!$G$6:$DG$312,93,FALSE) -> 0.0 | I33: =VLOOKUP($A$5,'RECAP DIRCOM'!$G$6:$DG$312,94,FALSE) -> 0% | K33: =VLOOKUP($A$5,'RECAP DIRCOM AN'!$G$6:$FS$312,94,FALSE) -> 36% | M33: 36% | O33: =VLOOKUP($A$5,'RECAP DIRCOM'!$G$6:$DG$312,95,FALSE) -> 0
B34: PNB Crédit MLT + Crédit Bail | C34: 2% | E34: ='RECAP DIRCOM'!BR4 -> 1.8 | G34: =VLOOKUP($A$5,'RECAP DIRCOM'!$G$6:$DG$312,97,FALSE) -> 0.0 | I34: =VLOOKUP($A$5,'RECAP DIRCOM'!$G$6:$DG$312,98,FALSE) -> 0% | K34: =VLOOKUP($A$5,'RECAP DIRCOM AN'!$G$6:$FS$312,98,FALSE) -> 0% | M34: 0% | O34: =VLOOKUP($A$5,'RECAP DIRCOM'!$G$6:$DG$312,99,FALSE) -> 0
A36: CRITERE IARD PREVOYANCE | C36: 15% | O36: =VLOOKUP($A$5,'RECAP DIRCOM'!$G$6:$DG$312,119,FALSE) -> 
B37: PNB Ventes nettes IARD | C37: 9% | E37: ='RECAP DIRCOM'!CC4 -> 31.8 | G37: =VLOOKUP($A$5,'RECAP DIRCOM'!$G$6:$DG$312,110,FALSE) ->  | I37: =VLOOKUP($A$5,'RECAP DIRCOM'!$G$6:$DG$312,111,FALSE) ->  | K37: =VLOOKUP($A$5,'RECAP DIRCOM AN'!$G$6:$FS$312,111,FALSE) -> 69% | M37: =+K37-I37 ->  | O37: =VLOOKUP($A$5,'RECAP DIRCOM'!$G$6:$DG$312,112,FALSE) -> 
B38: PNB Ventes nettes Prévoyance | C38: 6% | E38: ='RECAP DIRCOM'!CG4 -> 5.0 | G38: =VLOOKUP($A$5,'RECAP DIRCOM'!$G$6:$DG$312,114,FALSE) ->  | I38: =VLOOKUP($A$5,'RECAP DIRCOM'!$G$6:$DG$312,115,FALSE) ->  | K38: =VLOOKUP($A$5,'RECAP DIRCOM AN'!$G$6:$FS$312,115,FALSE) -> 42% | M38: =+K38-I38 ->  | O38: =VLOOKUP($A$5,'RECAP DIRCOM'!$G$6:$DG$312,116,FALSE) -> 
A40: CRITERE ACCELERATEURS PNB | C40: 15% | O40: =VLOOKUP($A$5,'RECAP DIRCOM'!$G$6:$DG$312,144,FALSE) -> 
B41: PNB Ventes brutes SED Finalisées | C41: 6% | E41: ='RECAP DIRCOM'!#REF! ->  | G41: =VLOOKUP($A$5,'RECAP DIRCOM'!$G$6:$DG$312,127,FALSE) ->  | I41: =VLOOKUP($A$5,'RECAP DIRCOM'!$G$6:$DG$312,128,FALSE) ->  | K41: =VLOOKUP($A$5,'RECAP DIRCOM AN'!$G$6:$FS$312,128,FALSE) -> 11% | M41: =+K41-I41 ->  | O41: =VLOOKUP($A$5,'RECAP DIRCOM'!$G$6:$DG$312,129,FALSE) -> 
B42: PNB clients équipés E documents | C42: 3% | E42: ='RECAP DIRCOM'!#REF! ->  | G42: =VLOOKUP($A$5,'RECAP DIRCOM'!$G$6:$DG$312,131,FALSE) ->  | I42: =VLOOKUP($A$5,'RECAP DIRCOM'!$G$6:$DG$312,132,FALSE) ->  | K42: =VLOOKUP($A$5,'RECAP DIRCOM AN'!$G$6:$FS$312,132,FALSE) -> 0% | M42: =+K42-I42 ->  | O42: =VLOOKUP($A$5,'RECAP DIRCOM'!$G$6:$DG$312,133,FALSE) -> 
B43: Economie opt'in | C43: 3% | E43: ='RECAP DIRCOM'!#REF! ->  | G43: =VLOOKUP($A$5,'RECAP DIRCOM'!$G$6:$DG$312,135,FALSE) ->  | I43: =VLOOKUP($A$5,'RECAP DIRCOM'!$G$6:$DG$312,136,FALSE) ->  | K43: =VLOOKUP($A$5,'RECAP DIRCOM AN'!$G$6:$FS$312,136,FALSE) -> 2% | M43: =+K43-I43 ->  | O43: =VLOOKUP($A$5,'RECAP DIRCOM'!$G$6:$DG$312,137,FALSE) -> 
B44: Remises commerciales | C44: 3% | E44: ='RECAP DIRCOM'!#REF! ->  | G44: =VLOOKUP($A$5,'RECAP DIRCOM'!$G$6:$DG$312,139,FALSE) ->  | I44: =VLOOKUP($A$5,'RECAP DIRCOM'!$G$6:$DG$312,140,FALSE) ->  | K44: =VLOOKUP($A$5,'RECAP DIRCOM AN'!$G$6:$FS$312,140,FALSE) -> 17% | M44: =+K44-I44 ->  | O44: =VLOOKUP($A$5,'RECAP DIRCOM'!$G$6:$DG$312,141,FALSE) -> 
A46: CRITERE Qualité-Satisfaction Clients | C46: 15% | O46: =VLOOKUP($A$5,'RECAP DIRCOM'!$G$6:$DG$312,159,FALSE) -> 
B47: Objectifs NPS* | C47: 8% | E47: ='RECAP DIRCOM'!K4 -> -7 | G47: =VLOOKUP($A$5,'RECAP DIRCOM'!$G$6:$DG$312,151,FALSE) ->  | I47: =VLOOKUP($A$5,'RECAP DIRCOM'!$G$6:$DG$312,152,FALSE) ->  | K47: =VLOOKUP($A$5,'RECAP DIRCOM AN'!$G$6:$FS$312,152,FALSE) -> 150% | M47: =+K47-I47 ->  | O47: =VLOOKUP($A$5,'RECAP DIRCOM'!$G$6:$DG$312,153,FALSE) -> 
B48: Enquête Qualité Haute Définition | C48: 7% | E48: ='RECAP DIRCOM'!N4 -> 57% | G48: =VLOOKUP($A$5,'RECAP DIRCOM'!$G$6:$DG$312,154,FALSE) ->  | I48: =VLOOKUP($A$5,'RECAP DIRCOM'!$G$6:$DG$312,155,FALSE) ->  | K48: =VLOOKUP($A$5,'RECAP DIRCOM AN'!$G$6:$FS$312,155,FALSE) -> 8% | M48: =+K48-I48 ->  | O48: =VLOOKUP($A$5,'RECAP DIRCOM'!$G$6:$DG$312,156,FALSE) -> 

Sheet DC_TOTAL
B1: Accueil | D1: BAROMETRE BDD - DIRECTIONS REGIONALES
D2: TOTAL GENERAL
D3: =ACCUEIL!F7 -> 2021-02-07
D7: TOTAL GENERAL | G7: Total Satisfaction Clients | J7: Total Bancarisation | M7: Total Epargne | P7: Total IARD Prévoyance | S7: Total Crédits
E8: coef | F8: 100% | H8: coef | I8: =DC_SATISFACTION!L8 -> 20% | K8: coef | L8: =DC_BANCA!V8 -> 20% | N8: coef | O8: =DC_EPARGNE!N8 -> 20% | Q8: coef | R8: =DC_IARD!N8 -> 20% | T8: coef | U8: =DC_CREDIT!R8 -> 20%
A9: eds | B9: Direction | C9: ="ETP perf "&DATEMAJ!$C$28 -> ETP perf Dec 2020 | D9: Moyenne ecart au 1er | E9: % Ecart au 1er | F9: Rang CEGEE | G9: Moyenne ecart au 1er | H9: % Ecart au 1er | I9: Rang CEGEE | J9: Moyenne ecart au 1er | K9: % Ecart au 1er | L9: Rang CEGEE | M9: Moyenne ecart au 1er | N9: % Ecart au 1er | O9: Rang CEGEE | P9: Moyenne ecart au 1er | Q9: % Ecart au 1er | R9: Rang CEGEE | S9: Moyenne ecart au 1er | T9: % Ecart au 1er | U9: Rang CEGEE
A10: 50 | B10: Meurthe et Moselle Meuse | C10: 253 | D10: 9% | E10: 0% | F10: 1 | G10: 26% | H10: 26% | I10: 3 | J10: 4% | K10: 0% | L10: 1 | M10: 33% | N10: 18% | O10: 4 | P10: 0% | Q10: 0% | R10: 1 | S10: 6% | T10: 0% | U10: 1
A11: 262 | B11: Marne-Ardennes | C11: 230 | D11: 18% | E11: 9% | F11: 2 | G11: 0% | H11: 0% | I11: 1 | J11: 9% | K11: 5% | L11: 2 | M11: 43% | N11: 28% | O11: 5 | P11: 38% | Q11: 38% | R11: 6 | S11: 25% | T11: 19% | U11: 2
A12: 264 | B12: Vosges | C12: 139 | D12: 22% | E12: 14% | F12: 3 | G12: 20% | H12: 20% | I12: 2 | J12: 37% | K12: 33% | L12: 4 | M12: 15% | N12: 0% | O12: 1 | P12: 19% | Q12: 19% | R12: 4 | S12: 47% | T12: 40% | U12: 6
A13: 30 | B13: Bas-Rhin | C13: 269 | D13: 27% | E13: 18% | F13: 4 | G13: 79% | H13: 79% | I13: 6 | J13: 15% | K13: 11% | L13: 3 | M13: 31% | N13: 16% | O13: 2 | P13: 2% | Q13: 2% | R13: 2 | S13: 32% | T13: 26% | U13: 3
A14: 110 | B14: Moselle | C14: 284 | D14: 27% | E14: 19% | F14: 5 | G14: 33% | H14: 33% | I14: 5 | J14: 45% | K14: 42% | L14: 5 | M14: 32% | N14: 17% | O14: 3 | P14: 19% | Q14: 19% | R14: 5 | S14: 33% | T14: 26% | U14: 4
A15: 160 | B15: Aube Haute Marne | C15: 133 | D15: 39% | E15: 30% | F15: 6 | G15: 31% | H15: 31% | I15: 4 | J15: 52% | K15: 48% | L15: 7 | M15: 62% | N15: 47% | O15: 6 | P15: 39% | Q15: 39% | R15: 7 | S15: 38% | T15: 31% | U15: 5
A16: 80 | B16: Haut-Rhin | C16: 161 | D16: 54% | E16: 45% | F16: 7 | G16: 90% | H16: 90% | I16: 7 | J16: 51% | K16: 48% | L16: 6 | M16: 78% | N16: 63% | O16: 7 | P16: 15% | Q16: 14% | R16: 3 | S16: 61% | T16: 55% | U16: 7
B17: Total CEGEE Directions Régionales | C17: =SUM(C10:C16) -> 1468

Sheet DC_BANCA
B1: Accueil | D1: BAROMETRE BDD - DIRECTIONS REGIONALES
D2: BANCARISATION
D3: =ACCUEIL!F7 -> 2021-02-07
D7: Ventes Nettes produits pondérés | H7: Ventes sur client non détenteur de l’univers | L7: Mobilité Macron | P7: Remises commerciales | T7: Total Bancarisation
D8: =DATEMAJ!C8 -> au 07/02 | F8: coef | G8: ='RECAP DIRCOM'!AA4 -> 10% | H8: =DATEMAJ!C9 -> au 07/02 | J8: coef | K8: ='RECAP DIRCOM'!AE4 -> 4% | L8: =DATEMAJ!C10 -> au 07/02 | N8: coef | O8: ='RECAP DIRCOM'!AI4 -> 3% | P8: =DATEMAJ!C11 -> au 31/01 | R8: coef | S8: ='RECAP DIRCOM'!AM4 -> 3% | U8: coef | V8: ='RECAP DIRCOM'!AP4 -> 20%
B9: Direction | C9: ="ETP perf "&DATEMAJ!$C$28 -> ETP perf Dec 2020 | D9: VN | E9: VN / ETP | F9: % Ecart au 1er | G9: Rang | H9: VB | I9: VB / ETP | J9: % Ecart au 1er | K9: Rang | L9: Nb | M9: Nb / ETP | N9: % Ecart au 1er | O9: Rang | P9: Montant | Q9: Montant / ETP | R9: % Ecart au 1er | S9: Rang | T9: Moyenne ecart au 1er | U9: % Ecart au 1er | V9: Rang CEGEE
A10: 50 | B10: Aube Haute Marne | C10: =VLOOKUP($A10,'RECAP DIRCOM'!$G$6:$DC$12,3,FALSE) -> 133 | D10: =VLOOKUP($A10,'RECAP DIRCOM'!$G$6:$DC$12,18,FALSE) -> 161 | E10: =VLOOKUP($A10,'RECAP DIRCOM'!$G$6:$DC$12,19,FALSE) -> 1.21 | F10: =VLOOKUP($A10,'RECAP DIRCOM'!$G$6:$DC$12,20,FALSE) -> 71% | G10: =VLOOKUP($A10,'RECAP DIRCOM'!$G$6:$DC$12,21,FALSE) -> 7 | H10: =VLOOKUP($A10,'RECAP DIRCOM'!$G$6:$DC$12,22,FALSE) -> 451 | I10: =VLOOKUP($A10,'RECAP DIRCOM'!$G$6:$DC$12,23,FALSE) -> 3.39 | J10: =VLOOKUP($A10,'RECAP DIRCOM'!$G$6:$DC$12,24,FALSE) -> 36% | K10: =VLOOKUP($A10,'RECAP DIRCOM'!$G$6:$DC$12,25,FALSE) -> 6 | L10: =VLOOKUP($A10,'RECAP DIRCOM'!$G$6:$DC$12,26,FALSE) -> 66 | M10: =VLOOKUP($A10,'RECAP DIRCOM'!$G$6:$DC$12,27,FALSE) -> 0.50 | N10: =VLOOKUP($A10,'RECAP DIRCOM'!$G$6:$DC$12,28,FALSE) -> 61% | O10: =VLOOKUP($A10,'RECAP DIRCOM'!$G$6:$DC$12,29,FALSE) -> 5 | P10: =VLOOKUP($A10,'RECAP DIRCOM'!$G$6:$DC$12,30,FALSE) -> -32 | Q10: =VLOOKUP($A10,'RECAP DIRCOM'!$G$6:$DC$12,31,FALSE) -> -0.24 | R10: =VLOOKUP($A10,'RECAP DIRCOM'!$G$6:$DC$12,32,FALSE) -> 0% | S10: =VLOOKUP($A10,'RECAP DIRCOM'!$G$6:$DC$12,33,FALSE) -> 1 | T10: =VLOOKUP($A10,'RECAP DIRCOM'!$G$6:$DC$12,34,FALSE) -> 52% | U10: =VLOOKUP($A10,'RECAP DIRCOM'!$G$6:$DC$12,35,FALSE) -> 48% | V10: =VLOOKUP($A10,'RECAP DIRCOM'!$G$6:$DC$12,36,FALSE) -> 7
A11: 262 | B11: Bas-Rhin | C11: =VLOOKUP($A11,'RECAP DIRCOM'!$G$6:$DC$12,3,FALSE) -> 269 | D11: =VLOOKUP($A11,'RECAP DIRCOM'!$G$6:$DC$12,18,FALSE) -> 1,140 | E11: =VLOOKUP($A11,'RECAP DIRCOM'!$G$6:$DC$12,19,FALSE) -> 4.24 | F11: =VLOOKUP($A11,'RECAP DIRCOM'!$G$6:$DC$12,20,FALSE) -> 0% | G11: =VLOOKUP($A11,'RECAP DIRCOM'!$G$6:$DC$12,21,FALSE) -> 1 | H11: =VLOOKUP($A11,'RECAP DIRCOM'!$G$6:$DC$12,22,FALSE) -> 1,167 | I11: =VLOOKUP($A11,'RECAP DIRCOM'!$G$6:$DC$12,23,FALSE) -> 4.34 | J11: =VLOOKUP($A11,'RECAP DIRCOM'!$G$6:$DC$12,24,FALSE) -> 18% | K11: =VLOOKUP($A11,'RECAP DIRCOM'!$G$6:$DC$12,25,FALSE) -> 3 | L11: =VLOOKUP($A11,'RECAP DIRCOM'!$G$6:$DC$12,26,FALSE) -> 174 | M11: =VLOOKUP($A11,'RECAP DIRCOM'!$G$6:$DC$12,27,FALSE) -> 0.65 | N11: =VLOOKUP($A11,'RECAP DIRCOM'!$G$6:$DC$12,28,FALSE) -> 50% | O11: =VLOOKUP($A11,'RECAP DIRCOM'!$G$6:$DC$12,29,FALSE) -> 3 | P11: =VLOOKUP($A11,'RECAP DIRCOM'!$G$6:$DC$12,30,FALSE) -> -81 | Q11: =VLOOKUP($A11,'RECAP DIRCOM'!$G$6:$DC$12,31,FALSE) -> -0.30 | R11: =VLOOKUP($A11,'RECAP DIRCOM'!$G$6:$DC$12,32,FALSE) -> 24% | S11: =VLOOKUP($A11,'RECAP DIRCOM'!$G$6:$DC$12,33,FALSE) -> 7 | T11: =VLOOKUP($A11,'RECAP DIRCOM'!$G$6:$DC$12,34,FALSE) -> 15% | U11: =VLOOKUP($A11,'RECAP DIRCOM'!$G$6:$DC$12,35,FALSE) -> 11% | V11: =VLOOKUP($A11,'RECAP DIRCOM'!$G$6:$DC$12,36,FALSE) -> 3
A12: 264 | B12: Haut-Rhin | C12: =VLOOKUP($A12,'RECAP DIRCOM'!$G$6:$DC$12,3,FALSE) -> 161 | D12: =VLOOKUP($A12,'RECAP DIRCOM'!$G$6:$DC$12,18,FALSE) -> 300 | E12: =VLOOKUP($A12,'RECAP DIRCOM'!$G$6:$DC$12,19,FALSE) -> 1.86 | F12: =VLOOKUP($A12,'RECAP DIRCOM'!$G$6:$DC$12,20,FALSE) -> 56% | G12: =VLOOKUP($A12,'RECAP DIRCOM'!$G$6:$DC$12,21,FALSE) -> 5 | H12: =VLOOKUP($A12,'RECAP DIRCOM'!$G$6:$DC$12,22,FALSE) -> 516 | I12: =VLOOKUP($A12,'RECAP DIRCOM'!$G$6:$DC$12,23,FALSE) -> 3.21 | J12: =VLOOKUP($A12,'RECAP DIRCOM'!$G$6:$DC$12,24,FALSE) -> 39% | K12: =VLOOKUP($A12,'RECAP DIRCOM'!$G$6:$DC$12,25,FALSE) -> 7 | L12: =VLOOKUP($A12,'RECAP DIRCOM'!$G$6:$DC$12,26,FALSE) -> 34 | M12: =VLOOKUP($A12,'RECAP DIRCOM'!$G$6:$DC$12,27,FALSE) -> 0.21 | N12: =VLOOKUP($A12,'RECAP DIRCOM'!$G$6:$DC$12,28,FALSE) -> 83% | O12: =VLOOKUP($A12,'RECAP DIRCOM'!$G$6:$DC$12,29,FALSE) -> 7 | P12: =VLOOKUP($A12,'RECAP DIRCOM'!$G$6:$DC$12,30,FALSE) -> -47 | Q12: =VLOOKUP($A12,'RECAP DIRCOM'!$G$6:$DC$12,31,FALSE) -> -0.29 | R12: =VLOOKUP($A12,'RECAP DIRCOM'!$G$6:$DC$12,32,FALSE) -> 20% | S12: =VLOOKUP($A12,'RECAP DIRCOM'!$G$6:$DC$12,33,FALSE) -> 6 | T12: =VLOOKUP($A12,'RECAP DIRCOM'!$G$6:$DC$12,34,FALSE) -> 51% | U12: =VLOOKUP($A12,'RECAP DIRCOM'!$G$6:$DC$12,35,FALSE) -> 48% | V12: =VLOOKUP($A12,'RECAP DIRCOM'!$G$6:$DC$12,36,FALSE) -> 6
A13: 30 | B13: Marne-Ardennes | C13: =VLOOKUP($A13,'RECAP DIRCOM'!$G$6:$DC$12,3,FALSE) -> 230 | D13: =VLOOKUP($A13,'RECAP DIRCOM'!$G$6:$DC$12,18,FALSE) -> 886 | E13: =VLOOKUP($A13,'RECAP DIRCOM'!$G$6:$DC$12,19,FALSE) -> 3.86 | F13: =VLOOKUP($A13,'RECAP DIRCOM'!$G$6:$DC$12,20,FALSE) -> 9% | G13: =VLOOKUP($A13,'RECAP DIRCOM'!$G$6:$DC$12,21,FALSE) -> 3 | H13: =VLOOKUP($A13,'RECAP DIRCOM'!$G$6:$DC$12,22,FALSE) -> 1,080 | I13: =VLOOKUP($A13,'RECAP DIRCOM'!$G$6:$DC$12,23,FALSE) -> 4.71 | J13: =VLOOKUP($A13,'RECAP DIRCOM'!$G$6:$DC$12,24,FALSE) -> 11% | K13: =VLOOKUP($A13,'RECAP DIRCOM'!$G$6:$DC$12,25,FALSE) -> 2 | L13: =VLOOKUP($A13,'RECAP DIRCOM'!$G$6:$DC$12,26,FALSE) -> 281 | M13: =VLOOKUP($A13,'RECAP DIRCOM'!$G$6:$DC$12,27,FALSE) -> 1.22 | N13: =VLOOKUP($A13,'RECAP DIRCOM'!$G$6:$DC$12,28,FALSE) -> 4% | O13: =VLOOKUP($A13,'RECAP DIRCOM'!$G$6:$DC$12,29,FALSE) -> 2 | P13: =VLOOKUP($A13,'RECAP DIRCOM'!$G$6:$DC$12,30,FALSE) -> -61 | Q13: =VLOOKUP($A13,'RECAP DIRCOM'!$G$6:$DC$12,31,FALSE) -> -0.27 | R13: =VLOOKUP($A13,'RECAP DIRCOM'!$G$6:$DC$12,32,FALSE) -> 10% | S13: =VLOOKUP($A13,'RECAP DIRCOM'!$G$6:$DC$12,33,FALSE) -> 4 | T13: =VLOOKUP($A13,'RECAP DIRCOM'!$G$6:$DC$12,34,FALSE) -> 9% | U13: =VLOOKUP($A13,'RECAP DIRCOM'!$G$6:$DC$12,35,FALSE) -> 5% | V13: =VLOOKUP($A13,'RECAP DIRCOM'!$G$6:$DC$12,36,FALSE) -> 2
A14: 110 | B14: Meurthe et Moselle Meuse | C14: =VLOOKUP($A14,'RECAP DIRCOM'!$G$6:$DC$12,3,FALSE) -> 253 | D14: =VLOOKUP($A14,'RECAP DIRCOM'!$G$6:$DC$12,18,FALSE) -> 1,030 | E14: =VLOOKUP($A14,'RECAP DIRCOM'!$G$6:$DC$12,19,FALSE) -> 4.07 | F14: =VLOOKUP($A14,'RECAP DIRCOM'!$G$6:$DC$12,20,FALSE) -> 4% | G14: =VLOOKUP($A14,'RECAP DIRCOM'!$G$6:$DC$12,21,FALSE) -> 2 | H14: =VLOOKUP($A14,'RECAP DIRCOM'!$G$6:$DC$12,22,FALSE) -> 1,336 | I14: =VLOOKUP($A14,'RECAP DIRCOM'!$G$6:$DC$12,23,FALSE) -> 5.29 | J14: =VLOOKUP($A14,'RECAP DIRCOM'!$G$6:$DC$12,24,FALSE) -> 0% | K14: =VLOOKUP($A14,'RECAP DIRCOM'!$G$6:$DC$12,25,FALSE) -> 1 | L14: =VLOOKUP($A14,'RECAP DIRCOM'!$G$6:$DC$12,26,FALSE) -> 324 | M14: =VLOOKUP($A14,'RECAP DIRCOM'!$G$6:$DC$12,27,FALSE) -> 1.28 | N14: =VLOOKUP($A14,'RECAP DIRCOM'!$G$6:$DC$12,28,FALSE) -> 0% | O14: =VLOOKUP($A14,'RECAP DIRCOM'!$G$6:$DC$12,29,FALSE) -> 1 | P14: =VLOOKUP($A14,'RECAP DIRCOM'!$G$6:$DC$12,30,FALSE) -> -69 | Q14: =VLOOKUP($A14,'RECAP DIRCOM'!$G$6:$DC$12,31,FALSE) -> -0.27 | R14: =VLOOKUP($A14,'RECAP DIRCOM'!$G$6:$DC$12,32,FALSE) -> 12% | S14: =VLOOKUP($A14,'RECAP DIRCOM'!$G$6:$DC$12,33,FALSE) -> 5 | T14: =VLOOKUP($A14,'RECAP DIRCOM'!$G$6:$DC$12,34,FALSE) -> 4% | U14: =VLOOKUP($A14,'RECAP DIRCOM'!$G$6:$DC$12,35,FALSE) -> 0% | V14: =VLOOKUP($A14,'RECAP DIRCOM'!$G$6:$DC$12,36,FALSE) -> 1
A15: 160 | B15: Moselle | C15: =VLOOKUP($A15,'RECAP DIRCOM'!$G$6:$DC$12,3,FALSE) -> 284 | D15: =VLOOKUP($A15,'RECAP DIRCOM'!$G$6:$DC$12,18,FALSE) -> 482 | E15: =VLOOKUP($A15,'RECAP DIRCOM'!$G$6:$DC$12,19,FALSE) -> 1.70 | F15: =VLOOKUP($A15,'RECAP DIRCOM'!$G$6:$DC$12,20,FALSE) -> 60% | G15: =VLOOKUP($A15,'RECAP DIRCOM'!$G$6:$DC$12,21,FALSE) -> 6 | H15: =VLOOKUP($A15,'RECAP DIRCOM'!$G$6:$DC$12,22,FALSE) -> 1,095 | I15: =VLOOKUP($A15,'RECAP DIRCOM'!$G$6:$DC$12,23,FALSE) -> 3.86 | J15: =VLOOKUP($A15,'RECAP DIRCOM'!$G$6:$DC$12,24,FALSE) -> 27% | K15: =VLOOKUP($A15,'RECAP DIRCOM'!$G$6:$DC$12,25,FALSE) -> 4 | L15: =VLOOKUP($A15,'RECAP DIRCOM'!$G$6:$DC$12,26,FALSE) -> 139 | M15: =VLOOKUP($A15,'RECAP DIRCOM'!$G$6:$DC$12,27,FALSE) -> 0.49 | N15: =VLOOKUP($A15,'RECAP DIRCOM'!$G$6:$DC$12,28,FALSE) -> 62% | O15: =VLOOKUP($A15,'RECAP DIRCOM'!$G$6:$DC$12,29,FALSE) -> 6 | P15: =VLOOKUP($A15,'RECAP DIRCOM'!$G$6:$DC$12,30,FALSE) -> -73 | Q15: =VLOOKUP($A15,'RECAP DIRCOM'!$G$6:$DC$12,31,FALSE) -> -0.26 | R15: =VLOOKUP($A15,'RECAP DIRCOM'!$G$6:$DC$12,32,FALSE) -> 5% | S15: =VLOOKUP($A15,'RECAP DIRCOM'!$G$6:$DC$12,33,FALSE) -> 2 | T15: =VLOOKUP($A15,'RECAP DIRCOM'!$G$6:$DC$12,34,FALSE) -> 45% | U15: =VLOOKUP($A15,'RECAP DIRCOM'!$G$6:$DC$12,35,FALSE) -> 42% | V15: =VLOOKUP($A15,'RECAP DIRCOM'!$G$6:$DC$12,36,FALSE) -> 5
A16: 80 | B16: Vosges | C16: =VLOOKUP($A16,'RECAP DIRCOM'!$G$6:$DC$12,3,FALSE) -> 139 | D16: =VLOOKUP($A16,'RECAP DIRCOM'!$G$6:$DC$12,18,FALSE) -> 341 | E16: =VLOOKUP($A16,'RECAP DIRCOM'!$G$6:$DC$12,19,FALSE) -> 2.45 | F16: =VLOOKUP($A16,'RECAP DIRCOM'!$G$6:$DC$12,20,FALSE) -> 42% | G16: =VLOOKUP($A16,'RECAP DIRCOM'!$G$6:$DC$12,21,FALSE) -> 4 | H16: =VLOOKUP($A16,'RECAP DIRCOM'!$G$6:$DC$12,22,FALSE) -> 482 | I16: =VLOOKUP($A16,'RECAP DIRCOM'!$G$6:$DC$12,23,FALSE) -> 3.46 | J16: =VLOOKUP($A16,'RECAP DIRCOM'!$G$6:$DC$12,24,FALSE) -> 35% | K16: =VLOOKUP($A16,'RECAP DIRCOM'!$G$6:$DC$12,25,FALSE) -> 5 | L16: =VLOOKUP($A16,'RECAP DIRCOM'!$G$6:$DC$12,26,FALSE) -> 86 | M16: =VLOOKUP($A16,'RECAP DIRCOM'!$G$6:$DC$12,27,FALSE) -> 0.62 | N16: =VLOOKUP($A16,'RECAP DIRCOM'!$G$6:$DC$12,28,FALSE) -> 52% | O16: =VLOOKUP($A16,'RECAP DIRCOM'!$G$6:$DC$12,29,FALSE) -> 4 | P16: =VLOOKUP($A16,'RECAP DIRCOM'!$G$6:$DC$12,30,FALSE) -> -37 | Q16: =VLOOKUP($A16,'RECAP DIRCOM'!$G$6:$DC$12,31,FALSE) -> -0.27 | R16: =VLOOKUP($A16,'RECAP DIRCOM'!$G$6:$DC$12,32,FALSE) -> 9% | S16: =VLOOKUP($A16,'RECAP DIRCOM'!$G$6:$DC$12,33,FALSE) -> 3 | T16: =VLOOKUP($A16,'RECAP DIRCOM'!$G$6:$DC$12,34,FALSE) -> 37% | U16: =VLOOKUP($A16,'RECAP DIRCOM'!$G$6:$DC$12,35,FALSE) -> 33% | V16: =VLOOKUP($A16,'RECAP DIRCOM'!$G$6:$DC$12,36,FALSE) -> 4
B17: Total CEGEE Directions Régionales | C17: =SUM(C10:C16) -> 1468

Sheet DC_EPARGNE
B1: Accueil | D1: BAROMETRE BDD - DIRECTIONS REGIONALES
D2: EPARGNE
D3: =ACCUEIL!F7 -> 2021-02-07
D7: Excédent Epargne y/c DAV pondéré | H7: Ventes sur client non détenteur de l’univers | L7: Total Epargne
D8: =DATEMAJ!C14 -> au 07/02 | F8: coef | G8: ='RECAP DIRCOM'!AX4 -> 14% | H8: =DATEMAJ!C15 -> au 07/02 | J8: coef | K8: ='RECAP DIRCOM'!BB4 -> 6% | M8: coef | N8: ='RECAP DIRCOM'!BE4 -> 20%
B9: Direction | C9: ="ETP perf "&DATEMAJ!$C$28 -> ETP perf Dec 2020 | D9: Excédent | E9: Excédent / ETP | F9: % Ecart au 1er | G9: Rang | H9: VB | I9: VB / ETP | J9: % Ecart au 1er | K9: Rang | L9: Moyenne ecart au 1er | M9: % Ecart au 1er | N9: Rang CEGEE
A10: 50 | B10: Aube Haute Marne | C10: =VLOOKUP($A10,'RECAP DIRCOM'!$G$6:$DC$12,3,FALSE) -> 133 | D10: =VLOOKUP($A10,'RECAP DIRCOM'!$G$6:$DC$12,41,FALSE) -> 4,695 | E10: =VLOOKUP($A10,'RECAP DIRCOM'!$G$6:$DC$12,42,FALSE) -> 35.24 | F10: =VLOOKUP($A10,'RECAP DIRCOM'!$G$6:$DC$12,43,FALSE) -> 73% | G10: =VLOOKUP($A10,'RECAP DIRCOM'!$G$6:$DC$12,44,FALSE) -> 6 | H10: =VLOOKUP($A10,'RECAP DIRCOM'!$G$6:$DC$12,45,FALSE) -> 275 | I10: =VLOOKUP($A10,'RECAP DIRCOM'!$G$6:$DC$12,46,FALSE) -> 2.06 | J10: =VLOOKUP($A10,'RECAP DIRCOM'!$G$6:$DC$12,47,FALSE) -> 37% | K10: =VLOOKUP($A10,'RECAP DIRCOM'!$G$6:$DC$12,48,FALSE) -> 4 | L10: =VLOOKUP($A10,'RECAP DIRCOM'!$G$6:$DC$12,49,FALSE) -> 62% | M10: =VLOOKUP($A10,'RECAP DIRCOM'!$G$6:$DC$12,50,FALSE) -> 47% | N10: =VLOOKUP($A10,'RECAP DIRCOM'!$G$6:$DC$12,51,FALSE) -> 6
A11: 262 | B11: Bas-Rhin | C11: =VLOOKUP($A11,'RECAP DIRCOM'!$G$6:$DC$12,3,FALSE) -> 269 | D11: =VLOOKUP($A11,'RECAP DIRCOM'!$G$6:$DC$12,41,FALSE) -> 23,992 | E11: =VLOOKUP($A11,'RECAP DIRCOM'!$G$6:$DC$12,42,FALSE) -> 89.16 | F11: =VLOOKUP($A11,'RECAP DIRCOM'!$G$6:$DC$12,43,FALSE) -> 32% | G11: =VLOOKUP($A11,'RECAP DIRCOM'!$G$6:$DC$12,44,FALSE) -> 3 | H11: =VLOOKUP($A11,'RECAP DIRCOM'!$G$6:$DC$12,45,FALSE) -> 626 | I11: =VLOOKUP($A11,'RECAP DIRCOM'!$G$6:$DC$12,46,FALSE) -> 2.33 | J11: =VLOOKUP($A11,'RECAP DIRCOM'!$G$6:$DC$12,47,FALSE) -> 29% | K11: =VLOOKUP($A11,'RECAP DIRCOM'!$G$6:$DC$12,48,FALSE) -> 3 | L11: =VLOOKUP($A11,'RECAP DIRCOM'!$G$6:$DC$12,49,FALSE) -> 31% | M11: =VLOOKUP($A11,'RECAP DIRCOM'!$G$6:$DC$12,50,FALSE) -> 16% | N11: =VLOOKUP($A11,'RECAP DIRCOM'!$G$6:$DC$12,51,FALSE) -> 2
A12: 264 | B12: Haut-Rhin | C12: =VLOOKUP($A12,'RECAP DIRCOM'!$G$6:$DC$12,3,FALSE) -> 161 | D12: =VLOOKUP($A12,'RECAP DIRCOM'!$G$6:$DC$12,41,FALSE) -> 3,226 | E12: =VLOOKUP($A12,'RECAP DIRCOM'!$G$6:$DC$12,42,FALSE) -> 20.07 | F12: =VLOOKUP($A12,'RECAP DIRCOM'!$G$6:$DC$12,43,FALSE) -> 85% | G12: =VLOOKUP($A12,'RECAP DIRCOM'!$G$6:$DC$12,44,FALSE) -> 7 | H12: =VLOOKUP($A12,'RECAP DIRCOM'!$G$6:$DC$12,45,FALSE) -> 203 | I12: =VLOOKUP($A12,'RECAP DIRCOM'!$G$6:$DC$12,46,FALSE) -> 1.26 | J12: =VLOOKUP($A12,'RECAP DIRCOM'!$G$6:$DC$12,47,FALSE) -> 61% | K12: =VLOOKUP($A12,'RECAP DIRCOM'!$G$6:$DC$12,48,FALSE) -> 7 | L12: =VLOOKUP($A12,'RECAP DIRCOM'!$G$6:$DC$12,49,FALSE) -> 78% | M12: =VLOOKUP($A12,'RECAP DIRCOM'!$G$6:$DC$12,50,FALSE) -> 63% | N12: =VLOOKUP($A12,'RECAP DIRCOM'!$G$6:$DC$12,51,FALSE) -> 7
A13: 30 | B13: Marne-Ardennes | C13: =VLOOKUP($A13,'RECAP DIRCOM'!$G$6:$DC$12,3,FALSE) -> 230 | D13: =VLOOKUP($A13,'RECAP DIRCOM'!$G$6:$DC$12,41,FALSE) -> 11,661 | E13: =VLOOKUP($A13,'RECAP DIRCOM'!$G$6:$DC$12,42,FALSE) -> 50.80 | F13: =VLOOKUP($A13,'RECAP DIRCOM'!$G$6:$DC$12,43,FALSE) -> 61% | G13: =VLOOKUP($A13,'RECAP DIRCOM'!$G$6:$DC$12,44,FALSE) -> 5 | H13: =VLOOKUP($A13,'RECAP DIRCOM'!$G$6:$DC$12,45,FALSE) -> 748 | I13: =VLOOKUP($A13,'RECAP DIRCOM'!$G$6:$DC$12,46,FALSE) -> 3.26 | J13: =VLOOKUP($A13,'RECAP DIRCOM'!$G$6:$DC$12,47,FALSE) -> 0% | K13: =VLOOKUP($A13,'RECAP DIRCOM'!$G$6:$DC$12,48,FALSE) -> 1 | L13: =VLOOKUP($A13,'RECAP DIRCOM'!$G$6:$DC$12,49,FALSE) -> 43% | M13: =VLOOKUP($A13,'RECAP DIRCOM'!$G$6:$DC$12,50,FALSE) -> 28% | N13: =VLOOKUP($A13,'RECAP DIRCOM'!$G$6:$DC$12,51,FALSE) -> 5
A14: 110 | B14: Meurthe et Moselle Meuse | C14: =VLOOKUP($A14,'RECAP DIRCOM'!$G$6:$DC$12,3,FALSE) -> 253 | D14: =VLOOKUP($A14,'RECAP DIRCOM'!$G$6:$DC$12,41,FALSE) -> 19,595 | E14: =VLOOKUP($A14,'RECAP DIRCOM'!$G$6:$DC$12,42,FALSE) -> 77.53 | F14: =VLOOKUP($A14,'RECAP DIRCOM'!$G$6:$DC$12,43,FALSE) -> 41% | G14: =VLOOKUP($A14,'RECAP DIRCOM'!$G$6:$DC$12,44,FALSE) -> 4 | H14: =VLOOKUP($A14,'RECAP DIRCOM'!$G$6:$DC$12,45,FALSE) -> 708 | I14: =VLOOKUP($A14,'RECAP DIRCOM'!$G$6:$DC$12,46,FALSE) -> 2.80 | J14: =VLOOKUP($A14,'RECAP DIRCOM'!$G$6:$DC$12,47,FALSE) -> 14% | K14: =VLOOKUP($A14,'RECAP DIRCOM'!$G$6:$DC$12,48,FALSE) -> 2 | L14: =VLOOKUP($A14,'RECAP DIRCOM'!$G$6:$DC$12,49,FALSE) -> 33% | M14: =VLOOKUP($A14,'RECAP DIRCOM'!$G$6:$DC$12,50,FALSE) -> 18% | N14: =VLOOKUP($A14,'RECAP DIRCOM'!$G$6:$DC$12,51,FALSE) -> 4
A15: 160 | B15: Moselle | C15: =VLOOKUP($A15,'RECAP DIRCOM'!$G$6:$DC$12,3,FALSE) -> 284 | D15: =VLOOKUP($A15,'RECAP DIRCOM'!$G$6:$DC$12,41,FALSE) -> 27,971 | E15: =VLOOKUP($A15,'RECAP DIRCOM'!$G$6:$DC$12,42,FALSE) -> 98.58 | F15: =VLOOKUP($A15,'RECAP DIRCOM'!$G$6:$DC$12,43,FALSE) -> 25% | G15: =VLOOKUP($A15,'RECAP DIRCOM'!$G$6:$DC$12,44,FALSE) -> 2 | H15: =VLOOKUP($A15,'RECAP DIRCOM'!$G$6:$DC$12,45,FALSE) -> 472 | I15: =VLOOKUP($A15,'RECAP DIRCOM'!$G$6:$DC$12,46,FALSE) -> 1.66 | J15: =VLOOKUP($A15,'RECAP DIRCOM'!$G$6:$DC$12,47,FALSE) -> 49% | K15: =VLOOKUP($A15,'RECAP DIRCOM'!$G$6:$DC$12,48,FALSE) -> 5 | L15: =VLOOKUP($A15,'RECAP DIRCOM'!$G$6:$DC$12,49,FALSE) -> 32% | M15: =VLOOKUP($A15,'RECAP DIRCOM'!$G$6:$DC$12,50,FALSE) -> 17% | N15: =VLOOKUP($A15,'RECAP DIRCOM'!$G$6:$DC$12,51,FALSE) -> 3
A16: 80 | B16: Vosges | C16: =VLOOKUP($A16,'RECAP DIRCOM'!$G$6:$DC$12,3,FALSE) -> 139 | D16: =VLOOKUP($A16,'RECAP DIRCOM'!$G$6:$DC$12,41,FALSE) -> 18,336 | E16: =VLOOKUP($A16,'RECAP DIRCOM'!$G$6:$DC$12,42,FALSE) -> 131.69 | F16: =VLOOKUP($A16,'RECAP DIRCOM'!$G$6:$DC$12,43,FALSE) -> 0% | G16: =VLOOKUP($A16,'RECAP DIRCOM'!$G$6:$DC$12,44,FALSE) -> 1 | H16: =VLOOKUP($A16,'RECAP DIRCOM'!$G$6:$DC$12,45,FALSE) -> 228 | I16: =VLOOKUP($A16,'RECAP DIRCOM'!$G$6:$DC$12,46,FALSE) -> 1.64 | J16: =VLOOKUP($A16,'RECAP DIRCOM'!$G$6:$DC$12,47,FALSE) -> 50% | K16: =VLOOKUP($A16,'RECAP DIRCOM'!$G$6:$DC$12,48,FALSE) -> 6 | L16: =VLOOKUP($A16,'RECAP DIRCOM'!$G$6:$DC$12,49,FALSE) -> 15% | M16: =VLOOKUP($A16,'RECAP DIRCOM'!$G$6:$DC$12,50,FALSE) -> 0% | N16: =VLOOKUP($A16,'RECAP DIRCOM'!$G$6:$DC$12,51,FALSE) -> 1
B17: Total CEGEE Directions Régionales | C17: =SUM(C10:C16) -> 1468

Sheet DC_CREDIT
B1: Accueil | D1: BAROMETRE BDD - DIRECTIONS REGIONALES
D2: CREDITS
D3: =ACCUEIL!F7 -> 2021-02-07
D7: Engagements et ventes accessoires pondérés Immo | H7: Engagements et ventes accessoires pondérés Conso | L7: Ventes sur client non détenteur de l’univers | P7: Total Crédits
D8: =DATEMAJ!C18 -> au 07/02 | F8: coef | G8: ='RECAP DIRCOM'!BM4 -> 8% | H8: =DATEMAJ!C19 -> au 07/02 | J8: coef | K8: ='RECAP DIRCOM'!BQ4 -> 6% | L8: =DATEMAJ!C20 -> au 07/02 | N8: coef | O8: ='RECAP DIRCOM'!BU4 -> 6% | Q8: coef | R8: ='RECAP DIRCOM'!BX4 -> 20%
B9: Direction | C9: ="ETP perf "&DATEMAJ!$C$28 -> ETP perf Dec 2020 | D9: PNB | E9: PNB / ETP | F9: % Ecart au 1er | G9: Rang | H9: PNB | I9: PNB / ETP | J9: % Ecart au 1er | K9: Rang | L9: VB | M9: VB / ETP | N9: % Ecart au 1er | O9: Rang | P9: Moyenne ecart au 1er | Q9: % Ecart au 1er | R9: Rang CEGEE
A10: 50 | B10: Aube Haute Marne | C10: =VLOOKUP($A10,'RECAP DIRCOM'!$G$6:$DC$12,3,FALSE) -> 133 | D10: =VLOOKUP($A10,'RECAP DIRCOM'!$G$6:$DC$12,56,FALSE) -> 744 | E10: =VLOOKUP($A10,'RECAP DIRCOM'!$G$6:$DC$12,57,FALSE) -> 5.58 | F10: =VLOOKUP($A10,'RECAP DIRCOM'!$G$6:$DC$12,58,FALSE) -> 55% | G10: =VLOOKUP($A10,'RECAP DIRCOM'!$G$6:$DC$12,59,FALSE) -> 6 | H10: =VLOOKUP($A10,'RECAP DIRCOM'!$G$6:$DC$12,60,FALSE) -> 689 | I10: =VLOOKUP($A10,'RECAP DIRCOM'!$G$6:$DC$12,61,FALSE) -> 5.17 | J10: =VLOOKUP($A10,'RECAP DIRCOM'!$G$6:$DC$12,62,FALSE) -> 12% | K10: =VLOOKUP($A10,'RECAP DIRCOM'!$G$6:$DC$12,63,FALSE) -> 3 | L10: =VLOOKUP($A10,'RECAP DIRCOM'!$G$6:$DC$12,64,FALSE) -> 146 | M10: =VLOOKUP($A10,'RECAP DIRCOM'!$G$6:$DC$12,65,FALSE) -> 1.10 | N10: =VLOOKUP($A10,'RECAP DIRCOM'!$G$6:$DC$12,66,FALSE) -> 39% | O10: =VLOOKUP($A10,'RECAP DIRCOM'!$G$6:$DC$12,67,FALSE) -> 4 | P10: =VLOOKUP($A10,'RECAP DIRCOM'!$G$6:$DC$12,68,FALSE) -> 38% | Q10: =VLOOKUP($A10,'RECAP DIRCOM'!$G$6:$DC$12,69,FALSE) -> 31% | R10: =VLOOKUP($A10,'RECAP DIRCOM'!$G$6:$DC$12,70,FALSE) -> 5
A11: 262 | B11: Bas-Rhin | C11: =VLOOKUP($A11,'RECAP DIRCOM'!$G$6:$DC$12,3,FALSE) -> 269 | D11: =VLOOKUP($A11,'RECAP DIRCOM'!$G$6:$DC$12,56,FALSE) -> 1,663 | E11: =VLOOKUP($A11,'RECAP DIRCOM'!$G$6:$DC$12,57,FALSE) -> 6.18 | F11: =VLOOKUP($A11,'RECAP DIRCOM'!$G$6:$DC$12,58,FALSE) -> 50% | G11: =VLOOKUP($A11,'RECAP DIRCOM'!$G$6:$DC$12,59,FALSE) -> 3 | H11: =VLOOKUP($A11,'RECAP DIRCOM'!$G$6:$DC$12,60,FALSE) -> 1,559 | I11: =VLOOKUP($A11,'RECAP DIRCOM'!$G$6:$DC$12,61,FALSE) -> 5.79 | J11: =VLOOKUP($A11,'RECAP DIRCOM'!$G$6:$DC$12,62,FALSE) -> 2% | K11: =VLOOKUP($A11,'RECAP DIRCOM'!$G$6:$DC$12,63,FALSE) -> 2 | L11: =VLOOKUP($A11,'RECAP DIRCOM'!$G$6:$DC$12,64,FALSE) -> 295 | M11: =VLOOKUP($A11,'RECAP DIRCOM'!$G$6:$DC$12,65,FALSE) -> 1.10 | N11: =VLOOKUP($A11,'RECAP DIRCOM'!$G$6:$DC$12,66,FALSE) -> 39% | O11: =VLOOKUP($A11,'RECAP DIRCOM'!$G$6:$DC$12,67,FALSE) -> 3 | P11: =VLOOKUP($A11,'RECAP DIRCOM'!$G$6:$DC$12,68,FALSE) -> 32% | Q11: =VLOOKUP($A11,'RECAP DIRCOM'!$G$6:$DC$12,69,FALSE) -> 26% | R11: =VLOOKUP($A11,'RECAP DIRCOM'!$G$6:$DC$12,70,FALSE) -> 3
A12: 264 | B12: Haut-Rhin | C12: =VLOOKUP($A12,'RECAP DIRCOM'!$G$6:$DC$12,3,FALSE) -> 161 | D12: =VLOOKUP($A12,'RECAP DIRCOM'!$G$6:$DC$12,56,FALSE) -> 579 | E12: =VLOOKUP($A12,'RECAP DIRCOM'!$G$6:$DC$12,57,FALSE) -> 3.61 | F12: =VLOOKUP($A12,'RECAP DIRCOM'!$G$6:$DC$12,58,FALSE) -> 71% | G12: =VLOOKUP($A12,'RECAP DIRCOM'!$G$6:$DC$12,59,FALSE) -> 7 | H12: =VLOOKUP($A12,'RECAP DIRCOM'!$G$6:$DC$12,60,FALSE) -> 514 | I12: =VLOOKUP($A12,'RECAP DIRCOM'!$G$6:$DC$12,61,FALSE) -> 3.20 | J12: =VLOOKUP($A12,'RECAP DIRCOM'!$G$6:$DC$12,62,FALSE) -> 46% | K12: =VLOOKUP($A12,'RECAP DIRCOM'!$G$6:$DC$12,63,FALSE) -> 7 | L12: =VLOOKUP($A12,'RECAP DIRCOM'!$G$6:$DC$12,64,FALSE) -> 103 | M12: =VLOOKUP($A12,'RECAP DIRCOM'!$G$6:$DC$12,65,FALSE) -> 0.64 | N12: =VLOOKUP($A12,'RECAP DIRCOM'!$G$6:$DC$12,66,FALSE) -> 64% | O12: =VLOOKUP($A12,'RECAP DIRCOM'!$G$6:$DC$12,67,FALSE) -> 7 | P12: =VLOOKUP($A12,'RECAP DIRCOM'!$G$6:$DC$12,68,FALSE) -> 61% | Q12: =VLOOKUP($A12,'RECAP DIRCOM'!$G$6:$DC$12,69,FALSE) -> 55% | R12: =VLOOKUP($A12,'RECAP DIRCOM'!$G$6:$DC$12,70,FALSE) -> 7
A13: 30 | B13: Marne-Ardennes | C13: =VLOOKUP($A13,'RECAP DIRCOM'!$G$6:$DC$12,3,FALSE) -> 230 | D13: =VLOOKUP($A13,'RECAP DIRCOM'!$G$6:$DC$12,56,FALSE) -> 2,215 | E13: =VLOOKUP($A13,'RECAP DIRCOM'!$G$6:$DC$12,57,FALSE) -> 9.65 | F13: =VLOOKUP($A13,'RECAP DIRCOM'!$G$6:$DC$12,58,FALSE) -> 23% | G13: =VLOOKUP($A13,'RECAP DIRCOM'!$G$6:$DC$12,59,FALSE) -> 2 | H13: =VLOOKUP($A13,'RECAP DIRCOM'!$G$6:$DC$12,60,FALSE) -> 961 | I13: =VLOOKUP($A13,'RECAP DIRCOM'!$G$6:$DC$12,61,FALSE) -> 4.19 | J13: =VLOOKUP($A13,'RECAP DIRCOM'!$G$6:$DC$12,62,FALSE) -> 29% | K13: =VLOOKUP($A13,'RECAP DIRCOM'!$G$6:$DC$12,63,FALSE) -> 5 | L13: =VLOOKUP($A13,'RECAP DIRCOM'!$G$6:$DC$12,64,FALSE) -> 309 | M13: =VLOOKUP($A13,'RECAP DIRCOM'!$G$6:$DC$12,65,FALSE) -> 1.35 | N13: =VLOOKUP($A13,'RECAP DIRCOM'!$G$6:$DC$12,66,FALSE) -> 25% | O13: =VLOOKUP($A13,'RECAP DIRCOM'!$G$6:$DC$12,67,FALSE) -> 2 | P13: =VLOOKUP($A13,'RECAP DIRCOM'!$G$6:$DC$12,68,FALSE) -> 25% | Q13: =VLOOKUP($A13,'RECAP DIRCOM'!$G$6:$DC$12,69,FALSE) -> 19% | R13: =VLOOKUP($A13,'RECAP DIRCOM'!$G$6:$DC$12,70,FALSE) -> 2
A14: 110 | B14: Meurthe et Moselle Meuse | C14: =VLOOKUP($A14,'RECAP DIRCOM'!$G$6:$DC$12,3,FALSE) -> 253 | D14: =VLOOKUP($A14,'RECAP DIRCOM'!$G$6:$DC$12,56,FALSE) -> 3,153 | E14: =VLOOKUP($A14,'RECAP DIRCOM'!$G$6:$DC$12,57,FALSE) -> 12.48 | F14: =VLOOKUP($A14,'RECAP DIRCOM'!$G$6:$DC$12,58,FALSE) -> 0% | G14: =VLOOKUP($A14,'RECAP DIRCOM'!$G$6:$DC$12,59,FALSE) -> 1 | H14: =VLOOKUP($A14,'RECAP DIRCOM'!$G$6:$DC$12,60,FALSE) -> 1,177 | I14: =VLOOKUP($A14,'RECAP DIRCOM'!$G$6:$DC$12,61,FALSE) -> 4.66 | J14: =VLOOKUP($A14,'RECAP DIRCOM'!$G$6:$DC$12,62,FALSE) -> 21% | K14: =VLOOKUP($A14,'RECAP DIRCOM'!$G$6:$DC$12,63,FALSE) -> 4 | L14: =VLOOKUP($A14,'RECAP DIRCOM'!$G$6:$DC$12,64,FALSE) -> 454 | M14: =VLOOKUP($A14,'RECAP DIRCOM'!$G$6:$DC$12,65,FALSE) -> 1.80 | N14: =VLOOKUP($A14,'RECAP DIRCOM'!$G$6:$DC$12,66,FALSE) -> 0% | O14: =VLOOKUP($A14,'RECAP DIRCOM'!$G$6:$DC$12,67,FALSE) -> 1 | P14: =VLOOKUP($A14,'RECAP DIRCOM'!$G$6:$DC$12,68,FALSE) -> 6% | Q14: =VLOOKUP($A14,'RECAP DIRCOM'!$G$6:$DC$12,69,FALSE) -> 0% | R14: =VLOOKUP($A14,'RECAP DIRCOM'!$G$6:$DC$12,70,FALSE) -> 1
A15: 160 | B15: Moselle | C15: =VLOOKUP($A15,'RECAP DIRCOM'!$G$6:$DC$12,3,FALSE) -> 284 | D15: =VLOOKUP($A15,'RECAP DIRCOM'!$G$6:$DC$12,56,FALSE) -> 1,700 | E15: =VLOOKUP($A15,'RECAP DIRCOM'!$G$6:$DC$12,57,FALSE) -> 5.99 | F15: =VLOOKUP($A15,'RECAP DIRCOM'!$G$6:$DC$12,58,FALSE) -> 52% | G15: =VLOOKUP($A15,'RECAP DIRCOM'!$G$6:$DC$12,59,FALSE) -> 4 | H15: =VLOOKUP($A15,'RECAP DIRCOM'!$G$6:$DC$12,60,FALSE) -> 1,673 | I15: =VLOOKUP($A15,'RECAP DIRCOM'!$G$6:$DC$12,61,FALSE) -> 5.90 | J15: =VLOOKUP($A15,'RECAP DIRCOM'!$G$6:$DC$12,62,FALSE) -> 0% | K15: =VLOOKUP($A15,'RECAP DIRCOM'!$G$6:$DC$12,63,FALSE) -> 1 | L15: =VLOOKUP($A15,'RECAP DIRCOM'!$G$6:$DC$12,64,FALSE) -> 308 | M15: =VLOOKUP($A15,'RECAP DIRCOM'!$G$6:$DC$12,65,FALSE) -> 1.09 | N15: =VLOOKUP($A15,'RECAP DIRCOM'!$G$6:$DC$12,66,FALSE) -> 40% | O15: =VLOOKUP($A15,'RECAP DIRCOM'!$G$6:$DC$12,67,FALSE) -> 5 | P15: =VLOOKUP($A15,'RECAP DIRCOM'!$G$6:$DC$12,68,FALSE) -> 33% | Q15: =VLOOKUP($A15,'RECAP DIRCOM'!$G$6:$DC$12,69,FALSE) -> 26% | R15: =VLOOKUP($A15,'RECAP DIRCOM'!$G$6:$DC$12,70,FALSE) -> 4
A16: 80 | B16: Vosges | C16: =VLOOKUP($A16,'RECAP DIRCOM'!$G$6:$DC$12,3,FALSE) -> 139 | D16: =VLOOKUP($A16,'RECAP DIRCOM'!$G$6:$DC$12,56,FALSE) -> 791 | E16: =VLOOKUP($A16,'RECAP DIRCOM'!$G$6:$DC$12,57,FALSE) -> 5.68 | F16: =VLOOKUP($A16,'RECAP DIRCOM'!$G$6:$DC$12,58,FALSE) -> 54% | G16: =VLOOKUP($A16,'RECAP DIRCOM'!$G$6:$DC$12,59,FALSE) -> 5 | H16: =VLOOKUP($A16,'RECAP DIRCOM'!$G$6:$DC$12,60,FALSE) -> 560 | I16: =VLOOKUP($A16,'RECAP DIRCOM'!$G$6:$DC$12,61,FALSE) -> 4.02 | J16: =VLOOKUP($A16,'RECAP DIRCOM'!$G$6:$DC$12,62,FALSE) -> 32% | K16: =VLOOKUP($A16,'RECAP DIRCOM'!$G$6:$DC$12,63,FALSE) -> 6 | L16: =VLOOKUP($A16,'RECAP DIRCOM'!$G$6:$DC$12,64,FALSE) -> 123 | M16: =VLOOKUP($A16,'RECAP DIRCOM'!$G$6:$DC$12,65,FALSE) -> 0.88 | N16: =VLOOKUP($A16,'RECAP DIRCOM'!$G$6:$DC$12,66,FALSE) -> 51% | O16: =VLOOKUP($A16,'RECAP DIRCOM'!$G$6:$DC$12,67,FALSE) -> 6 | P16: =VLOOKUP($A16,'RECAP DIRCOM'!$G$6:$DC$12,68,FALSE) -> 47% | Q16: =VLOOKUP($A16,'RECAP DIRCOM'!$G$6:$DC$12,69,FALSE) -> 40% | R16: =VLOOKUP($A16,'RECAP DIRCOM'!$G$6:$DC$12,70,FALSE) -> 6
B17: Total CEGEE Directions Régionales | C17: =SUM(C10:C16) -> 1468

Sheet DC_IARD
B1: Accueil | D1: BAROMETRE BDD - DIRECTIONS REGIONALES
D2: IARD ET PREVOYANCE
D3: =ACCUEIL!F7 -> 2021-02-07
D7: Ventes Nettes produits pondérés | H7: Ventes sur client non détenteur de l’univers | L7: Total IARD Prévoyance
D8: =DATEMAJ!C23 -> au 07/02 | F8: coef | G8: ='RECAP DIRCOM'!CF4 -> 14% | H8: =DATEMAJ!C24 -> au 07/02 | J8: coef | K8: ='RECAP DIRCOM'!CJ4 -> 6% | M8: coef | N8: ='RECAP DIRCOM'!CM4 -> 20%
B9: Direction | C9: ="ETP perf "&DATEMAJ!$C$28 -> ETP perf Dec 2020 | D9: VN | E9: VN / ETP | F9: % Ecart au 1er | G9: Rang | H9: VB | I9: VB / ETP | J9: % Ecart au 1er | K9: Rang | L9: Moyenne ecart au 1er | M9: % Ecart au 1er | N9: Rang CEGEE
A10: 50 | B10: Aube Haute Marne | C10: =VLOOKUP($A10,'RECAP DIRCOM'!$G$6:$DC$12,3,FALSE) -> 133 | D10: =VLOOKUP($A10,'RECAP DIRCOM'!$G$6:$DC$12,75,FALSE) -> 2,370 | E10: =VLOOKUP($A10,'RECAP DIRCOM'!$G$6:$DC$12,76,FALSE) -> 17.79 | F10: =VLOOKUP($A10,'RECAP DIRCOM'!$G$6:$DC$12,77,FALSE) -> 44% | G10: =VLOOKUP($A10,'RECAP DIRCOM'!$G$6:$DC$12,78,FALSE) -> 7 | H10: =VLOOKUP($A10,'RECAP DIRCOM'!$G$6:$DC$12,79,FALSE) -> 479 | I10: =VLOOKUP($A10,'RECAP DIRCOM'!$G$6:$DC$12,80,FALSE) -> 3.60 | J10: =VLOOKUP($A10,'RECAP DIRCOM'!$G$6:$DC$12,81,FALSE) -> 28% | K10: =VLOOKUP($A10,'RECAP DIRCOM'!$G$6:$DC$12,82,FALSE) -> 6 | L10: =VLOOKUP($A10,'RECAP DIRCOM'!$G$6:$DC$12,83,FALSE) -> 39% | M10: =VLOOKUP($A10,'RECAP DIRCOM'!$G$6:$DC$12,84,FALSE) -> 39% | N10: =VLOOKUP($A10,'RECAP DIRCOM'!$G$6:$DC$12,85,FALSE) -> 7
A11: 262 | B11: Bas-Rhin | C11: =VLOOKUP($A11,'RECAP DIRCOM'!$G$6:$DC$12,3,FALSE) -> 269 | D11: =VLOOKUP($A11,'RECAP DIRCOM'!$G$6:$DC$12,75,FALSE) -> 8,551 | E11: =VLOOKUP($A11,'RECAP DIRCOM'!$G$6:$DC$12,76,FALSE) -> 31.78 | F11: =VLOOKUP($A11,'RECAP DIRCOM'!$G$6:$DC$12,77,FALSE) -> 0% | G11: =VLOOKUP($A11,'RECAP DIRCOM'!$G$6:$DC$12,78,FALSE) -> 1 | H11: =VLOOKUP($A11,'RECAP DIRCOM'!$G$6:$DC$12,79,FALSE) -> 1,253 | I11: =VLOOKUP($A11,'RECAP DIRCOM'!$G$6:$DC$12,80,FALSE) -> 4.66 | J11: =VLOOKUP($A11,'RECAP DIRCOM'!$G$6:$DC$12,81,FALSE) -> 7% | K11: =VLOOKUP($A11,'RECAP DIRCOM'!$G$6:$DC$12,82,FALSE) -> 2 | L11: =VLOOKUP($A11,'RECAP DIRCOM'!$G$6:$DC$12,83,FALSE) -> 2% | M11: =VLOOKUP($A11,'RECAP DIRCOM'!$G$6:$DC$12,84,FALSE) -> 2% | N11: =VLOOKUP($A11,'RECAP DIRCOM'!$G$6:$DC$12,85,FALSE) -> 2
A12: 264 | B12: Haut-Rhin | C12: =VLOOKUP($A12,'RECAP DIRCOM'!$G$6:$DC$12,3,FALSE) -> 161 | D12: =VLOOKUP($A12,'RECAP DIRCOM'!$G$6:$DC$12,75,FALSE) -> 4,581 | E12: =VLOOKUP($A12,'RECAP DIRCOM'!$G$6:$DC$12,76,FALSE) -> 28.50 | F12: =VLOOKUP($A12,'RECAP DIRCOM'!$G$6:$DC$12,77,FALSE) -> 10% | G12: =VLOOKUP($A12,'RECAP DIRCOM'!$G$6:$DC$12,78,FALSE) -> 3 | H12: =VLOOKUP($A12,'RECAP DIRCOM'!$G$6:$DC$12,79,FALSE) -> 611 | I12: =VLOOKUP($A12,'RECAP DIRCOM'!$G$6:$DC$12,80,FALSE) -> 3.80 | J12: =VLOOKUP($A12,'RECAP DIRCOM'!$G$6:$DC$12,81,FALSE) -> 24% | K12: =VLOOKUP($A12,'RECAP DIRCOM'!$G$6:$DC$12,82,FALSE) -> 4 | L12: =VLOOKUP($A12,'RECAP DIRCOM'!$G$6:$DC$12,83,FALSE) -> 15% | M12: =VLOOKUP($A12,'RECAP DIRCOM'!$G$6:$DC$12,84,FALSE) -> 14% | N12: =VLOOKUP($A12,'RECAP DIRCOM'!$G$6:$DC$12,85,FALSE) -> 3
A13: 30 | B13: Marne-Ardennes | C13: =VLOOKUP($A13,'RECAP DIRCOM'!$G$6:$DC$12,3,FALSE) -> 230 | D13: =VLOOKUP($A13,'RECAP DIRCOM'!$G$6:$DC$12,75,FALSE) -> 4,246 | E13: =VLOOKUP($A13,'RECAP DIRCOM'!$G$6:$DC$12,76,FALSE) -> 18.50 | F13: =VLOOKUP($A13,'RECAP DIRCOM'!$G$6:$DC$12,77,FALSE) -> 42% | G13: =VLOOKUP($A13,'RECAP DIRCOM'!$G$6:$DC$12,78,FALSE) -> 6 | H13: =VLOOKUP($A13,'RECAP DIRCOM'!$G$6:$DC$12,79,FALSE) -> 817 | I13: =VLOOKUP($A13,'RECAP DIRCOM'!$G$6:$DC$12,80,FALSE) -> 3.56 | J13: =VLOOKUP($A13,'RECAP DIRCOM'!$G$6:$DC$12,81,FALSE) -> 29% | K13: =VLOOKUP($A13,'RECAP DIRCOM'!$G$6:$DC$12,82,FALSE) -> 7 | L13: =VLOOKUP($A13,'RECAP DIRCOM'!$G$6:$DC$12,83,FALSE) -> 38% | M13: =VLOOKUP($A13,'RECAP DIRCOM'!$G$6:$DC$12,84,FALSE) -> 38% | N13: =VLOOKUP($A13,'RECAP DIRCOM'!$G$6:$DC$12,85,FALSE) -> 6
A14: 110 | B14: Meurthe et Moselle Meuse | C14: =VLOOKUP($A14,'RECAP DIRCOM'!$G$6:$DC$12,3,FALSE) -> 253 | D14: =VLOOKUP($A14,'RECAP DIRCOM'!$G$6:$DC$12,75,FALSE) -> 7,997 | E14: =VLOOKUP($A14,'RECAP DIRCOM'!$G$6:$DC$12,76,FALSE) -> 31.64 | F14: =VLOOKUP($A14,'RECAP DIRCOM'!$G$6:$DC$12,77,FALSE) -> 0% | G14: =VLOOKUP($A14,'RECAP DIRCOM'!$G$6:$DC$12,78,FALSE) -> 2 | H14: =VLOOKUP($A14,'RECAP DIRCOM'!$G$6:$DC$12,79,FALSE) -> 1,270 | I14: =VLOOKUP($A14,'RECAP DIRCOM'!$G$6:$DC$12,80,FALSE) -> 5.02 | J14: =VLOOKUP($A14,'RECAP DIRCOM'!$G$6:$DC$12,81,FALSE) -> 0% | K14: =VLOOKUP($A14,'RECAP DIRCOM'!$G$6:$DC$12,82,FALSE) -> 1 | L14: =VLOOKUP($A14,'RECAP DIRCOM'!$G$6:$DC$12,83,FALSE) -> 0% | M14: =VLOOKUP($A14,'RECAP DIRCOM'!$G$6:$DC$12,84,FALSE) -> 0% | N14: =VLOOKUP($A14,'RECAP DIRCOM'!$G$6:$DC$12,85,FALSE) -> 1
A15: 160 | B15: Moselle | C15: =VLOOKUP($A15,'RECAP DIRCOM'!$G$6:$DC$12,3,FALSE) -> 284 | D15: =VLOOKUP($A15,'RECAP DIRCOM'!$G$6:$DC$12,75,FALSE) -> 7,194 | E15: =VLOOKUP($A15,'RECAP DIRCOM'!$G$6:$DC$12,76,FALSE) -> 25.35 | F15: =VLOOKUP($A15,'RECAP DIRCOM'!$G$6:$DC$12,77,FALSE) -> 20% | G15: =VLOOKUP($A15,'RECAP DIRCOM'!$G$6:$DC$12,78,FALSE) -> 5 | H15: =VLOOKUP($A15,'RECAP DIRCOM'!$G$6:$DC$12,79,FALSE) -> 1,182 | I15: =VLOOKUP($A15,'RECAP DIRCOM'!$G$6:$DC$12,80,FALSE) -> 4.17 | J15: =VLOOKUP($A15,'RECAP DIRCOM'!$G$6:$DC$12,81,FALSE) -> 17% | K15: =VLOOKUP($A15,'RECAP DIRCOM'!$G$6:$DC$12,82,FALSE) -> 3 | L15: =VLOOKUP($A15,'RECAP DIRCOM'!$G$6:$DC$12,83,FALSE) -> 19% | M15: =VLOOKUP($A15,'RECAP DIRCOM'!$G$6:$DC$12,84,FALSE) -> 19% | N15: =VLOOKUP($A15,'RECAP DIRCOM'!$G$6:$DC$12,85,FALSE) -> 5
A16: 80 | B16: Vosges | C16: =VLOOKUP($A16,'RECAP DIRCOM'!$G$6:$DC$12,3,FALSE) -> 139 | D16: =VLOOKUP($A16,'RECAP DIRCOM'!$G$6:$DC$12,75,FALSE) -> 3,750 | E16: =VLOOKUP($A16,'RECAP DIRCOM'!$G$6:$DC$12,76,FALSE) -> 26.93 | F16: =VLOOKUP($A16,'RECAP DIRCOM'!$G$6:$DC$12,77,FALSE) -> 15% | G16: =VLOOKUP($A16,'RECAP DIRCOM'!$G$6:$DC$12,78,FALSE) -> 4 | H16: =VLOOKUP($A16,'RECAP DIRCOM'!$G$6:$DC$12,79,FALSE) -> 509 | I16: =VLOOKUP($A16,'RECAP DIRCOM'!$G$6:$DC$12,80,FALSE) -> 3.66 | J16: =VLOOKUP($A16,'RECAP DIRCOM'!$G$6:$DC$12,81,FALSE) -> 27% | K16: =VLOOKUP($A16,'RECAP DIRCOM'!$G$6:$DC$12,82,FALSE) -> 5 | L16: =VLOOKUP($A16,'RECAP DIRCOM'!$G$6:$DC$12,83,FALSE) -> 19% | M16: =VLOOKUP($A16,'RECAP DIRCOM'!$G$6:$DC$12,84,FALSE) -> 19% | N16: =VLOOKUP($A16,'RECAP DIRCOM'!$G$6:$DC$12,85,FALSE) -> 4
B17: Total CEGEE Directions Régionales | C17: =SUM(C10:C16) -> 1468

Sheet DC_SATISFACTION
B1: Accueil | D1: BAROMETRE BDD - DIRECTIONS REGIONALES
D2: SATISFACTION
D3: =ACCUEIL!F7 -> 2021-02-07
D7: NPS à froid (SAE) | G7: NPS à chaud (QHD) | J7: Total Satisfaction Clients
D8: =DATEMAJ!C4 -> au 31/12 | E8: coef | F8: ='RECAP DIRCOM'!M4 -> 10% | G8: =DATEMAJ!C5 -> au 31/12 | H8: coef | I8: ='RECAP DIRCOM'!P4 -> 10% | K8: coef | L8: ='RECAP DIRCOM'!S4 -> 20%
B9: Direction | C9: ="ETP perf "&DATEMAJ!$C$28 -> ETP perf Dec 2020 | E9: % Ecart au 1er | F9: Rang | H9: % Ecart au 1er | I9: Rang | J9: Moyenne ecart au 1er | K9: % Ecart au 1er | L9: Rang CEGEE
A10: 50 | B10: Aube Haute Marne | C10: =VLOOKUP($A10,'RECAP DIRCOM'!$G$6:$DC$12,3,FALSE) -> 133 | D10: =VLOOKUP($A10,'RECAP DIRCOM'!$G$6:$DC$12,5,FALSE) -> -11 | E10: =VLOOKUP($A10,'RECAP DIRCOM'!$G$6:$DC$12,6,FALSE) -> 38% | F10: =VLOOKUP($A10,'RECAP DIRCOM'!$G$6:$DC$12,7,FALSE) -> 2 | G10: =VLOOKUP($A10,'RECAP DIRCOM'!$G$6:$DC$12,8,FALSE) -> 44% | H10: =VLOOKUP($A10,'RECAP DIRCOM'!$G$6:$DC$12,9,FALSE) -> 24% | I10: =VLOOKUP($A10,'RECAP DIRCOM'!$G$6:$DC$12,10,FALSE) -> 5 | J10: =VLOOKUP($A10,'RECAP DIRCOM'!$G$6:$DC$12,11,FALSE) -> 31% | K10: =VLOOKUP($A10,'RECAP DIRCOM'!$G$6:$DC$12,12,FALSE) -> 31% | L10: =VLOOKUP($A10,'RECAP DIRCOM'!$G$6:$DC$12,13,FALSE) -> 4
A11: 262 | B11: Bas-Rhin | C11: =VLOOKUP($A11,'RECAP DIRCOM'!$G$6:$DC$12,3,FALSE) -> 269 | D11: =VLOOKUP($A11,'RECAP DIRCOM'!$G$6:$DC$12,5,FALSE) -> -21 | E11: =VLOOKUP($A11,'RECAP DIRCOM'!$G$6:$DC$12,6,FALSE) -> 131% | F11: =VLOOKUP($A11,'RECAP DIRCOM'!$G$6:$DC$12,7,FALSE) -> 6 | G11: =VLOOKUP($A11,'RECAP DIRCOM'!$G$6:$DC$12,8,FALSE) -> 42% | H11: =VLOOKUP($A11,'RECAP DIRCOM'!$G$6:$DC$12,9,FALSE) -> 27% | I11: =VLOOKUP($A11,'RECAP DIRCOM'!$G$6:$DC$12,10,FALSE) -> 6 | J11: =VLOOKUP($A11,'RECAP DIRCOM'!$G$6:$DC$12,11,FALSE) -> 79% | K11: =VLOOKUP($A11,'RECAP DIRCOM'!$G$6:$DC$12,12,FALSE) -> 79% | L11: =VLOOKUP($A11,'RECAP DIRCOM'!$G$6:$DC$12,13,FALSE) -> 6
A12: 264 | B12: Haut-Rhin | C12: =VLOOKUP($A12,'RECAP DIRCOM'!$G$6:$DC$12,3,FALSE) -> 161 | D12: =VLOOKUP($A12,'RECAP DIRCOM'!$G$6:$DC$12,5,FALSE) -> -23 | E12: =VLOOKUP($A12,'RECAP DIRCOM'!$G$6:$DC$12,6,FALSE) -> 150% | F12: =VLOOKUP($A12,'RECAP DIRCOM'!$G$6:$DC$12,7,FALSE) -> 7 | G12: =VLOOKUP($A12,'RECAP DIRCOM'!$G$6:$DC$12,8,FALSE) -> 40% | H12: =VLOOKUP($A12,'RECAP DIRCOM'!$G$6:$DC$12,9,FALSE) -> 31% | I12: =VLOOKUP($A12,'RECAP DIRCOM'!$G$6:$DC$12,10,FALSE) -> 7 | J12: =VLOOKUP($A12,'RECAP DIRCOM'!$G$6:$DC$12,11,FALSE) -> 90% | K12: =VLOOKUP($A12,'RECAP DIRCOM'!$G$6:$DC$12,12,FALSE) -> 90% | L12: =VLOOKUP($A12,'RECAP DIRCOM'!$G$6:$DC$12,13,FALSE) -> 7
A13: 30 | B13: Marne-Ardennes | C13: =VLOOKUP($A13,'RECAP DIRCOM'!$G$6:$DC$12,3,FALSE) -> 230 | D13: =VLOOKUP($A13,'RECAP DIRCOM'!$G$6:$DC$12,5,FALSE) -> -7 | E13: =VLOOKUP($A13,'RECAP DIRCOM'!$G$6:$DC$12,6,FALSE) -> 0% | F13: =VLOOKUP($A13,'RECAP DIRCOM'!$G$6:$DC$12,7,FALSE) -> 1 | G13: =VLOOKUP($A13,'RECAP DIRCOM'!$G$6:$DC$12,8,FALSE) -> 57% | H13: =VLOOKUP($A13,'RECAP DIRCOM'!$G$6:$DC$12,9,FALSE) -> 0% | I13: =VLOOKUP($A13,'RECAP DIRCOM'!$G$6:$DC$12,10,FALSE) -> 1 | J13: =VLOOKUP($A13,'RECAP DIRCOM'!$G$6:$DC$12,11,FALSE) -> 0% | K13: =VLOOKUP($A13,'RECAP DIRCOM'!$G$6:$DC$12,12,FALSE) -> 0% | L13: =VLOOKUP($A13,'RECAP DIRCOM'!$G$6:$DC$12,13,FALSE) -> 1
A14: 110 | B14: Meurthe et Moselle Meuse | C14: =VLOOKUP($A14,'RECAP DIRCOM'!$G$6:$DC$12,3,FALSE) -> 253 | D14: =VLOOKUP($A14,'RECAP DIRCOM'!$G$6:$DC$12,5,FALSE) -> -11 | E14: =VLOOKUP($A14,'RECAP DIRCOM'!$G$6:$DC$12,6,FALSE) -> 38% | F14: =VLOOKUP($A14,'RECAP DIRCOM'!$G$6:$DC$12,7,FALSE) -> 2 | G14: =VLOOKUP($A14,'RECAP DIRCOM'!$G$6:$DC$12,8,FALSE) -> 49% | H14: =VLOOKUP($A14,'RECAP DIRCOM'!$G$6:$DC$12,9,FALSE) -> 15% | I14: =VLOOKUP($A14,'RECAP DIRCOM'!$G$6:$DC$12,10,FALSE) -> 3 | J14: =VLOOKUP($A14,'RECAP DIRCOM'!$G$6:$DC$12,11,FALSE) -> 26% | K14: =VLOOKUP($A14,'RECAP DIRCOM'!$G$6:$DC$12,12,FALSE) -> 26% | L14: =VLOOKUP($A14,'RECAP DIRCOM'!$G$6:$DC$12,13,FALSE) -> 3
A15: 160 | B15: Moselle | C15: =VLOOKUP($A15,'RECAP DIRCOM'!$G$6:$DC$12,3,FALSE) -> 284 | D15: =VLOOKUP($A15,'RECAP DIRCOM'!$G$6:$DC$12,5,FALSE) -> -12 | E15: =VLOOKUP($A15,'RECAP DIRCOM'!$G$6:$DC$12,6,FALSE) -> 47% | F15: =VLOOKUP($A15,'RECAP DIRCOM'!$G$6:$DC$12,7,FALSE) -> 5 | G15: =VLOOKUP($A15,'RECAP DIRCOM'!$G$6:$DC$12,8,FALSE) -> 47% | H15: =VLOOKUP($A15,'RECAP DIRCOM'!$G$6:$DC$12,9,FALSE) -> 18% | I15: =VLOOKUP($A15,'RECAP DIRCOM'!$G$6:$DC$12,10,FALSE) -> 4 | J15: =VLOOKUP($A15,'RECAP DIRCOM'!$G$6:$DC$12,11,FALSE) -> 33% | K15: =VLOOKUP($A15,'RECAP DIRCOM'!$G$6:$DC$12,12,FALSE) -> 33% | L15: =VLOOKUP($A15,'RECAP DIRCOM'!$G$6:$DC$12,13,FALSE) -> 5
A16: 80 | B16: Vosges | C16: =VLOOKUP($A16,'RECAP DIRCOM'!$G$6:$DC$12,3,FALSE) -> 139 | D16: =VLOOKUP($A16,'RECAP DIRCOM'!$G$6:$DC$12,5,FALSE) -> -11 | E16: =VLOOKUP($A16,'RECAP DIRCOM'!$G$6:$DC$12,6,FALSE) -> 38% | F16: =VLOOKUP($A16,'RECAP DIRCOM'!$G$6:$DC$12,7,FALSE) -> 2 | G16: =VLOOKUP($A16,'RECAP DIRCOM'!$G$6:$DC$12,8,FALSE) -> 56% | H16: =VLOOKUP($A16,'RECAP DIRCOM'!$G$6:$DC$12,9,FALSE) -> 2% | I16: =VLOOKUP($A16,'RECAP DIRCOM'!$G$6:$DC$12,10,FALSE) -> 2 | J16: =VLOOKUP($A16,'RECAP DIRCOM'!$G$6:$DC$12,11,FALSE) -> 20% | K16: =VLOOKUP($A16,'RECAP DIRCOM'!$G$6:$DC$12,12,FALSE) -> 20% | L16: =VLOOKUP($A16,'RECAP DIRCOM'!$G$6:$DC$12,13,FALSE) -> 2
B17: Total CEGEE Directions Régionales | C17: =SUM(C10:C16) -> 1468

Sheet SE_FICHE
A1: Accueil
A2: BAROMETRE BDD
A4: UNITE: | B4: TERRITOIRE | E4: ETP perf : | F4: =VLOOKUP(A5,'RECAP SECT'!$G$6:$I$23,3,FALSE) -> 65.58
A5: =VLOOKUP(B5,LISTES!$H$6:$I$23,2,FALSE) -> 5130 | B5: COLMAR
C6: Coefficient du critére | E6: Résultats | I6: Ecart au 1ier | M6: Evolution | O6: Rang
E7: du 1ier | G7: du territoire | I7: Du mois | K7: Au 31/12/2019
A9: RANG au CLASSEMENT GENERAL | K9: =VLOOKUP($A$5,'RECAP SECT AN'!$G$6:$FS$312,168,FALSE) -> 17 | M9: =+K9-O9 ->  | O9: =VLOOKUP($A$5,'RECAP SECT'!$G$6:$DG$312,168,FALSE) ->  | S9: =VLOOKUP($A$5,'RECAP SECT AN'!$G$6:$FE$312,154,FALSE) -> 1 | U9: =+S9-O9 -> 
A11: CRITERE CONQUETE | C11: 15% | O11: =VLOOKUP($A$5,'RECAP SECT'!$G$6:$DG$312,23,FALSE) -> 4.041015851
B12: PNB Evolution nette Clients BP | C12: 4% | E12: ='RECAP SECT'!#REF! ->  | G12: =VLOOKUP($A$5,'RECAP SECT'!$G$6:$DG$312,6,FALSE) -> 1.0 | I12: =VLOOKUP($A$5,'RECAP SECT'!$G$6:$DG$312,7,FALSE) -> 1400% | K12: =VLOOKUP($A$5,'RECAP SECT AN'!$G$6:$FS$312,7,FALSE) -> 134% | M12: =+K12-I12 -> -1266% | O12: =VLOOKUP($A$5,'RECAP SECT'!$G$6:$DG$312,8,FALSE) -> 0.459 | S12: =VLOOKUP($A$5,'RECAP SECT AN'!$G$6:$FE$312,6,FALSE) -> -181% | U12: =+S12-I12 -> -1581%
B13: PNB Evolution nette Clients PREMIUM | C13: 5% | E13: ='RECAP SECT'!#REF! ->  | G13: =VLOOKUP($A$5,'RECAP SECT'!$G$6:$DG$312,10,FALSE) -> 12.0 | I13: =VLOOKUP($A$5,'RECAP SECT'!$G$6:$DG$312,11,FALSE) -> 66% | K13: =VLOOKUP($A$5,'RECAP SECT AN'!$G$6:$FS$312,11,FALSE) -> 20% | M13: =+K13-I13 -> -46% | O13: =VLOOKUP($A$5,'RECAP SECT'!$G$6:$DG$312,12,FALSE) -> 0.664318168 | S13: =VLOOKUP($A$5,'RECAP SECT AN'!$G$6:$FE$312,9,FALSE) -> 287% | U13: =+S13-I13 -> 220%
B14: PNB Evolution nette Clients Jeunes Equipés | C14: 3% | E14: ='RECAP SECT'!#REF! ->  | G14: =VLOOKUP($A$5,'RECAP SECT'!$G$6:$DG$312,14,FALSE) -> 0.0 | I14: =VLOOKUP($A$5,'RECAP SECT'!$G$6:$DG$312,15,FALSE) -> 0% | K14: =VLOOKUP($A$5,'RECAP SECT AN'!$G$6:$FS$312,15,FALSE) -> -99% | M14: =+K14-I14 -> -99% | O14: =VLOOKUP($A$5,'RECAP SECT'!$G$6:$DG$312,16,FALSE) -> 0 | S14: =VLOOKUP($A$5,'RECAP SECT AN'!$G$6:$FE$312,12,FALSE) -> 1300% | U14: =+S14-I14 -> 1300%
B15: PNB Evolution nette Clients Pro Actifs Equipés | C15: 3% | E15: ='RECAP SECT'!W4 -> 0.0 | G15: =VLOOKUP($A$5,'RECAP SECT'!$G$6:$DG$312,18,FALSE) -> 199.6 | I15: =VLOOKUP($A$5,'RECAP SECT'!$G$6:$DG$312,19,FALSE) -> 304% | K15: =VLOOKUP($A$5,'RECAP SECT AN'!$G$6:$FS$312,19,FALSE) -> 54% | M15: =+K15-I15 -> -250% | O15: =VLOOKUP($A$5,'RECAP SECT'!$G$6:$DG$312,20,FALSE) -> 0.5471906059 | S15: =VLOOKUP($A$5,'RECAP SECT AN'!$G$6:$FE$312,15,FALSE) -> -99% | U15: =+S15-I15 -> -403%
A17: CRITERE BANCARISATION | C17: 15% | O17: =VLOOKUP($A$5,'RECAP SECT'!$G$6:$DG$312,48,FALSE) -> 16
B18: PNB Ventes nettes forfaits | C18: 4% | E18: ='RECAP SECT'!X4 -> 6.7 | G18: =VLOOKUP($A$5,'RECAP SECT'!$G$6:$DG$312,31,FALSE) -> -0.4 | I18: =VLOOKUP($A$5,'RECAP SECT'!$G$6:$DG$312,32,FALSE) -> 37% | K18: =VLOOKUP($A$5,'RECAP SECT AN'!$G$6:$FS$312,32,FALSE) -> 117% | M18: =+K18-I18 -> 80% | O18: =VLOOKUP($A$5,'RECAP SECT'!$G$6:$DG$312,33,FALSE) -> 12 | S18: =VLOOKUP($A$5,'RECAP SECT AN'!$G$6:$FE$312,27,FALSE) -> 0% | U18: =+S18-I18 -> -37%
B19: PNB Ventes nettes IZICARTES Débit Différé | C19: 4% | E19: ='RECAP SECT'!AB4 -> 7.3 | G19: =VLOOKUP($A$5,'RECAP SECT'!$G$6:$DG$312,35,FALSE) -> 0.5 | I19: =VLOOKUP($A$5,'RECAP SECT'!$G$6:$DG$312,36,FALSE) -> 1300% | K19: =VLOOKUP($A$5,'RECAP SECT AN'!$G$6:$FS$312,36,FALSE) -> 27% | M19: =+K19-I19 -> -1273% | O19: =VLOOKUP($A$5,'RECAP SECT'!$G$6:$DG$312,37,FALSE) -> 0 | S19: =VLOOKUP($A$5,'RECAP SECT AN'!$G$6:$FE$312,30,FALSE) -> 430% | U19: =+S19-I19 -> -870%
B20: PNB Ventes nettes cartes HDG Débit Différé | C20: 4% | E20: ='RECAP SECT'!AF4 -> 2.4 | G20: =VLOOKUP($A$5,'RECAP SECT'!$G$6:$DG$312,39,FALSE) -> 0.0 | I20: =VLOOKUP($A$5,'RECAP SECT'!$G$6:$DG$312,40,FALSE) -> 0% | K20: =VLOOKUP($A$5,'RECAP SECT AN'!$G$6:$FS$312,40,FALSE) -> 35% | M20: =+K20-I20 -> 35% | O20: =VLOOKUP($A$5,'RECAP SECT'!$G$6:$DG$312,41,FALSE) -> 1648.106213 | S20: =VLOOKUP($A$5,'RECAP SECT AN'!$G$6:$FE$312,33,FALSE) -> 1600% | U20: =+S20-I20 -> 1600%
B21: PNB Ventes nettes Forfaits Pro, Carte pro | C21: 3% | E21: ='RECAP SECT'!AJ4 -> -0.3 | G21: =VLOOKUP($A$5,'RECAP SECT'!$G$6:$DG$312,43,FALSE) -> 0.9 | I21: =VLOOKUP($A$5,'RECAP SECT'!$G$6:$DG$312,44,FALSE) -> 1700% | K21: =VLOOKUP($A$5,'RECAP SECT AN'!$G$6:$FS$312,44,FALSE) -> 87% | M21: =+K21-I21 -> -1613% | O21: =VLOOKUP($A$5,'RECAP SECT'!$G$6:$DG$312,45,FALSE) -> 114 | S21: =VLOOKUP($A$5,'RECAP SECT AN'!$G$6:$FE$312,39,FALSE) -> 467% | U21: =+S21-I21 -> -1233%
A23: CRITERE EPARGNE | C23: 10% | O23: =VLOOKUP($A$5,'RECAP SECT'!$G$6:$DG$312,69,FALSE) -> 0.5822207367
B24: PNB Epargne Liquide | C24: 3% | E24: ='RECAP SECT'!AU4 -> 176.1 | G24: =VLOOKUP($A$5,'RECAP SECT'!$G$6:$DG$312,56,FALSE) -> 318.9 | I24: =VLOOKUP($A$5,'RECAP SECT'!$G$6:$DG$312,57,FALSE) -> 486% | K24: =VLOOKUP($A$5,'RECAP SECT AN'!$G$6:$FS$312,57,FALSE) -> 25% | M24: =+K24-I24 -> -461% | O24: =VLOOKUP($A$5,'RECAP SECT'!$G$6:$DG$312,58,FALSE) -> 0.7440651608 | S24: =VLOOKUP($A$5,'RECAP SECT AN'!$G$6:$FE$312,51,FALSE) -> 0% | U24: =+S24-I24 -> -486%
B25: PNB CA UC + arbitrage | C25: 4% | E25: ='RECAP SECT'!AY4 -> 5.0 | G25: =VLOOKUP($A$5,'RECAP SECT'!$G$6:$DG$312,60,FALSE) -> 236.3 | I25: =VLOOKUP($A$5,'RECAP SECT'!$G$6:$DG$312,61,FALSE) -> 360% | K25: =VLOOKUP($A$5,'RECAP SECT AN'!$G$6:$FS$312,61,FALSE) -> 23% | M25: =+K25-I25 -> -338% | O25: =VLOOKUP($A$5,'RECAP SECT'!$G$6:$DG$312,62,FALSE) -> 0.5401251203 | S25: =VLOOKUP($A$5,'RECAP SECT AN'!$G$6:$FE$312,57,FALSE) -> 25% | U25: =+S25-I25 -> -335%
B26: PNB Excédent assurance vie | C26: 3% | E26: ='RECAP SECT'!#REF! ->  | G26: =VLOOKUP($A$5,'RECAP SECT'!$G$6:$DG$312,64,FALSE) -> 47.0 | I26: =VLOOKUP($A$5,'RECAP SECT'!$G$6:$DG$312,65,FALSE) -> 72% | K26: =VLOOKUP($A$5,'RECAP SECT AN'!$G$6:$FS$312,65,FALSE) -> 114% | M26: =+K26-I26 -> 42% | O26: =VLOOKUP($A$5,'RECAP SECT'!$G$6:$DG$312,66,FALSE) -> 0.7353903946 | S26: =VLOOKUP($A$5,'RECAP SECT AN'!$G$6:$FE$312,60,FALSE) -> 107% | U26: =+S26-I26 -> 35%
A28: CRITERE CREDITS | C28: 15% | O28: =VLOOKUP($A$5,'RECAP SECT'!$G$6:$DG$312,102,FALSE) -> 0.4937640969
B29: PNB crédit conso | C29: 4% | E29: ='RECAP SECT'!BJ4 -> 19.0 | G29: =VLOOKUP($A$5,'RECAP SECT'!$G$6:$DG$312,77,FALSE) -> 0.0 | I29: =VLOOKUP($A$5,'RECAP SECT'!$G$6:$DG$312,78,FALSE) -> 200% | K29: =VLOOKUP($A$5,'RECAP SECT AN'!$G$6:$FS$312,78,FALSE) -> 37% | M29: =+K29-I29 -> -163% | O29: =VLOOKUP($A$5,'RECAP SECT'!$G$6:$DG$312,79,FALSE) -> 303 | S29: =VLOOKUP($A$5,'RECAP SECT AN'!$G$6:$FE$312,75,FALSE) -> 0% | U29: =+S29-I29 -> -200%
B30: PNB ADE crédit conso | C30: 1% | E30: ='RECAP SECT'!#REF! ->  | G30: =VLOOKUP($A$5,'RECAP SECT'!$G$6:$DG$312,81,FALSE) -> 0.4 | I30: =VLOOKUP($A$5,'RECAP SECT'!$G$6:$DG$312,82,FALSE) -> 1400% | K30: =VLOOKUP($A$5,'RECAP SECT AN'!$G$6:$FS$312,82,FALSE) -> 44% | M30: -1356% | O30: =VLOOKUP($A$5,'RECAP SECT'!$G$6:$DG$312,83,FALSE) -> 0.1389644254 | S30: =VLOOKUP($A$5,'RECAP SECT AN'!$G$6:$FE$312,78,FALSE) -> 37% | U30: -1363%
B31: PNB crédit immo | C31: 4% | E31: ='RECAP SECT'!BN4 -> 7.8 | G31: =VLOOKUP($A$5,'RECAP SECT'!$G$6:$DG$312,85,FALSE) -> 2.0 | I31: =VLOOKUP($A$5,'RECAP SECT'!$G$6:$DG$312,86,FALSE) -> 0% | K31: =VLOOKUP($A$5,'RECAP SECT AN'!$G$6:$FS$312,86,FALSE) -> 38% | M31: 38% | O31: =VLOOKUP($A$5,'RECAP SECT'!$G$6:$DG$312,87,FALSE) -> 0 | S31: =VLOOKUP($A$5,'RECAP SECT AN'!$G$6:$FE$312,81,FALSE) -> 782% | U31: 782%
B32: PNB ADE crédit immo | C32: 2% | E32: ='RECAP SECT'!#REF! ->  | G32: =VLOOKUP($A$5,'RECAP SECT'!$G$6:$DG$312,89,FALSE) -> 0.0 | I32: =VLOOKUP($A$5,'RECAP SECT'!$G$6:$DG$312,90,FALSE) -> 0% | K32: =VLOOKUP($A$5,'RECAP SECT AN'!$G$6:$FS$312,90,FALSE) -> 49% | M32: 49% | O32: =VLOOKUP($A$5,'RECAP SECT'!$G$6:$DG$312,91,FALSE) -> 0 | S32: =VLOOKUP($A$5,'RECAP SECT AN'!$G$6:$FE$312,84,FALSE) -> 139312% | U32: 139312%
B33: PNB SACCEF | C33: 2% | E33: ='RECAP SECT'!#REF! ->  | G33: =VLOOKUP($A$5,'RECAP SECT'!$G$6:$DG$312,93,FALSE) -> 0.0 | I33: =VLOOKUP($A$5,'RECAP SECT'!$G$6:$DG$312,94,FALSE) -> 0% | K33: =VLOOKUP($A$5,'RECAP SECT AN'!$G$6:$FS$312,94,FALSE) -> 51% | M33: 51% | O33: =VLOOKUP($A$5,'RECAP SECT'!$G$6:$DG$312,95,FALSE) -> 0 | S33: =VLOOKUP($A$5,'RECAP SECT AN'!$G$6:$FE$312,87,FALSE) -> 1100% | U33: 1100%
B34: PNB Crédit MLT + Crédit Bail | C34: 2% | E34: ='RECAP SECT'!BR4 -> 2.7 | G34: =VLOOKUP($A$5,'RECAP SECT'!$G$6:$DG$312,97,FALSE) -> 0.0 | I34: =VLOOKUP($A$5,'RECAP SECT'!$G$6:$DG$312,98,FALSE) -> 0% | K34: =VLOOKUP($A$5,'RECAP SECT AN'!$G$6:$FS$312,98,FALSE) -> 74% | M34: 74% | O34: =VLOOKUP($A$5,'RECAP SECT'!$G$6:$DG$312,99,FALSE) -> 0 | S34: =VLOOKUP($A$5,'RECAP SECT AN'!$G$6:$FE$312,90,FALSE) -> 49% | U34: 49%
A36: CRITERE IARD PREVOYANCE | C36: 15% | O36: =VLOOKUP($A$5,'RECAP SECT'!$G$6:$DG$312,119,FALSE) -> 
B37: PNB Ventes nettes IARD | C37: 9% | E37: ='RECAP SECT'!CC4 -> 47.4 | G37: =VLOOKUP($A$5,'RECAP SECT'!$G$6:$DG$312,110,FALSE) ->  | I37: =VLOOKUP($A$5,'RECAP SECT'!$G$6:$DG$312,111,FALSE) ->  | K37: =VLOOKUP($A$5,'RECAP SECT AN'!$G$6:$FS$312,111,FALSE) -> 75% | M37: =+K37-I37 ->  | O37: =VLOOKUP($A$5,'RECAP SECT'!$G$6:$DG$312,112,FALSE) ->  | S37: =VLOOKUP($A$5,'RECAP SECT AN'!$G$6:$FE$312,102,FALSE) -> 1800% | U37: =+S37-I37 -> 
B38: PNB Ventes nettes Prévoyance | C38: 6% | E38: ='RECAP SECT'!CG4 -> 7.2 | G38: =VLOOKUP($A$5,'RECAP SECT'!$G$6:$DG$312,114,FALSE) ->  | I38: =VLOOKUP($A$5,'RECAP SECT'!$G$6:$DG$312,115,FALSE) ->  | K38: =VLOOKUP($A$5,'RECAP SECT AN'!$G$6:$FS$312,115,FALSE) -> 62% | M38: =+K38-I38 ->  | O38: =VLOOKUP($A$5,'RECAP SECT'!$G$6:$DG$312,116,FALSE) ->  | S38: =VLOOKUP($A$5,'RECAP SECT AN'!$G$6:$FE$312,105,FALSE) -> 0% | U38: =+S38-I38 -> 
A40: CRITERE ACCELERATEURS PNB | C40: 15% | O40: =VLOOKUP($A$5,'RECAP SECT'!$G$6:$DG$312,144,FALSE) -> 
B41: PNB Ventes brutes SED Finalisées | C41: 6% | E41: ='RECAP SECT'!#REF! ->  | G41: =VLOOKUP($A$5,'RECAP SECT'!$G$6:$DG$312,127,FALSE) ->  | I41: =VLOOKUP($A$5,'RECAP SECT'!$G$6:$DG$312,128,FALSE) ->  | K41: =VLOOKUP($A$5,'RECAP SECT AN'!$G$6:$FS$312,128,FALSE) -> 45% | M41: =+K41-I41 ->  | O41: =VLOOKUP($A$5,'RECAP SECT'!$G$6:$DG$312,129,FALSE) ->  | S41: =VLOOKUP($A$5,'RECAP SECT AN'!$G$6:$FE$312,120,FALSE) -> 0% | U41: =+S41-I41 -> 
B42: PNB clients équipés E documents | C42: 3% | E42: ='RECAP SECT'!#REF! ->  | G42: =VLOOKUP($A$5,'RECAP SECT'!$G$6:$DG$312,131,FALSE) ->  | I42: =VLOOKUP($A$5,'RECAP SECT'!$G$6:$DG$312,132,FALSE) ->  | K42: =VLOOKUP($A$5,'RECAP SECT AN'!$G$6:$FS$312,132,FALSE) -> 43% | M42: =+K42-I42 ->  | O42: =VLOOKUP($A$5,'RECAP SECT'!$G$6:$DG$312,133,FALSE) ->  | S42: =VLOOKUP($A$5,'RECAP SECT AN'!$G$6:$FE$312,123,FALSE) -> 0% | U42: =+S42-I42 -> 
B43: Economie opt'in | C43: 3% | E43: ='RECAP SECT'!#REF! ->  | G43: =VLOOKUP($A$5,'RECAP SECT'!$G$6:$DG$312,135,FALSE) ->  | I43: =VLOOKUP($A$5,'RECAP SECT'!$G$6:$DG$312,136,FALSE) ->  | K43: =VLOOKUP($A$5,'RECAP SECT AN'!$G$6:$FS$312,136,FALSE) -> 55% | M43: =+K43-I43 ->  | O43: =VLOOKUP($A$5,'RECAP SECT'!$G$6:$DG$312,137,FALSE) -> 
B44: Remises commerciales | C44: 3% | E44: ='RECAP SECT'!#REF! ->  | G44: =VLOOKUP($A$5,'RECAP SECT'!$G$6:$DG$312,139,FALSE) ->  | I44: =VLOOKUP($A$5,'RECAP SECT'!$G$6:$DG$312,140,FALSE) ->  | K44: =VLOOKUP($A$5,'RECAP SECT AN'!$G$6:$FS$312,140,FALSE) -> 45% | M44: =+K44-I44 ->  | O44: =VLOOKUP($A$5,'RECAP SECT'!$G$6:$DG$312,141,FALSE) ->  | S44: =VLOOKUP($A$5,'RECAP SECT AN'!$G$6:$FE$312,126,FALSE) -> 2124% | U44: =+S44-I44 -> 
A46: CRITERE Satisfaction Clients | C46: 15% | O46: =VLOOKUP($A$5,'RECAP SECT'!$G$6:$DG$312,159,FALSE) -> 
B47: Objectifs NPS* | C47: 8% | E47: ='RECAP SECT'!K4 -> -3 | G47: =VLOOKUP($A$5,'RECAP SECT'!$G$6:$DG$312,151,FALSE) ->  | I47: =VLOOKUP($A$5,'RECAP SECT'!$G$6:$DG$312,152,FALSE) ->  | K47: =VLOOKUP($A$5,'RECAP SECT AN'!$G$6:$FS$312,152,FALSE) -> 110% | M47: =+K47-I47 ->  | O47: =VLOOKUP($A$5,'RECAP SECT'!$G$6:$DG$312,153,FALSE) ->  | S47: =VLOOKUP($A$5,'RECAP SECT AN'!$G$6:$FE$312,138,FALSE) -> -33048% | U47: =+S47-I47 -> 
B48: Enquête Qualité Haute Définition | C48: 7% | E48: ='RECAP SECT'!N4 -> 64% | G48: =VLOOKUP($A$5,'RECAP SECT'!$G$6:$DG$312,154,FALSE) ->  | I48: =VLOOKUP($A$5,'RECAP SECT'!$G$6:$DG$312,155,FALSE) ->  | K48: =VLOOKUP($A$5,'RECAP SECT AN'!$G$6:$FS$312,155,FALSE) -> 7% | M48: =+K48-I48 ->  | O48: =VLOOKUP($A$5,'RECAP SECT'!$G$6:$DG$312,156,FALSE) ->  | S48: =VLOOKUP($A$5,'RECAP SECT AN'!$G$6:$FE$312,141,FALSE) -> 1000% | U48: =+S48-I48 -> 

Sheet SE_TOTAL
B1: Accueil | F1: BAROMETRE BDD - TERRITOIRES
F2: TOTAL GENERAL
F3: =ACCUEIL!F7 -> 2021-02-07
F7: TOTAL GENERAL | I7: Total Satisfaction Clients | L7: Total Bancarisation | O7: Total Epargne | R7: Total IARD Prévoyance | U7: Total Crédits
G8: coef | H8: 100% | J8: coef | K8: =SE_SATISFACTION!N8 -> 20% | M8: coef | N8: =SE_BANCA!X8 -> 20% | P8: coef | Q8: =SE_EPARGNE!P8 -> 20% | S8: coef | T8: =SE_IARD!P8 -> 20% | V8: coef | W8: =SE_CREDIT!T8 -> 20%
B9: Direction | C9: eds | D9: Territoire | E9: ="ETP perf "&DATEMAJ!$C$28 -> ETP perf Dec 2020 | F9: Moyenne ecart au 1er | G9: % Ecart au 1er | H9: Rang CEGEE | I9: Moyenne ecart au 1er | J9: % Ecart au 1er | K9: Rang CEGEE | L9: Moyenne ecart au 1er | M9: % Ecart au 1er | N9: Rang CEGEE | O9: Moyenne ecart au 1er | P9: % Ecart au 1er | Q9: Rang CEGEE | R9: Moyenne ecart au 1er | S9: % Ecart au 1er | T9: Rang CEGEE | U9: Moyenne ecart au 1er | V9: % Ecart au 1er | W9: Rang CEGEE
A10: 50 | B10: MEURTHE ET MOSELLE MEUSE | C10: 26 | D10: NANCY | E10: 68.7 | F10: 12% | G10: 0% | H10: 1 | I10: 42% | J10: 42% | K10: 10 | L10: 7% | M10: 0% | N10: 1 | O10: 36% | P10: 16% | Q10: 6 | R10: 0% | S10: 0% | T10: 1 | U10: 10% | V10: 0% | W10: 1
A11: 50 | B11: MEURTHE ET MOSELLE MEUSE | C11: 27 | D11: PONT A MOUSSON | E11: 79.9 | F11: 23% | G11: 12% | H11: 2 | I11: 51% | J11: 51% | K11: 12 | L11: 29% | M11: 22% | N11: 6 | O11: 24% | P11: 5% | Q11: 2 | R11: 29% | S11: 29% | T11: 8 | U11: 19% | V11: 10% | W11: 2
A12: 262 | B12: MARNE-ARDENNES | C12: 6 | D12: CHALONS EN CHAMPAGNE | E12: 45.0 | F12: 26% | G12: 15% | H12: 3 | I12: 0% | J12: 0% | K12: 1 | L12: 25% | M12: 18% | N12: 3 | O12: 51% | P12: 31% | Q12: 12 | R12: 46% | S12: 46% | T12: 16 | U12: 47% | V12: 37% | W12: 12
A13: 262 | B13: MARNE-ARDENNES | C13: 2 | D13: CHARLEVILLE MEZIERES | E13: 55.4 | F13: 27% | G13: 15% | H13: 4 | I13: 28% | J13: 28% | K13: 7 | L13: 27% | M13: 20% | N13: 4 | O13: 40% | P13: 20% | Q13: 7 | R13: 50% | S13: 50% | T13: 17 | U13: 26% | V13: 16% | W13: 3
A14: 262 | B14: MARNE-ARDENNES | C14: 11 | D14: REIMS | E14: 80.5 | F14: 30% | G14: 18% | H14: 5 | I14: 21% | J14: 21% | K14: 4 | L14: 29% | M14: 22% | N14: 5 | O14: 56% | P14: 36% | Q14: 13 | R14: 45% | S14: 45% | T14: 15 | U14: 34% | V14: 24% | W14: 4
A15: 264 | B15: VOSGES | C15: 57 | D15: EPINAL | E15: 63.2 | F15: 31% | G15: 19% | H15: 6 | I15: 39% | J15: 39% | K15: 9 | L15: 44% | M15: 37% | N15: 9 | O15: 20% | P15: 0% | Q15: 1 | R15: 37% | S15: 37% | T15: 12 | U15: 51% | V15: 41% | W15: 15
A16: 264 | B16: BAS-RHIN | C16: 5060 | D16: HAGUENAU | E16: 71.9 | F16: 31% | G16: 19% | H16: 7 | I16: 44% | J16: 44% | K16: 11 | L16: 49% | M16: 42% | N16: 11 | O16: 35% | P16: 16% | Q16: 5 | R16: 25% | S16: 25% | T16: 6 | U16: 37% | V16: 28% | W16: 5
A17: 30 | B17: MEURTHE ET MOSELLE MEUSE | C17: 31 | D17: VERDUN | E17: 59.9 | F17: 31% | G17: 20% | H17: 8 | I17: 12% | J17: 12% | K17: 2 | L17: 42% | M17: 35% | N17: 8 | O17: 74% | P17: 55% | Q17: 15 | R17: 24% | S17: 24% | T17: 5 | U17: 41% | V17: 31% | W17: 8
A18: 30 | B18: VOSGES | C18: 55 | D18: SAINT DIE | E18: 50.2 | F18: 32% | G18: 21% | H18: 9 | I18: 26% | J18: 26% | K18: 6 | L18: 59% | M18: 52% | N18: 15 | O18: 29% | P18: 9% | Q18: 3 | R18: 26% | S18: 26% | T18: 7 | U18: 58% | V18: 49% | W18: 16
A19: 30 | B19: MOSELLE | C19: 45 | D19: METZ | E19: 90.1 | F19: 34% | G19: 23% | H19: 10 | I19: 22% | J19: 22% | K19: 5 | L19: 64% | M19: 57% | N19: 16 | O19: 41% | P19: 22% | Q19: 9 | R19: 37% | S19: 37% | T19: 11 | U19: 44% | V19: 34% | W19: 9
A20: 110 | B20: BAS-RHIN | C20: 5101 | D20: SELESTAT | E20: 64.5 | F20: 35% | G20: 23% | H20: 11 | I20: 79% | J20: 79% | K20: 15 | L20: 33% | M20: 26% | N20: 7 | O20: 32% | P20: 12% | Q20: 4 | R20: 18% | S20: 18% | T20: 4 | U20: 50% | V20: 40% | W20: 14
A21: 110 | B21: AUBE HAUTE MARNE | C21: 21 | D21: CHAUMONT | E21: 36.2 | F21: 37% | G21: 25% | H21: 12 | I21: 14% | J21: 14% | K21: 3 | L21: 55% | M21: 48% | N21: 12 | O21: 76% | P21: 56% | Q21: 16 | R21: 31% | S21: 31% | T21: 9 | U21: 44% | V21: 34% | W21: 10
A22: 110 | B22: MOSELLE | C22: 42 | D22: MOSELLE EST | E22: 73.0 | F22: 37% | G22: 26% | H22: 13 | I22: 33% | J22: 33% | K22: 8 | L22: 57% | M22: 50% | N22: 14 | O22: 45% | P22: 26% | Q22: 10 | R22: 38% | S22: 38% | T22: 13 | U22: 50% | V22: 40% | W22: 13
A23: 160 | B23: BAS-RHIN | C23: 5006 | D23: STRASBOURG | E23: 83.8 | F23: 37% | G23: 26% | H23: 14 | I23: 98% | J23: 98% | K23: 17 | L23: 21% | M23: 14% | N23: 2 | O23: 49% | P23: 30% | Q23: 11 | R23: 15% | S23: 15% | T23: 3 | U23: 40% | V23: 30% | W23: 7
A24: 160 | B24: MOSELLE | C24: 44 | D24: MOSELLE NORD | E24: 77.6 | F24: 41% | G24: 30% | H24: 15 | I24: 83% | J24: 83% | K24: 16 | L24: 48% | M24: 41% | N24: 10 | O24: 40% | P24: 20% | Q24: 8 | R24: 32% | S24: 32% | T24: 10 | U24: 40% | V24: 30% | W24: 6
A25: 160 | B25: HAUT-RHIN | C25: 5130 | D25: COLMAR | E25: 65.6 | F25: 49% | G25: 38% | H25: 16 | I25: 66% | J25: 66% | K25: 14 | L25: 55% | M25: 48% | N25: 13 | O25: 80% | P25: 60% | Q25: 17 | R25: 14% | S25: 14% | T25: 2 | U25: 68% | V25: 58% | W25: 18
A26: 80 | B26: AUBE HAUTE MARNE | C26: 14 | D26: TROYES | E26: 70.0 | F26: 50% | G26: 38% | H26: 17 | I26: 56% | J26: 56% | K26: 13 | L26: 65% | M26: 58% | N26: 17 | O26: 62% | P26: 43% | Q26: 14 | R26: 57% | S26: 57% | T26: 18 | U26: 46% | V26: 36% | W26: 11
A27: 80 | B27: HAUT-RHIN | C27: 5169 | D27: MULHOUSE | E27: 62.1 | F27: 63% | G27: 52% | H27: 18 | I27: 99% | J27: 99% | K27: 18 | L27: 68% | M27: 61% | N27: 18 | O27: 81% | P27: 62% | Q27: 18 | R27: 41% | S27: 41% | T27: 14 | U27: 64% | V27: 54% | W27: 17
A28: Total CEGEE Directions Régionales | E28: =SUM(E10:E27) -> 1198

Sheet SE_BANCA
B1: Accueil | F1: BAROMETRE BDD - TERRITOIRES
F2: BANCARISATION
F3: =ACCUEIL!F7 -> 2021-02-07
F7: Ventes Nettes produits pondérés | J7: Ventes sur client non détenteur de l’univers | N7: Mobilité Macron | R7: Remises commerciales | V7: Total Bancarisation
F8: =DATEMAJ!C8 -> au 07/02 | H8: coef | I8: ='RECAP DIRCOM'!AA4 -> 10% | J8: =DATEMAJ!C9 -> au 07/02 | L8: coef | M8: ='RECAP DIRCOM'!AE4 -> 4% | N8: =DATEMAJ!C10 -> au 07/02 | P8: coef | Q8: ='RECAP DIRCOM'!AI4 -> 3% | R8: =DATEMAJ!C11 -> au 31/01 | T8: coef | U8: ='RECAP DIRCOM'!AM4 -> 3% | W8: coef | X8: ='RECAP DIRCOM'!AP4 -> 20%
B9: Direction | C9: eds | D9: Territoire | E9: ="ETP perf "&DATEMAJ!$C$28 -> ETP perf Dec 2020 | F9: VN | G9: VN / ETP | H9: % Ecart au 1er | I9: Rang | J9: VB | K9: VB / ETP | L9: % Ecart au 1er | M9: Rang | N9: Nb | O9: Nb / ETP | P9: % Ecart au 1er | Q9: Rang | R9: Montant | S9: Montant / ETP | T9: % Ecart au 1er | U9: Rang | V9: Moyenne ecart au 1er | W9: % Ecart au 1er | X9: Rang CEGEE
A10: 50 | B10: AUBE HAUTE MARNE | C10: 21 | D10: CHAUMONT | E10: =VLOOKUP($C10,'RECAP SECT'!$G$6:$DC$253,3,FALSE) -> 36.2 | F10: =VLOOKUP($C10,'RECAP SECT'!$G$6:$DC$253,18,FALSE) -> 69 | G10: =VLOOKUP($C10,'RECAP SECT'!$G$6:$DC$253,19,FALSE) -> 1.91 | H10: =VLOOKUP($C10,'RECAP SECT'!$G$6:$DC$253,20,FALSE) -> 72% | I10: =VLOOKUP($C10,'RECAP SECT'!$G$6:$DC$253,21,FALSE) -> 15 | J10: =VLOOKUP($C10,'RECAP SECT'!$G$6:$DC$253,22,FALSE) -> 171 | K10: =VLOOKUP($C10,'RECAP SECT'!$G$6:$DC$253,23,FALSE) -> 4.73 | L10: =VLOOKUP($C10,'RECAP SECT'!$G$6:$DC$253,24,FALSE) -> 35% | M10: =VLOOKUP($C10,'RECAP SECT'!$G$6:$DC$253,25,FALSE) -> 10 | N10: =VLOOKUP($C10,'RECAP SECT'!$G$6:$DC$253,26,FALSE) -> 21 | O10: =VLOOKUP($C10,'RECAP SECT'!$G$6:$DC$253,27,FALSE) -> 0.58 | P10: =VLOOKUP($C10,'RECAP SECT'!$G$6:$DC$253,28,FALSE) -> 76% | Q10: =VLOOKUP($C10,'RECAP SECT'!$G$6:$DC$253,29,FALSE) -> 13 | R10: =VLOOKUP($C10,'RECAP SECT'!$G$6:$DC$253,30,FALSE) -> -9.5 | S10: =VLOOKUP($C10,'RECAP SECT'!$G$6:$DC$253,31,FALSE) -> -0.26 | T10: =VLOOKUP($C10,'RECAP SECT'!$G$6:$DC$253,32,FALSE) -> 2% | U10: =VLOOKUP($C10,'RECAP SECT'!$G$6:$DC$253,33,FALSE) -> 2 | V10: =VLOOKUP($C10,'RECAP SECT'!$G$6:$DC$253,34,FALSE) -> 55% | W10: =VLOOKUP($C10,'RECAP SECT'!$G$6:$DC$253,35,FALSE) -> 48% | X10: =VLOOKUP($C10,'RECAP SECT'!$G$6:$DC$253,36,FALSE) -> 12
A11: 50 | B11: AUBE HAUTE MARNE | C11: 14 | D11: TROYES | E11: =VLOOKUP($C11,'RECAP SECT'!$G$6:$DC$253,3,FALSE) -> 70.0 | F11: =VLOOKUP($C11,'RECAP SECT'!$G$6:$DC$253,18,FALSE) -> 92 | G11: =VLOOKUP($C11,'RECAP SECT'!$G$6:$DC$253,19,FALSE) -> 1.31 | H11: =VLOOKUP($C11,'RECAP SECT'!$G$6:$DC$253,20,FALSE) -> 81% | I11: =VLOOKUP($C11,'RECAP SECT'!$G$6:$DC$253,21,FALSE) -> 17 | J11: =VLOOKUP($C11,'RECAP SECT'!$G$6:$DC$253,22,FALSE) -> 280 | K11: =VLOOKUP($C11,'RECAP SECT'!$G$6:$DC$253,23,FALSE) -> 4.00 | L11: =VLOOKUP($C11,'RECAP SECT'!$G$6:$DC$253,24,FALSE) -> 45% | M11: =VLOOKUP($C11,'RECAP SECT'!$G$6:$DC$253,25,FALSE) -> 17 | N11: =VLOOKUP($C11,'RECAP SECT'!$G$6:$DC$253,26,FALSE) -> 45 | O11: =VLOOKUP($C11,'RECAP SECT'!$G$6:$DC$253,27,FALSE) -> 0.64 | P11: =VLOOKUP($C11,'RECAP SECT'!$G$6:$DC$253,28,FALSE) -> 73% | Q11: =VLOOKUP($C11,'RECAP SECT'!$G$6:$DC$253,29,FALSE) -> 11 | R11: =VLOOKUP($C11,'RECAP SECT'!$G$6:$DC$253,30,FALSE) -> -23.0 | S11: =VLOOKUP($C11,'RECAP SECT'!$G$6:$DC$253,31,FALSE) -> -0.33 | T11: =VLOOKUP($C11,'RECAP SECT'!$G$6:$DC$253,32,FALSE) -> 29% | U11: =VLOOKUP($C11,'RECAP SECT'!$G$6:$DC$253,33,FALSE) -> 9 | V11: =VLOOKUP($C11,'RECAP SECT'!$G$6:$DC$253,34,FALSE) -> 65% | W11: =VLOOKUP($C11,'RECAP SECT'!$G$6:$DC$253,35,FALSE) -> 58% | X11: =VLOOKUP($C11,'RECAP SECT'!$G$6:$DC$253,36,FALSE) -> 17
A12: 262 | B12: BAS-RHIN | C12: 5060 | D12: HAGUENAU | E12: =VLOOKUP($C12,'RECAP SECT'!$G$6:$DC$253,3,FALSE) -> 71.9 | F12: =VLOOKUP($C12,'RECAP SECT'!$G$6:$DC$253,18,FALSE) -> 253 | G12: =VLOOKUP($C12,'RECAP SECT'!$G$6:$DC$253,19,FALSE) -> 3.51 | H12: =VLOOKUP($C12,'RECAP SECT'!$G$6:$DC$253,20,FALSE) -> 48% | I12: =VLOOKUP($C12,'RECAP SECT'!$G$6:$DC$253,21,FALSE) -> 9 | J12: =VLOOKUP($C12,'RECAP SECT'!$G$6:$DC$253,22,FALSE) -> 303 | K12: =VLOOKUP($C12,'RECAP SECT'!$G$6:$DC$253,23,FALSE) -> 4.22 | L12: =VLOOKUP($C12,'RECAP SECT'!$G$6:$DC$253,24,FALSE) -> 42% | M12: =VLOOKUP($C12,'RECAP SECT'!$G$6:$DC$253,25,FALSE) -> 14 | N12: =VLOOKUP($C12,'RECAP SECT'!$G$6:$DC$253,26,FALSE) -> 43 | O12: =VLOOKUP($C12,'RECAP SECT'!$G$6:$DC$253,27,FALSE) -> 0.60 | P12: =VLOOKUP($C12,'RECAP SECT'!$G$6:$DC$253,28,FALSE) -> 75% | Q12: =VLOOKUP($C12,'RECAP SECT'!$G$6:$DC$253,29,FALSE) -> 12 | R12: =VLOOKUP($C12,'RECAP SECT'!$G$6:$DC$253,30,FALSE) -> -25.3 | S12: =VLOOKUP($C12,'RECAP SECT'!$G$6:$DC$253,31,FALSE) -> -0.35 | T12: =VLOOKUP($C12,'RECAP SECT'!$G$6:$DC$253,32,FALSE) -> 38% | U12: =VLOOKUP($C12,'RECAP SECT'!$G$6:$DC$253,33,FALSE) -> 13 | V12: =VLOOKUP($C12,'RECAP SECT'!$G$6:$DC$253,34,FALSE) -> 49% | W12: =VLOOKUP($C12,'RECAP SECT'!$G$6:$DC$253,35,FALSE) -> 42% | X12: =VLOOKUP($C12,'RECAP SECT'!$G$6:$DC$253,36,FALSE) -> 11
A13: 262 | B13: BAS-RHIN | C13: 5101 | D13: SELESTAT | E13: =VLOOKUP($C13,'RECAP SECT'!$G$6:$DC$253,3,FALSE) -> 64.5 | F13: =VLOOKUP($C13,'RECAP SECT'!$G$6:$DC$253,18,FALSE) -> 371 | G13: =VLOOKUP($C13,'RECAP SECT'!$G$6:$DC$253,19,FALSE) -> 5.75 | H13: =VLOOKUP($C13,'RECAP SECT'!$G$6:$DC$253,20,FALSE) -> 14% | I13: =VLOOKUP($C13,'RECAP SECT'!$G$6:$DC$253,21,FALSE) -> 3 | J13: =VLOOKUP($C13,'RECAP SECT'!$G$6:$DC$253,22,FALSE) -> 311 | K13: =VLOOKUP($C13,'RECAP SECT'!$G$6:$DC$253,23,FALSE) -> 4.82 | L13: =VLOOKUP($C13,'RECAP SECT'!$G$6:$DC$253,24,FALSE) -> 34% | M13: =VLOOKUP($C13,'RECAP SECT'!$G$6:$DC$253,25,FALSE) -> 8 | N13: =VLOOKUP($C13,'RECAP SECT'!$G$6:$DC$253,26,FALSE) -> 36 | O13: =VLOOKUP($C13,'RECAP SECT'!$G$6:$DC$253,27,FALSE) -> 0.56 | P13: =VLOOKUP($C13,'RECAP SECT'!$G$6:$DC$253,28,FALSE) -> 77% | Q13: =VLOOKUP($C13,'RECAP SECT'!$G$6:$DC$253,29,FALSE) -> 15 | R13: =VLOOKUP($C13,'RECAP SECT'!$G$6:$DC$253,30,FALSE) -> -24.6 | S13: =VLOOKUP($C13,'RECAP SECT'!$G$6:$DC$253,31,FALSE) -> -0.38 | T13: =VLOOKUP($C13,'RECAP SECT'!$G$6:$DC$253,32,FALSE) -> 49% | U13: =VLOOKUP($C13,'RECAP SECT'!$G$6:$DC$253,33,FALSE) -> 16 | V13: =VLOOKUP($C13,'RECAP SECT'!$G$6:$DC$253,34,FALSE) -> 33% | W13: =VLOOKUP($C13,'RECAP SECT'!$G$6:$DC$253,35,FALSE) -> 26% | X13: =VLOOKUP($C13,'RECAP SECT'!$G$6:$DC$253,36,FALSE) -> 7
A14: 262 | B14: BAS-RHIN | C14: 5006 | D14: STRASBOURG | E14: =VLOOKUP($C14,'RECAP SECT'!$G$6:$DC$253,3,FALSE) -> 83.8 | F14: =VLOOKUP($C14,'RECAP SECT'!$G$6:$DC$253,18,FALSE) -> 517 | G14: =VLOOKUP($C14,'RECAP SECT'!$G$6:$DC$253,19,FALSE) -> 6.17 | H14: =VLOOKUP($C14,'RECAP SECT'!$G$6:$DC$253,20,FALSE) -> 8% | I14: =VLOOKUP($C14,'RECAP SECT'!$G$6:$DC$253,21,FALSE) -> 2 | J14: =VLOOKUP($C14,'RECAP SECT'!$G$6:$DC$253,22,FALSE) -> 553 | K14: =VLOOKUP($C14,'RECAP SECT'!$G$6:$DC$253,23,FALSE) -> 6.60 | L14: =VLOOKUP($C14,'RECAP SECT'!$G$6:$DC$253,24,FALSE) -> 9% | M14: =VLOOKUP($C14,'RECAP SECT'!$G$6:$DC$253,25,FALSE) -> 2 | N14: =VLOOKUP($C14,'RECAP SECT'!$G$6:$DC$253,26,FALSE) -> 95 | O14: =VLOOKUP($C14,'RECAP SECT'!$G$6:$DC$253,27,FALSE) -> 1.13 | P14: =VLOOKUP($C14,'RECAP SECT'!$G$6:$DC$253,28,FALSE) -> 53% | Q14: =VLOOKUP($C14,'RECAP SECT'!$G$6:$DC$253,29,FALSE) -> 6 | R14: =VLOOKUP($C14,'RECAP SECT'!$G$6:$DC$253,30,FALSE) -> -31.5 | S14: =VLOOKUP($C14,'RECAP SECT'!$G$6:$DC$253,31,FALSE) -> -0.38 | T14: =VLOOKUP($C14,'RECAP SECT'!$G$6:$DC$253,32,FALSE) -> 47% | U14: =VLOOKUP($C14,'RECAP SECT'!$G$6:$DC$253,33,FALSE) -> 15 | V14: =VLOOKUP($C14,'RECAP SECT'!$G$6:$DC$253,34,FALSE) -> 21% | W14: =VLOOKUP($C14,'RECAP SECT'!$G$6:$DC$253,35,FALSE) -> 14% | X14: =VLOOKUP($C14,'RECAP SECT'!$G$6:$DC$253,36,FALSE) -> 2
A15: 264 | B15: HAUT-RHIN | C15: 5130 | D15: COLMAR | E15: =VLOOKUP($C15,'RECAP SECT'!$G$6:$DC$253,3,FALSE) -> 65.6 | F15: =VLOOKUP($C15,'RECAP SECT'!$G$6:$DC$253,18,FALSE) -> 200 | G15: =VLOOKUP($C15,'RECAP SECT'!$G$6:$DC$253,19,FALSE) -> 3.04 | H15: =VLOOKUP($C15,'RECAP SECT'!$G$6:$DC$253,20,FALSE) -> 55% | I15: =VLOOKUP($C15,'RECAP SECT'!$G$6:$DC$253,21,FALSE) -> 11 | J15: =VLOOKUP($C15,'RECAP SECT'!$G$6:$DC$253,22,FALSE) -> 265 | K15: =VLOOKUP($C15,'RECAP SECT'!$G$6:$DC$253,23,FALSE) -> 4.04 | L15: =VLOOKUP($C15,'RECAP SECT'!$G$6:$DC$253,24,FALSE) -> 44% | M15: =VLOOKUP($C15,'RECAP SECT'!$G$6:$DC$253,25,FALSE) -> 16 | N15: =VLOOKUP($C15,'RECAP SECT'!$G$6:$DC$253,26,FALSE) -> 16 | O15: =VLOOKUP($C15,'RECAP SECT'!$G$6:$DC$253,27,FALSE) -> 0.24 | P15: =VLOOKUP($C15,'RECAP SECT'!$G$6:$DC$253,28,FALSE) -> 90% | Q15: =VLOOKUP($C15,'RECAP SECT'!$G$6:$DC$253,29,FALSE) -> 18 | R15: =VLOOKUP($C15,'RECAP SECT'!$G$6:$DC$253,30,FALSE) -> -23.0 | S15: =VLOOKUP($C15,'RECAP SECT'!$G$6:$DC$253,31,FALSE) -> -0.35 | T15: =VLOOKUP($C15,'RECAP SECT'!$G$6:$DC$253,32,FALSE) -> 37% | U15: =VLOOKUP($C15,'RECAP SECT'!$G$6:$DC$253,33,FALSE) -> 12 | V15: =VLOOKUP($C15,'RECAP SECT'!$G$6:$DC$253,34,FALSE) -> 55% | W15: =VLOOKUP($C15,'RECAP SECT'!$G$6:$DC$253,35,FALSE) -> 48% | X15: =VLOOKUP($C15,'RECAP SECT'!$G$6:$DC$253,36,FALSE) -> 13
A16: 264 | B16: HAUT-RHIN | C16: 5169 | D16: MULHOUSE | E16: =VLOOKUP($C16,'RECAP SECT'!$G$6:$DC$253,3,FALSE) -> 62.1 | F16: =VLOOKUP($C16,'RECAP SECT'!$G$6:$DC$253,18,FALSE) -> 100 | G16: =VLOOKUP($C16,'RECAP SECT'!$G$6:$DC$253,19,FALSE) -> 1.61 | H16: =VLOOKUP($C16,'RECAP SECT'!$G$6:$DC$253,20,FALSE) -> 76% | I16: =VLOOKUP($C16,'RECAP SECT'!$G$6:$DC$253,21,FALSE) -> 16 | J16: =VLOOKUP($C16,'RECAP SECT'!$G$6:$DC$253,22,FALSE) -> 251 | K16: =VLOOKUP($C16,'RECAP SECT'!$G$6:$DC$253,23,FALSE) -> 4.04 | L16: =VLOOKUP($C16,'RECAP SECT'!$G$6:$DC$253,24,FALSE) -> 44% | M16: =VLOOKUP($C16,'RECAP SECT'!$G$6:$DC$253,25,FALSE) -> 15 | N16: =VLOOKUP($C16,'RECAP SECT'!$G$6:$DC$253,26,FALSE) -> 18 | O16: =VLOOKUP($C16,'RECAP SECT'!$G$6:$DC$253,27,FALSE) -> 0.29 | P16: =VLOOKUP($C16,'RECAP SECT'!$G$6:$DC$253,28,FALSE) -> 88% | Q16: =VLOOKUP($C16,'RECAP SECT'!$G$6:$DC$253,29,FALSE) -> 17 | R16: =VLOOKUP($C16,'RECAP SECT'!$G$6:$DC$253,30,FALSE) -> -23.9 | S16: =VLOOKUP($C16,'RECAP SECT'!$G$6:$DC$253,31,FALSE) -> -0.38 | T16: =VLOOKUP($C16,'RECAP SECT'!$G$6:$DC$253,32,FALSE) -> 50% | U16: =VLOOKUP($C16,'RECAP SECT'!$G$6:$DC$253,33,FALSE) -> 17 | V16: =VLOOKUP($C16,'RECAP SECT'!$G$6:$DC$253,34,FALSE) -> 68% | W16: =VLOOKUP($C16,'RECAP SECT'!$G$6:$DC$253,35,FALSE) -> 61% | X16: =VLOOKUP($C16,'RECAP SECT'!$G$6:$DC$253,36,FALSE) -> 18
A17: 30 | B17: MARNE-ARDENNES | C17: 6 | D17: CHALONS EN CHAMPAGNE | E17: =VLOOKUP($C17,'RECAP SECT'!$G$6:$DC$253,3,FALSE) -> 45.0 | F17: =VLOOKUP($C17,'RECAP SECT'!$G$6:$DC$253,18,FALSE) -> 222 | G17: =VLOOKUP($C17,'RECAP SECT'!$G$6:$DC$253,19,FALSE) -> 4.94 | H17: =VLOOKUP($C17,'RECAP SECT'!$G$6:$DC$253,20,FALSE) -> 26% | I17: =VLOOKUP($C17,'RECAP SECT'!$G$6:$DC$253,21,FALSE) -> 5 | J17: =VLOOKUP($C17,'RECAP SECT'!$G$6:$DC$253,22,FALSE) -> 245 | K17: =VLOOKUP($C17,'RECAP SECT'!$G$6:$DC$253,23,FALSE) -> 5.45 | L17: =VLOOKUP($C17,'RECAP SECT'!$G$6:$DC$253,24,FALSE) -> 25% | M17: =VLOOKUP($C17,'RECAP SECT'!$G$6:$DC$253,25,FALSE) -> 7 | N17: =VLOOKUP($C17,'RECAP SECT'!$G$6:$DC$253,26,FALSE) -> 71 | O17: =VLOOKUP($C17,'RECAP SECT'!$G$6:$DC$253,27,FALSE) -> 1.58 | P17: =VLOOKUP($C17,'RECAP SECT'!$G$6:$DC$253,28,FALSE) -> 35% | Q17: =VLOOKUP($C17,'RECAP SECT'!$G$6:$DC$253,29,FALSE) -> 3 | R17: =VLOOKUP($C17,'RECAP SECT'!$G$6:$DC$253,30,FALSE) -> -12.7 | S17: =VLOOKUP($C17,'RECAP SECT'!$G$6:$DC$253,31,FALSE) -> -0.28 | T17: =VLOOKUP($C17,'RECAP SECT'!$G$6:$DC$253,32,FALSE) -> 10% | U17: =VLOOKUP($C17,'RECAP SECT'!$G$6:$DC$253,33,FALSE) -> 4 | V17: =VLOOKUP($C17,'RECAP SECT'!$G$6:$DC$253,34,FALSE) -> 25% | W17: =VLOOKUP($C17,'RECAP SECT'!$G$6:$DC$253,35,FALSE) -> 18% | X17: =VLOOKUP($C17,'RECAP SECT'!$G$6:$DC$253,36,FALSE) -> 3
A18: 30 | B18: MARNE-ARDENNES | C18: 2 | D18: CHARLEVILLE MEZIERES | E18: =VLOOKUP($C18,'RECAP SECT'!$G$6:$DC$253,3,FALSE) -> 55.4 | F18: =VLOOKUP($C18,'RECAP SECT'!$G$6:$DC$253,18,FALSE) -> 239 | G18: =VLOOKUP($C18,'RECAP SECT'!$G$6:$DC$253,19,FALSE) -> 4.30 | H18: =VLOOKUP($C18,'RECAP SECT'!$G$6:$DC$253,20,FALSE) -> 36% | I18: =VLOOKUP($C18,'RECAP SECT'!$G$6:$DC$253,21,FALSE) -> 7 | J18: =VLOOKUP($C18,'RECAP SECT'!$G$6:$DC$253,22,FALSE) -> 340 | K18: =VLOOKUP($C18,'RECAP SECT'!$G$6:$DC$253,23,FALSE) -> 6.13 | L18: =VLOOKUP($C18,'RECAP SECT'!$G$6:$DC$253,24,FALSE) -> 16% | M18: =VLOOKUP($C18,'RECAP SECT'!$G$6:$DC$253,25,FALSE) -> 5 | N18: =VLOOKUP($C18,'RECAP SECT'!$G$6:$DC$253,26,FALSE) -> 82 | O18: =VLOOKUP($C18,'RECAP SECT'!$G$6:$DC$253,27,FALSE) -> 1.48 | P18: =VLOOKUP($C18,'RECAP SECT'!$G$6:$DC$253,28,FALSE) -> 39% | Q18: =VLOOKUP($C18,'RECAP SECT'!$G$6:$DC$253,29,FALSE) -> 4 | R18: =VLOOKUP($C18,'RECAP SECT'!$G$6:$DC$253,30,FALSE) -> -14.5 | S18: =VLOOKUP($C18,'RECAP SECT'!$G$6:$DC$253,31,FALSE) -> -0.26 | T18: =VLOOKUP($C18,'RECAP SECT'!$G$6:$DC$253,32,FALSE) -> 2% | U18: =VLOOKUP($C18,'RECAP SECT'!$G$6:$DC$253,33,FALSE) -> 3 | V18: =VLOOKUP($C18,'RECAP SECT'!$G$6:$DC$253,34,FALSE) -> 27% | W18: =VLOOKUP($C18,'RECAP SECT'!$G$6:$DC$253,35,FALSE) -> 20% | X18: =VLOOKUP($C18,'RECAP SECT'!$G$6:$DC$253,36,FALSE) -> 4
A19: 30 | B19: MARNE-ARDENNES | C19: 11 | D19: REIMS | E19: =VLOOKUP($C19,'RECAP SECT'!$G$6:$DC$253,3,FALSE) -> 80.5 | F19: =VLOOKUP($C19,'RECAP SECT'!$G$6:$DC$253,18,FALSE) -> 426 | G19: =VLOOKUP($C19,'RECAP SECT'!$G$6:$DC$253,19,FALSE) -> 5.29 | H19: =VLOOKUP($C19,'RECAP SECT'!$G$6:$DC$253,20,FALSE) -> 21% | I19: =VLOOKUP($C19,'RECAP SECT'!$G$6:$DC$253,21,FALSE) -> 4 | J19: =VLOOKUP($C19,'RECAP SECT'!$G$6:$DC$253,22,FALSE) -> 495 | K19: =VLOOKUP($C19,'RECAP SECT'!$G$6:$DC$253,23,FALSE) -> 6.15 | L19: =VLOOKUP($C19,'RECAP SECT'!$G$6:$DC$253,24,FALSE) -> 16% | M19: =VLOOKUP($C19,'RECAP SECT'!$G$6:$DC$253,25,FALSE) -> 4 | N19: =VLOOKUP($C19,'RECAP SECT'!$G$6:$DC$253,26,FALSE) -> 128 | O19: =VLOOKUP($C19,'RECAP SECT'!$G$6:$DC$253,27,FALSE) -> 1.59 | P19: =VLOOKUP($C19,'RECAP SECT'!$G$6:$DC$253,28,FALSE) -> 34% | Q19: =VLOOKUP($C19,'RECAP SECT'!$G$6:$DC$253,29,FALSE) -> 2 | R19: =VLOOKUP($C19,'RECAP SECT'!$G$6:$DC$253,30,FALSE) -> -34.1 | S19: =VLOOKUP($C19,'RECAP SECT'!$G$6:$DC$253,31,FALSE) -> -0.42 | T19: =VLOOKUP($C19,'RECAP SECT'!$G$6:$DC$253,32,FALSE) -> 66% | U19: =VLOOKUP($C19,'RECAP SECT'!$G$6:$DC$253,33,FALSE) -> 18 | V19: =VLOOKUP($C19,'RECAP SECT'!$G$6:$DC$253,34,FALSE) -> 29% | W19: =VLOOKUP($C19,'RECAP SECT'!$G$6:$DC$253,35,FALSE) -> 22% | X19: =VLOOKUP($C19,'RECAP SECT'!$G$6:$DC$253,36,FALSE) -> 5
A20: 110 | B20: MEURTHE ET MOSELLE MEUSE | C20: 26 | D20: NANCY | E20: =VLOOKUP($C20,'RECAP SECT'!$G$6:$DC$253,3,FALSE) -> 68.7 | F20: =VLOOKUP($C20,'RECAP SECT'!$G$6:$DC$253,18,FALSE) -> 462 | G20: =VLOOKUP($C20,'RECAP SECT'!$G$6:$DC$253,19,FALSE) -> 6.72 | H20: =VLOOKUP($C20,'RECAP SECT'!$G$6:$DC$253,20,FALSE) -> 0% | I20: =VLOOKUP($C20,'RECAP SECT'!$G$6:$DC$253,21,FALSE) -> 1 | J20: =VLOOKUP($C20,'RECAP SECT'!$G$6:$DC$253,22,FALSE) -> 500 | K20: =VLOOKUP($C20,'RECAP SECT'!$G$6:$DC$253,23,FALSE) -> 7.28 | L20: =VLOOKUP($C20,'RECAP SECT'!$G$6:$DC$253,24,FALSE) -> 0% | M20: =VLOOKUP($C20,'RECAP SECT'!$G$6:$DC$253,25,FALSE) -> 1 | N20: =VLOOKUP($C20,'RECAP SECT'!$G$6:$DC$253,26,FALSE) -> 166 | O20: =VLOOKUP($C20,'RECAP SECT'!$G$6:$DC$253,27,FALSE) -> 2.42 | P20: =VLOOKUP($C20,'RECAP SECT'!$G$6:$DC$253,28,FALSE) -> 0% | Q20: =VLOOKUP($C20,'RECAP SECT'!$G$6:$DC$253,29,FALSE) -> 1 | R20: =VLOOKUP($C20,'RECAP SECT'!$G$6:$DC$253,30,FALSE) -> -25.7 | S20: =VLOOKUP($C20,'RECAP SECT'!$G$6:$DC$253,31,FALSE) -> -0.37 | T20: =VLOOKUP($C20,'RECAP SECT'!$G$6:$DC$253,32,FALSE) -> 46% | U20: =VLOOKUP($C20,'RECAP SECT'!$G$6:$DC$253,33,FALSE) -> 14 | V20: =VLOOKUP($C20,'RECAP SECT'!$G$6:$DC$253,34,FALSE) -> 7% | W20: =VLOOKUP($C20,'RECAP SECT'!$G$6:$DC$253,35,FALSE) -> 0% | X20: =VLOOKUP($C20,'RECAP SECT'!$G$6:$DC$253,36,FALSE) -> 1
A21: 110 | B21: MEURTHE ET MOSELLE MEUSE | C21: 27 | D21: PONT A MOUSSON | E21: =VLOOKUP($C21,'RECAP SECT'!$G$6:$DC$253,3,FALSE) -> 79.9 | F21: =VLOOKUP($C21,'RECAP SECT'!$G$6:$DC$253,18,FALSE) -> 366 | G21: =VLOOKUP($C21,'RECAP SECT'!$G$6:$DC$253,19,FALSE) -> 4.58 | H21: =VLOOKUP($C21,'RECAP SECT'!$G$6:$DC$253,20,FALSE) -> 32% | I21: =VLOOKUP($C21,'RECAP SECT'!$G$6:$DC$253,21,FALSE) -> 6 | J21: =VLOOKUP($C21,'RECAP SECT'!$G$6:$DC$253,22,FALSE) -> 502 | K21: =VLOOKUP($C21,'RECAP SECT'!$G$6:$DC$253,23,FALSE) -> 6.28 | L21: =VLOOKUP($C21,'RECAP SECT'!$G$6:$DC$253,24,FALSE) -> 14% | M21: =VLOOKUP($C21,'RECAP SECT'!$G$6:$DC$253,25,FALSE) -> 3 | N21: =VLOOKUP($C21,'RECAP SECT'!$G$6:$DC$253,26,FALSE) -> 110 | O21: =VLOOKUP($C21,'RECAP SECT'!$G$6:$DC$253,27,FALSE) -> 1.38 | P21: =VLOOKUP($C21,'RECAP SECT'!$G$6:$DC$253,28,FALSE) -> 43% | Q21: =VLOOKUP($C21,'RECAP SECT'!$G$6:$DC$253,29,FALSE) -> 5 | R21: =VLOOKUP($C21,'RECAP SECT'!$G$6:$DC$253,30,FALSE) -> -25.9 | S21: =VLOOKUP($C21,'RECAP SECT'!$G$6:$DC$253,31,FALSE) -> -0.32 | T21: =VLOOKUP($C21,'RECAP SECT'!$G$6:$DC$253,32,FALSE) -> 27% | U21: =VLOOKUP($C21,'RECAP SECT'!$G$6:$DC$253,33,FALSE) -> 8 | V21: =VLOOKUP($C21,'RECAP SECT'!$G$6:$DC$253,34,FALSE) -> 29% | W21: =VLOOKUP($C21,'RECAP SECT'!$G$6:$DC$253,35,FALSE) -> 22% | X21: =VLOOKUP($C21,'RECAP SECT'!$G$6:$DC$253,36,FALSE) -> 6
A22: 110 | B22: MEURTHE ET MOSELLE MEUSE | C22: 31 | D22: VERDUN | E22: =VLOOKUP($C22,'RECAP SECT'!$G$6:$DC$253,3,FALSE) -> 59.9 | F22: =VLOOKUP($C22,'RECAP SECT'!$G$6:$DC$253,18,FALSE) -> 202 | G22: =VLOOKUP($C22,'RECAP SECT'!$G$6:$DC$253,19,FALSE) -> 3.37 | H22: =VLOOKUP($C22,'RECAP SECT'!$G$6:$DC$253,20,FALSE) -> 50% | I22: =VLOOKUP($C22,'RECAP SECT'!$G$6:$DC$253,21,FALSE) -> 10 | J22: =VLOOKUP($C22,'RECAP SECT'!$G$6:$DC$253,22,FALSE) -> 334 | K22: =VLOOKUP($C22,'RECAP SECT'!$G$6:$DC$253,23,FALSE) -> 5.57 | L22: =VLOOKUP($C22,'RECAP SECT'!$G$6:$DC$253,24,FALSE) -> 23% | M22: =VLOOKUP($C22,'RECAP SECT'!$G$6:$DC$253,25,FALSE) -> 6 | N22: =VLOOKUP($C22,'RECAP SECT'!$G$6:$DC$253,26,FALSE) -> 48 | O22: =VLOOKUP($C22,'RECAP SECT'!$G$6:$DC$253,27,FALSE) -> 0.80 | P22: =VLOOKUP($C22,'RECAP SECT'!$G$6:$DC$253,28,FALSE) -> 67% | Q22: =VLOOKUP($C22,'RECAP SECT'!$G$6:$DC$253,29,FALSE) -> 8 | R22: =VLOOKUP($C22,'RECAP SECT'!$G$6:$DC$253,30,FALSE) -> -17.6 | S22: =VLOOKUP($C22,'RECAP SECT'!$G$6:$DC$253,31,FALSE) -> -0.29 | T22: =VLOOKUP($C22,'RECAP SECT'!$G$6:$DC$253,32,FALSE) -> 15% | U22: =VLOOKUP($C22,'RECAP SECT'!$G$6:$DC$253,33,FALSE) -> 5 | V22: =VLOOKUP($C22,'RECAP SECT'!$G$6:$DC$253,34,FALSE) -> 42% | W22: =VLOOKUP($C22,'RECAP SECT'!$G$6:$DC$253,35,FALSE) -> 35% | X22: =VLOOKUP($C22,'RECAP SECT'!$G$6:$DC$253,36,FALSE) -> 8
A23: 160 | B23: MOSELLE | C23: 45 | D23: METZ | E23: =VLOOKUP($C23,'RECAP SECT'!$G$6:$DC$253,3,FALSE) -> 90.1 | F23: =VLOOKUP($C23,'RECAP SECT'!$G$6:$DC$253,18,FALSE) -> 112 | G23: =VLOOKUP($C23,'RECAP SECT'!$G$6:$DC$253,19,FALSE) -> 1.24 | H23: =VLOOKUP($C23,'RECAP SECT'!$G$6:$DC$253,20,FALSE) -> 82% | I23: =VLOOKUP($C23,'RECAP SECT'!$G$6:$DC$253,21,FALSE) -> 18 | J23: =VLOOKUP($C23,'RECAP SECT'!$G$6:$DC$253,22,FALSE) -> 430 | K23: =VLOOKUP($C23,'RECAP SECT'!$G$6:$DC$253,23,FALSE) -> 4.77 | L23: =VLOOKUP($C23,'RECAP SECT'!$G$6:$DC$253,24,FALSE) -> 34% | M23: =VLOOKUP($C23,'RECAP SECT'!$G$6:$DC$253,25,FALSE) -> 9 | N23: =VLOOKUP($C23,'RECAP SECT'!$G$6:$DC$253,26,FALSE) -> 60 | O23: =VLOOKUP($C23,'RECAP SECT'!$G$6:$DC$253,27,FALSE) -> 0.67 | P23: =VLOOKUP($C23,'RECAP SECT'!$G$6:$DC$253,28,FALSE) -> 72% | Q23: =VLOOKUP($C23,'RECAP SECT'!$G$6:$DC$253,29,FALSE) -> 9 | R23: =VLOOKUP($C23,'RECAP SECT'!$G$6:$DC$253,30,FALSE) -> -31.0 | S23: =VLOOKUP($C23,'RECAP SECT'!$G$6:$DC$253,31,FALSE) -> -0.34 | T23: =VLOOKUP($C23,'RECAP SECT'!$G$6:$DC$253,32,FALSE) -> 35% | U23: =VLOOKUP($C23,'RECAP SECT'!$G$6:$DC$253,33,FALSE) -> 11 | V23: =VLOOKUP($C23,'RECAP SECT'!$G$6:$DC$253,34,FALSE) -> 64% | W23: =VLOOKUP($C23,'RECAP SECT'!$G$6:$DC$253,35,FALSE) -> 57% | X23: =VLOOKUP($C23,'RECAP SECT'!$G$6:$DC$253,36,FALSE) -> 16
A24: 160 | B24: MOSELLE | C24: 42 | D24: MOSELLE EST | E24: =VLOOKUP($C24,'RECAP SECT'!$G$6:$DC$253,3,FALSE) -> 73.0 | F24: =VLOOKUP($C24,'RECAP SECT'!$G$6:$DC$253,18,FALSE) -> 141 | G24: =VLOOKUP($C24,'RECAP SECT'!$G$6:$DC$253,19,FALSE) -> 1.92 | H24: =VLOOKUP($C24,'RECAP SECT'!$G$6:$DC$253,20,FALSE) -> 71% | I24: =VLOOKUP($C24,'RECAP SECT'!$G$6:$DC$253,21,FALSE) -> 14 | J24: =VLOOKUP($C24,'RECAP SECT'!$G$6:$DC$253,22,FALSE) -> 327 | K24: =VLOOKUP($C24,'RECAP SECT'!$G$6:$DC$253,23,FALSE) -> 4.48 | L24: =VLOOKUP($C24,'RECAP SECT'!$G$6:$DC$253,24,FALSE) -> 38% | M24: =VLOOKUP($C24,'RECAP SECT'!$G$6:$DC$253,25,FALSE) -> 12 | N24: =VLOOKUP($C24,'RECAP SECT'!$G$6:$DC$253,26,FALSE) -> 41 | O24: =VLOOKUP($C24,'RECAP SECT'!$G$6:$DC$253,27,FALSE) -> 0.56 | P24: =VLOOKUP($C24,'RECAP SECT'!$G$6:$DC$253,28,FALSE) -> 77% | Q24: =VLOOKUP($C24,'RECAP SECT'!$G$6:$DC$253,29,FALSE) -> 14 | R24: =VLOOKUP($C24,'RECAP SECT'!$G$6:$DC$253,30,FALSE) -> -21.7 | S24: =VLOOKUP($C24,'RECAP SECT'!$G$6:$DC$253,31,FALSE) -> -0.30 | T24: =VLOOKUP($C24,'RECAP SECT'!$G$6:$DC$253,32,FALSE) -> 16% | U24: =VLOOKUP($C24,'RECAP SECT'!$G$6:$DC$253,33,FALSE) -> 6 | V24: =VLOOKUP($C24,'RECAP SECT'!$G$6:$DC$253,34,FALSE) -> 57% | W24: =VLOOKUP($C24,'RECAP SECT'!$G$6:$DC$253,35,FALSE) -> 50% | X24: =VLOOKUP($C24,'RECAP SECT'!$G$6:$DC$253,36,FALSE) -> 14
A25: 160 | B25: MOSELLE | C25: 44 | D25: MOSELLE NORD | E25: =VLOOKUP($C25,'RECAP SECT'!$G$6:$DC$253,3,FALSE) -> 77.6 | F25: =VLOOKUP($C25,'RECAP SECT'!$G$6:$DC$253,18,FALSE) -> 230 | G25: =VLOOKUP($C25,'RECAP SECT'!$G$6:$DC$253,19,FALSE) -> 2.96 | H25: =VLOOKUP($C25,'RECAP SECT'!$G$6:$DC$253,20,FALSE) -> 56% | I25: =VLOOKUP($C25,'RECAP SECT'!$G$6:$DC$253,21,FALSE) -> 12 | J25: =VLOOKUP($C25,'RECAP SECT'!$G$6:$DC$253,22,FALSE) -> 338 | K25: =VLOOKUP($C25,'RECAP SECT'!$G$6:$DC$253,23,FALSE) -> 4.35 | L25: =VLOOKUP($C25,'RECAP SECT'!$G$6:$DC$253,24,FALSE) -> 40% | M25: =VLOOKUP($C25,'RECAP SECT'!$G$6:$DC$253,25,FALSE) -> 13 | N25: =VLOOKUP($C25,'RECAP SECT'!$G$6:$DC$253,26,FALSE) -> 38 | O25: =VLOOKUP($C25,'RECAP SECT'!$G$6:$DC$253,27,FALSE) -> 0.49 | P25: =VLOOKUP($C25,'RECAP SECT'!$G$6:$DC$253,28,FALSE) -> 80% | Q25: =VLOOKUP($C25,'RECAP SECT'!$G$6:$DC$253,29,FALSE) -> 16 | R25: =VLOOKUP($C25,'RECAP SECT'!$G$6:$DC$253,30,FALSE) -> -19.9 | S25: =VLOOKUP($C25,'RECAP SECT'!$G$6:$DC$253,31,FALSE) -> -0.26 | T25: =VLOOKUP($C25,'RECAP SECT'!$G$6:$DC$253,32,FALSE) -> 0% | U25: =VLOOKUP($C25,'RECAP SECT'!$G$6:$DC$253,33,FALSE) -> 1 | V25: =VLOOKUP($C25,'RECAP SECT'!$G$6:$DC$253,34,FALSE) -> 48% | W25: =VLOOKUP($C25,'RECAP SECT'!$G$6:$DC$253,35,FALSE) -> 41% | X25: =VLOOKUP($C25,'RECAP SECT'!$G$6:$DC$253,36,FALSE) -> 10
A26: 80 | B26: VOSGES | C26: 57 | D26: EPINAL | E26: =VLOOKUP($C26,'RECAP SECT'!$G$6:$DC$253,3,FALSE) -> 63.2 | F26: =VLOOKUP($C26,'RECAP SECT'!$G$6:$DC$253,18,FALSE) -> 236 | G26: =VLOOKUP($C26,'RECAP SECT'!$G$6:$DC$253,19,FALSE) -> 3.73 | H26: =VLOOKUP($C26,'RECAP SECT'!$G$6:$DC$253,20,FALSE) -> 45% | I26: =VLOOKUP($C26,'RECAP SECT'!$G$6:$DC$253,21,FALSE) -> 8 | J26: =VLOOKUP($C26,'RECAP SECT'!$G$6:$DC$253,22,FALSE) -> 298 | K26: =VLOOKUP($C26,'RECAP SECT'!$G$6:$DC$253,23,FALSE) -> 4.71 | L26: =VLOOKUP($C26,'RECAP SECT'!$G$6:$DC$253,24,FALSE) -> 35% | M26: =VLOOKUP($C26,'RECAP SECT'!$G$6:$DC$253,25,FALSE) -> 11 | N26: =VLOOKUP($C26,'RECAP SECT'!$G$6:$DC$253,26,FALSE) -> 53 | O26: =VLOOKUP($C26,'RECAP SECT'!$G$6:$DC$253,27,FALSE) -> 0.84 | P26: =VLOOKUP($C26,'RECAP SECT'!$G$6:$DC$253,28,FALSE) -> 65% | Q26: =VLOOKUP($C26,'RECAP SECT'!$G$6:$DC$253,29,FALSE) -> 7 | R26: =VLOOKUP($C26,'RECAP SECT'!$G$6:$DC$253,30,FALSE) -> -21.3 | S26: =VLOOKUP($C26,'RECAP SECT'!$G$6:$DC$253,31,FALSE) -> -0.34 | T26: =VLOOKUP($C26,'RECAP SECT'!$G$6:$DC$253,32,FALSE) -> 32% | U26: =VLOOKUP($C26,'RECAP SECT'!$G$6:$DC$253,33,FALSE) -> 10 | V26: =VLOOKUP($C26,'RECAP SECT'!$G$6:$DC$253,34,FALSE) -> 44% | W26: =VLOOKUP($C26,'RECAP SECT'!$G$6:$DC$253,35,FALSE) -> 37% | X26: =VLOOKUP($C26,'RECAP SECT'!$G$6:$DC$253,36,FALSE) -> 9
A27: 80 | B27: VOSGES | C27: 55 | D27: SAINT DIE | E27: =VLOOKUP($C27,'RECAP SECT'!$G$6:$DC$253,3,FALSE) -> 50.2 | F27: =VLOOKUP($C27,'RECAP SECT'!$G$6:$DC$253,18,FALSE) -> 105 | G27: =VLOOKUP($C27,'RECAP SECT'!$G$6:$DC$253,19,FALSE) -> 2.10 | H27: =VLOOKUP($C27,'RECAP SECT'!$G$6:$DC$253,20,FALSE) -> 69% | I27: =VLOOKUP($C27,'RECAP SECT'!$G$6:$DC$253,21,FALSE) -> 13 | J27: =VLOOKUP($C27,'RECAP SECT'!$G$6:$DC$253,22,FALSE) -> 184 | K27: =VLOOKUP($C27,'RECAP SECT'!$G$6:$DC$253,23,FALSE) -> 3.67 | L27: =VLOOKUP($C27,'RECAP SECT'!$G$6:$DC$253,24,FALSE) -> 50% | M27: =VLOOKUP($C27,'RECAP SECT'!$G$6:$DC$253,25,FALSE) -> 18 | N27: =VLOOKUP($C27,'RECAP SECT'!$G$6:$DC$253,26,FALSE) -> 33 | O27: =VLOOKUP($C27,'RECAP SECT'!$G$6:$DC$253,27,FALSE) -> 0.66 | P27: =VLOOKUP($C27,'RECAP SECT'!$G$6:$DC$253,28,FALSE) -> 73% | Q27: =VLOOKUP($C27,'RECAP SECT'!$G$6:$DC$253,29,FALSE) -> 10 | R27: =VLOOKUP($C27,'RECAP SECT'!$G$6:$DC$253,30,FALSE) -> -15.7 | S27: =VLOOKUP($C27,'RECAP SECT'!$G$6:$DC$253,31,FALSE) -> -0.31 | T27: =VLOOKUP($C27,'RECAP SECT'!$G$6:$DC$253,32,FALSE) -> 22% | U27: =VLOOKUP($C27,'RECAP SECT'!$G$6:$DC$253,33,FALSE) -> 7 | V27: =VLOOKUP($C27,'RECAP SECT'!$G$6:$DC$253,34,FALSE) -> 59% | W27: =VLOOKUP($C27,'RECAP SECT'!$G$6:$DC$253,35,FALSE) -> 52% | X27: =VLOOKUP($C27,'RECAP SECT'!$G$6:$DC$253,36,FALSE) -> 15
A28: Total CEGEE Directions Régionales | E28: =SUM(E10:E27) -> 1198

Sheet SE_EPARGNE
B1: Accueil | F1: BAROMETRE BDD - TERRITOIRES
F2: EPARGNE
F3: =ACCUEIL!F7 -> 2021-02-07
F7: Excédent Epargne y/c DAV pondéré | J7: Ventes sur client non détenteur de l’univers | N7: Total Epargne
F8: =DATEMAJ!C14 -> au 07/02 | H8: coef | I8: ='RECAP DIRCOM'!AX4 -> 14% | J8: =DATEMAJ!C15 -> au 07/02 | L8: coef | M8: ='RECAP DIRCOM'!BB4 -> 6% | O8: coef | P8: ='RECAP DIRCOM'!BE4 -> 20%
A9: eds | B9: Direction | C9: eds | D9: Territoire | E9: ="ETP perf "&DATEMAJ!$C$28 -> ETP perf Dec 2020 | F9: Excédent | G9: Excédent / ETP | H9: % Ecart au 1er | I9: Rang | J9: VB | K9: VB / ETP | L9: % Ecart au 1er | M9: Rang | N9: Moyenne ecart au 1er | O9: % Ecart au 1er | P9: Rang CEGEE
A10: 50 | B10: AUBE HAUTE MARNE | C10: 21 | D10: CHAUMONT | E10: =VLOOKUP($C10,'RECAP SECT'!$G$6:$DC$253,3,FALSE) -> 36.2 | F10: =VLOOKUP($C10,'RECAP SECT'!$G$6:$DC$253,41,FALSE) -> 821 | G10: =VLOOKUP($C10,'RECAP SECT'!$G$6:$DC$253,42,FALSE) -> 22.70 | H10: =VLOOKUP($C10,'RECAP SECT'!$G$6:$DC$253,43,FALSE) -> 87% | I10: =VLOOKUP($C10,'RECAP SECT'!$G$6:$DC$253,44,FALSE) -> 18 | J10: =VLOOKUP($C10,'RECAP SECT'!$G$6:$DC$253,45,FALSE) -> 91 | K10: =VLOOKUP($C10,'RECAP SECT'!$G$6:$DC$253,46,FALSE) -> 2.52 | L10: =VLOOKUP($C10,'RECAP SECT'!$G$6:$DC$253,47,FALSE) -> 50% | M10: =VLOOKUP($C10,'RECAP SECT'!$G$6:$DC$253,48,FALSE) -> 9 | N10: =VLOOKUP($C10,'RECAP SECT'!$G$6:$DC$253,49,FALSE) -> 76% | O10: =VLOOKUP($C10,'RECAP SECT'!$G$6:$DC$253,50,FALSE) -> 56% | P10: =VLOOKUP($C10,'RECAP SECT'!$G$6:$DC$253,51,FALSE) -> 16
A11: 50 | B11: AUBE HAUTE MARNE | C11: 14 | D11: TROYES | E11: =VLOOKUP($C11,'RECAP SECT'!$G$6:$DC$253,3,FALSE) -> 70.0 | F11: =VLOOKUP($C11,'RECAP SECT'!$G$6:$DC$253,41,FALSE) -> 3,874 | G11: =VLOOKUP($C11,'RECAP SECT'!$G$6:$DC$253,42,FALSE) -> 55.32 | H11: =VLOOKUP($C11,'RECAP SECT'!$G$6:$DC$253,43,FALSE) -> 69% | I11: =VLOOKUP($C11,'RECAP SECT'!$G$6:$DC$253,44,FALSE) -> 13 | J11: =VLOOKUP($C11,'RECAP SECT'!$G$6:$DC$253,45,FALSE) -> 184 | K11: =VLOOKUP($C11,'RECAP SECT'!$G$6:$DC$253,46,FALSE) -> 2.63 | L11: =VLOOKUP($C11,'RECAP SECT'!$G$6:$DC$253,47,FALSE) -> 47% | M11: =VLOOKUP($C11,'RECAP SECT'!$G$6:$DC$253,48,FALSE) -> 8 | N11: =VLOOKUP($C11,'RECAP SECT'!$G$6:$DC$253,49,FALSE) -> 62% | O11: =VLOOKUP($C11,'RECAP SECT'!$G$6:$DC$253,50,FALSE) -> 43% | P11: =VLOOKUP($C11,'RECAP SECT'!$G$6:$DC$253,51,FALSE) -> 14
A12: 262 | B12: BAS-RHIN | C12: 5060 | D12: HAGUENAU | E12: =VLOOKUP($C12,'RECAP SECT'!$G$6:$DC$253,3,FALSE) -> 71.9 | F12: =VLOOKUP($C12,'RECAP SECT'!$G$6:$DC$253,41,FALSE) -> 9,110 | G12: =VLOOKUP($C12,'RECAP SECT'!$G$6:$DC$253,42,FALSE) -> 126.73 | H12: =VLOOKUP($C12,'RECAP SECT'!$G$6:$DC$253,43,FALSE) -> 28% | I12: =VLOOKUP($C12,'RECAP SECT'!$G$6:$DC$253,44,FALSE) -> 5 | J12: =VLOOKUP($C12,'RECAP SECT'!$G$6:$DC$253,45,FALSE) -> 170 | K12: =VLOOKUP($C12,'RECAP SECT'!$G$6:$DC$253,46,FALSE) -> 2.36 | L12: =VLOOKUP($C12,'RECAP SECT'!$G$6:$DC$253,47,FALSE) -> 53% | M12: =VLOOKUP($C12,'RECAP SECT'!$G$6:$DC$253,48,FALSE) -> 11 | N12: =VLOOKUP($C12,'RECAP SECT'!$G$6:$DC$253,49,FALSE) -> 35% | O12: =VLOOKUP($C12,'RECAP SECT'!$G$6:$DC$253,50,FALSE) -> 16% | P12: =VLOOKUP($C12,'RECAP SECT'!$G$6:$DC$253,51,FALSE) -> 5
A13: 262 | B13: BAS-RHIN | C13: 5101 | D13: SELESTAT | E13: =VLOOKUP($C13,'RECAP SECT'!$G$6:$DC$253,3,FALSE) -> 64.5 | F13: =VLOOKUP($C13,'RECAP SECT'!$G$6:$DC$253,41,FALSE) -> 8,082 | G13: =VLOOKUP($C13,'RECAP SECT'!$G$6:$DC$253,42,FALSE) -> 125.35 | H13: =VLOOKUP($C13,'RECAP SECT'!$G$6:$DC$253,43,FALSE) -> 29% | I13: =VLOOKUP($C13,'RECAP SECT'!$G$6:$DC$253,44,FALSE) -> 6 | J13: =VLOOKUP($C13,'RECAP SECT'!$G$6:$DC$253,45,FALSE) -> 196 | K13: =VLOOKUP($C13,'RECAP SECT'!$G$6:$DC$253,46,FALSE) -> 3.04 | L13: =VLOOKUP($C13,'RECAP SECT'!$G$6:$DC$253,47,FALSE) -> 39% | M13: =VLOOKUP($C13,'RECAP SECT'!$G$6:$DC$253,48,FALSE) -> 7 | N13: =VLOOKUP($C13,'RECAP SECT'!$G$6:$DC$253,49,FALSE) -> 32% | O13: =VLOOKUP($C13,'RECAP SECT'!$G$6:$DC$253,50,FALSE) -> 12% | P13: =VLOOKUP($C13,'RECAP SECT'!$G$6:$DC$253,51,FALSE) -> 4
A14: 262 | B14: BAS-RHIN | C14: 5006 | D14: STRASBOURG | E14: =VLOOKUP($C14,'RECAP SECT'!$G$6:$DC$253,3,FALSE) -> 83.8 | F14: =VLOOKUP($C14,'RECAP SECT'!$G$6:$DC$253,41,FALSE) -> 6,800 | G14: =VLOOKUP($C14,'RECAP SECT'!$G$6:$DC$253,42,FALSE) -> 81.11 | H14: =VLOOKUP($C14,'RECAP SECT'!$G$6:$DC$253,43,FALSE) -> 54% | I14: =VLOOKUP($C14,'RECAP SECT'!$G$6:$DC$253,44,FALSE) -> 11 | J14: =VLOOKUP($C14,'RECAP SECT'!$G$6:$DC$253,45,FALSE) -> 260 | K14: =VLOOKUP($C14,'RECAP SECT'!$G$6:$DC$253,46,FALSE) -> 3.10 | L14: =VLOOKUP($C14,'RECAP SECT'!$G$6:$DC$253,47,FALSE) -> 38% | M14: =VLOOKUP($C14,'RECAP SECT'!$G$6:$DC$253,48,FALSE) -> 6 | N14: =VLOOKUP($C14,'RECAP SECT'!$G$6:$DC$253,49,FALSE) -> 49% | O14: =VLOOKUP($C14,'RECAP SECT'!$G$6:$DC$253,50,FALSE) -> 30% | P14: =VLOOKUP($C14,'RECAP SECT'!$G$6:$DC$253,51,FALSE) -> 11
A15: 264 | B15: HAUT-RHIN | C15: 5130 | D15: COLMAR | E15: =VLOOKUP($C15,'RECAP SECT'!$G$6:$DC$253,3,FALSE) -> 65.6 | F15: =VLOOKUP($C15,'RECAP SECT'!$G$6:$DC$253,41,FALSE) -> 1,648 | G15: =VLOOKUP($C15,'RECAP SECT'!$G$6:$DC$253,42,FALSE) -> 25.13 | H15: =VLOOKUP($C15,'RECAP SECT'!$G$6:$DC$253,43,FALSE) -> 86% | I15: =VLOOKUP($C15,'RECAP SECT'!$G$6:$DC$253,44,FALSE) -> 17 | J15: =VLOOKUP($C15,'RECAP SECT'!$G$6:$DC$253,45,FALSE) -> 114 | K15: =VLOOKUP($C15,'RECAP SECT'!$G$6:$DC$253,46,FALSE) -> 1.74 | L15: =VLOOKUP($C15,'RECAP SECT'!$G$6:$DC$253,47,FALSE) -> 65% | M15: =VLOOKUP($C15,'RECAP SECT'!$G$6:$DC$253,48,FALSE) -> 16 | N15: =VLOOKUP($C15,'RECAP SECT'!$G$6:$DC$253,49,FALSE) -> 80% | O15: =VLOOKUP($C15,'RECAP SECT'!$G$6:$DC$253,50,FALSE) -> 60% | P15: =VLOOKUP($C15,'RECAP SECT'!$G$6:$DC$253,51,FALSE) -> 17
A16: 264 | B16: HAUT-RHIN | C16: 5169 | D16: MULHOUSE | E16: =VLOOKUP($C16,'RECAP SECT'!$G$6:$DC$253,3,FALSE) -> 62.1 | F16: =VLOOKUP($C16,'RECAP SECT'!$G$6:$DC$253,41,FALSE) -> 1,577 | G16: =VLOOKUP($C16,'RECAP SECT'!$G$6:$DC$253,42,FALSE) -> 25.41 | H16: =VLOOKUP($C16,'RECAP SECT'!$G$6:$DC$253,43,FALSE) -> 86% | I16: =VLOOKUP($C16,'RECAP SECT'!$G$6:$DC$253,44,FALSE) -> 16 | J16: =VLOOKUP($C16,'RECAP SECT'!$G$6:$DC$253,45,FALSE) -> 89 | K16: =VLOOKUP($C16,'RECAP SECT'!$G$6:$DC$253,46,FALSE) -> 1.43 | L16: =VLOOKUP($C16,'RECAP SECT'!$G$6:$DC$253,47,FALSE) -> 71% | M16: =VLOOKUP($C16,'RECAP SECT'!$G$6:$DC$253,48,FALSE) -> 18 | N16: =VLOOKUP($C16,'RECAP SECT'!$G$6:$DC$253,49,FALSE) -> 81% | O16: =VLOOKUP($C16,'RECAP SECT'!$G$6:$DC$253,50,FALSE) -> 62% | P16: =VLOOKUP($C16,'RECAP SECT'!$G$6:$DC$253,51,FALSE) -> 18
A17: 30 | B17: MARNE-ARDENNES | C17: 6 | D17: CHALONS EN CHAMPAGNE | E17: =VLOOKUP($C17,'RECAP SECT'!$G$6:$DC$253,3,FALSE) -> 45.0 | F17: =VLOOKUP($C17,'RECAP SECT'!$G$6:$DC$253,41,FALSE) -> 2,175 | G17: =VLOOKUP($C17,'RECAP SECT'!$G$6:$DC$253,42,FALSE) -> 48.38 | H17: =VLOOKUP($C17,'RECAP SECT'!$G$6:$DC$253,43,FALSE) -> 73% | I17: =VLOOKUP($C17,'RECAP SECT'!$G$6:$DC$253,44,FALSE) -> 14 | J17: =VLOOKUP($C17,'RECAP SECT'!$G$6:$DC$253,45,FALSE) -> 225 | K17: =VLOOKUP($C17,'RECAP SECT'!$G$6:$DC$253,46,FALSE) -> 5.00 | L17: =VLOOKUP($C17,'RECAP SECT'!$G$6:$DC$253,47,FALSE) -> 0% | M17: =VLOOKUP($C17,'RECAP SECT'!$G$6:$DC$253,48,FALSE) -> 1 | N17: =VLOOKUP($C17,'RECAP SECT'!$G$6:$DC$253,49,FALSE) -> 51% | O17: =VLOOKUP($C17,'RECAP SECT'!$G$6:$DC$253,50,FALSE) -> 31% | P17: =VLOOKUP($C17,'RECAP SECT'!$G$6:$DC$253,51,FALSE) -> 12
A18: 30 | B18: MARNE-ARDENNES | C18: 2 | D18: CHARLEVILLE MEZIERES | E18: =VLOOKUP($C18,'RECAP SECT'!$G$6:$DC$253,3,FALSE) -> 55.4 | F18: =VLOOKUP($C18,'RECAP SECT'!$G$6:$DC$253,41,FALSE) -> 4,677 | G18: =VLOOKUP($C18,'RECAP SECT'!$G$6:$DC$253,42,FALSE) -> 84.37 | H18: =VLOOKUP($C18,'RECAP SECT'!$G$6:$DC$253,43,FALSE) -> 52% | I18: =VLOOKUP($C18,'RECAP SECT'!$G$6:$DC$253,44,FALSE) -> 10 | J18: =VLOOKUP($C18,'RECAP SECT'!$G$6:$DC$253,45,FALSE) -> 249 | K18: =VLOOKUP($C18,'RECAP SECT'!$G$6:$DC$253,46,FALSE) -> 4.49 | L18: =VLOOKUP($C18,'RECAP SECT'!$G$6:$DC$253,47,FALSE) -> 10% | M18: =VLOOKUP($C18,'RECAP SECT'!$G$6:$DC$253,48,FALSE) -> 2 | N18: =VLOOKUP($C18,'RECAP SECT'!$G$6:$DC$253,49,FALSE) -> 40% | O18: =VLOOKUP($C18,'RECAP SECT'!$G$6:$DC$253,50,FALSE) -> 20% | P18: =VLOOKUP($C18,'RECAP SECT'!$G$6:$DC$253,51,FALSE) -> 7
A19: 30 | B19: MARNE-ARDENNES | C19: 11 | D19: REIMS | E19: =VLOOKUP($C19,'RECAP SECT'!$G$6:$DC$253,3,FALSE) -> 80.5 | F19: =VLOOKUP($C19,'RECAP SECT'!$G$6:$DC$253,41,FALSE) -> 4,809 | G19: =VLOOKUP($C19,'RECAP SECT'!$G$6:$DC$253,42,FALSE) -> 59.74 | H19: =VLOOKUP($C19,'RECAP SECT'!$G$6:$DC$253,43,FALSE) -> 66% | I19: =VLOOKUP($C19,'RECAP SECT'!$G$6:$DC$253,44,FALSE) -> 12 | J19: =VLOOKUP($C19,'RECAP SECT'!$G$6:$DC$253,45,FALSE) -> 274 | K19: =VLOOKUP($C19,'RECAP SECT'!$G$6:$DC$253,46,FALSE) -> 3.40 | L19: =VLOOKUP($C19,'RECAP SECT'!$G$6:$DC$253,47,FALSE) -> 32% | M19: =VLOOKUP($C19,'RECAP SECT'!$G$6:$DC$253,48,FALSE) -> 5 | N19: =VLOOKUP($C19,'RECAP SECT'!$G$6:$DC$253,49,FALSE) -> 56% | O19: =VLOOKUP($C19,'RECAP SECT'!$G$6:$DC$253,50,FALSE) -> 36% | P19: =VLOOKUP($C19,'RECAP SECT'!$G$6:$DC$253,51,FALSE) -> 13
A20: 110 | B20: MEURTHE ET MOSELLE MEUSE | C20: 26 | D20: NANCY | E20: =VLOOKUP($C20,'RECAP SECT'!$G$6:$DC$253,3,FALSE) -> 68.7 | F20: =VLOOKUP($C20,'RECAP SECT'!$G$6:$DC$253,41,FALSE) -> 7,031 | G20: =VLOOKUP($C20,'RECAP SECT'!$G$6:$DC$253,42,FALSE) -> 102.38 | H20: =VLOOKUP($C20,'RECAP SECT'!$G$6:$DC$253,43,FALSE) -> 42% | I20: =VLOOKUP($C20,'RECAP SECT'!$G$6:$DC$253,44,FALSE) -> 8 | J20: =VLOOKUP($C20,'RECAP SECT'!$G$6:$DC$253,45,FALSE) -> 271 | K20: =VLOOKUP($C20,'RECAP SECT'!$G$6:$DC$253,46,FALSE) -> 3.95 | L20: =VLOOKUP($C20,'RECAP SECT'!$G$6:$DC$253,47,FALSE) -> 21% | M20: =VLOOKUP($C20,'RECAP SECT'!$G$6:$DC$253,48,FALSE) -> 3 | N20: =VLOOKUP($C20,'RECAP SECT'!$G$6:$DC$253,49,FALSE) -> 36% | O20: =VLOOKUP($C20,'RECAP SECT'!$G$6:$DC$253,50,FALSE) -> 16% | P20: =VLOOKUP($C20,'RECAP SECT'!$G$6:$DC$253,51,FALSE) -> 6
A21: 110 | B21: MEURTHE ET MOSELLE MEUSE | C21: 27 | D21: PONT A MOUSSON | E21: =VLOOKUP($C21,'RECAP SECT'!$G$6:$DC$253,3,FALSE) -> 79.9 | F21: =VLOOKUP($C21,'RECAP SECT'!$G$6:$DC$253,41,FALSE) -> 10,560 | G21: =VLOOKUP($C21,'RECAP SECT'!$G$6:$DC$253,42,FALSE) -> 132.17 | H21: =VLOOKUP($C21,'RECAP SECT'!$G$6:$DC$253,43,FALSE) -> 25% | I21: =VLOOKUP($C21,'RECAP SECT'!$G$6:$DC$253,44,FALSE) -> 3 | J21: =VLOOKUP($C21,'RECAP SECT'!$G$6:$DC$253,45,FALSE) -> 311 | K21: =VLOOKUP($C21,'RECAP SECT'!$G$6:$DC$253,46,FALSE) -> 3.89 | L21: =VLOOKUP($C21,'RECAP SECT'!$G$6:$DC$253,47,FALSE) -> 22% | M21: =VLOOKUP($C21,'RECAP SECT'!$G$6:$DC$253,48,FALSE) -> 4 | N21: =VLOOKUP($C21,'RECAP SECT'!$G$6:$DC$253,49,FALSE) -> 24% | O21: =VLOOKUP($C21,'RECAP SECT'!$G$6:$DC$253,50,FALSE) -> 5% | P21: =VLOOKUP($C21,'RECAP SECT'!$G$6:$DC$253,51,FALSE) -> 2
A22: 110 | B22: MEURTHE ET MOSELLE MEUSE | C22: 31 | D22: VERDUN | E22: =VLOOKUP($C22,'RECAP SECT'!$G$6:$DC$253,3,FALSE) -> 59.9 | F22: =VLOOKUP($C22,'RECAP SECT'!$G$6:$DC$253,41,FALSE) -> 2,005 | G22: =VLOOKUP($C22,'RECAP SECT'!$G$6:$DC$253,42,FALSE) -> 33.46 | H22: =VLOOKUP($C22,'RECAP SECT'!$G$6:$DC$253,43,FALSE) -> 81% | I22: =VLOOKUP($C22,'RECAP SECT'!$G$6:$DC$253,44,FALSE) -> 15 | J22: =VLOOKUP($C22,'RECAP SECT'!$G$6:$DC$253,45,FALSE) -> 126 | K22: =VLOOKUP($C22,'RECAP SECT'!$G$6:$DC$253,46,FALSE) -> 2.10 | L22: =VLOOKUP($C22,'RECAP SECT'!$G$6:$DC$253,47,FALSE) -> 58% | M22: =VLOOKUP($C22,'RECAP SECT'!$G$6:$DC$253,48,FALSE) -> 13 | N22: =VLOOKUP($C22,'RECAP SECT'!$G$6:$DC$253,49,FALSE) -> 74% | O22: =VLOOKUP($C22,'RECAP SECT'!$G$6:$DC$253,50,FALSE) -> 55% | P22: =VLOOKUP($C22,'RECAP SECT'!$G$6:$DC$253,51,FALSE) -> 15
A23: 160 | B23: MOSELLE | C23: 45 | D23: METZ | E23: =VLOOKUP($C23,'RECAP SECT'!$G$6:$DC$253,3,FALSE) -> 90.1 | F23: =VLOOKUP($C23,'RECAP SECT'!$G$6:$DC$253,41,FALSE) -> 10,572 | G23: =VLOOKUP($C23,'RECAP SECT'!$G$6:$DC$253,42,FALSE) -> 117.38 | H23: =VLOOKUP($C23,'RECAP SECT'!$G$6:$DC$253,43,FALSE) -> 33% | I23: =VLOOKUP($C23,'RECAP SECT'!$G$6:$DC$253,44,FALSE) -> 7 | J23: =VLOOKUP($C23,'RECAP SECT'!$G$6:$DC$253,45,FALSE) -> 179 | K23: =VLOOKUP($C23,'RECAP SECT'!$G$6:$DC$253,46,FALSE) -> 1.99 | L23: =VLOOKUP($C23,'RECAP SECT'!$G$6:$DC$253,47,FALSE) -> 60% | M23: =VLOOKUP($C23,'RECAP SECT'!$G$6:$DC$253,48,FALSE) -> 14 | N23: =VLOOKUP($C23,'RECAP SECT'!$G$6:$DC$253,49,FALSE) -> 41% | O23: =VLOOKUP($C23,'RECAP SECT'!$G$6:$DC$253,50,FALSE) -> 22% | P23: =VLOOKUP($C23,'RECAP SECT'!$G$6:$DC$253,51,FALSE) -> 9
A24: 160 | B24: MOSELLE | C24: 42 | D24: MOSELLE EST | E24: =VLOOKUP($C24,'RECAP SECT'!$G$6:$DC$253,3,FALSE) -> 73.0 | F24: =VLOOKUP($C24,'RECAP SECT'!$G$6:$DC$253,41,FALSE) -> 7,376 | G24: =VLOOKUP($C24,'RECAP SECT'!$G$6:$DC$253,42,FALSE) -> 101.04 | H24: =VLOOKUP($C24,'RECAP SECT'!$G$6:$DC$253,43,FALSE) -> 43% | I24: =VLOOKUP($C24,'RECAP SECT'!$G$6:$DC$253,44,FALSE) -> 9 | J24: =VLOOKUP($C24,'RECAP SECT'!$G$6:$DC$253,45,FALSE) -> 177 | K24: =VLOOKUP($C24,'RECAP SECT'!$G$6:$DC$253,46,FALSE) -> 2.42 | L24: =VLOOKUP($C24,'RECAP SECT'!$G$6:$DC$253,47,FALSE) -> 52% | M24: =VLOOKUP($C24,'RECAP SECT'!$G$6:$DC$253,48,FALSE) -> 10 | N24: =VLOOKUP($C24,'RECAP SECT'!$G$6:$DC$253,49,FALSE) -> 45% | O24: =VLOOKUP($C24,'RECAP SECT'!$G$6:$DC$253,50,FALSE) -> 26% | P24: =VLOOKUP($C24,'RECAP SECT'!$G$6:$DC$253,51,FALSE) -> 10
A25: 160 | B25: MOSELLE | C25: 44 | D25: MOSELLE NORD | E25: =VLOOKUP($C25,'RECAP SECT'!$G$6:$DC$253,3,FALSE) -> 77.6 | F25: =VLOOKUP($C25,'RECAP SECT'!$G$6:$DC$253,41,FALSE) -> 10,023 | G25: =VLOOKUP($C25,'RECAP SECT'!$G$6:$DC$253,42,FALSE) -> 129.10 | H25: =VLOOKUP($C25,'RECAP SECT'!$G$6:$DC$253,43,FALSE) -> 27% | I25: =VLOOKUP($C25,'RECAP SECT'!$G$6:$DC$253,44,FALSE) -> 4 | J25: =VLOOKUP($C25,'RECAP SECT'!$G$6:$DC$253,45,FALSE) -> 116 | K25: =VLOOKUP($C25,'RECAP SECT'!$G$6:$DC$253,46,FALSE) -> 1.49 | L25: =VLOOKUP($C25,'RECAP SECT'!$G$6:$DC$253,47,FALSE) -> 70% | M25: =VLOOKUP($C25,'RECAP SECT'!$G$6:$DC$253,48,FALSE) -> 17 | N25: =VLOOKUP($C25,'RECAP SECT'!$G$6:$DC$253,49,FALSE) -> 40% | O25: =VLOOKUP($C25,'RECAP SECT'!$G$6:$DC$253,50,FALSE) -> 20% | P25: =VLOOKUP($C25,'RECAP SECT'!$G$6:$DC$253,51,FALSE) -> 8
A26: 80 | B26: VOSGES | C26: 57 | D26: EPINAL | E26: =VLOOKUP($C26,'RECAP SECT'!$G$6:$DC$253,3,FALSE) -> 63.2 | F26: =VLOOKUP($C26,'RECAP SECT'!$G$6:$DC$253,41,FALSE) -> 11,136 | G26: =VLOOKUP($C26,'RECAP SECT'!$G$6:$DC$253,42,FALSE) -> 176.11 | H26: =VLOOKUP($C26,'RECAP SECT'!$G$6:$DC$253,43,FALSE) -> 0% | I26: =VLOOKUP($C26,'RECAP SECT'!$G$6:$DC$253,44,FALSE) -> 1 | J26: =VLOOKUP($C26,'RECAP SECT'!$G$6:$DC$253,45,FALSE) -> 110 | K26: =VLOOKUP($C26,'RECAP SECT'!$G$6:$DC$253,46,FALSE) -> 1.74 | L26: =VLOOKUP($C26,'RECAP SECT'!$G$6:$DC$253,47,FALSE) -> 65% | M26: =VLOOKUP($C26,'RECAP SECT'!$G$6:$DC$253,48,FALSE) -> 15 | N26: =VLOOKUP($C26,'RECAP SECT'!$G$6:$DC$253,49,FALSE) -> 20% | O26: =VLOOKUP($C26,'RECAP SECT'!$G$6:$DC$253,50,FALSE) -> 0% | P26: =VLOOKUP($C26,'RECAP SECT'!$G$6:$DC$253,51,FALSE) -> 1
A27: 80 | B27: VOSGES | C27: 55 | D27: SAINT DIE | E27: =VLOOKUP($C27,'RECAP SECT'!$G$6:$DC$253,3,FALSE) -> 50.2 | F27: =VLOOKUP($C27,'RECAP SECT'!$G$6:$DC$253,41,FALSE) -> 7,200 | G27: =VLOOKUP($C27,'RECAP SECT'!$G$6:$DC$253,42,FALSE) -> 143.54 | H27: =VLOOKUP($C27,'RECAP SECT'!$G$6:$DC$253,43,FALSE) -> 18% | I27: =VLOOKUP($C27,'RECAP SECT'!$G$6:$DC$253,44,FALSE) -> 2 | J27: =VLOOKUP($C27,'RECAP SECT'!$G$6:$DC$253,45,FALSE) -> 118 | K27: =VLOOKUP($C27,'RECAP SECT'!$G$6:$DC$253,46,FALSE) -> 2.35 | L27: =VLOOKUP($C27,'RECAP SECT'!$G$6:$DC$253,47,FALSE) -> 53% | M27: =VLOOKUP($C27,'RECAP SECT'!$G$6:$DC$253,48,FALSE) -> 12 | N27: =VLOOKUP($C27,'RECAP SECT'!$G$6:$DC$253,49,FALSE) -> 29% | O27: =VLOOKUP($C27,'RECAP SECT'!$G$6:$DC$253,50,FALSE) -> 9% | P27: =VLOOKUP($C27,'RECAP SECT'!$G$6:$DC$253,51,FALSE) -> 3
A28: Total CEGEE Directions Régionales | E28: =SUM(E10:E27) -> 1198

Sheet SE_CREDIT
B1: Accueil | F1: BAROMETRE BDD - TERRITOIRES
F2: CREDITS
F3: =ACCUEIL!F7 -> 2021-02-07
F7: Engagements et ventes accessoires pondérés Immo | J7: Engagements et ventes accessoires pondérés Conso | N7: Ventes sur client non détenteur de l’univers | R7: Total Crédits
F8: =DATEMAJ!C18 -> au 07/02 | H8: coef | I8: ='RECAP DIRCOM'!BM4 -> 8% | J8: =DATEMAJ!C19 -> au 07/02 | L8: coef | M8: ='RECAP DIRCOM'!BQ4 -> 6% | N8: =DATEMAJ!C20 -> au 07/02 | P8: coef | Q8: ='RECAP DIRCOM'!BU4 -> 6% | S8: coef | T8: ='RECAP DIRCOM'!BX4 -> 20%
B9: Direction | C9: eds | D9: Territoire | E9: ="ETP perf "&DATEMAJ!$C$28 -> ETP perf Dec 2020 | F9: PNB | G9: PNB / ETP | H9: % Ecart au 1er | I9: Rang | J9: PNB | K9: PNB / ETP | L9: % Ecart au 1er | M9: Rang | N9: VB | O9: VB / ETP | P9: % Ecart au 1er | Q9: Rang | R9: Moyenne ecart au 1er | S9: % Ecart au 1er | T9: Rang CEGEE
A10: 50 | B10: AUBE HAUTE MARNE | C10: 21 | D10: CHAUMONT | E10: =VLOOKUP($C10,'RECAP SECT'!$G$6:$DC$253,3,FALSE) -> 36.2 | F10: =VLOOKUP($C10,'RECAP SECT'!$G$6:$DC$253,56,FALSE) -> 200 | G10: =VLOOKUP($C10,'RECAP SECT'!$G$6:$DC$253,57,FALSE) -> 5.53 | H10: =VLOOKUP($C10,'RECAP SECT'!$G$6:$DC$253,58,FALSE) -> 71% | I10: =VLOOKUP($C10,'RECAP SECT'!$G$6:$DC$253,59,FALSE) -> 13 | J10: =VLOOKUP($C10,'RECAP SECT'!$G$6:$DC$253,60,FALSE) -> 264 | K10: =VLOOKUP($C10,'RECAP SECT'!$G$6:$DC$253,61,FALSE) -> 7.29 | L10: =VLOOKUP($C10,'RECAP SECT'!$G$6:$DC$253,62,FALSE) -> 7% | M10: =VLOOKUP($C10,'RECAP SECT'!$G$6:$DC$253,63,FALSE) -> 2 | N10: =VLOOKUP($C10,'RECAP SECT'!$G$6:$DC$253,64,FALSE) -> 54 | O10: =VLOOKUP($C10,'RECAP SECT'!$G$6:$DC$253,65,FALSE) -> 1.49 | P10: =VLOOKUP($C10,'RECAP SECT'!$G$6:$DC$253,66,FALSE) -> 45% | Q10: =VLOOKUP($C10,'RECAP SECT'!$G$6:$DC$253,67,FALSE) -> 6 | R10: =VLOOKUP($C10,'RECAP SECT'!$G$6:$DC$253,68,FALSE) -> 44% | S10: =VLOOKUP($C10,'RECAP SECT'!$G$6:$DC$253,69,FALSE) -> 34% | T10: =VLOOKUP($C10,'RECAP SECT'!$G$6:$DC$253,70,FALSE) -> 10
A11: 50 | B11: AUBE HAUTE MARNE | C11: 14 | D11: TROYES | E11: =VLOOKUP($C11,'RECAP SECT'!$G$6:$DC$253,3,FALSE) -> 70.0 | F11: =VLOOKUP($C11,'RECAP SECT'!$G$6:$DC$253,56,FALSE) -> 544 | G11: =VLOOKUP($C11,'RECAP SECT'!$G$6:$DC$253,57,FALSE) -> 7.76 | H11: =VLOOKUP($C11,'RECAP SECT'!$G$6:$DC$253,58,FALSE) -> 59% | I11: =VLOOKUP($C11,'RECAP SECT'!$G$6:$DC$253,59,FALSE) -> 12 | J11: =VLOOKUP($C11,'RECAP SECT'!$G$6:$DC$253,60,FALSE) -> 425 | K11: =VLOOKUP($C11,'RECAP SECT'!$G$6:$DC$253,61,FALSE) -> 6.07 | L11: =VLOOKUP($C11,'RECAP SECT'!$G$6:$DC$253,62,FALSE) -> 23% | M11: =VLOOKUP($C11,'RECAP SECT'!$G$6:$DC$253,63,FALSE) -> 9 | N11: =VLOOKUP($C11,'RECAP SECT'!$G$6:$DC$253,64,FALSE) -> 92 | O11: =VLOOKUP($C11,'RECAP SECT'!$G$6:$DC$253,65,FALSE) -> 1.31 | P11: =VLOOKUP($C11,'RECAP SECT'!$G$6:$DC$253,66,FALSE) -> 51% | Q11: =VLOOKUP($C11,'RECAP SECT'!$G$6:$DC$253,67,FALSE) -> 11 | R11: =VLOOKUP($C11,'RECAP SECT'!$G$6:$DC$253,68,FALSE) -> 46% | S11: =VLOOKUP($C11,'RECAP SECT'!$G$6:$DC$253,69,FALSE) -> 36% | T11: =VLOOKUP($C11,'RECAP SECT'!$G$6:$DC$253,70,FALSE) -> 11
A12: 262 | B12: BAS-RHIN | C12: 5060 | D12: HAGUENAU | E12: =VLOOKUP($C12,'RECAP SECT'!$G$6:$DC$253,3,FALSE) -> 71.9 | F12: =VLOOKUP($C12,'RECAP SECT'!$G$6:$DC$253,56,FALSE) -> 589 | G12: =VLOOKUP($C12,'RECAP SECT'!$G$6:$DC$253,57,FALSE) -> 8.19 | H12: =VLOOKUP($C12,'RECAP SECT'!$G$6:$DC$253,58,FALSE) -> 57% | I12: =VLOOKUP($C12,'RECAP SECT'!$G$6:$DC$253,59,FALSE) -> 10 | J12: =VLOOKUP($C12,'RECAP SECT'!$G$6:$DC$253,60,FALSE) -> 563 | K12: =VLOOKUP($C12,'RECAP SECT'!$G$6:$DC$253,61,FALSE) -> 7.84 | L12: =VLOOKUP($C12,'RECAP SECT'!$G$6:$DC$253,62,FALSE) -> 0% | M12: =VLOOKUP($C12,'RECAP SECT'!$G$6:$DC$253,63,FALSE) -> 1 | N12: =VLOOKUP($C12,'RECAP SECT'!$G$6:$DC$253,64,FALSE) -> 99 | O12: =VLOOKUP($C12,'RECAP SECT'!$G$6:$DC$253,65,FALSE) -> 1.38 | P12: =VLOOKUP($C12,'RECAP SECT'!$G$6:$DC$253,66,FALSE) -> 49% | Q12: =VLOOKUP($C12,'RECAP SECT'!$G$6:$DC$253,67,FALSE) -> 9 | R12: =VLOOKUP($C12,'RECAP SECT'!$G$6:$DC$253,68,FALSE) -> 37% | S12: =VLOOKUP($C12,'RECAP SECT'!$G$6:$DC$253,69,FALSE) -> 28% | T12: =VLOOKUP($C12,'RECAP SECT'!$G$6:$DC$253,70,FALSE) -> 5
A13: 262 | B13: BAS-RHIN | C13: 5101 | D13: SELESTAT | E13: =VLOOKUP($C13,'RECAP SECT'!$G$6:$DC$253,3,FALSE) -> 64.5 | F13: =VLOOKUP($C13,'RECAP SECT'!$G$6:$DC$253,56,FALSE) -> 354 | G13: =VLOOKUP($C13,'RECAP SECT'!$G$6:$DC$253,57,FALSE) -> 5.50 | H13: =VLOOKUP($C13,'RECAP SECT'!$G$6:$DC$253,58,FALSE) -> 71% | I13: =VLOOKUP($C13,'RECAP SECT'!$G$6:$DC$253,59,FALSE) -> 14 | J13: =VLOOKUP($C13,'RECAP SECT'!$G$6:$DC$253,60,FALSE) -> 434 | K13: =VLOOKUP($C13,'RECAP SECT'!$G$6:$DC$253,61,FALSE) -> 6.73 | L13: =VLOOKUP($C13,'RECAP SECT'!$G$6:$DC$253,62,FALSE) -> 14% | M13: =VLOOKUP($C13,'RECAP SECT'!$G$6:$DC$253,63,FALSE) -> 5 | N13: =VLOOKUP($C13,'RECAP SECT'!$G$6:$DC$253,64,FALSE) -> 74 | O13: =VLOOKUP($C13,'RECAP SECT'!$G$6:$DC$253,65,FALSE) -> 1.15 | P13: =VLOOKUP($C13,'RECAP SECT'!$G$6:$DC$253,66,FALSE) -> 58% | Q13: =VLOOKUP($C13,'RECAP SECT'!$G$6:$DC$253,67,FALSE) -> 14 | R13: =VLOOKUP($C13,'RECAP SECT'!$G$6:$DC$253,68,FALSE) -> 50% | S13: =VLOOKUP($C13,'RECAP SECT'!$G$6:$DC$253,69,FALSE) -> 40% | T13: =VLOOKUP($C13,'RECAP SECT'!$G$6:$DC$253,70,FALSE) -> 14
A14: 262 | B14: BAS-RHIN | C14: 5006 | D14: STRASBOURG | E14: =VLOOKUP($C14,'RECAP SECT'!$G$6:$DC$253,3,FALSE) -> 83.8 | F14: =VLOOKUP($C14,'RECAP SECT'!$G$6:$DC$253,56,FALSE) -> 720 | G14: =VLOOKUP($C14,'RECAP SECT'!$G$6:$DC$253,57,FALSE) -> 8.58 | H14: =VLOOKUP($C14,'RECAP SECT'!$G$6:$DC$253,58,FALSE) -> 55% | I14: =VLOOKUP($C14,'RECAP SECT'!$G$6:$DC$253,59,FALSE) -> 8 | J14: =VLOOKUP($C14,'RECAP SECT'!$G$6:$DC$253,60,FALSE) -> 561 | K14: =VLOOKUP($C14,'RECAP SECT'!$G$6:$DC$253,61,FALSE) -> 6.69 | L14: =VLOOKUP($C14,'RECAP SECT'!$G$6:$DC$253,62,FALSE) -> 15% | M14: =VLOOKUP($C14,'RECAP SECT'!$G$6:$DC$253,63,FALSE) -> 7 | N14: =VLOOKUP($C14,'RECAP SECT'!$G$6:$DC$253,64,FALSE) -> 122 | O14: =VLOOKUP($C14,'RECAP SECT'!$G$6:$DC$253,65,FALSE) -> 1.46 | P14: =VLOOKUP($C14,'RECAP SECT'!$G$6:$DC$253,66,FALSE) -> 46% | Q14: =VLOOKUP($C14,'RECAP SECT'!$G$6:$DC$253,67,FALSE) -> 7 | R14: =VLOOKUP($C14,'RECAP SECT'!$G$6:$DC$253,68,FALSE) -> 40% | S14: =VLOOKUP($C14,'RECAP SECT'!$G$6:$DC$253,69,FALSE) -> 30% | T14: =VLOOKUP($C14,'RECAP SECT'!$G$6:$DC$253,70,FALSE) -> 7
A15: 264 | B15: HAUT-RHIN | C15: 5130 | D15: COLMAR | E15: =VLOOKUP($C15,'RECAP SECT'!$G$6:$DC$253,3,FALSE) -> 65.6 | F15: =VLOOKUP($C15,'RECAP SECT'!$G$6:$DC$253,56,FALSE) -> 319 | G15: =VLOOKUP($C15,'RECAP SECT'!$G$6:$DC$253,57,FALSE) -> 4.86 | H15: =VLOOKUP($C15,'RECAP SECT'!$G$6:$DC$253,58,FALSE) -> 74% | I15: =VLOOKUP($C15,'RECAP SECT'!$G$6:$DC$253,59,FALSE) -> 16 | J15: =VLOOKUP($C15,'RECAP SECT'!$G$6:$DC$253,60,FALSE) -> 236 | K15: =VLOOKUP($C15,'RECAP SECT'!$G$6:$DC$253,61,FALSE) -> 3.60 | L15: =VLOOKUP($C15,'RECAP SECT'!$G$6:$DC$253,62,FALSE) -> 54% | M15: =VLOOKUP($C15,'RECAP SECT'!$G$6:$DC$253,63,FALSE) -> 18 | N15: =VLOOKUP($C15,'RECAP SECT'!$G$6:$DC$253,64,FALSE) -> 47 | O15: =VLOOKUP($C15,'RECAP SECT'!$G$6:$DC$253,65,FALSE) -> 0.72 | P15: =VLOOKUP($C15,'RECAP SECT'!$G$6:$DC$253,66,FALSE) -> 74% | Q15: =VLOOKUP($C15,'RECAP SECT'!$G$6:$DC$253,67,FALSE) -> 18 | R15: =VLOOKUP($C15,'RECAP SECT'!$G$6:$DC$253,68,FALSE) -> 68% | S15: =VLOOKUP($C15,'RECAP SECT'!$G$6:$DC$253,69,FALSE) -> 58% | T15: =VLOOKUP($C15,'RECAP SECT'!$G$6:$DC$253,70,FALSE) -> 18
A16: 264 | B16: HAUT-RHIN | C16: 5169 | D16: MULHOUSE | E16: =VLOOKUP($C16,'RECAP SECT'!$G$6:$DC$253,3,FALSE) -> 62.1 | F16: =VLOOKUP($C16,'RECAP SECT'!$G$6:$DC$253,56,FALSE) -> 261 | G16: =VLOOKUP($C16,'RECAP SECT'!$G$6:$DC$253,57,FALSE) -> 4.20 | H16: =VLOOKUP($C16,'RECAP SECT'!$G$6:$DC$253,58,FALSE) -> 78% | I16: =VLOOKUP($C16,'RECAP SECT'!$G$6:$DC$253,59,FALSE) -> 17 | J16: =VLOOKUP($C16,'RECAP SECT'!$G$6:$DC$253,60,FALSE) -> 278 | K16: =VLOOKUP($C16,'RECAP SECT'!$G$6:$DC$253,61,FALSE) -> 4.47 | L16: =VLOOKUP($C16,'RECAP SECT'!$G$6:$DC$253,62,FALSE) -> 43% | M16: =VLOOKUP($C16,'RECAP SECT'!$G$6:$DC$253,63,FALSE) -> 17 | N16: =VLOOKUP($C16,'RECAP SECT'!$G$6:$DC$253,64,FALSE) -> 56 | O16: =VLOOKUP($C16,'RECAP SECT'!$G$6:$DC$253,65,FALSE) -> 0.90 | P16: =VLOOKUP($C16,'RECAP SECT'!$G$6:$DC$253,66,FALSE) -> 67% | Q16: =VLOOKUP($C16,'RECAP SECT'!$G$6:$DC$253,67,FALSE) -> 17 | R16: =VLOOKUP($C16,'RECAP SECT'!$G$6:$DC$253,68,FALSE) -> 64% | S16: =VLOOKUP($C16,'RECAP SECT'!$G$6:$DC$253,69,FALSE) -> 54% | T16: =VLOOKUP($C16,'RECAP SECT'!$G$6:$DC$253,70,FALSE) -> 17
A17: 30 | B17: MARNE-ARDENNES | C17: 6 | D17: CHALONS EN CHAMPAGNE | E17: =VLOOKUP($C17,'RECAP SECT'!$G$6:$DC$253,3,FALSE) -> 45.0 | F17: =VLOOKUP($C17,'RECAP SECT'!$G$6:$DC$253,56,FALSE) -> 394 | G17: =VLOOKUP($C17,'RECAP SECT'!$G$6:$DC$253,57,FALSE) -> 8.76 | H17: =VLOOKUP($C17,'RECAP SECT'!$G$6:$DC$253,58,FALSE) -> 54% | I17: =VLOOKUP($C17,'RECAP SECT'!$G$6:$DC$253,59,FALSE) -> 5 | J17: =VLOOKUP($C17,'RECAP SECT'!$G$6:$DC$253,60,FALSE) -> 220 | K17: =VLOOKUP($C17,'RECAP SECT'!$G$6:$DC$253,61,FALSE) -> 4.89 | L17: =VLOOKUP($C17,'RECAP SECT'!$G$6:$DC$253,62,FALSE) -> 38% | M17: =VLOOKUP($C17,'RECAP SECT'!$G$6:$DC$253,63,FALSE) -> 15 | N17: =VLOOKUP($C17,'RECAP SECT'!$G$6:$DC$253,64,FALSE) -> 64 | O17: =VLOOKUP($C17,'RECAP SECT'!$G$6:$DC$253,65,FALSE) -> 1.42 | P17: =VLOOKUP($C17,'RECAP SECT'!$G$6:$DC$253,66,FALSE) -> 47% | Q17: =VLOOKUP($C17,'RECAP SECT'!$G$6:$DC$253,67,FALSE) -> 8 | R17: =VLOOKUP($C17,'RECAP SECT'!$G$6:$DC$253,68,FALSE) -> 47% | S17: =VLOOKUP($C17,'RECAP SECT'!$G$6:$DC$253,69,FALSE) -> 37% | T17: =VLOOKUP($C17,'RECAP SECT'!$G$6:$DC$253,70,FALSE) -> 12
A18: 30 | B18: MARNE-ARDENNES | C18: 2 | D18: CHARLEVILLE MEZIERES | E18: =VLOOKUP($C18,'RECAP SECT'!$G$6:$DC$253,3,FALSE) -> 55.4 | F18: =VLOOKUP($C18,'RECAP SECT'!$G$6:$DC$253,56,FALSE) -> 783 | G18: =VLOOKUP($C18,'RECAP SECT'!$G$6:$DC$253,57,FALSE) -> 14.12 | H18: =VLOOKUP($C18,'RECAP SECT'!$G$6:$DC$253,58,FALSE) -> 26% | I18: =VLOOKUP($C18,'RECAP SECT'!$G$6:$DC$253,59,FALSE) -> 3 | J18: =VLOOKUP($C18,'RECAP SECT'!$G$6:$DC$253,60,FALSE) -> 314 | K18: =VLOOKUP($C18,'RECAP SECT'!$G$6:$DC$253,61,FALSE) -> 5.66 | L18: =VLOOKUP($C18,'RECAP SECT'!$G$6:$DC$253,62,FALSE) -> 28% | M18: =VLOOKUP($C18,'RECAP SECT'!$G$6:$DC$253,63,FALSE) -> 10 | N18: =VLOOKUP($C18,'RECAP SECT'!$G$6:$DC$253,64,FALSE) -> 112 | O18: =VLOOKUP($C18,'RECAP SECT'!$G$6:$DC$253,65,FALSE) -> 2.02 | P18: =VLOOKUP($C18,'RECAP SECT'!$G$6:$DC$253,66,FALSE) -> 25% | Q18: =VLOOKUP($C18,'RECAP SECT'!$G$6:$DC$253,67,FALSE) -> 3 | R18: =VLOOKUP($C18,'RECAP SECT'!$G$6:$DC$253,68,FALSE) -> 26% | S18: =VLOOKUP($C18,'RECAP SECT'!$G$6:$DC$253,69,FALSE) -> 16% | T18: =VLOOKUP($C18,'RECAP SECT'!$G$6:$DC$253,70,FALSE) -> 3
A19: 30 | B19: MARNE-ARDENNES | C19: 11 | D19: REIMS | E19: =VLOOKUP($C19,'RECAP SECT'!$G$6:$DC$253,3,FALSE) -> 80.5 | F19: =VLOOKUP($C19,'RECAP SECT'!$G$6:$DC$253,56,FALSE) -> 1,039 | G19: =VLOOKUP($C19,'RECAP SECT'!$G$6:$DC$253,57,FALSE) -> 12.90 | H19: =VLOOKUP($C19,'RECAP SECT'!$G$6:$DC$253,58,FALSE) -> 32% | I19: =VLOOKUP($C19,'RECAP SECT'!$G$6:$DC$253,59,FALSE) -> 4 | J19: =VLOOKUP($C19,'RECAP SECT'!$G$6:$DC$253,60,FALSE) -> 428 | K19: =VLOOKUP($C19,'RECAP SECT'!$G$6:$DC$253,61,FALSE) -> 5.32 | L19: =VLOOKUP($C19,'RECAP SECT'!$G$6:$DC$253,62,FALSE) -> 32% | M19: =VLOOKUP($C19,'RECAP SECT'!$G$6:$DC$253,63,FALSE) -> 12 | N19: =VLOOKUP($C19,'RECAP SECT'!$G$6:$DC$253,64,FALSE) -> 133 | O19: =VLOOKUP($C19,'RECAP SECT'!$G$6:$DC$253,65,FALSE) -> 1.65 | P19: =VLOOKUP($C19,'RECAP SECT'!$G$6:$DC$253,66,FALSE) -> 39% | Q19: =VLOOKUP($C19,'RECAP SECT'!$G$6:$DC$253,67,FALSE) -> 4 | R19: =VLOOKUP($C19,'RECAP SECT'!$G$6:$DC$253,68,FALSE) -> 34% | S19: =VLOOKUP($C19,'RECAP SECT'!$G$6:$DC$253,69,FALSE) -> 24% | T19: =VLOOKUP($C19,'RECAP SECT'!$G$6:$DC$253,70,FALSE) -> 4
A20: 110 | B20: MEURTHE ET MOSELLE MEUSE | C20: 26 | D20: NANCY | E20: =VLOOKUP($C20,'RECAP SECT'!$G$6:$DC$253,3,FALSE) -> 68.7 | F20: =VLOOKUP($C20,'RECAP SECT'!$G$6:$DC$253,56,FALSE) -> 1,305 | G20: =VLOOKUP($C20,'RECAP SECT'!$G$6:$DC$253,57,FALSE) -> 19.00 | H20: =VLOOKUP($C20,'RECAP SECT'!$G$6:$DC$253,58,FALSE) -> 0% | I20: =VLOOKUP($C20,'RECAP SECT'!$G$6:$DC$253,59,FALSE) -> 1 | J20: =VLOOKUP($C20,'RECAP SECT'!$G$6:$DC$253,60,FALSE) -> 362 | K20: =VLOOKUP($C20,'RECAP SECT'!$G$6:$DC$253,61,FALSE) -> 5.27 | L20: =VLOOKUP($C20,'RECAP SECT'!$G$6:$DC$253,62,FALSE) -> 33% | M20: =VLOOKUP($C20,'RECAP SECT'!$G$6:$DC$253,63,FALSE) -> 13 | N20: =VLOOKUP($C20,'RECAP SECT'!$G$6:$DC$253,64,FALSE) -> 186 | O20: =VLOOKUP($C20,'RECAP SECT'!$G$6:$DC$253,65,FALSE) -> 2.71 | P20: =VLOOKUP($C20,'RECAP SECT'!$G$6:$DC$253,66,FALSE) -> 0% | Q20: =VLOOKUP($C20,'RECAP SECT'!$G$6:$DC$253,67,FALSE) -> 1 | R20: =VLOOKUP($C20,'RECAP SECT'!$G$6:$DC$253,68,FALSE) -> 10% | S20: =VLOOKUP($C20,'RECAP SECT'!$G$6:$DC$253,69,FALSE) -> 0% | T20: =VLOOKUP($C20,'RECAP SECT'!$G$6:$DC$253,70,FALSE) -> 1
A21: 110 | B21: MEURTHE ET MOSELLE MEUSE | C21: 27 | D21: PONT A MOUSSON | E21: =VLOOKUP($C21,'RECAP SECT'!$G$6:$DC$253,3,FALSE) -> 79.9 | F21: =VLOOKUP($C21,'RECAP SECT'!$G$6:$DC$253,56,FALSE) -> 1,328 | G21: =VLOOKUP($C21,'RECAP SECT'!$G$6:$DC$253,57,FALSE) -> 16.62 | H21: =VLOOKUP($C21,'RECAP SECT'!$G$6:$DC$253,58,FALSE) -> 13% | I21: =VLOOKUP($C21,'RECAP SECT'!$G$6:$DC$253,59,FALSE) -> 2 | J21: =VLOOKUP($C21,'RECAP SECT'!$G$6:$DC$253,60,FALSE) -> 441 | K21: =VLOOKUP($C21,'RECAP SECT'!$G$6:$DC$253,61,FALSE) -> 5.52 | L21: =VLOOKUP($C21,'RECAP SECT'!$G$6:$DC$253,62,FALSE) -> 29% | M21: =VLOOKUP($C21,'RECAP SECT'!$G$6:$DC$253,63,FALSE) -> 11 | N21: =VLOOKUP($C21,'RECAP SECT'!$G$6:$DC$253,64,FALSE) -> 177 | O21: =VLOOKUP($C21,'RECAP SECT'!$G$6:$DC$253,65,FALSE) -> 2.22 | P21: =VLOOKUP($C21,'RECAP SECT'!$G$6:$DC$253,66,FALSE) -> 18% | Q21: =VLOOKUP($C21,'RECAP SECT'!$G$6:$DC$253,67,FALSE) -> 2 | R21: =VLOOKUP($C21,'RECAP SECT'!$G$6:$DC$253,68,FALSE) -> 19% | S21: =VLOOKUP($C21,'RECAP SECT'!$G$6:$DC$253,69,FALSE) -> 10% | T21: =VLOOKUP($C21,'RECAP SECT'!$G$6:$DC$253,70,FALSE) -> 2
A22: 110 | B22: MEURTHE ET MOSELLE MEUSE | C22: 31 | D22: VERDUN | E22: =VLOOKUP($C22,'RECAP SECT'!$G$6:$DC$253,3,FALSE) -> 59.9 | F22: =VLOOKUP($C22,'RECAP SECT'!$G$6:$DC$253,56,FALSE) -> 521 | G22: =VLOOKUP($C22,'RECAP SECT'!$G$6:$DC$253,57,FALSE) -> 8.69 | H22: =VLOOKUP($C22,'RECAP SECT'!$G$6:$DC$253,58,FALSE) -> 54% | I22: =VLOOKUP($C22,'RECAP SECT'!$G$6:$DC$253,59,FALSE) -> 6 | J22: =VLOOKUP($C22,'RECAP SECT'!$G$6:$DC$253,60,FALSE) -> 374 | K22: =VLOOKUP($C22,'RECAP SECT'!$G$6:$DC$253,61,FALSE) -> 6.24 | L22: =VLOOKUP($C22,'RECAP SECT'!$G$6:$DC$253,62,FALSE) -> 20% | M22: =VLOOKUP($C22,'RECAP SECT'!$G$6:$DC$253,63,FALSE) -> 8 | N22: =VLOOKUP($C22,'RECAP SECT'!$G$6:$DC$253,64,FALSE) -> 91 | O22: =VLOOKUP($C22,'RECAP SECT'!$G$6:$DC$253,65,FALSE) -> 1.52 | P22: =VLOOKUP($C22,'RECAP SECT'!$G$6:$DC$253,66,FALSE) -> 44% | Q22: =VLOOKUP($C22,'RECAP SECT'!$G$6:$DC$253,67,FALSE) -> 5 | R22: =VLOOKUP($C22,'RECAP SECT'!$G$6:$DC$253,68,FALSE) -> 41% | S22: =VLOOKUP($C22,'RECAP SECT'!$G$6:$DC$253,69,FALSE) -> 31% | T22: =VLOOKUP($C22,'RECAP SECT'!$G$6:$DC$253,70,FALSE) -> 8
A23: 160 | B23: MOSELLE | C23: 45 | D23: METZ | E23: =VLOOKUP($C23,'RECAP SECT'!$G$6:$DC$253,3,FALSE) -> 90.1 | F23: =VLOOKUP($C23,'RECAP SECT'!$G$6:$DC$253,56,FALSE) -> 722 | G23: =VLOOKUP($C23,'RECAP SECT'!$G$6:$DC$253,57,FALSE) -> 8.02 | H23: =VLOOKUP($C23,'RECAP SECT'!$G$6:$DC$253,58,FALSE) -> 58% | I23: =VLOOKUP($C23,'RECAP SECT'!$G$6:$DC$253,59,FALSE) -> 11 | J23: =VLOOKUP($C23,'RECAP SECT'!$G$6:$DC$253,60,FALSE) -> 603 | K23: =VLOOKUP($C23,'RECAP SECT'!$G$6:$DC$253,61,FALSE) -> 6.69 | L23: =VLOOKUP($C23,'RECAP SECT'!$G$6:$DC$253,62,FALSE) -> 15% | M23: =VLOOKUP($C23,'RECAP SECT'!$G$6:$DC$253,63,FALSE) -> 6 | N23: =VLOOKUP($C23,'RECAP SECT'!$G$6:$DC$253,64,FALSE) -> 112 | O23: =VLOOKUP($C23,'RECAP SECT'!$G$6:$DC$253,65,FALSE) -> 1.24 | P23: =VLOOKUP($C23,'RECAP SECT'!$G$6:$DC$253,66,FALSE) -> 54% | Q23: =VLOOKUP($C23,'RECAP SECT'!$G$6:$DC$253,67,FALSE) -> 13 | R23: =VLOOKUP($C23,'RECAP SECT'!$G$6:$DC$253,68,FALSE) -> 44% | S23: =VLOOKUP($C23,'RECAP SECT'!$G$6:$DC$253,69,FALSE) -> 34% | T23: =VLOOKUP($C23,'RECAP SECT'!$G$6:$DC$253,70,FALSE) -> 9
A24: 160 | B24: MOSELLE | C24: 42 | D24: MOSELLE EST | E24: =VLOOKUP($C24,'RECAP SECT'!$G$6:$DC$253,3,FALSE) -> 73.0 | F24: =VLOOKUP($C24,'RECAP SECT'!$G$6:$DC$253,56,FALSE) -> 306 | G24: =VLOOKUP($C24,'RECAP SECT'!$G$6:$DC$253,57,FALSE) -> 4.19 | H24: =VLOOKUP($C24,'RECAP SECT'!$G$6:$DC$253,58,FALSE) -> 78% | I24: =VLOOKUP($C24,'RECAP SECT'!$G$6:$DC$253,59,FALSE) -> 18 | J24: =VLOOKUP($C24,'RECAP SECT'!$G$6:$DC$253,60,FALSE) -> 519 | K24: =VLOOKUP($C24,'RECAP SECT'!$G$6:$DC$253,61,FALSE) -> 7.12 | L24: =VLOOKUP($C24,'RECAP SECT'!$G$6:$DC$253,62,FALSE) -> 9% | M24: =VLOOKUP($C24,'RECAP SECT'!$G$6:$DC$253,63,FALSE) -> 3 | N24: =VLOOKUP($C24,'RECAP SECT'!$G$6:$DC$253,64,FALSE) -> 93 | O24: =VLOOKUP($C24,'RECAP SECT'!$G$6:$DC$253,65,FALSE) -> 1.27 | P24: =VLOOKUP($C24,'RECAP SECT'!$G$6:$DC$253,66,FALSE) -> 53% | Q24: =VLOOKUP($C24,'RECAP SECT'!$G$6:$DC$253,67,FALSE) -> 12 | R24: =VLOOKUP($C24,'RECAP SECT'!$G$6:$DC$253,68,FALSE) -> 50% | S24: =VLOOKUP($C24,'RECAP SECT'!$G$6:$DC$253,69,FALSE) -> 40% | T24: =VLOOKUP($C24,'RECAP SECT'!$G$6:$DC$253,70,FALSE) -> 13
A25: 160 | B25: MOSELLE | C25: 44 | D25: MOSELLE NORD | E25: =VLOOKUP($C25,'RECAP SECT'!$G$6:$DC$253,3,FALSE) -> 77.6 | F25: =VLOOKUP($C25,'RECAP SECT'!$G$6:$DC$253,56,FALSE) -> 672 | G25: =VLOOKUP($C25,'RECAP SECT'!$G$6:$DC$253,57,FALSE) -> 8.66 | H25: =VLOOKUP($C25,'RECAP SECT'!$G$6:$DC$253,58,FALSE) -> 54% | I25: =VLOOKUP($C25,'RECAP SECT'!$G$6:$DC$253,59,FALSE) -> 7 | J25: =VLOOKUP($C25,'RECAP SECT'!$G$6:$DC$253,60,FALSE) -> 551 | K25: =VLOOKUP($C25,'RECAP SECT'!$G$6:$DC$253,61,FALSE) -> 7.10 | L25: =VLOOKUP($C25,'RECAP SECT'!$G$6:$DC$253,62,FALSE) -> 9% | M25: =VLOOKUP($C25,'RECAP SECT'!$G$6:$DC$253,63,FALSE) -> 4 | N25: =VLOOKUP($C25,'RECAP SECT'!$G$6:$DC$253,64,FALSE) -> 103 | O25: =VLOOKUP($C25,'RECAP SECT'!$G$6:$DC$253,65,FALSE) -> 1.33 | P25: =VLOOKUP($C25,'RECAP SECT'!$G$6:$DC$253,66,FALSE) -> 51% | Q25: =VLOOKUP($C25,'RECAP SECT'!$G$6:$DC$253,67,FALSE) -> 10 | R25: =VLOOKUP($C25,'RECAP SECT'!$G$6:$DC$253,68,FALSE) -> 40% | S25: =VLOOKUP($C25,'RECAP SECT'!$G$6:$DC$253,69,FALSE) -> 30% | T25: =VLOOKUP($C25,'RECAP SECT'!$G$6:$DC$253,70,FALSE) -> 6
A26: 80 | B26: VOSGES | C26: 57 | D26: EPINAL | E26: =VLOOKUP($C26,'RECAP SECT'!$G$6:$DC$253,3,FALSE) -> 63.2 | F26: =VLOOKUP($C26,'RECAP SECT'!$G$6:$DC$253,56,FALSE) -> 519 | G26: =VLOOKUP($C26,'RECAP SECT'!$G$6:$DC$253,57,FALSE) -> 8.21 | H26: =VLOOKUP($C26,'RECAP SECT'!$G$6:$DC$253,58,FALSE) -> 57% | I26: =VLOOKUP($C26,'RECAP SECT'!$G$6:$DC$253,59,FALSE) -> 9 | J26: =VLOOKUP($C26,'RECAP SECT'!$G$6:$DC$253,60,FALSE) -> 316 | K26: =VLOOKUP($C26,'RECAP SECT'!$G$6:$DC$253,61,FALSE) -> 4.99 | L26: =VLOOKUP($C26,'RECAP SECT'!$G$6:$DC$253,62,FALSE) -> 36% | M26: =VLOOKUP($C26,'RECAP SECT'!$G$6:$DC$253,63,FALSE) -> 14 | N26: =VLOOKUP($C26,'RECAP SECT'!$G$6:$DC$253,64,FALSE) -> 71 | O26: =VLOOKUP($C26,'RECAP SECT'!$G$6:$DC$253,65,FALSE) -> 1.12 | P26: =VLOOKUP($C26,'RECAP SECT'!$G$6:$DC$253,66,FALSE) -> 59% | Q26: =VLOOKUP($C26,'RECAP SECT'!$G$6:$DC$253,67,FALSE) -> 15 | R26: =VLOOKUP($C26,'RECAP SECT'!$G$6:$DC$253,68,FALSE) -> 51% | S26: =VLOOKUP($C26,'RECAP SECT'!$G$6:$DC$253,69,FALSE) -> 41% | T26: =VLOOKUP($C26,'RECAP SECT'!$G$6:$DC$253,70,FALSE) -> 15
A27: 80 | B27: VOSGES | C27: 55 | D27: SAINT DIE | E27: =VLOOKUP($C27,'RECAP SECT'!$G$6:$DC$253,3,FALSE) -> 50.2 | F27: =VLOOKUP($C27,'RECAP SECT'!$G$6:$DC$253,56,FALSE) -> 272 | G27: =VLOOKUP($C27,'RECAP SECT'!$G$6:$DC$253,57,FALSE) -> 5.42 | H27: =VLOOKUP($C27,'RECAP SECT'!$G$6:$DC$253,58,FALSE) -> 71% | I27: =VLOOKUP($C27,'RECAP SECT'!$G$6:$DC$253,59,FALSE) -> 15 | J27: =VLOOKUP($C27,'RECAP SECT'!$G$6:$DC$253,60,FALSE) -> 244 | K27: =VLOOKUP($C27,'RECAP SECT'!$G$6:$DC$253,61,FALSE) -> 4.87 | L27: =VLOOKUP($C27,'RECAP SECT'!$G$6:$DC$253,62,FALSE) -> 38% | M27: =VLOOKUP($C27,'RECAP SECT'!$G$6:$DC$253,63,FALSE) -> 16 | N27: =VLOOKUP($C27,'RECAP SECT'!$G$6:$DC$253,64,FALSE) -> 52 | O27: =VLOOKUP($C27,'RECAP SECT'!$G$6:$DC$253,65,FALSE) -> 1.04 | P27: =VLOOKUP($C27,'RECAP SECT'!$G$6:$DC$253,66,FALSE) -> 62% | Q27: =VLOOKUP($C27,'RECAP SECT'!$G$6:$DC$253,67,FALSE) -> 16 | R27: =VLOOKUP($C27,'RECAP SECT'!$G$6:$DC$253,68,FALSE) -> 58% | S27: =VLOOKUP($C27,'RECAP SECT'!$G$6:$DC$253,69,FALSE) -> 49% | T27: =VLOOKUP($C27,'RECAP SECT'!$G$6:$DC$253,70,FALSE) -> 16
A28: Total CEGEE Directions Régionales | E28: =SUM(E10:E27) -> 1198

Sheet SE_IARD
B1: Accueil | F1: BAROMETRE BDD - TERRITOIRES
F2: IARD ET PREVOYANCE
F3: =ACCUEIL!F7 -> 2021-02-07
F7: Ventes Nettes produits pondérés | J7: Ventes sur client non détenteur de l’univers | N7: Total IARD Prévoyance
F8: =DATEMAJ!C23 -> au 07/02 | H8: coef | I8: ='RECAP DIRCOM'!CF4 -> 14% | J8: =DATEMAJ!C24 -> au 07/02 | L8: coef | M8: ='RECAP DIRCOM'!CJ4 -> 6% | O8: coef | P8: ='RECAP DIRCOM'!CM4 -> 20%
B9: Direction | C9: eds | D9: Territoire | E9: ="ETP perf "&DATEMAJ!$C$28 -> ETP perf Dec 2020 | F9: VN | G9: VN / ETP | H9: % Ecart au 1er | I9: Rang | J9: VB | K9: VB / ETP | L9: % Ecart au 1er | M9: Rang | N9: Moyenne ecart au 1er | O9: % Ecart au 1er | P9: Rang CEGEE
A10: 50 | B10: AUBE HAUTE MARNE | C10: 21 | D10: CHAUMONT | E10: =VLOOKUP($C10,'RECAP SECT'!$G$6:$DC$253,3,FALSE) -> 36.2 | F10: =VLOOKUP($C10,'RECAP SECT'!$G$6:$DC$253,75,FALSE) -> 1,154 | G10: =VLOOKUP($C10,'RECAP SECT'!$G$6:$DC$253,76,FALSE) -> 31.90 | H10: =VLOOKUP($C10,'RECAP SECT'!$G$6:$DC$253,77,FALSE) -> 33% | I10: =VLOOKUP($C10,'RECAP SECT'!$G$6:$DC$253,78,FALSE) -> 9 | J10: =VLOOKUP($C10,'RECAP SECT'!$G$6:$DC$253,79,FALSE) -> 190 | K10: =VLOOKUP($C10,'RECAP SECT'!$G$6:$DC$253,80,FALSE) -> 5.25 | L10: =VLOOKUP($C10,'RECAP SECT'!$G$6:$DC$253,81,FALSE) -> 27% | M10: =VLOOKUP($C10,'RECAP SECT'!$G$6:$DC$253,82,FALSE) -> 7 | N10: =VLOOKUP($C10,'RECAP SECT'!$G$6:$DC$253,83,FALSE) -> 31% | O10: =VLOOKUP($C10,'RECAP SECT'!$G$6:$DC$253,84,FALSE) -> 31% | P10: =VLOOKUP($C10,'RECAP SECT'!$G$6:$DC$253,85,FALSE) -> 9
A11: 50 | B11: AUBE HAUTE MARNE | C11: 14 | D11: TROYES | E11: =VLOOKUP($C11,'RECAP SECT'!$G$6:$DC$253,3,FALSE) -> 70.0 | F11: =VLOOKUP($C11,'RECAP SECT'!$G$6:$DC$253,75,FALSE) -> 1,216 | G11: =VLOOKUP($C11,'RECAP SECT'!$G$6:$DC$253,76,FALSE) -> 17.36 | H11: =VLOOKUP($C11,'RECAP SECT'!$G$6:$DC$253,77,FALSE) -> 63% | I11: =VLOOKUP($C11,'RECAP SECT'!$G$6:$DC$253,78,FALSE) -> 18 | J11: =VLOOKUP($C11,'RECAP SECT'!$G$6:$DC$253,79,FALSE) -> 289 | K11: =VLOOKUP($C11,'RECAP SECT'!$G$6:$DC$253,80,FALSE) -> 4.13 | L11: =VLOOKUP($C11,'RECAP SECT'!$G$6:$DC$253,81,FALSE) -> 43% | M11: =VLOOKUP($C11,'RECAP SECT'!$G$6:$DC$253,82,FALSE) -> 17 | N11: =VLOOKUP($C11,'RECAP SECT'!$G$6:$DC$253,83,FALSE) -> 57% | O11: =VLOOKUP($C11,'RECAP SECT'!$G$6:$DC$253,84,FALSE) -> 57% | P11: =VLOOKUP($C11,'RECAP SECT'!$G$6:$DC$253,85,FALSE) -> 18
A12: 262 | B12: BAS-RHIN | C12: 5060 | D12: HAGUENAU | E12: =VLOOKUP($C12,'RECAP SECT'!$G$6:$DC$253,3,FALSE) -> 71.9 | F12: =VLOOKUP($C12,'RECAP SECT'!$G$6:$DC$253,75,FALSE) -> 2,554 | G12: =VLOOKUP($C12,'RECAP SECT'!$G$6:$DC$253,76,FALSE) -> 35.52 | H12: =VLOOKUP($C12,'RECAP SECT'!$G$6:$DC$253,77,FALSE) -> 25% | I12: =VLOOKUP($C12,'RECAP SECT'!$G$6:$DC$253,78,FALSE) -> 7 | J12: =VLOOKUP($C12,'RECAP SECT'!$G$6:$DC$253,79,FALSE) -> 382 | K12: =VLOOKUP($C12,'RECAP SECT'!$G$6:$DC$253,80,FALSE) -> 5.31 | L12: =VLOOKUP($C12,'RECAP SECT'!$G$6:$DC$253,81,FALSE) -> 26% | M12: =VLOOKUP($C12,'RECAP SECT'!$G$6:$DC$253,82,FALSE) -> 5 | N12: =VLOOKUP($C12,'RECAP SECT'!$G$6:$DC$253,83,FALSE) -> 25% | O12: =VLOOKUP($C12,'RECAP SECT'!$G$6:$DC$253,84,FALSE) -> 25% | P12: =VLOOKUP($C12,'RECAP SECT'!$G$6:$DC$253,85,FALSE) -> 6
A13: 262 | B13: BAS-RHIN | C13: 5101 | D13: SELESTAT | E13: =VLOOKUP($C13,'RECAP SECT'!$G$6:$DC$253,3,FALSE) -> 64.5 | F13: =VLOOKUP($C13,'RECAP SECT'!$G$6:$DC$253,75,FALSE) -> 2,625 | G13: =VLOOKUP($C13,'RECAP SECT'!$G$6:$DC$253,76,FALSE) -> 40.71 | H13: =VLOOKUP($C13,'RECAP SECT'!$G$6:$DC$253,77,FALSE) -> 14% | I13: =VLOOKUP($C13,'RECAP SECT'!$G$6:$DC$253,78,FALSE) -> 3 | J13: =VLOOKUP($C13,'RECAP SECT'!$G$6:$DC$253,79,FALSE) -> 347 | K13: =VLOOKUP($C13,'RECAP SECT'!$G$6:$DC$253,80,FALSE) -> 5.38 | L13: =VLOOKUP($C13,'RECAP SECT'!$G$6:$DC$253,81,FALSE) -> 25% | M13: =VLOOKUP($C13,'RECAP SECT'!$G$6:$DC$253,82,FALSE) -> 4 | N13: =VLOOKUP($C13,'RECAP SECT'!$G$6:$DC$253,83,FALSE) -> 18% | O13: =VLOOKUP($C13,'RECAP SECT'!$G$6:$DC$253,84,FALSE) -> 18% | P13: =VLOOKUP($C13,'RECAP SECT'!$G$6:$DC$253,85,FALSE) -> 4
A14: 262 | B14: BAS-RHIN | C14: 5006 | D14: STRASBOURG | E14: =VLOOKUP($C14,'RECAP SECT'!$G$6:$DC$253,3,FALSE) -> 83.8 | F14: =VLOOKUP($C14,'RECAP SECT'!$G$6:$DC$253,75,FALSE) -> 3,373 | G14: =VLOOKUP($C14,'RECAP SECT'!$G$6:$DC$253,76,FALSE) -> 40.23 | H14: =VLOOKUP($C14,'RECAP SECT'!$G$6:$DC$253,77,FALSE) -> 15% | I14: =VLOOKUP($C14,'RECAP SECT'!$G$6:$DC$253,78,FALSE) -> 4 | J14: =VLOOKUP($C14,'RECAP SECT'!$G$6:$DC$253,79,FALSE) -> 524 | K14: =VLOOKUP($C14,'RECAP SECT'!$G$6:$DC$253,80,FALSE) -> 6.25 | L14: =VLOOKUP($C14,'RECAP SECT'!$G$6:$DC$253,81,FALSE) -> 13% | M14: =VLOOKUP($C14,'RECAP SECT'!$G$6:$DC$253,82,FALSE) -> 2 | N14: =VLOOKUP($C14,'RECAP SECT'!$G$6:$DC$253,83,FALSE) -> 15% | O14: =VLOOKUP($C14,'RECAP SECT'!$G$6:$DC$253,84,FALSE) -> 15% | P14: =VLOOKUP($C14,'RECAP SECT'!$G$6:$DC$253,85,FALSE) -> 3
A15: 264 | B15: HAUT-RHIN | C15: 5130 | D15: COLMAR | E15: =VLOOKUP($C15,'RECAP SECT'!$G$6:$DC$253,3,FALSE) -> 65.6 | F15: =VLOOKUP($C15,'RECAP SECT'!$G$6:$DC$253,75,FALSE) -> 2,971 | G15: =VLOOKUP($C15,'RECAP SECT'!$G$6:$DC$253,76,FALSE) -> 45.30 | H15: =VLOOKUP($C15,'RECAP SECT'!$G$6:$DC$253,77,FALSE) -> 4% | I15: =VLOOKUP($C15,'RECAP SECT'!$G$6:$DC$253,78,FALSE) -> 2 | J15: =VLOOKUP($C15,'RECAP SECT'!$G$6:$DC$253,79,FALSE) -> 303 | K15: =VLOOKUP($C15,'RECAP SECT'!$G$6:$DC$253,80,FALSE) -> 4.62 | L15: =VLOOKUP($C15,'RECAP SECT'!$G$6:$DC$253,81,FALSE) -> 36% | M15: =VLOOKUP($C15,'RECAP SECT'!$G$6:$DC$253,82,FALSE) -> 14 | N15: =VLOOKUP($C15,'RECAP SECT'!$G$6:$DC$253,83,FALSE) -> 14% | O15: =VLOOKUP($C15,'RECAP SECT'!$G$6:$DC$253,84,FALSE) -> 14% | P15: =VLOOKUP($C15,'RECAP SECT'!$G$6:$DC$253,85,FALSE) -> 2
A16: 264 | B16: HAUT-RHIN | C16: 5169 | D16: MULHOUSE | E16: =VLOOKUP($C16,'RECAP SECT'!$G$6:$DC$253,3,FALSE) -> 62.1 | F16: =VLOOKUP($C16,'RECAP SECT'!$G$6:$DC$253,75,FALSE) -> 1,610 | G16: =VLOOKUP($C16,'RECAP SECT'!$G$6:$DC$253,76,FALSE) -> 25.93 | H16: =VLOOKUP($C16,'RECAP SECT'!$G$6:$DC$253,77,FALSE) -> 45% | I16: =VLOOKUP($C16,'RECAP SECT'!$G$6:$DC$253,78,FALSE) -> 14 | J16: =VLOOKUP($C16,'RECAP SECT'!$G$6:$DC$253,79,FALSE) -> 308 | K16: =VLOOKUP($C16,'RECAP SECT'!$G$6:$DC$253,80,FALSE) -> 4.96 | L16: =VLOOKUP($C16,'RECAP SECT'!$G$6:$DC$253,81,FALSE) -> 31% | M16: =VLOOKUP($C16,'RECAP SECT'!$G$6:$DC$253,82,FALSE) -> 11 | N16: =VLOOKUP($C16,'RECAP SECT'!$G$6:$DC$253,83,FALSE) -> 41% | O16: =VLOOKUP($C16,'RECAP SECT'!$G$6:$DC$253,84,FALSE) -> 41% | P16: =VLOOKUP($C16,'RECAP SECT'!$G$6:$DC$253,85,FALSE) -> 14
A17: 30 | B17: MARNE-ARDENNES | C17: 6 | D17: CHALONS EN CHAMPAGNE | E17: =VLOOKUP($C17,'RECAP SECT'!$G$6:$DC$253,3,FALSE) -> 45.0 | F17: =VLOOKUP($C17,'RECAP SECT'!$G$6:$DC$253,75,FALSE) -> 1,060 | G17: =VLOOKUP($C17,'RECAP SECT'!$G$6:$DC$253,76,FALSE) -> 23.57 | H17: =VLOOKUP($C17,'RECAP SECT'!$G$6:$DC$253,77,FALSE) -> 50% | I17: =VLOOKUP($C17,'RECAP SECT'!$G$6:$DC$253,78,FALSE) -> 16 | J17: =VLOOKUP($C17,'RECAP SECT'!$G$6:$DC$253,79,FALSE) -> 208 | K17: =VLOOKUP($C17,'RECAP SECT'!$G$6:$DC$253,80,FALSE) -> 4.63 | L17: =VLOOKUP($C17,'RECAP SECT'!$G$6:$DC$253,81,FALSE) -> 36% | M17: =VLOOKUP($C17,'RECAP SECT'!$G$6:$DC$253,82,FALSE) -> 13 | N17: =VLOOKUP($C17,'RECAP SECT'!$G$6:$DC$253,83,FALSE) -> 46% | O17: =VLOOKUP($C17,'RECAP SECT'!$G$6:$DC$253,84,FALSE) -> 46% | P17: =VLOOKUP($C17,'RECAP SECT'!$G$6:$DC$253,85,FALSE) -> 16
A18: 30 | B18: MARNE-ARDENNES | C18: 2 | D18: CHARLEVILLE MEZIERES | E18: =VLOOKUP($C18,'RECAP SECT'!$G$6:$DC$253,3,FALSE) -> 55.4 | F18: =VLOOKUP($C18,'RECAP SECT'!$G$6:$DC$253,75,FALSE) -> 1,197 | G18: =VLOOKUP($C18,'RECAP SECT'!$G$6:$DC$253,76,FALSE) -> 21.59 | H18: =VLOOKUP($C18,'RECAP SECT'!$G$6:$DC$253,77,FALSE) -> 54% | I18: =VLOOKUP($C18,'RECAP SECT'!$G$6:$DC$253,78,FALSE) -> 17 | J18: =VLOOKUP($C18,'RECAP SECT'!$G$6:$DC$253,79,FALSE) -> 245 | K18: =VLOOKUP($C18,'RECAP SECT'!$G$6:$DC$253,80,FALSE) -> 4.42 | L18: =VLOOKUP($C18,'RECAP SECT'!$G$6:$DC$253,81,FALSE) -> 39% | M18: =VLOOKUP($C18,'RECAP SECT'!$G$6:$DC$253,82,FALSE) -> 16 | N18: =VLOOKUP($C18,'RECAP SECT'!$G$6:$DC$253,83,FALSE) -> 50% | O18: =VLOOKUP($C18,'RECAP SECT'!$G$6:$DC$253,84,FALSE) -> 50% | P18: =VLOOKUP($C18,'RECAP SECT'!$G$6:$DC$253,85,FALSE) -> 17
A19: 30 | B19: MARNE-ARDENNES | C19: 11 | D19: REIMS | E19: =VLOOKUP($C19,'RECAP SECT'!$G$6:$DC$253,3,FALSE) -> 80.5 | F19: =VLOOKUP($C19,'RECAP SECT'!$G$6:$DC$253,75,FALSE) -> 1,990 | G19: =VLOOKUP($C19,'RECAP SECT'!$G$6:$DC$253,76,FALSE) -> 24.72 | H19: =VLOOKUP($C19,'RECAP SECT'!$G$6:$DC$253,77,FALSE) -> 48% | I19: =VLOOKUP($C19,'RECAP SECT'!$G$6:$DC$253,78,FALSE) -> 15 | J19: =VLOOKUP($C19,'RECAP SECT'!$G$6:$DC$253,79,FALSE) -> 364 | K19: =VLOOKUP($C19,'RECAP SECT'!$G$6:$DC$253,80,FALSE) -> 4.52 | L19: =VLOOKUP($C19,'RECAP SECT'!$G$6:$DC$253,81,FALSE) -> 37% | M19: =VLOOKUP($C19,'RECAP SECT'!$G$6:$DC$253,82,FALSE) -> 15 | N19: =VLOOKUP($C19,'RECAP SECT'!$G$6:$DC$253,83,FALSE) -> 45% | O19: =VLOOKUP($C19,'RECAP SECT'!$G$6:$DC$253,84,FALSE) -> 45% | P19: =VLOOKUP($C19,'RECAP SECT'!$G$6:$DC$253,85,FALSE) -> 15
A20: 110 | B20: MEURTHE ET MOSELLE MEUSE | C20: 26 | D20: NANCY | E20: =VLOOKUP($C20,'RECAP SECT'!$G$6:$DC$253,3,FALSE) -> 68.7 | F20: =VLOOKUP($C20,'RECAP SECT'!$G$6:$DC$253,75,FALSE) -> 3,256 | G20: =VLOOKUP($C20,'RECAP SECT'!$G$6:$DC$253,76,FALSE) -> 47.42 | H20: =VLOOKUP($C20,'RECAP SECT'!$G$6:$DC$253,77,FALSE) -> 0% | I20: =VLOOKUP($C20,'RECAP SECT'!$G$6:$DC$253,78,FALSE) -> 1 | J20: =VLOOKUP($C20,'RECAP SECT'!$G$6:$DC$253,79,FALSE) -> 495 | K20: =VLOOKUP($C20,'RECAP SECT'!$G$6:$DC$253,80,FALSE) -> 7.21 | L20: =VLOOKUP($C20,'RECAP SECT'!$G$6:$DC$253,81,FALSE) -> 0% | M20: =VLOOKUP($C20,'RECAP SECT'!$G$6:$DC$253,82,FALSE) -> 1 | N20: =VLOOKUP($C20,'RECAP SECT'!$G$6:$DC$253,83,FALSE) -> 0% | O20: =VLOOKUP($C20,'RECAP SECT'!$G$6:$DC$253,84,FALSE) -> 0% | P20: =VLOOKUP($C20,'RECAP SECT'!$G$6:$DC$253,85,FALSE) -> 1
A21: 110 | B21: MEURTHE ET MOSELLE MEUSE | C21: 27 | D21: PONT A MOUSSON | E21: =VLOOKUP($C21,'RECAP SECT'!$G$6:$DC$253,3,FALSE) -> 79.9 | F21: =VLOOKUP($C21,'RECAP SECT'!$G$6:$DC$253,75,FALSE) -> 2,537 | G21: =VLOOKUP($C21,'RECAP SECT'!$G$6:$DC$253,76,FALSE) -> 31.75 | H21: =VLOOKUP($C21,'RECAP SECT'!$G$6:$DC$253,77,FALSE) -> 33% | I21: =VLOOKUP($C21,'RECAP SECT'!$G$6:$DC$253,78,FALSE) -> 10 | J21: =VLOOKUP($C21,'RECAP SECT'!$G$6:$DC$253,79,FALSE) -> 460 | K21: =VLOOKUP($C21,'RECAP SECT'!$G$6:$DC$253,80,FALSE) -> 5.76 | L21: =VLOOKUP($C21,'RECAP SECT'!$G$6:$DC$253,81,FALSE) -> 20% | M21: =VLOOKUP($C21,'RECAP SECT'!$G$6:$DC$253,82,FALSE) -> 3 | N21: =VLOOKUP($C21,'RECAP SECT'!$G$6:$DC$253,83,FALSE) -> 29% | O21: =VLOOKUP($C21,'RECAP SECT'!$G$6:$DC$253,84,FALSE) -> 29% | P21: =VLOOKUP($C21,'RECAP SECT'!$G$6:$DC$253,85,FALSE) -> 8
A22: 110 | B22: MEURTHE ET MOSELLE MEUSE | C22: 31 | D22: VERDUN | E22: =VLOOKUP($C22,'RECAP SECT'!$G$6:$DC$253,3,FALSE) -> 59.9 | F22: =VLOOKUP($C22,'RECAP SECT'!$G$6:$DC$253,75,FALSE) -> 2,204 | G22: =VLOOKUP($C22,'RECAP SECT'!$G$6:$DC$253,76,FALSE) -> 36.77 | H22: =VLOOKUP($C22,'RECAP SECT'!$G$6:$DC$253,77,FALSE) -> 22% | I22: =VLOOKUP($C22,'RECAP SECT'!$G$6:$DC$253,78,FALSE) -> 6 | J22: =VLOOKUP($C22,'RECAP SECT'!$G$6:$DC$253,79,FALSE) -> 315 | K22: =VLOOKUP($C22,'RECAP SECT'!$G$6:$DC$253,80,FALSE) -> 5.26 | L22: =VLOOKUP($C22,'RECAP SECT'!$G$6:$DC$253,81,FALSE) -> 27% | M22: =VLOOKUP($C22,'RECAP SECT'!$G$6:$DC$253,82,FALSE) -> 6 | N22: =VLOOKUP($C22,'RECAP SECT'!$G$6:$DC$253,83,FALSE) -> 24% | O22: =VLOOKUP($C22,'RECAP SECT'!$G$6:$DC$253,84,FALSE) -> 24% | P22: =VLOOKUP($C22,'RECAP SECT'!$G$6:$DC$253,85,FALSE) -> 5
A23: 160 | B23: MOSELLE | C23: 45 | D23: METZ | E23: =VLOOKUP($C23,'RECAP SECT'!$G$6:$DC$253,3,FALSE) -> 90.1 | F23: =VLOOKUP($C23,'RECAP SECT'!$G$6:$DC$253,75,FALSE) -> 2,592 | G23: =VLOOKUP($C23,'RECAP SECT'!$G$6:$DC$253,76,FALSE) -> 28.77 | H23: =VLOOKUP($C23,'RECAP SECT'!$G$6:$DC$253,77,FALSE) -> 39% | I23: =VLOOKUP($C23,'RECAP SECT'!$G$6:$DC$253,78,FALSE) -> 12 | J23: =VLOOKUP($C23,'RECAP SECT'!$G$6:$DC$253,79,FALSE) -> 449 | K23: =VLOOKUP($C23,'RECAP SECT'!$G$6:$DC$253,80,FALSE) -> 4.99 | L23: =VLOOKUP($C23,'RECAP SECT'!$G$6:$DC$253,81,FALSE) -> 31% | M23: =VLOOKUP($C23,'RECAP SECT'!$G$6:$DC$253,82,FALSE) -> 10 | N23: =VLOOKUP($C23,'RECAP SECT'!$G$6:$DC$253,83,FALSE) -> 37% | O23: =VLOOKUP($C23,'RECAP SECT'!$G$6:$DC$253,84,FALSE) -> 37% | P23: =VLOOKUP($C23,'RECAP SECT'!$G$6:$DC$253,85,FALSE) -> 11
A24: 160 | B24: MOSELLE | C24: 42 | D24: MOSELLE EST | E24: =VLOOKUP($C24,'RECAP SECT'!$G$6:$DC$253,3,FALSE) -> 73.0 | F24: =VLOOKUP($C24,'RECAP SECT'!$G$6:$DC$253,75,FALSE) -> 2,107 | G24: =VLOOKUP($C24,'RECAP SECT'!$G$6:$DC$253,76,FALSE) -> 28.86 | H24: =VLOOKUP($C24,'RECAP SECT'!$G$6:$DC$253,77,FALSE) -> 39% | I24: =VLOOKUP($C24,'RECAP SECT'!$G$6:$DC$253,78,FALSE) -> 11 | J24: =VLOOKUP($C24,'RECAP SECT'!$G$6:$DC$253,79,FALSE) -> 343 | K24: =VLOOKUP($C24,'RECAP SECT'!$G$6:$DC$253,80,FALSE) -> 4.70 | L24: =VLOOKUP($C24,'RECAP SECT'!$G$6:$DC$253,81,FALSE) -> 35% | M24: =VLOOKUP($C24,'RECAP SECT'!$G$6:$DC$253,82,FALSE) -> 12 | N24: =VLOOKUP($C24,'RECAP SECT'!$G$6:$DC$253,83,FALSE) -> 38% | O24: =VLOOKUP($C24,'RECAP SECT'!$G$6:$DC$253,84,FALSE) -> 38% | P24: =VLOOKUP($C24,'RECAP SECT'!$G$6:$DC$253,85,FALSE) -> 13
A25: 160 | B25: MOSELLE | C25: 44 | D25: MOSELLE NORD | E25: =VLOOKUP($C25,'RECAP SECT'!$G$6:$DC$253,3,FALSE) -> 77.6 | F25: =VLOOKUP($C25,'RECAP SECT'!$G$6:$DC$253,75,FALSE) -> 2,496 | G25: =VLOOKUP($C25,'RECAP SECT'!$G$6:$DC$253,76,FALSE) -> 32.14 | H25: =VLOOKUP($C25,'RECAP SECT'!$G$6:$DC$253,77,FALSE) -> 32% | I25: =VLOOKUP($C25,'RECAP SECT'!$G$6:$DC$253,78,FALSE) -> 8 | J25: =VLOOKUP($C25,'RECAP SECT'!$G$6:$DC$253,79,FALSE) -> 390 | K25: =VLOOKUP($C25,'RECAP SECT'!$G$6:$DC$253,80,FALSE) -> 5.02 | L25: =VLOOKUP($C25,'RECAP SECT'!$G$6:$DC$253,81,FALSE) -> 30% | M25: =VLOOKUP($C25,'RECAP SECT'!$G$6:$DC$253,82,FALSE) -> 9 | N25: =VLOOKUP($C25,'RECAP SECT'!$G$6:$DC$253,83,FALSE) -> 32% | O25: =VLOOKUP($C25,'RECAP SECT'!$G$6:$DC$253,84,FALSE) -> 32% | P25: =VLOOKUP($C25,'RECAP SECT'!$G$6:$DC$253,85,FALSE) -> 10
A26: 80 | B26: VOSGES | C26: 57 | D26: EPINAL | E26: =VLOOKUP($C26,'RECAP SECT'!$G$6:$DC$253,3,FALSE) -> 63.2 | F26: =VLOOKUP($C26,'RECAP SECT'!$G$6:$DC$253,75,FALSE) -> 1,783 | G26: =VLOOKUP($C26,'RECAP SECT'!$G$6:$DC$253,76,FALSE) -> 28.20 | H26: =VLOOKUP($C26,'RECAP SECT'!$G$6:$DC$253,77,FALSE) -> 41% | I26: =VLOOKUP($C26,'RECAP SECT'!$G$6:$DC$253,78,FALSE) -> 13 | J26: =VLOOKUP($C26,'RECAP SECT'!$G$6:$DC$253,79,FALSE) -> 320 | K26: =VLOOKUP($C26,'RECAP SECT'!$G$6:$DC$253,80,FALSE) -> 5.06 | L26: =VLOOKUP($C26,'RECAP SECT'!$G$6:$DC$253,81,FALSE) -> 30% | M26: =VLOOKUP($C26,'RECAP SECT'!$G$6:$DC$253,82,FALSE) -> 8 | N26: =VLOOKUP($C26,'RECAP SECT'!$G$6:$DC$253,83,FALSE) -> 37% | O26: =VLOOKUP($C26,'RECAP SECT'!$G$6:$DC$253,84,FALSE) -> 37% | P26: =VLOOKUP($C26,'RECAP SECT'!$G$6:$DC$253,85,FALSE) -> 12
A27: 80 | B27: VOSGES | C27: 55 | D27: SAINT DIE | E27: =VLOOKUP($C27,'RECAP SECT'!$G$6:$DC$253,3,FALSE) -> 50.2 | F27: =VLOOKUP($C27,'RECAP SECT'!$G$6:$DC$253,75,FALSE) -> 1,967 | G27: =VLOOKUP($C27,'RECAP SECT'!$G$6:$DC$253,76,FALSE) -> 39.22 | H27: =VLOOKUP($C27,'RECAP SECT'!$G$6:$DC$253,77,FALSE) -> 17% | I27: =VLOOKUP($C27,'RECAP SECT'!$G$6:$DC$253,78,FALSE) -> 5 | J27: =VLOOKUP($C27,'RECAP SECT'!$G$6:$DC$253,79,FALSE) -> 189 | K27: =VLOOKUP($C27,'RECAP SECT'!$G$6:$DC$253,80,FALSE) -> 3.77 | L27: =VLOOKUP($C27,'RECAP SECT'!$G$6:$DC$253,81,FALSE) -> 48% | M27: =VLOOKUP($C27,'RECAP SECT'!$G$6:$DC$253,82,FALSE) -> 18 | N27: =VLOOKUP($C27,'RECAP SECT'!$G$6:$DC$253,83,FALSE) -> 26% | O27: =VLOOKUP($C27,'RECAP SECT'!$G$6:$DC$253,84,FALSE) -> 26% | P27: =VLOOKUP($C27,'RECAP SECT'!$G$6:$DC$253,85,FALSE) -> 7
A28: Total CEGEE Directions Régionales | E28: =SUM(E10:E27) -> 1198

Sheet SE_SATISFACTION
B1: Accueil | F1: BAROMETRE BDD - TERRITOIRES
F2: SATISFACTION
F3: =ACCUEIL!F7 -> 2021-02-07
F7: NPS à froid (SAE) | I7: NPS à chaud (QHD) | L7: Total Satisfaction Clients
F8: =DATEMAJ!C4 -> au 31/12 | G8: coef | H8: ='RECAP DIRCOM'!M4 -> 10% | I8: =DATEMAJ!C5 -> au 31/12 | J8: coef | K8: ='RECAP DIRCOM'!P4 -> 10% | M8: coef | N8: ='RECAP DIRCOM'!S4 -> 20%
B9: Direction | C9: eds | D9: Territoire | E9: ="ETP perf "&DATEMAJ!$C$28 -> ETP perf Dec 2020 | G9: % Ecart au 1er | H9: Rang | J9: % Ecart au 1er | K9: Rang | L9: Moyenne ecart au 1er | M9: % Ecart au 1er | N9: Rang CEGEE
A10: 50 | B10: AUBE HAUTE MARNE | C10: 21 | D10: CHAUMONT | E10: =VLOOKUP($C10,'RECAP SECT'!$G$6:$DC$253,3,FALSE) -> 36.2 | F10: =VLOOKUP($C10,'RECAP SECT'!$G$6:$DC$253,5,FALSE) -> -3 | G10: =VLOOKUP($C10,'RECAP SECT'!$G$6:$DC$253,6,FALSE) -> 0% | H10: =VLOOKUP($C10,'RECAP SECT'!$G$6:$DC$253,7,FALSE) -> 1 | I10: =VLOOKUP($C10,'RECAP SECT'!$G$6:$DC$253,8,FALSE) -> 46% | J10: =VLOOKUP($C10,'RECAP SECT'!$G$6:$DC$253,9,FALSE) -> 29% | K10: =VLOOKUP($C10,'RECAP SECT'!$G$6:$DC$253,10,FALSE) -> 11 | L10: =VLOOKUP($C10,'RECAP SECT'!$G$6:$DC$253,11,FALSE) -> 14% | M10: =VLOOKUP($C10,'RECAP SECT'!$G$6:$DC$253,12,FALSE) -> 14% | N10: =VLOOKUP($C10,'RECAP SECT'!$G$6:$DC$253,13,FALSE) -> 3
A11: 50 | B11: AUBE HAUTE MARNE | C11: 14 | D11: TROYES | E11: =VLOOKUP($C11,'RECAP SECT'!$G$6:$DC$253,3,FALSE) -> 70.0 | F11: =VLOOKUP($C11,'RECAP SECT'!$G$6:$DC$253,5,FALSE) -> -15 | G11: =VLOOKUP($C11,'RECAP SECT'!$G$6:$DC$253,6,FALSE) -> 78% | H11: =VLOOKUP($C11,'RECAP SECT'!$G$6:$DC$253,7,FALSE) -> 13 | I11: =VLOOKUP($C11,'RECAP SECT'!$G$6:$DC$253,8,FALSE) -> 43% | J11: =VLOOKUP($C11,'RECAP SECT'!$G$6:$DC$253,9,FALSE) -> 34% | K11: =VLOOKUP($C11,'RECAP SECT'!$G$6:$DC$253,10,FALSE) -> 14 | L11: =VLOOKUP($C11,'RECAP SECT'!$G$6:$DC$253,11,FALSE) -> 56% | M11: =VLOOKUP($C11,'RECAP SECT'!$G$6:$DC$253,12,FALSE) -> 56% | N11: =VLOOKUP($C11,'RECAP SECT'!$G$6:$DC$253,13,FALSE) -> 13
A12: 262 | B12: BAS-RHIN | C12: 5060 | D12: HAGUENAU | E12: =VLOOKUP($C12,'RECAP SECT'!$G$6:$DC$253,3,FALSE) -> 71.9 | F12: =VLOOKUP($C12,'RECAP SECT'!$G$6:$DC$253,5,FALSE) -> -13 | G12: =VLOOKUP($C12,'RECAP SECT'!$G$6:$DC$253,6,FALSE) -> 65% | H12: =VLOOKUP($C12,'RECAP SECT'!$G$6:$DC$253,7,FALSE) -> 10 | I12: =VLOOKUP($C12,'RECAP SECT'!$G$6:$DC$253,8,FALSE) -> 49% | J12: =VLOOKUP($C12,'RECAP SECT'!$G$6:$DC$253,9,FALSE) -> 23% | K12: =VLOOKUP($C12,'RECAP SECT'!$G$6:$DC$253,10,FALSE) -> 8 | L12: =VLOOKUP($C12,'RECAP SECT'!$G$6:$DC$253,11,FALSE) -> 44% | M12: =VLOOKUP($C12,'RECAP SECT'!$G$6:$DC$253,12,FALSE) -> 44% | N12: =VLOOKUP($C12,'RECAP SECT'!$G$6:$DC$253,13,FALSE) -> 11
A13: 262 | B13: BAS-RHIN | C13: 5101 | D13: SELESTAT | E13: =VLOOKUP($C13,'RECAP SECT'!$G$6:$DC$253,3,FALSE) -> 64.5 | F13: =VLOOKUP($C13,'RECAP SECT'!$G$6:$DC$253,5,FALSE) -> -22 | G13: =VLOOKUP($C13,'RECAP SECT'!$G$6:$DC$253,6,FALSE) -> 124% | H13: =VLOOKUP($C13,'RECAP SECT'!$G$6:$DC$253,7,FALSE) -> 15 | I13: =VLOOKUP($C13,'RECAP SECT'!$G$6:$DC$253,8,FALSE) -> 42% | J13: =VLOOKUP($C13,'RECAP SECT'!$G$6:$DC$253,9,FALSE) -> 35% | K13: =VLOOKUP($C13,'RECAP SECT'!$G$6:$DC$253,10,FALSE) -> 15 | L13: =VLOOKUP($C13,'RECAP SECT'!$G$6:$DC$253,11,FALSE) -> 79% | M13: =VLOOKUP($C13,'RECAP SECT'!$G$6:$DC$253,12,FALSE) -> 79% | N13: =VLOOKUP($C13,'RECAP SECT'!$G$6:$DC$253,13,FALSE) -> 15
A14: 262 | B14: BAS-RHIN | C14: 5006 | D14: STRASBOURG | E14: =VLOOKUP($C14,'RECAP SECT'!$G$6:$DC$253,3,FALSE) -> 83.8 | F14: =VLOOKUP($C14,'RECAP SECT'!$G$6:$DC$253,5,FALSE) -> -26 | G14: =VLOOKUP($C14,'RECAP SECT'!$G$6:$DC$253,6,FALSE) -> 150% | H14: =VLOOKUP($C14,'RECAP SECT'!$G$6:$DC$253,7,FALSE) -> 17 | I14: =VLOOKUP($C14,'RECAP SECT'!$G$6:$DC$253,8,FALSE) -> 34% | J14: =VLOOKUP($C14,'RECAP SECT'!$G$6:$DC$253,9,FALSE) -> 46% | K14: =VLOOKUP($C14,'RECAP SECT'!$G$6:$DC$253,10,FALSE) -> 17 | L14: =VLOOKUP($C14,'RECAP SECT'!$G$6:$DC$253,11,FALSE) -> 98% | M14: =VLOOKUP($C14,'RECAP SECT'!$G$6:$DC$253,12,FALSE) -> 98% | N14: =VLOOKUP($C14,'RECAP SECT'!$G$6:$DC$253,13,FALSE) -> 17
A15: 264 | B15: HAUT-RHIN | C15: 5130 | D15: COLMAR | E15: =VLOOKUP($C15,'RECAP SECT'!$G$6:$DC$253,3,FALSE) -> 65.6 | F15: =VLOOKUP($C15,'RECAP SECT'!$G$6:$DC$253,5,FALSE) -> -19 | G15: =VLOOKUP($C15,'RECAP SECT'!$G$6:$DC$253,6,FALSE) -> 104% | H15: =VLOOKUP($C15,'RECAP SECT'!$G$6:$DC$253,7,FALSE) -> 14 | I15: =VLOOKUP($C15,'RECAP SECT'!$G$6:$DC$253,8,FALSE) -> 46% | J15: =VLOOKUP($C15,'RECAP SECT'!$G$6:$DC$253,9,FALSE) -> 29% | K15: =VLOOKUP($C15,'RECAP SECT'!$G$6:$DC$253,10,FALSE) -> 12 | L15: =VLOOKUP($C15,'RECAP SECT'!$G$6:$DC$253,11,FALSE) -> 66% | M15: =VLOOKUP($C15,'RECAP SECT'!$G$6:$DC$253,12,FALSE) -> 66% | N15: =VLOOKUP($C15,'RECAP SECT'!$G$6:$DC$253,13,FALSE) -> 14
A16: 264 | B16: HAUT-RHIN | C16: 5169 | D16: MULHOUSE | E16: =VLOOKUP($C16,'RECAP SECT'!$G$6:$DC$253,3,FALSE) -> 62.1 | F16: =VLOOKUP($C16,'RECAP SECT'!$G$6:$DC$253,5,FALSE) -> -26 | G16: =VLOOKUP($C16,'RECAP SECT'!$G$6:$DC$253,6,FALSE) -> 150% | H16: =VLOOKUP($C16,'RECAP SECT'!$G$6:$DC$253,7,FALSE) -> 17 | I16: =VLOOKUP($C16,'RECAP SECT'!$G$6:$DC$253,8,FALSE) -> 33% | J16: =VLOOKUP($C16,'RECAP SECT'!$G$6:$DC$253,9,FALSE) -> 48% | K16: =VLOOKUP($C16,'RECAP SECT'!$G$6:$DC$253,10,FALSE) -> 18 | L16: =VLOOKUP($C16,'RECAP SECT'!$G$6:$DC$253,11,FALSE) -> 99% | M16: =VLOOKUP($C16,'RECAP SECT'!$G$6:$DC$253,12,FALSE) -> 99% | N16: =VLOOKUP($C16,'RECAP SECT'!$G$6:$DC$253,13,FALSE) -> 18
A17: 30 | B17: MARNE-ARDENNES | C17: 6 | D17: CHALONS EN CHAMPAGNE | E17: =VLOOKUP($C17,'RECAP SECT'!$G$6:$DC$253,3,FALSE) -> 45.0 | F17: =VLOOKUP($C17,'RECAP SECT'!$G$6:$DC$253,5,FALSE) -> -3 | G17: =VLOOKUP($C17,'RECAP SECT'!$G$6:$DC$253,6,FALSE) -> 0% | H17: =VLOOKUP($C17,'RECAP SECT'!$G$6:$DC$253,7,FALSE) -> 1 | I17: =VLOOKUP($C17,'RECAP SECT'!$G$6:$DC$253,8,FALSE) -> 64% | J17: =VLOOKUP($C17,'RECAP SECT'!$G$6:$DC$253,9,FALSE) -> 0% | K17: =VLOOKUP($C17,'RECAP SECT'!$G$6:$DC$253,10,FALSE) -> 1 | L17: =VLOOKUP($C17,'RECAP SECT'!$G$6:$DC$253,11,FALSE) -> 0% | M17: =VLOOKUP($C17,'RECAP SECT'!$G$6:$DC$253,12,FALSE) -> 0% | N17: =VLOOKUP($C17,'RECAP SECT'!$G$6:$DC$253,13,FALSE) -> 1
A18: 30 | B18: MARNE-ARDENNES | C18: 2 | D18: CHARLEVILLE MEZIERES | E18: =VLOOKUP($C18,'RECAP SECT'!$G$6:$DC$253,3,FALSE) -> 55.4 | F18: =VLOOKUP($C18,'RECAP SECT'!$G$6:$DC$253,5,FALSE) -> -10 | G18: =VLOOKUP($C18,'RECAP SECT'!$G$6:$DC$253,6,FALSE) -> 46% | H18: =VLOOKUP($C18,'RECAP SECT'!$G$6:$DC$253,7,FALSE) -> 8 | I18: =VLOOKUP($C18,'RECAP SECT'!$G$6:$DC$253,8,FALSE) -> 58% | J18: =VLOOKUP($C18,'RECAP SECT'!$G$6:$DC$253,9,FALSE) -> 10% | K18: =VLOOKUP($C18,'RECAP SECT'!$G$6:$DC$253,10,FALSE) -> 2 | L18: =VLOOKUP($C18,'RECAP SECT'!$G$6:$DC$253,11,FALSE) -> 28% | M18: =VLOOKUP($C18,'RECAP SECT'!$G$6:$DC$253,12,FALSE) -> 28% | N18: =VLOOKUP($C18,'RECAP SECT'!$G$6:$DC$253,13,FALSE) -> 7
A19: 30 | B19: MARNE-ARDENNES | C19: 11 | D19: REIMS | E19: =VLOOKUP($C19,'RECAP SECT'!$G$6:$DC$253,3,FALSE) -> 80.5 | F19: =VLOOKUP($C19,'RECAP SECT'!$G$6:$DC$253,5,FALSE) -> -7 | G19: =VLOOKUP($C19,'RECAP SECT'!$G$6:$DC$253,6,FALSE) -> 26% | H19: =VLOOKUP($C19,'RECAP SECT'!$G$6:$DC$253,7,FALSE) -> 4 | I19: =VLOOKUP($C19,'RECAP SECT'!$G$6:$DC$253,8,FALSE) -> 54% | J19: =VLOOKUP($C19,'RECAP SECT'!$G$6:$DC$253,9,FALSE) -> 17% | K19: =VLOOKUP($C19,'RECAP SECT'!$G$6:$DC$253,10,FALSE) -> 6 | L19: =VLOOKUP($C19,'RECAP SECT'!$G$6:$DC$253,11,FALSE) -> 21% | M19: =VLOOKUP($C19,'RECAP SECT'!$G$6:$DC$253,12,FALSE) -> 21% | N19: =VLOOKUP($C19,'RECAP SECT'!$G$6:$DC$253,13,FALSE) -> 4
A20: 110 | B20: MEURTHE ET MOSELLE MEUSE | C20: 26 | D20: NANCY | E20: =VLOOKUP($C20,'RECAP SECT'!$G$6:$DC$253,3,FALSE) -> 68.7 | F20: =VLOOKUP($C20,'RECAP SECT'!$G$6:$DC$253,5,FALSE) -> -12 | G20: =VLOOKUP($C20,'RECAP SECT'!$G$6:$DC$253,6,FALSE) -> 59% | H20: =VLOOKUP($C20,'RECAP SECT'!$G$6:$DC$253,7,FALSE) -> 9 | I20: =VLOOKUP($C20,'RECAP SECT'!$G$6:$DC$253,8,FALSE) -> 48% | J20: =VLOOKUP($C20,'RECAP SECT'!$G$6:$DC$253,9,FALSE) -> 25% | K20: =VLOOKUP($C20,'RECAP SECT'!$G$6:$DC$253,10,FALSE) -> 9 | L20: =VLOOKUP($C20,'RECAP SECT'!$G$6:$DC$253,11,FALSE) -> 42% | M20: =VLOOKUP($C20,'RECAP SECT'!$G$6:$DC$253,12,FALSE) -> 42% | N20: =VLOOKUP($C20,'RECAP SECT'!$G$6:$DC$253,13,FALSE) -> 10
A21: 110 | B21: MEURTHE ET MOSELLE MEUSE | C21: 27 | D21: PONT A MOUSSON | E21: =VLOOKUP($C21,'RECAP SECT'!$G$6:$DC$253,3,FALSE) -> 79.9 | F21: =VLOOKUP($C21,'RECAP SECT'!$G$6:$DC$253,5,FALSE) -> -14 | G21: =VLOOKUP($C21,'RECAP SECT'!$G$6:$DC$253,6,FALSE) -> 72% | H21: =VLOOKUP($C21,'RECAP SECT'!$G$6:$DC$253,7,FALSE) -> 12 | I21: =VLOOKUP($C21,'RECAP SECT'!$G$6:$DC$253,8,FALSE) -> 44% | J21: =VLOOKUP($C21,'RECAP SECT'!$G$6:$DC$253,9,FALSE) -> 31% | K21: =VLOOKUP($C21,'RECAP SECT'!$G$6:$DC$253,10,FALSE) -> 13 | L21: =VLOOKUP($C21,'RECAP SECT'!$G$6:$DC$253,11,FALSE) -> 51% | M21: =VLOOKUP($C21,'RECAP SECT'!$G$6:$DC$253,12,FALSE) -> 51% | N21: =VLOOKUP($C21,'RECAP SECT'!$G$6:$DC$253,13,FALSE) -> 12
A22: 110 | B22: MEURTHE ET MOSELLE MEUSE | C22: 31 | D22: VERDUN | E22: =VLOOKUP($C22,'RECAP SECT'!$G$6:$DC$253,3,FALSE) -> 59.9 | F22: =VLOOKUP($C22,'RECAP SECT'!$G$6:$DC$253,5,FALSE) -> -5 | G22: =VLOOKUP($C22,'RECAP SECT'!$G$6:$DC$253,6,FALSE) -> 13% | H22: =VLOOKUP($C22,'RECAP SECT'!$G$6:$DC$253,7,FALSE) -> 3 | I22: =VLOOKUP($C22,'RECAP SECT'!$G$6:$DC$253,8,FALSE) -> 57% | J22: =VLOOKUP($C22,'RECAP SECT'!$G$6:$DC$253,9,FALSE) -> 11% | K22: =VLOOKUP($C22,'RECAP SECT'!$G$6:$DC$253,10,FALSE) -> 3 | L22: =VLOOKUP($C22,'RECAP SECT'!$G$6:$DC$253,11,FALSE) -> 12% | M22: =VLOOKUP($C22,'RECAP SECT'!$G$6:$DC$253,12,FALSE) -> 12% | N22: =VLOOKUP($C22,'RECAP SECT'!$G$6:$DC$253,13,FALSE) -> 2
A23: 160 | B23: MOSELLE | C23: 45 | D23: METZ | E23: =VLOOKUP($C23,'RECAP SECT'!$G$6:$DC$253,3,FALSE) -> 90.1 | F23: =VLOOKUP($C23,'RECAP SECT'!$G$6:$DC$253,5,FALSE) -> -7 | G23: =VLOOKUP($C23,'RECAP SECT'!$G$6:$DC$253,6,FALSE) -> 26% | H23: =VLOOKUP($C23,'RECAP SECT'!$G$6:$DC$253,7,FALSE) -> 4 | I23: =VLOOKUP($C23,'RECAP SECT'!$G$6:$DC$253,8,FALSE) -> 53% | J23: =VLOOKUP($C23,'RECAP SECT'!$G$6:$DC$253,9,FALSE) -> 18% | K23: =VLOOKUP($C23,'RECAP SECT'!$G$6:$DC$253,10,FALSE) -> 7 | L23: =VLOOKUP($C23,'RECAP SECT'!$G$6:$DC$253,11,FALSE) -> 22% | M23: =VLOOKUP($C23,'RECAP SECT'!$G$6:$DC$253,12,FALSE) -> 22% | N23: =VLOOKUP($C23,'RECAP SECT'!$G$6:$DC$253,13,FALSE) -> 5
A24: 160 | B24: MOSELLE | C24: 42 | D24: MOSELLE EST | E24: =VLOOKUP($C24,'RECAP SECT'!$G$6:$DC$253,3,FALSE) -> 73.0 | F24: =VLOOKUP($C24,'RECAP SECT'!$G$6:$DC$253,5,FALSE) -> -9 | G24: =VLOOKUP($C24,'RECAP SECT'!$G$6:$DC$253,6,FALSE) -> 39% | H24: =VLOOKUP($C24,'RECAP SECT'!$G$6:$DC$253,7,FALSE) -> 6 | I24: =VLOOKUP($C24,'RECAP SECT'!$G$6:$DC$253,8,FALSE) -> 48% | J24: =VLOOKUP($C24,'RECAP SECT'!$G$6:$DC$253,9,FALSE) -> 26% | K24: =VLOOKUP($C24,'RECAP SECT'!$G$6:$DC$253,10,FALSE) -> 10 | L24: =VLOOKUP($C24,'RECAP SECT'!$G$6:$DC$253,11,FALSE) -> 33% | M24: =VLOOKUP($C24,'RECAP SECT'!$G$6:$DC$253,12,FALSE) -> 33% | N24: =VLOOKUP($C24,'RECAP SECT'!$G$6:$DC$253,13,FALSE) -> 8
A25: 160 | B25: MOSELLE | C25: 44 | D25: MOSELLE NORD | E25: =VLOOKUP($C25,'RECAP SECT'!$G$6:$DC$253,3,FALSE) -> 77.6 | F25: =VLOOKUP($C25,'RECAP SECT'!$G$6:$DC$253,5,FALSE) -> -22 | G25: =VLOOKUP($C25,'RECAP SECT'!$G$6:$DC$253,6,FALSE) -> 124% | H25: =VLOOKUP($C25,'RECAP SECT'!$G$6:$DC$253,7,FALSE) -> 15 | I25: =VLOOKUP($C25,'RECAP SECT'!$G$6:$DC$253,8,FALSE) -> 38% | J25: =VLOOKUP($C25,'RECAP SECT'!$G$6:$DC$253,9,FALSE) -> 42% | K25: =VLOOKUP($C25,'RECAP SECT'!$G$6:$DC$253,10,FALSE) -> 16 | L25: =VLOOKUP($C25,'RECAP SECT'!$G$6:$DC$253,11,FALSE) -> 83% | M25: =VLOOKUP($C25,'RECAP SECT'!$G$6:$DC$253,12,FALSE) -> 83% | N25: =VLOOKUP($C25,'RECAP SECT'!$G$6:$DC$253,13,FALSE) -> 16
A26: 80 | B26: VOSGES | C26: 57 | D26: EPINAL | E26: =VLOOKUP($C26,'RECAP SECT'!$G$6:$DC$253,3,FALSE) -> 63.2 | F26: =VLOOKUP($C26,'RECAP SECT'!$G$6:$DC$253,5,FALSE) -> -13 | G26: =VLOOKUP($C26,'RECAP SECT'!$G$6:$DC$253,6,FALSE) -> 65% | H26: =VLOOKUP($C26,'RECAP SECT'!$G$6:$DC$253,7,FALSE) -> 10 | I26: =VLOOKUP($C26,'RECAP SECT'!$G$6:$DC$253,8,FALSE) -> 56% | J26: =VLOOKUP($C26,'RECAP SECT'!$G$6:$DC$253,9,FALSE) -> 13% | K26: =VLOOKUP($C26,'RECAP SECT'!$G$6:$DC$253,10,FALSE) -> 5 | L26: =VLOOKUP($C26,'RECAP SECT'!$G$6:$DC$253,11,FALSE) -> 39% | M26: =VLOOKUP($C26,'RECAP SECT'!$G$6:$DC$253,12,FALSE) -> 39% | N26: =VLOOKUP($C26,'RECAP SECT'!$G$6:$DC$253,13,FALSE) -> 9
A27: 80 | B27: VOSGES | C27: 55 | D27: SAINT DIE | E27: =VLOOKUP($C27,'RECAP SECT'!$G$6:$DC$253,3,FALSE) -> 50.2 | F27: =VLOOKUP($C27,'RECAP SECT'!$G$6:$DC$253,5,FALSE) -> -9 | G27: =VLOOKUP($C27,'RECAP SECT'!$G$6:$DC$253,6,FALSE) -> 39% | H27: =VLOOKUP($C27,'RECAP SECT'!$G$6:$DC$253,7,FALSE) -> 6 | I27: =VLOOKUP($C27,'RECAP SECT'!$G$6:$DC$253,8,FALSE) -> 56% | J27: =VLOOKUP($C27,'RECAP SECT'!$G$6:$DC$253,9,FALSE) -> 12% | K27: =VLOOKUP($C27,'RECAP SECT'!$G$6:$DC$253,10,FALSE) -> 4 | L27: =VLOOKUP($C27,'RECAP SECT'!$G$6:$DC$253,11,FALSE) -> 26% | M27: =VLOOKUP($C27,'RECAP SECT'!$G$6:$DC$253,12,FALSE) -> 26% | N27: =VLOOKUP($C27,'RECAP SECT'!$G$6:$DC$253,13,FALSE) -> 6
A28: Total CEGEE Directions Régionales | E28: =SUM(E10:E27) -> 1198

Sheet AG_CLASS
B1: Accueil | H1: BAROMETRE BDD - AGENCES
H2: CLASSEMENTS
H3: =ACCUEIL!F7 -> 2021-02-07
H8: CLASSEMENT GENERAL | I8: CRITERE Satisfaction Clients | J8: NPS à froid (SAE) | K8: NPS à chaud (QHD) | L8: CRITERE BANCARISATION | M8: Ventes Nettes produits pondérés | N8: Ventes sur client non détenteur de l’univers | O8: Mobilité Macron | P8: Remises commerciales | Q8: CRITERE EPARGNE | R8: Excédent Epargne y/c DAV pondéré | S8: Ventes sur client non détenteur de l’univers | T8: CRITERE IARD PREVOYANCE | U8: Ventes Nettes produits pondérés | V8: Ventes sur client non détenteur de l’univers | W8: CRITERE CREDITS | X8: Engagements et ventes accessoires pondérés Immo | Y8: Engagements et ventes accessoires pondérés Conso | Z8: Ventes sur client non détenteur de l’univers
B9: Direction | C9: eds | D9: Territoire | E9: eds | F9: Agence | G9: ="ETP perf "&DATEMAJ!$C$28 -> ETP perf Dec 2020 | H9: Rang | I9: Rang | J9: Rang | K9: Rang | L9: Rang | M9: Rang | N9: Rang | O9: Rang | P9: Rang | Q9: Rang | R9: Rang | S9: Rang | T9: Rang | U9: Rang | V9: Rang | W9: Rang | X9: Rang | Y9: Rang | Z9: Rang
A10: 50 | B10: BAS-RHIN | C10: 5101 | D10: SELESTAT | E10: 4120 | F10: WASSELONNE | G10: 1.7 | H10: 1 | I10: 165 | J10: 188 | K10: 123 | L10: 15 | M10: 10 | N10: 4 | O10: 34 | P10: 264 | Q10: 1 | R10: 1 | S10: 1 | T10: 1 | U10: 1 | V10: 2 | W10: 4 | X10: 24 | Y10: 1 | Z10: 10
A11: 50 | B11: MEURTHE ET MOSELLE MEUSE | C11: 26 | D11: NANCY | E11: 454481 | F11: NANCY PLACE DOMBASLE | G11: 11.2 | H11: 2 | I11: 179 | J11: 168 | K11: 176 | L11: 1 | M11: 1 | N11: 1 | O11: 1 | P11: 229 | Q11: 8 | R11: 61 | S11: 3 | T11: 2 | U11: 2 | V11: 3 | W11: 1 | X11: 3 | Y11: 38 | Z11: 2
A12: 50 | B12: MEURTHE ET MOSELLE MEUSE | C12: 26 | D12: NANCY | E12: 554356 | F12: JARVILLE LA MALGRANGE | G12: 3.8 | H12: 3 | I12: 109 | J12: 79 | K12: 143 | L12: 2 | M12: 3 | N12: 3 | O12: 2 | P12: 119 | Q12: 129 | R12: 90 | S12: 196 | T12: 8 | U12: 11 | V12: 7 | W12: 2 | X12: 1 | Y12: 165 | Z12: 4
A13: 50 | B13: BAS-RHIN | C13: 5101 | D13: SELESTAT | E13: 4113 | F13: BARR | G13: 3.0 | H13: 4 | I13: 21 | J13: 38 | K13: 8 | L13: 5 | M13: 4 | N13: 21 | O13: 12 | P13: 137 | Q13: 7 | R13: 14 | S13: 6 | T13: 10 | U13: 6 | V13: 29 | W13: 131 | X13: 213 | Y13: 110 | Z13: 34
A14: 50 | B14: MEURTHE ET MOSELLE MEUSE | C14: 27 | D14: PONT A MOUSSON | E14: 554531 | F14: POMPEY | G14: 3.0 | H14: 5 | I14: 90 | J14: 106 | K14: 65 | L14: 4 | M14: 9 | N14: 12 | O14: 4 | P14: 22 | Q14: 12 | R14: 43 | S14: 12 | T14: 36 | U14: 52 | V14: 21 | W14: 9 | X14: 8 | Y14: 95 | Z14: 18
A15: 50 | B15: VOSGES | C15: 57 | D15: EPINAL | E15: 488288 | F15: EPINAL LEOPOLD BOURG | G15: 2.0 | H15: 6 | I15: 2 | J15: 8 | K15: 2 | L15: 28 | M15: 12 | N15: 69 | O15: 42 | P15: 256 | Q15: 126 | R15: 71 | S15: 239 | T15: 63 | U15: 54 | V15: 91 | W15: 13 | X15: 11 | Y15: 13 | Z15: 95
A16: 50 | B16: MEURTHE ET MOSELLE MEUSE | C16: 27 | D16: PONT A MOUSSON | E16: 454651 | F16: TOUL REPUBLIQUE | G16: 10.7 | H16: 7 | I16: 250 | J16: 237 | K16: 251 | L16: 3 | M16: 5 | N16: 2 | O16: 10 | P16: 155 | Q16: 66 | R16: 62 | S16: 104 | T16: 24 | U16: 31 | V16: 19 | W16: 3 | X16: 4 | Y16: 42 | Z16: 3
A17: 50 | B17: MARNE-ARDENNES | C17: 6 | D17: CHALONS EN CHAMPAGNE | E17: 451115 | F17: MOURMELON suippes | G17: 2.9 | H17: 8 | I17: 82 | J17: 116 | K17: 52 | L17: 90 | M17: 147 | N17: 78 | O17: 8 | P17: 145 | Q17: 4 | R17: 49 | S17: 2 | T17: 9 | U17: 10 | V17: 13 | W17: 64 | X17: 50 | Y17: 83 | Z17: 165
A18: 50 | B18: MARNE-ARDENNES | C18: 2 | D18: CHARLEVILLE MEZIERES | E18: 508802 | F18: CHARLEVILLE NEVERS | G18: 2.5 | H18: 9 | I18: 9 | J18: 5 | K18: 66 | L18: 93 | M18: 113 | N18: 61 | O18: 7 | P18: 210 | Q18: 27 | R18: 95 | S18: 14 | T18: 34 | U18: 38 | V18: 34 | W18: 77 | X18: 101 | Y18: 77 | Z18: 59
A19: 50 | B19: MOSELLE | C19: 45 | D19: METZ | E19: 557447 | F19: METZ SAINT MAXIMIN | G19: 3.1 | H19: 10 | I19: 78 | J19: 75 | K19: 87 | L19: 12 | M19: 30 | N19: 5 | O19: 37 | P19: 23 | Q19: 96 | R19: 108 | S19: 81 | T19: 46 | U19: 62 | V19: 28 | W19: 17 | X19: 19 | Y19: 74 | Z19: 11
A20: 50 | B20: MARNE-ARDENNES | C20: 11 | D20: REIMS | E20: 551314 | F20: FISMES | G20: 2.1 | H20: 11 | I20: 63 | J20: 116 | K20: 17 | L20: 8 | M20: 11 | N20: 10 | O20: 3 | P20: 199 | Q20: 108 | R20: 214 | S20: 16 | T20: 33 | U20: 39 | V20: 33 | W20: 41 | X20: 42 | Y20: 44 | Z20: 109
A21: 50 | B21: MEURTHE ET MOSELLE MEUSE | C21: 27 | D21: PONT A MOUSSON | E21: 554321 | F21: FROUARD | G21: 3.0 | H21: 12 | I21: 57 | J21: 53 | K21: 61 | L21: 97 | M21: 91 | N21: 97 | O21: 121 | P21: 150 | Q21: 2 | R21: 3 | S21: 25 | T21: 130 | U21: 161 | V21: 70 | W21: 24 | X21: 15 | Y21: 168 | Z21: 34
A22: 50 | B22: MEURTHE ET MOSELLE MEUSE | C22: 26 | D22: NANCY | E22: 554266 | F22: DOMBASLE SUR MEURTHE | G22: 3.5 | H22: 13 | I22: 168 | J22: 175 | K22: 149 | L22: 98 | M22: 66 | N22: 59 | O22: 15 | P22: 257 | Q22: 3 | R22: 4 | S22: 39 | T22: 17 | U22: 30 | V22: 8 | W22: 21 | X22: 35 | Y22: 51 | Z22: 8
A23: 50 | B23: MARNE-ARDENNES | C23: 2 | D23: CHARLEVILLE MEZIERES | E23: 408862 | F23: REVIN | G23: 3.6 | H23: 14 | I23: 67 | J23: 130 | K23: 11 | L23: 7 | M23: 14 | N23: 7 | O23: 26 | P23: 49 | Q23: 45 | R23: 163 | S23: 7 | T23: 171 | U23: 126 | V23: 229 | W23: 34 | X23: 33 | Y23: 135 | Z23: 21
A24: 50 | B24: MARNE-ARDENNES | C24: 11 | D24: REIMS | E24: 551367 | F24: AY CHAMPAGNE | G24: 3.0 | H24: 15 | I24: 85 | J24: 79 | K24: 94 | L24: 6 | M24: 7 | N24: 21 | O24: 12 | P24: 136 | Q24: 73 | R24: 92 | S24: 55 | T24: 200 | U24: 221 | V24: 101 | W24: 25 | X24: 16 | Y24: 198 | Z24: 20
A25: 50 | B25: MARNE-ARDENNES | C25: 11 | D25: REIMS | E25: 551369 | F25: DAMERY | G25: 3.0 | H25: 16 | I25: 30 | J25: 13 | K25: 140 | L25: 184 | M25: 92 | N25: 82 | O25: 88 | P25: 265 | Q25: 5 | R25: 2 | S25: 186 | T25: 61 | U25: 69 | V25: 61 | W25: 123 | X25: 143 | Y25: 200 | Z25: 34
A26: 50 | B26: MARNE-ARDENNES | C26: 6 | D26: CHALONS EN CHAMPAGNE | E26: 551110 | F26: CHALONS ROOSEVELT | G26: 5.0 | H26: 17 | I26: 8 | J26: 15 | K26: 7 | L26: 35 | M26: 101 | N26: 21 | O26: 17 | P26: 64 | Q26: 14 | R26: 54 | S26: 11 | T26: 227 | U26: 217 | V26: 226 | W26: 119 | X26: 105 | Y26: 166 | Z26: 86
A27: 50 | B27: MEURTHE ET MOSELLE MEUSE | C27: 27 | D27: PONT A MOUSSON | E27: 554416 | F27: LUDRES | G27: 4.0 | H27: 18 | I27: 3 | J27: 8 | K27: 3 | L27: 39 | M27: 41 | N27: 37 | O27: 22 | P27: 212 | Q27: 25 | R27: 45 | S27: 29 | T27: 247 | U27: 244 | V27: 248 | W27: 96 | X27: 90 | Y27: 119 | Z27: 95
A28: 50 | B28: MOSELLE | C28: 45 | D28: METZ | E28: 457443 | F28: METZ REPUBLIQUE | G28: 3.7 | H28: 19 | I28: 1 | J28: 1 | K28: 5 | L28: 239 | M28: 181 | N28: 201 | O28: 195 | P28: 246 | Q28: 70 | R28: 42 | S28: 190 | T28: 180 | U28: 209 | V28: 84 | W28: 80 | X28: 102 | Y28: 81 | Z28: 63
A29: 50 | B29: MARNE-ARDENNES | C29: 6 | D29: CHALONS EN CHAMPAGNE | E29: 551330 | F29: MONTMIRAIL | G29: 3.0 | H29: 20 | I29: 56 | J29: 75 | K29: 41 | L29: 57 | M29: 82 | N29: 135 | O29: 52 | P29: 35 | Q29: 26 | R29: 24 | S29: 90 | T29: 156 | U29: 176 | V29: 82 | W29: 28 | X29: 23 | Y29: 91 | Z29: 30
A30: 50 | B30: VOSGES | C30: 55 | D30: SAINT DIE | E30: 488246 | F30: CORNIMONT LA BRESSE | G30: 2.8 | H30: 21 | I30: 69 | J30: 70 | K30: 73 | L30: 38 | M30: 40 | N30: 138 | O30: 169 | P30: 41 | Q30: 41 | R30: 76 | S30: 30 | T30: 47 | U30: 25 | V30: 184 | W30: 71 | X30: 103 | Y30: 25 | Z30: 107
A31: 50 | B31: MOSELLE | C31: 44 | D31: MOSELLE NORD | E31: 557660 | F31: UCKANGE JEANNE D ARC | G31: 2.1 | H31: 22 | I31: 188 | J31: 137 | K31: 231 | L31: 118 | M31: 130 | N31: 80 | O31: 152 | P31: 139 | Q31: 100 | R31: 73 | S31: 167 | T31: 5 | U31: 4 | V31: 4 | W31: 31 | X31: 82 | Y31: 18 | Z31: 16
A32: 262 | B32: BAS-RHIN | C32: 5006 | D32: STRASBOURG | E32: 4047 | F32: STRASBOURG CRONENBOURG | G32: 5.5 | H32: 23 | I32: 51 | J32: 79 | K32: 24 | L32: 70 | M32: 51 | N32: 39 | O32: 24 | P32: 252 | Q32: 110 | R32: 136 | S32: 57 | T32: 30 | U32: 29 | V32: 54 | W32: 72 | X32: 51 | Y32: 232 | Z32: 55
A33: 262 | B33: MEURTHE ET MOSELLE MEUSE | C33: 31 | D33: VERDUN | E33: 554412 | F33: LONGUYON | G33: 2.8 | H33: 24 | I33: 16 | J33: 17 | K33: 28 | L33: 222 | M33: 211 | N33: 114 | O33: 169 | P33: 224 | Q33: 238 | R33: 223 | S33: 235 | T33: 20 | U33: 27 | V33: 24 | W33: 33 | X33: 29 | Y33: 152 | Z33: 22
A34: 262 | B34: BAS-RHIN | C34: 5006 | D34: STRASBOURG | E34: 4043 | F34: STRASBOURG HALLES | G34: 8.6 | H34: 25 | I34: 170 | J34: 183 | K34: 144 | L34: 18 | M34: 20 | N34: 11 | O34: 60 | P34: 176 | Q34: 29 | R34: 29 | S34: 79 | T34: 57 | U34: 82 | V34: 43 | W34: 48 | X34: 68 | Y34: 63 | Z34: 43
A35: 262 | B35: MARNE-ARDENNES | C35: 11 | D35: REIMS | E35: 551305 | F35: REIMS HIPPODROME | G35: 3.7 | H35: 26 | I35: 19 | J35: 14 | K35: 51 | L35: 79 | M35: 31 | N35: 68 | O35: 6 | P35: 271 | Q35: 147 | R35: 195 | S35: 43 | T35: 177 | U35: 201 | V35: 83 | W35: 39 | X35: 28 | Y35: 184 | Z35: 46
A36: 262 | B36: MARNE-ARDENNES | C36: 2 | D36: CHARLEVILLE MEZIERES | E36: 408801 | F36: CHARLEVILLE JEAN JAURES | G36: 9.8 | H36: 27 | I36: 142 | J36: 145 | K36: 123 | L36: 16 | M36: 26 | N36: 19 | O36: 9 | P36: 90 | Q36: 43 | R36: 121 | S36: 19 | T36: 207 | U36: 219 | V36: 158 | W36: 19 | X36: 21 | Y36: 199 | Z36: 5
A37: 262 | B37: BAS-RHIN | C37: 5060 | D37: HAGUENAU | E37: 4092 | F37: HOCHFELDEN | G37: 1.8 | H37: 28 | I37: 40 | J37: 20 | K37: 86 | L37: 256 | M37: 264 | N37: 148 | O37: 75 | P37: 207 | Q37: 168 | R37: 239 | S37: 28 | T37: 109 | U37: 153 | V37: 55 | W37: 5 | X37: 13 | Y37: 2 | Z37: 6
A38: 262 | B38: MARNE-ARDENNES | C38: 2 | D38: CHARLEVILLE MEZIERES | E38: 408822 | F38: CHARLEVILLE MEZIERES | G38: 4.5 | H38: 29 | I38: 108 | J38: 127 | K38: 69 | L38: 54 | M38: 107 | N38: 57 | O38: 25 | P38: 48 | Q38: 22 | R38: 74 | S38: 15 | T38: 81 | U38: 65 | V38: 137 | W38: 59 | X38: 31 | Y38: 262 | Z38: 42
A39: 262 | B39: BAS-RHIN | C39: 5060 | D39: HAGUENAU | E39: 4082 | F39: BOUXWILLER | G39: 3.0 | H39: 30 | I39: 83 | J39: 62 | K39: 126 | L39: 110 | M39: 54 | N39: 159 | O39: 224 | P39: 214 | Q39: 19 | R39: 18 | S39: 94 | T39: 49 | U39: 50 | V39: 57 | W39: 83 | X39: 88 | Y39: 68 | Z39: 119
A40: 262 | B40: MEURTHE ET MOSELLE MEUSE | C40: 27 | D40: PONT A MOUSSON | E40: 554357 | F40: JOEUF MAIRIE | G40: 4.0 | H40: 31 | I40: 134 | J40: 95 | K40: 178 | L40: 81 | M40: 108 | N40: 42 | O40: 88 | P40: 117 | Q40: 117 | R40: 140 | S40: 66 | T40: 73 | U40: 84 | V40: 70 | W40: 10 | X40: 10 | Y40: 39 | Z40: 24
A41: 262 | B41: VOSGES | C41: 55 | D41: SAINT DIE | E41: 488556 | F41: RAON L ETAPE | G41: 2.8 | H41: 32 | I41: 24 | J41: 27 | K41: 46 | L41: 183 | M41: 183 | N41: 111 | O41: 80 | P41: 185 | Q41: 77 | R41: 50 | S41: 177 | T41: 79 | U41: 56 | V41: 177 | W41: 60 | X41: 44 | Y41: 93 | Z41: 149
A42: 262 | B42: AUBE HAUTE MARNE | C42: 21 | D42: CHAUMONT | E42: 410560 | F42: BOURBONNE LES BAINS | G42: 2.0 | H42: 33 | I42: 7 | J42: 3 | K42: 55 | L42: 111 | M42: 123 | N42: 254 | O42: 224 | P42: 7 | Q42: 208 | R42: 150 | S42: 262 | T42: 43 | U42: 60 | V42: 23 | W42: 227 | X42: 254 | Y42: 79 | Z42: 241
A43: 262 | B43: MARNE-ARDENNES | C43: 11 | D43: REIMS | E43: 551310 | F43: REIMS CHATILLONS | G43: 3.8 | H43: 34 | I43: 124 | J43: 87 | K43: 165 | L43: 27 | M43: 46 | N43: 89 | O43: 18 | P43: 71 | Q43: 50 | R43: 72 | S43: 48 | T43: 98 | U43: 90 | V43: 153 | W43: 45 | X43: 41 | Y43: 94 | Z43: 67
A44: 262 | B44: MARNE-ARDENNES | C44: 6 | D44: CHALONS EN CHAMPAGNE | E44: 451120 | F44: SARRY | G44: 2.5 | H44: 35 | I44: 41 | J44: 53 | K44: 32 | L44: 14 | M44: 36 | N44: 38 | O44: 11 | P44: 5 | Q44: 46 | R44: 60 | S44: 60 | T44: 226 | U44: 187 | V44: 258 | W44: 175 | X44: 250 | Y44: 78 | Z44: 87
A45: 262 | B45: BAS-RHIN | C45: 5101 | D45: SELESTAT | E45: 4121 | F45: SCHIRMECK | G45: 4.0 | H45: 36 | I45: 32 | J45: 62 | K45: 10 | L45: 77 | M45: 96 | N45: 203 | O45: 63 | P45: 42 | Q45: 68 | R45: 51 | S45: 138 | T45: 101 | U45: 118 | V45: 81 | W45: 139 | X45: 202 | Y45: 50 | Z45: 95
A46: 262 | B46: HAUT-RHIN | C46: 5130 | D46: COLMAR | E46: 4153 | F46: ROUFFACH | G46: 3.8 | H46: 37 | I46: 120 | J46: 106 | K46: 134 | L46: 66 | M46: 37 | N46: 79 | O46: 224 | P46: 184 | Q46: 187 | R46: 168 | S46: 175 | T46: 13 | U46: 16 | V46: 35 | W46: 55 | X46: 45 | Y46: 125 | Z46: 89
A47: 262 | B47: MEURTHE ET MOSELLE MEUSE | C47: 26 | D47: NANCY | E47: 454671 | F47: VANDOEUVRE LES NANCY | G47: 5.0 | H47: 38 | I47: 93 | J47: 47 | K47: 172 | L47: 41 | M47: 47 | N47: 32 | O47: 38 | P47: 186 | Q47: 230 | R47: 219 | S47: 215 | T47: 112 | U47: 116 | V47: 116 | W47: 12 | X47: 6 | Y47: 260 | Z47: 13
A48: 262 | B48: BAS-RHIN | C48: 5101 | D48: SELESTAT | E48: 4107 | F48: VILLE | G48: 3.0 | H48: 39 | I48: 175 | J48: 221 | K48: 91 | L48: 11 | M48: 15 | N48: 96 | O48: 87 | P48: 1 | Q48: 75 | R48: 79 | S48: 93 | T48: 40 | U48: 19 | V48: 178 | W48: 138 | X48: 167 | Y48: 46 | Z48: 169
A49: 262 | B49: MARNE-ARDENNES | C49: 2 | D49: CHARLEVILLE MEZIERES | E49: 508820 | F49: VOUZIERS | G49: 3.0 | H49: 40 | I49: 236 | J49: 255 | K49: 191 | L49: 23 | M49: 45 | N49: 14 | O49: 88 | P49: 68 | Q49: 54 | R49: 55 | S49: 94 | T49: 53 | U49: 43 | V49: 85 | W49: 8 | X49: 18 | Y49: 23 | Z49: 9
A50: 262 | B50: MARNE-ARDENNES | C50: 11 | D50: REIMS | E50: 551340 | F50: BETHENY | G50: 3.2 | H50: 41 | I50: 58 | J50: 106 | K50: 13 | L50: 50 | M50: 70 | N50: 30 | O50: 16 | P50: 174 | Q50: 154 | R50: 201 | S50: 44 | T50: 225 | U50: 241 | V50: 159 | W50: 20 | X50: 40 | Y50: 19 | Z50: 12
A51: 262 | B51: MEURTHE ET MOSELLE MEUSE | C51: 31 | D51: VERDUN | E51: 455231 | F51: COMMERCY | G51: 4.0 | H51: 42 | I51: 178 | J51: 159 | K51: 182 | L51: 9 | M51: 8 | N51: 16 | O51: 88 | P51: 169 | Q51: 227 | R51: 225 | S51: 182 | T51: 31 | U51: 21 | V51: 91 | W51: 40 | X51: 93 | Y51: 29 | Z51: 24
A52: 262 | B52: MARNE-ARDENNES | C52: 2 | D52: CHARLEVILLE MEZIERES | E52: 508815 | F52: CARIGNAN | G52: 3.1 | H52: 43 | I52: 76 | J52: 106 | K52: 44 | L52: 19 | M52: 33 | N52: 28 | O52: 99 | P52: 12 | Q52: 53 | R52: 110 | S52: 26 | T52: 192 | U52: 198 | V52: 150 | W52: 121 | X52: 155 | Y52: 58 | Z52: 130
A53: 262 | B53: VOSGES | C53: 57 | D53: EPINAL | E53: 588631 | F53: THAON LES VOSGES | G53: 5.6 | H53: 44 | I53: 62 | J53: 62 | K53: 57 | L53: 34 | M53: 42 | N53: 55 | O53: 36 | P53: 162 | Q53: 209 | R53: 179 | S53: 226 | T53: 42 | U53: 48 | V53: 39 | W53: 129 | X53: 168 | Y53: 62 | Z53: 104
A54: 262 | B54: BAS-RHIN | C54: 5060 | D54: HAGUENAU | E54: 4066 | F54: NIEDERBRONN LES BAINS | G54: 6.0 | H54: 45 | I54: 27 | J54: 40 | K54: 30 | L54: 102 | M54: 111 | N54: 139 | O54: 86 | P54: 103 | Q54: 88 | R54: 39 | S54: 261 | T54: 137 | U54: 124 | V54: 168 | W54: 100 | X54: 96 | Y54: 84 | Z54: 118
A55: 262 | B55: BAS-RHIN | C55: 5006 | D55: STRASBOURG | E55: 4038 | F55: OBERHAUSBERGEN | G55: 5.0 | H55: 46 | I55: 173 | J55: 175 | K55: 153 | L55: 32 | M55: 19 | N55: 32 | O55: 31 | P55: 261 | Q55: 57 | R55: 178 | S55: 9 | T55: 128 | U55: 121 | V55: 149 | W55: 18 | X55: 22 | Y55: 32 | Z55: 28
A56: 262 | B56: MARNE-ARDENNES | C56: 11 | D56: REIMS | E56: 451361 | F56: PIERRY LECLERC | G56: 2.0 | H56: 47 | I56: 6 | J56: 4 | K56: 50 | L56: 91 | M56: 158 | N56: 42 | O56: 88 | P56: 45 | Q56: 264 | R56: 256 | S56: 239 | T56: 29 | U56: 26 | V56: 59 | W56: 244 | X56: 239 | Y56: 241 | Z56: 170
A57: 262 | B57: BAS-RHIN | C57: 5060 | D57: HAGUENAU | E57: 4071 | F57: WISSEMBOURG | G57: 8.8 | H57: 48 | I57: 43 | J57: 31 | K57: 68 | L57: 158 | M57: 203 | N57: 125 | O57: 174 | P57: 60 | Q57: 39 | R57: 48 | S57: 56 | T57: 64 | U57: 63 | V57: 68 | W57: 179 | X57: 233 | Y57: 90 | Z57: 133
A58: 262 | B58: VOSGES | C58: 57 | D58: EPINAL | E58: 588716 | F58: XERTIGNY | G58: 3.0 | H58: 49 | I58: 64 | J58: 87 | K58: 43 | L58: 133 | M58: 120 | N58: 209 | O58: 224 | P58: 76 | Q58: 82 | R58: 101 | S58: 76 | T58: 12 | U58: 15 | V58: 18 | W58: 250 | X58: 210 | Y58: 240 | Z58: 250
A59: 262 | B59: BAS-RHIN | C59: 5006 | D59: STRASBOURG | E59: 4020 | F59: STRASBOURG ROBERTSAU | G59: 4.9 | H59: 50 | I59: 156 | J59: 137 | K59: 170 | L59: 21 | M59: 28 | N59: 45 | O59: 5 | P59: 157 | Q59: 61 | R59: 84 | S59: 50 | T59: 136 | U59: 114 | V59: 189 | W59: 32 | X59: 39 | Y59: 88 | Z59: 26
A60: 262 | B60: MEURTHE ET MOSELLE MEUSE | C60: 31 | D60: VERDUN | E60: 555679 | F60: VERDUN MAZEL | G60: 4.0 | H60: 51 | I60: 25 | J60: 40 | K60: 20 | L60: 63 | M60: 81 | N60: 26 | O60: 202 | P60: 115 | Q60: 163 | R60: 173 | S60: 94 | T60: 85 | U60: 87 | V60: 110 | W60: 170 | X60: 132 | Y60: 227 | Z60: 135
A61: 262 | B61: MOSELLE | C61: 42 | D61: MOSELLE EST | E61: 557250 | F61: CREUTZWALD | G61: 3.1 | H61: 52 | I61: 39 | J61: 40 | K61: 48 | L61: 263 | M61: 269 | N61: 251 | O61: 187 | P61: 100 | Q61: 9 | R61: 23 | S61: 23 | T61: 122 | U61: 119 | V61: 138 | W61: 68 | X61: 98 | Y61: 9 | Z61: 179
A62: 262 | B62: MEURTHE ET MOSELLE MEUSE | C62: 31 | D62: VERDUN | E62: 455298 | F62: ETAIN | G62: 1.7 | H62: 53 | I62: 48 | J62: 70 | K62: 31 | L62: 273 | M62: 273 | N62: 106 | O62: 224 | P62: 172 | Q62: 263 | R62: 255 | S62: 259 | T62: 3 | U62: 3 | V62: 10 | W62: 65 | X62: 55 | Y62: 82 | Z62: 143
A63: 262 | B63: MOSELLE | C63: 42 | D63: MOSELLE EST | E63: 557503 | F63: NEUNKIRCH | G63: 3.8 | H63: 54 | I63: 10 | J63: 11 | K63: 37 | L63: 48 | M63: 63 | N63: 119 | O63: 197 | P63: 18 | Q63: 223 | R63: 212 | S63: 236 | T63: 148 | U63: 125 | V63: 186 | W63: 201 | X63: 252 | Y63: 64 | Z63: 156
A64: 262 | B64: MOSELLE | C64: 42 | D64: MOSELLE EST | E64: 557668 | F64: VALMONT | G64: 4.0 | H64: 55 | I64: 20 | J64: 20 | K64: 22 | L64: 160 | M64: 166 | N64: 101 | O64: 207 | P64: 132 | Q64: 106 | R64: 93 | S64: 121 | T64: 116 | U64: 110 | V64: 157 | W64: 156 | X64: 145 | Y64: 150 | Z64: 136
A65: 262 | B65: MEURTHE ET MOSELLE MEUSE | C65: 31 | D65: VERDUN | E65: 454414 | F65: LONGWY HAUT | G65: 4.0 | H65: 56 | I65: 141 | J65: 145 | K65: 121 | L65: 36 | M65: 76 | N65: 16 | O65: 109 | P65: 59 | Q65: 35 | R65: 57 | S65: 33 | T65: 27 | U65: 42 | V65: 20 | W65: 224 | X65: 200 | Y65: 188 | Z65: 206
A66: 262 | B66: AUBE HAUTE MARNE | C66: 14 | D66: TROYES | E66: 510511 | F66: TROYES BROSSOLETTE | G66: 3.0 | H66: 57 | I66: 125 | J66: 175 | K66: 53 | L66: 147 | M66: 202 | N66: 140 | O66: 121 | P66: 57 | Q66: 6 | R66: 5 | S66: 36 | T66: 89 | U66: 96 | V66: 85 | W66: 161 | X66: 157 | Y66: 157 | Z66: 119
A67: 262 | B67: MEURTHE ET MOSELLE MEUSE | C67: 31 | D67: VERDUN | E67: 455566 | F67: REVIGNY SUR ORNAIN | G67: 3.8 | H67: 58 | I67: 46 | J67: 31 | K67: 82 | L67: 59 | M67: 103 | N67: 147 | O67: 143 | P67: 2 | Q67: 124 | R67: 91 | S67: 174 | T67: 110 | U67: 95 | V67: 169 | W67: 165 | X67: 230 | Y67: 24 | Z67: 239
A68: 262 | B68: MOSELLE | C68: 45 | D68: METZ | E68: 457453 | F68: MONTIGNY CENTRALE | G68: 7.8 | H68: 59 | I68: 23 | J68: 31 | K68: 36 | L68: 109 | M68: 80 | N68: 100 | O68: 49 | P68: 221 | Q68: 188 | R68: 237 | S68: 41 | T68: 125 | U68: 109 | V68: 170 | W68: 103 | X68: 87 | Y68: 134 | Z68: 110
A69: 262 | B69: MEURTHE ET MOSELLE MEUSE | C69: 27 | D69: PONT A MOUSSON | E69: 554257 | F69: DIEULOUARD | G69: 4.2 | H69: 60 | I69: 66 | J69: 40 | K69: 125 | L69: 82 | M69: 152 | N69: 132 | O69: 45 | P69: 10 | Q69: 136 | R69: 114 | S69: 148 | T69: 66 | U69: 66 | V69: 73 | W69: 135 | X69: 129 | Y69: 177 | Z69: 79
A70: 262 | B70: BAS-RHIN | C70: 5101 | D70: SELESTAT | E70: 4126 | F70: MUTZIG | G70: 2.7 | H70: 61 | I70: 193 | J70: 188 | K70: 193 | L70: 45 | M70: 34 | N70: 46 | O70: 79 | P70: 195 | Q70: 148 | R70: 176 | S70: 58 | T70: 68 | U70: 77 | V70: 66 | W70: 15 | X70: 20 | Y70: 3 | Z70: 45
A71: 262 | B71: AUBE HAUTE MARNE | C71: 21 | D71: CHAUMONT | E71: 510590 | F71: CHAUMONT REPUBLIQUE | G71: 3.9 | H71: 62 | I71: 162 | J71: 79 | K71: 237 | L71: 92 | M71: 153 | N71: 27 | O71: 84 | P71: 84 | Q71: 49 | R71: 69 | S71: 51 | T71: 54 | U71: 41 | V71: 100 | W71: 47 | X71: 81 | Y71: 16 | Z71: 93
A72: 262 | B72: MEURTHE ET MOSELLE MEUSE | C72: 26 | D72: NANCY | E72: 554491 | F72: NANCY SAINT SEBASTIEN | G72: 3.1 | H72: 63 | I72: 38 | J72: 17 | K72: 113 | L72: 172 | M72: 106 | N72: 169 | O72: 224 | P72: 219 | Q72: 31 | R72: 34 | S72: 62 | T72: 113 | U72: 117 | V72: 114 | W72: 207 | X72: 183 | Y72: 141 | Z72: 225
A73: 262 | B73: MEURTHE ET MOSELLE MEUSE | C73: 26 | D73: NANCY | E73: 554636 | F73: TOMBLAINE | G73: 3.0 | H73: 64 | I73: 34 | J73: 70 | K73: 9 | L73: 232 | M73: 254 | N73: 159 | O73: 224 | P73: 91 | Q73: 114 | R73: 97 | S73: 131 | T73: 22 | U73: 33 | V73: 15 | W73: 213 | X73: 203 | Y73: 129 | Z73: 218
A74: 262 | B74: MARNE-ARDENNES | C74: 2 | D74: CHARLEVILLE MEZIERES | E74: 508819 | F74: MOUZON | G74: 1.8 | H74: 65 | I74: 53 | J74: 47 | K74: 70 | L74: 51 | M74: 35 | N74: 34 | O74: 74 | P74: 211 | Q74: 72 | R74: 131 | S74: 27 | T74: 267 | U74: 272 | V74: 123 | W74: 36 | X74: 53 | Y74: 66 | Z74: 40
A75: 262 | B75: MEURTHE ET MOSELLE MEUSE | C75: 31 | D75: VERDUN | E75: 455678 | F75: VERDUN CENTRALE | G75: 11.3 | H75: 66 | I75: 42 | J75: 58 | K75: 26 | L75: 69 | M75: 105 | N75: 48 | O75: 27 | P75: 152 | Q75: 224 | R75: 244 | S75: 103 | T75: 160 | U75: 180 | V75: 99 | W75: 66 | X75: 65 | Y75: 183 | Z75: 38
A76: 262 | B76: VOSGES | C76: 57 | D76: EPINAL | E76: 488706 | F76: VITTEL | G76: 3.9 | H76: 67 | I76: 47 | J76: 62 | K76: 38 | L76: 131 | M76: 134 | N76: 242 | O76: 198 | P76: 50 | Q76: 64 | R76: 36 | S76: 221 | T76: 184 | U76: 172 | V76: 188 | W76: 104 | X76: 52 | Y76: 185 | Z76: 201
A77: 262 | B77: MOSELLE | C77: 45 | D77: METZ | E77: 557444 | F77: METZ SAINT JULIEN | G77: 6.0 | H77: 68 | I77: 131 | J77: 106 | K77: 153 | L77: 134 | M77: 114 | N77: 172 | O77: 120 | P77: 159 | Q77: 111 | R77: 106 | S77: 107 | T77: 38 | U77: 45 | V77: 36 | W77: 76 | X77: 146 | Y77: 49 | Z77: 48
A78: 262 | B78: MARNE-ARDENNES | C78: 6 | D78: CHALONS EN CHAMPAGNE | E78: 551354 | F78: VERTUS | G78: 2.3 | H78: 69 | I78: 4 | J78: 6 | K78: 4 | L78: 186 | M78: 109 | N78: 227 | O78: 103 | P78: 236 | Q78: 268 | R78: 270 | S78: 40 | T78: 52 | U78: 67 | V78: 38 | W78: 223 | X78: 226 | Y78: 173 | Z78: 193
A79: 262 | B79: MARNE-ARDENNES | C79: 11 | D79: REIMS | E79: 551365 | F79: DORMANS | G79: 2.7 | H79: 70 | I79: 5 | J79: 2 | K79: 77 | L79: 149 | M79: 186 | N79: 188 | O79: 14 | P79: 161 | Q79: 199 | R79: 241 | S79: 42 | T79: 240 | U79: 239 | V79: 220 | W79: 130 | X79: 116 | Y79: 252 | Z79: 39
A80: 262 | B80: MOSELLE | C80: 44 | D80: MOSELLE NORD | E80: 557347 | F80: GUENANGE | G80: 3.0 | H80: 71 | I80: 81 | J80: 62 | K80: 118 | L80: 157 | M80: 220 | N80: 116 | O80: 53 | P80: 83 | Q80: 174 | R80: 149 | S80: 185 | T80: 143 | U80: 173 | V80: 69 | W80: 29 | X80: 17 | Y80: 100 | Z80: 54
A81: 262 | B81: BAS-RHIN | C81: 5006 | D81: STRASBOURG | E81: 4037 | F81: MUNDOLSHEIM | G81: 4.6 | H81: 72 | I81: 152 | J81: 183 | K81: 101 | L81: 10 | M81: 6 | N81: 54 | O81: 212 | P81: 113 | Q81: 153 | R81: 180 | S81: 70 | T81: 84 | U81: 68 | V81: 154 | W81: 189 | X81: 198 | Y81: 162 | Z81: 126
A82: 262 | B82: VOSGES | C82: 55 | D82: SAINT DIE | E82: 588186 | F82: BRUYERES | G82: 3.8 | H82: 73 | I82: 86 | J82: 87 | K82: 85 | L82: 76 | M82: 86 | N82: 89 | O82: 81 | P82: 123 | Q82: 167 | R82: 147 | S82: 172 | T82: 39 | U82: 23 | V82: 127 | W82: 186 | X82: 181 | Y82: 146 | Z82: 155
A83: 264 | B83: BAS-RHIN | C83: 5060 | D83: HAGUENAU | E83: 4087 | F83: SAVERNE | G83: 7.8 | H83: 74 | I83: 242 | J83: 237 | K83: 234 | L83: 49 | M83: 24 | N83: 64 | O83: 72 | P83: 241 | Q83: 109 | R83: 103 | S83: 108 | T83: 32 | U83: 40 | V83: 30 | W83: 22 | X83: 27 | Y83: 31 | Z83: 15
A84: 264 | B84: MEURTHE ET MOSELLE MEUSE | C84: 27 | D84: PONT A MOUSSON | E84: 554376 | F84: LAXOU LA SAPINIERE | G84: 3.0 | H84: 75 | I84: 181 | J84: 195 | K84: 145 | L84: 180 | M84: 168 | N84: 81 | O84: 51 | P84: 225 | Q84: 37 | R84: 104 | S84: 18 | T84: 65 | U84: 73 | V84: 60 | W84: 30 | X84: 54 | Y84: 20 | Z84: 29
A85: 264 | B85: MOSELLE | C85: 44 | D85: MOSELLE NORD | E85: 457192 | F85: CATTENOM | G85: 2.4 | H85: 76 | I85: 140 | J85: 95 | K85: 189 | L85: 78 | M85: 74 | N85: 144 | O85: 161 | P85: 88 | Q85: 78 | R85: 70 | S85: 122 | T85: 80 | U85: 53 | V85: 187 | W85: 79 | X85: 47 | Y85: 127 | Z85: 195
A86: 264 | B86: MARNE-ARDENNES | C86: 11 | D86: REIMS | E86: 551309 | F86: REIMS EUROPE | G86: 3.0 | H86: 77 | I86: 14 | J86: 8 | K86: 54 | L86: 240 | M86: 213 | N86: 191 | O86: 179 | P86: 233 | Q86: 71 | R86: 119 | S86: 31 | T86: 95 | U86: 107 | V86: 85 | W86: 255 | X86: 236 | Y86: 171 | Z86: 262
A87: 264 | B87: BAS-RHIN | C87: 5060 | D87: HAGUENAU | E87: 4095 | F87: SARRE UNION | G87: 4.1 | H87: 78 | I87: 118 | J87: 87 | K87: 155 | L87: 61 | M87: 43 | N87: 194 | O87: 209 | P87: 102 | Q87: 79 | R87: 75 | S87: 106 | T87: 103 | U87: 136 | V87: 63 | W87: 125 | X87: 204 | Y87: 8 | Z87: 209
A88: 264 | B88: VOSGES | C88: 55 | D88: SAINT DIE | E88: 488326 | F88: GERARDMER | G88: 6.0 | H88: 79 | I88: 15 | J88: 28 | K88: 6 | L88: 208 | M88: 189 | N88: 248 | O88: 105 | P88: 179 | Q88: 44 | R88: 20 | S88: 230 | T88: 194 | U88: 145 | V88: 241 | W88: 230 | X88: 211 | Y88: 233 | Z88: 170
A89: 264 | B89: MOSELLE | C89: 45 | D89: METZ | E89: 557434 | F89: MARLY | G89: 4.0 | H89: 80 | I89: 18 | J89: 20 | K89: 15 | L89: 143 | M89: 184 | N89: 213 | O89: 201 | P89: 13 | Q89: 62 | R89: 33 | S89: 225 | T89: 216 | U89: 190 | V89: 232 | W89: 239 | X89: 218 | Y89: 228 | Z89: 204
A90: 264 | B90: AUBE HAUTE MARNE | C90: 14 | D90: TROYES | E90: 510570 | F90: NOGENT SUR SEINE | G90: 4.7 | H90: 81 | I90: 11 | J90: 6 | K90: 49 | L90: 190 | M90: 204 | N90: 219 | O90: 215 | P90: 81 | Q90: 176 | R90: 196 | S90: 98 | T90: 236 | U90: 202 | V90: 263 | W90: 94 | X90: 85 | Y90: 139 | Z90: 100
A91: 264 | B91: MOSELLE | C91: 44 | D91: MOSELLE NORD | E91: 457348 | F91: HAGONDANGE | G91: 8.1 | H91: 82 | I91: 195 | J91: 188 | K91: 200 | L91: 56 | M91: 69 | N91: 142 | O91: 76 | P91: 43 | Q91: 48 | R91: 27 | S91: 217 | T91: 88 | U91: 78 | V91: 141 | W91: 37 | X91: 78 | Y91: 34 | Z91: 41
A92: 264 | B92: VOSGES | C92: 55 | D92: SAINT DIE | E92: 588587 | F92: SAINT DIE CATHEDRALE | G92: 4.0 | H92: 83 | I92: 54 | J92: 37 | K92: 97 | L92: 223 | M92: 227 | N92: 214 | O92: 202 | P92: 143 | Q92: 76 | R92: 78 | S92: 94 | T92: 74 | U92: 61 | V92: 110 | W92: 154 | X92: 112 | Y92: 231 | Z92: 95
A93: 264 | B93: MARNE-ARDENNES | C93: 6 | D93: CHALONS EN CHAMPAGNE | E93: 451101 | F93: CHALONS VIVIERS | G93: 8.7 | H93: 84 | I93: 36 | J93: 58 | K93: 18 | L93: 80 | M93: 50 | N93: 149 | O93: 117 | P93: 188 | Q93: 138 | R93: 235 | S93: 17 | T93: 218 | U93: 233 | V93: 144 | W93: 145 | X93: 142 | Y93: 187 | Z93: 77
A94: 264 | B94: MOSELLE | C94: 44 | D94: MOSELLE NORD | E94: 557182 | F94: BOUZONVILLE | G94: 2.7 | H94: 85 | I94: 35 | J94: 38 | K94: 47 | L94: 177 | M94: 222 | N94: 179 | O94: 166 | P94: 34 | Q94: 122 | R94: 111 | S94: 117 | T94: 87 | U94: 128 | V94: 48 | W94: 218 | X94: 150 | Y94: 154 | Z94: 262
A95: 264 | B95: MOSELLE | C95: 44 | D95: MOSELLE NORD | E95: 557303 | F95: FAMECK | G95: 3.8 | H95: 86 | I95: 77 | J95: 20 | K95: 195 | L95: 173 | M95: 137 | N95: 25 | O95: 224 | P95: 243 | Q95: 24 | R95: 13 | S95: 197 | T95: 188 | U95: 204 | V95: 113 | W95: 118 | X95: 136 | Y95: 55 | Z95: 160
A96: 264 | B96: BAS-RHIN | C96: 5060 | D96: HAGUENAU | E96: 4057 | F96: BISCHWILLER | G96: 6.6 | H96: 87 | I96: 166 | J96: 195 | K96: 116 | L96: 139 | M96: 133 | N96: 184 | O96: 221 | P96: 97 | Q96: 164 | R96: 125 | S96: 202 | T96: 14 | U96: 18 | V96: 14 | W96: 84 | X96: 131 | Y96: 12 | Z96: 205
A97: 264 | B97: MOSELLE | C97: 44 | D97: MOSELLE NORD | E97: 557622 | F97: SIERCK LES BAINS | G97: 2.1 | H97: 88 | I97: 144 | J97: 101 | K97: 184 | L97: 25 | M97: 29 | N97: 103 | O97: 19 | P97: 96 | Q97: 143 | R97: 102 | S97: 213 | T97: 213 | U97: 227 | V97: 155 | W97: 38 | X97: 34 | Y97: 225 | Z97: 17
A98: 264 | B98: BAS-RHIN | C98: 5060 | D98: HAGUENAU | E98: 4079 | F98: SOULTZ SOUS FORETS | G98: 1.7 | H98: 89 | I98: 49 | J98: 31 | K98: 88 | L98: 231 | M98: 126 | N98: 230 | O98: 134 | P98: 262 | Q98: 241 | R98: 249 | S98: 127 | T98: 221 | U98: 203 | V98: 237 | W98: 7 | X98: 7 | Y98: 40 | Z98: 31
A99: 264 | B99: MOSELLE | C99: 42 | D99: MOSELLE EST | E99: 457308 | F99: FORBACH CENTRALE | G99: 11.1 | H99: 90 | I99: 159 | J99: 145 | K99: 163 | L99: 60 | M99: 71 | N99: 92 | O99: 113 | P99: 72 | Q99: 131 | R99: 116 | S99: 130 | T99: 93 | U99: 89 | V99: 133 | W99: 50 | X99: 134 | Y99: 22 | Z99: 23
A100: 264 | B100: MOSELLE | C100: 44 | D100: MOSELLE NORD | E100: 557307 | F100: FONTOY | G100: 3.1 | H100: 91 | I100: 29 | J100: 47 | K100: 27 | L100: 165 | M100: 228 | N100: 200 | O100: 224 | P100: 3 | Q100: 104 | R100: 37 | S100: 269 | T100: 245 | U100: 260 | V100: 146 | W100: 73 | X100: 64 | Y100: 169 | Z100: 61
A101: 264 | B101: BAS-RHIN | C101: 5006 | D101: STRASBOURG | E101: 4054 | F101: STRASBOURG MONTAGNE VERTE | G101: 2.6 | H101: 92 | I101: 232 | J101: 242 | K101: 215 | L101: 64 | M101: 64 | N101: 8 | O101: 70 | P101: 248 | Q101: 262 | R101: 259 | S101: 198 | T101: 4 | U101: 5 | V101: 1 | W101: 97 | X101: 227 | Y101: 6 | Z101: 90
A102: 264 | B102: BAS-RHIN | C102: 5101 | D102: SELESTAT | E102: 4119 | F102: OBERNAI | G102: 3.9 | H102: 93 | I102: 219 | J102: 237 | K102: 196 | L102: 75 | M102: 38 | N102: 49 | O102: 144 | P102: 247 | Q102: 120 | R102: 234 | S102: 13 | T102: 7 | U102: 7 | V102: 11 | W102: 152 | X102: 191 | Y102: 132 | Z102: 69
A103: 264 | B103: MARNE-ARDENNES | C103: 2 | D103: CHARLEVILLE MEZIERES | E103: 508817 | F103: CHARLEVILLE MOHON | G103: 3.1 | H103: 94 | I103: 22 | J103: 31 | K103: 29 | L103: 261 | M103: 259 | N103: 239 | O103: 224 | P103: 167 | Q103: 236 | R103: 233 | S103: 194 | T103: 77 | U103: 113 | V103: 44 | W103: 53 | X103: 32 | Y103: 109 | Z103: 131
A104: 264 | B104: BAS-RHIN | C104: 5101 | D104: SELESTAT | E104: 4101 | F104: SELESTAT CENTRE | G104: 8.7 | H104: 95 | I104: 229 | J104: 227 | K104: 224 | L104: 26 | M104: 21 | N104: 74 | O104: 136 | P104: 149 | Q104: 91 | R104: 81 | S104: 124 | T104: 28 | U104: 34 | V104: 31 | W104: 92 | X104: 94 | Y104: 102 | Z104: 84
A105: 264 | B105: MARNE-ARDENNES | C105: 11 | D105: REIMS | E105: 451370 | F105: EPERNAY VERRON | G105: 10.6 | H105: 96 | I105: 65 | J105: 70 | K105: 58 | L105: 86 | M105: 52 | N105: 104 | O105: 48 | P105: 235 | Q105: 172 | R105: 204 | S105: 72 | T105: 96 | U105: 81 | V105: 171 | W105: 190 | X105: 174 | Y105: 167 | Z105: 161
A106: 264 | B106: MOSELLE | C106: 44 | D106: MOSELLE NORD | E106: 557508 | F106: NILVANGE | G106: 2.8 | H106: 97 | I106: 100 | J106: 75 | K106: 133 | L106: 125 | M106: 88 | N106: 240 | O106: 224 | P106: 121 | Q106: 145 | R106: 160 | S106: 80 | T106: 70 | U106: 92 | V106: 53 | W106: 132 | X106: 73 | Y106: 182 | Z106: 212
A107: 264 | B107: MEURTHE ET MOSELLE MEUSE | C107: 27 | D107: PONT A MOUSSON | E107: 554533 | F107: PONT A MOUSSON BREUIL | G107: 2.9 | H107: 98 | I107: 99 | J107: 123 | K107: 59 | L107: 65 | M107: 100 | N107: 29 | O107: 83 | P107: 112 | Q107: 90 | R107: 88 | S107: 102 | T107: 232 | U107: 212 | V107: 250 | W107: 63 | X107: 59 | Y107: 179 | Z107: 52
A108: 30 | B108: MARNE-ARDENNES | C108: 2 | D108: CHARLEVILLE MEZIERES | E108: 508833 | F108: VILLERS SEMEUSE CORA | G108: 3.1 | H108: 99 | I108: 160 | J108: 168 | K108: 141 | L108: 112 | M108: 179 | N108: 31 | O108: 56 | P108: 109 | Q108: 38 | R108: 135 | S108: 10 | T108: 140 | U108: 167 | V108: 76 | W108: 58 | X108: 57 | Y108: 112 | Z108: 83
A109: 30 | B109: VOSGES | C109: 57 | D109: EPINAL | E109: 488286 | F109: EPINAL ARISTIDE BRIAND | G109: 8.8 | H109: 100 | I109: 222 | J109: 221 | K109: 227 | L109: 22 | M109: 23 | N109: 13 | O109: 40 | P109: 191 | Q109: 63 | R109: 46 | S109: 146 | T109: 71 | U109: 101 | V109: 42 | W109: 88 | X109: 74 | Y109: 201 | Z109: 60
A110: 30 | B110: MOSELLE | C110: 42 | D110: MOSELLE EST | E110: 457163 | F110: BEHREN LES FORBACH | G110: 2.9 | H110: 101 | I110: 50 | J110: 20 | K110: 128 | L110: 89 | M110: 68 | N110: 126 | O110: 171 | P110: 131 | Q110: 150 | R110: 162 | S110: 85 | T110: 182 | U110: 207 | V110: 88 | W110: 193 | X110: 273 | Y110: 28 | Z110: 113
A111: 30 | B111: MARNE-ARDENNES | C111: 6 | D111: CHALONS EN CHAMPAGNE | E111: 451166 | F111: VITRY LE FRANCOIS | G111: 7.3 | H111: 102 | I111: 97 | J111: 79 | K111: 119 | L111: 37 | M111: 57 | N111: 110 | O111: 41 | P111: 58 | Q111: 192 | R111: 228 | S111: 54 | T111: 193 | U111: 175 | V111: 202 | W111: 89 | X111: 58 | Y111: 234 | Z111: 82
A112: 30 | B112: VOSGES | C112: 55 | D112: SAINT DIE | E112: 588551 | F112: RAMBERVILLERS | G112: 3.7 | H112: 103 | I112: 13 | J112: 15 | K112: 21 | L112: 237 | M112: 198 | N112: 258 | O112: 142 | P112: 217 | Q112: 105 | R112: 77 | S112: 171 | T112: 172 | U112: 151 | V112: 190 | W112: 236 | X112: 244 | Y112: 131 | Z112: 238
A113: 30 | B113: MARNE-ARDENNES | C113: 11 | D113: REIMS | E113: 451336 | F113: TINQUEUX | G113: 6.4 | H113: 104 | I113: 126 | J113: 137 | K113: 89 | L113: 53 | M113: 61 | N113: 85 | O113: 30 | P113: 140 | Q113: 141 | R113: 142 | S113: 113 | T113: 222 | U113: 232 | V113: 174 | W113: 42 | X113: 25 | Y113: 206 | Z113: 44
A114: 30 | B114: AUBE HAUTE MARNE | C114: 14 | D114: TROYES | E114: 410571 | F114: ROMILLY ORMES | G114: 5.5 | H114: 105 | I114: 88 | J114: 137 | K114: 39 | L114: 73 | M114: 72 | N114: 47 | O114: 59 | P114: 202 | Q114: 206 | R114: 232 | S114: 69 | T114: 179 | U114: 191 | V114: 107 | W114: 61 | X114: 80 | Y114: 114 | Z114: 47
A115: 30 | B115: VOSGES | C115: 57 | D115: EPINAL | E115: 588336 | F115: GOLBEY | G115: 3.8 | H115: 106 | I115: 96 | J115: 87 | K115: 99 | L115: 94 | M115: 95 | N115: 115 | O115: 81 | P115: 127 | Q115: 80 | R115: 58 | S115: 172 | T115: 203 | U115: 174 | V115: 227 | W115: 110 | X115: 95 | Y115: 140 | Z115: 88
A116: 30 | B116: MARNE-ARDENNES | C116: 11 | D116: REIMS | E116: 551341 | F116: REIMS JEAN JAURES | G116: 4.1 | H116: 107 | I116: 176 | J116: 175 | K116: 166 | L116: 46 | M116: 102 | N116: 62 | O116: 29 | P116: 26 | Q116: 81 | R116: 194 | S116: 20 | T116: 147 | U116: 147 | V116: 122 | W116: 70 | X116: 63 | Y116: 190 | Z116: 49
A117: 30 | B117: HAUT-RHIN | C117: 5169 | D117: MULHOUSE | E117: 4181 | F117: WITTELSHEIM | G117: 4.2 | H117: 108 | I117: 115 | J117: 79 | K117: 152 | L117: 129 | M117: 89 | N117: 143 | O117: 65 | P117: 230 | Q117: 165 | R117: 154 | S117: 126 | T117: 108 | U117: 106 | V117: 126 | W117: 69 | X117: 113 | Y117: 14 | Z117: 138
A118: 30 | B118: MARNE-ARDENNES | C118: 11 | D118: REIMS | E118: 551349 | F118: REIMS SAINT REMI | G118: 3.0 | H118: 109 | I118: 61 | J118: 53 | K118: 74 | L118: 83 | M118: 55 | N118: 69 | O118: 54 | P118: 234 | Q118: 151 | R118: 206 | S118: 36 | T118: 262 | U118: 266 | V118: 221 | W118: 51 | X118: 37 | Y118: 124 | Z118: 80
A119: 30 | B119: AUBE HAUTE MARNE | C119: 21 | D119: CHAUMONT | E119: 410541 | F119: LANGRES | G119: 6.7 | H119: 110 | I119: 44 | J119: 20 | K119: 93 | L119: 136 | M119: 138 | N119: 162 | O119: 155 | P119: 114 | Q119: 239 | R119: 252 | S119: 118 | T119: 104 | U119: 127 | V119: 72 | W119: 169 | X119: 222 | Y119: 98 | Z119: 117
A120: 30 | B120: MEURTHE ET MOSELLE MEUSE | C120: 26 | D120: NANCY | E120: 554486 | F120: NANCY POINT CENTRAL | G120: 5.0 | H120: 111 | I120: 98 | J120: 87 | K120: 102 | L120: 154 | M120: 237 | N120: 105 | O120: 38 | P120: 37 | Q120: 60 | R120: 68 | S120: 82 | T120: 189 | U120: 205 | V120: 116 | W120: 102 | X120: 79 | Y120: 238 | Z120: 56
A121: 30 | B121: MOSELLE | C121: 45 | D121: METZ | E121: 557440 | F121: METZ MOZART | G121: 3.1 | H121: 112 | I121: 114 | J121: 51 | K121: 202 | L121: 214 | M121: 217 | N121: 186 | O121: 98 | P121: 197 | Q121: 17 | R121: 10 | S121: 168 | T121: 97 | U121: 104 | V121: 97 | W121: 198 | X121: 194 | Y121: 107 | Z121: 227
A122: 30 | B122: MARNE-ARDENNES | C122: 11 | D122: REIMS | E122: 451301 | F122: REIMS HOTEL DE VILLE | G122: 7.7 | H122: 113 | I122: 128 | J122: 123 | K122: 132 | L122: 30 | M122: 25 | N122: 35 | O122: 28 | P122: 223 | Q122: 177 | R122: 167 | S122: 129 | T122: 178 | U122: 150 | V122: 205 | W122: 133 | X122: 151 | Y122: 59 | Z122: 162
A123: 30 | B123: MEURTHE ET MOSELLE MEUSE | C123: 27 | D123: PONT A MOUSSON | E123: 554196 | F123: CHAMPIGNEULLES | G123: 3.6 | H123: 114 | I123: 74 | J123: 53 | K123: 109 | L123: 174 | M123: 135 | N123: 226 | O123: 104 | P123: 180 | Q123: 115 | R123: 209 | S123: 22 | T123: 186 | U123: 206 | V123: 106 | W123: 106 | X123: 60 | Y123: 243 | Z123: 112
A124: 30 | B124: MOSELLE | C124: 45 | D124: METZ | E124: 457574 | F124: ROMBAS | G124: 4.0 | H124: 115 | I124: 75 | J124: 116 | K124: 40 | L124: 84 | M124: 117 | N124: 190 | O124: 206 | P124: 4 | Q124: 178 | R124: 159 | S124: 163 | T124: 138 | U124: 112 | V124: 195 | W124: 203 | X124: 192 | Y124: 105 | Z124: 245
A125: 30 | B125: MEURTHE ET MOSELLE MEUSE | C125: 27 | D125: PONT A MOUSSON | E125: 454535 | F125: PONT A MOUSSON CENTRALE | G125: 8.2 | H125: 116 | I125: 207 | J125: 195 | K125: 220 | L125: 52 | M125: 59 | N125: 50 | O125: 35 | P125: 166 | Q125: 144 | R125: 156 | S125: 84 | T125: 69 | U125: 51 | V125: 156 | W125: 52 | X125: 38 | Y125: 203 | Z125: 37
A126: 30 | B126: MEURTHE ET MOSELLE MEUSE | C126: 31 | D126: VERDUN | E126: 455151 | F126: BAR LE DUC | G126: 9.8 | H126: 117 | I126: 113 | J126: 106 | K126: 105 | L126: 117 | M126: 115 | N126: 185 | O126: 107 | P126: 104 | Q126: 175 | R126: 148 | S126: 189 | T126: 99 | U126: 98 | V126: 115 | W126: 113 | X126: 109 | Y126: 80 | Z126: 145
A127: 30 | B127: AUBE HAUTE MARNE | C127: 21 | D127: CHAUMONT | E127: 451154 | F127: JOINVILLE | G127: 2.0 | H127: 118 | I127: 31 | J127: 11 | K127: 147 | L127: 210 | M127: 175 | N127: 228 | O127: 224 | P127: 171 | Q127: 205 | R127: 184 | S127: 203 | T127: 120 | U127: 135 | V127: 91 | W127: 172 | X127: 180 | Y127: 113 | Z127: 170
A128: 30 | B128: VOSGES | C128: 57 | D128: EPINAL | E128: 488281 | F128: ELOYES | G128: 4.8 | H128: 119 | I128: 84 | J128: 106 | K128: 56 | L128: 141 | M128: 150 | N128: 181 | O128: 216 | P128: 73 | Q128: 137 | R128: 113 | S128: 149 | T128: 175 | U128: 155 | V128: 197 | W128: 111 | X128: 62 | Y128: 144 | Z128: 230
A129: 30 | B129: VOSGES | C129: 57 | D129: EPINAL | E129: 588501 | F129: NEUFCHATEAU | G129: 5.0 | H129: 120 | I129: 59 | J129: 87 | K129: 34 | L129: 193 | M129: 165 | N129: 195 | O129: 66 | P129: 203 | Q129: 69 | R129: 52 | S129: 143 | T129: 235 | U129: 234 | V129: 219 | W129: 107 | X129: 104 | Y129: 53 | Z129: 170
A130: 30 | B130: MOSELLE | C130: 42 | D130: MOSELLE EST | E130: 457165 | F130: BITCHE | G130: 2.5 | H130: 121 | I130: 110 | J130: 130 | K130: 62 | L130: 212 | M130: 215 | N130: 133 | O130: 224 | P130: 178 | Q130: 251 | R130: 262 | S130: 61 | T130: 11 | U130: 13 | V130: 17 | W130: 211 | X130: 255 | Y130: 52 | Z130: 199
A131: 30 | B131: MARNE-ARDENNES | C131: 2 | D131: CHARLEVILLE MEZIERES | E131: 508839 | F131: GIVET | G131: 3.8 | H131: 122 | I131: 55 | J131: 28 | K131: 120 | L131: 130 | M131: 170 | N131: 99 | O131: 196 | P131: 51 | Q131: 159 | R131: 172 | S131: 83 | T131: 211 | U131: 208 | V131: 198 | W131: 150 | X131: 154 | Y131: 126 | Z131: 125
A132: 30 | B132: MEURTHE ET MOSELLE MEUSE | C132: 31 | D132: VERDUN | E132: 554413 | F132: LONGWY BAS | G132: 3.9 | H132: 123 | I132: 71 | J132: 20 | K132: 185 | L132: 194 | M132: 148 | N132: 197 | O132: 224 | P132: 190 | Q132: 58 | R132: 63 | S132: 89 | T132: 205 | U132: 188 | V132: 216 | W132: 148 | X132: 92 | Y132: 223 | Z132: 128
A133: 30 | B133: HAUT-RHIN | C133: 5130 | D133: COLMAR | E133: 4157 | F133: NEUF BRISACH | G133: 4.0 | H133: 124 | I133: 210 | J133: 221 | K133: 205 | L133: 114 | M133: 123 | N133: 214 | O133: 202 | P133: 29 | Q133: 162 | R133: 118 | S133: 227 | T133: 16 | U133: 9 | V133: 129 | W133: 95 | X133: 110 | Y133: 104 | Z133: 73
A134: 30 | B134: VOSGES | C134: 57 | D134: EPINAL | E134: 488561 | F134: REMIREMONT | G134: 6.0 | H134: 125 | I134: 103 | J134: 116 | K134: 78 | L134: 226 | M134: 212 | N134: 254 | O134: 147 | P134: 187 | Q134: 36 | R134: 40 | S134: 66 | T134: 114 | U134: 102 | V134: 160 | W134: 187 | X134: 125 | Y134: 222 | Z134: 194
A135: 30 | B135: MARNE-ARDENNES | C135: 6 | D135: CHALONS EN CHAMPAGNE | E135: 551128 | F135: SAINTE MENEHOULD | G135: 3.7 | H135: 126 | I135: 92 | J135: 79 | K135: 103 | L135: 31 | M135: 48 | N135: 156 | O135: 194 | P135: 6 | Q135: 86 | R135: 137 | S135: 35 | T135: 201 | U135: 177 | V135: 217 | W135: 266 | X135: 255 | Y135: 258 | Z135: 237
A136: 30 | B136: MARNE-ARDENNES | C136: 2 | D136: CHARLEVILLE MEZIERES | E136: 408806 | F136: SEDAN LA HALLE | G136: 8.9 | H136: 127 | I136: 52 | J136: 62 | K136: 45 | L136: 116 | M136: 139 | N136: 204 | O136: 101 | P136: 52 | Q136: 140 | R136: 109 | S136: 181 | T136: 243 | U136: 238 | V136: 231 | W136: 149 | X136: 141 | Y136: 138 | Z136: 137
A137: 30 | B137: MEURTHE ET MOSELLE MEUSE | C137: 26 | D137: NANCY | E137: 554476 | F137: NANCY ARTEM | G137: 2.8 | H137: 128 | I137: 137 | J137: 168 | K137: 80 | L137: 67 | M137: 16 | N137: 55 | O137: 23 | P137: 272 | Q137: 214 | R137: 202 | S137: 210 | T137: 121 | U137: 139 | V137: 80 | W137: 90 | X137: 77 | Y137: 97 | Z137: 151
A138: 30 | B138: MEURTHE ET MOSELLE MEUSE | C138: 26 | D138: NANCY | E138: 454426 | F138: LUNEVILLE CARNOT | G138: 9.3 | H138: 129 | I138: 171 | J138: 137 | K138: 192 | L138: 161 | M138: 154 | N138: 124 | O138: 58 | P138: 200 | Q138: 161 | R138: 151 | S138: 140 | T138: 62 | U138: 86 | V138: 50 | W138: 56 | X138: 46 | Y138: 164 | Z138: 68
A139: 30 | B139: VOSGES | C139: 57 | D139: EPINAL | E139: 588206 | F139: CHARMES | G139: 2.8 | H139: 130 | I139: 196 | J139: 188 | K139: 204 | L139: 71 | M139: 27 | N139: 65 | O139: 168 | P139: 255 | Q139: 34 | R139: 16 | S139: 210 | T139: 133 | U139: 196 | V139: 39 | W139: 112 | X139: 153 | Y139: 89 | Z139: 70
A140: 30 | B140: MARNE-ARDENNES | C140: 6 | D140: CHALONS EN CHAMPAGNE | E140: 451381 | F140: SEZANNE CHAMP BENOIST | G140: 6.7 | H140: 131 | I140: 130 | J140: 130 | K140: 112 | L140: 43 | M140: 77 | N140: 76 | O140: 21 | P140: 78 | Q140: 121 | R140: 145 | S140: 59 | T140: 183 | U140: 146 | V140: 222 | W140: 184 | X140: 130 | Y140: 235 | Z140: 158
A141: 30 | B141: AUBE HAUTE MARNE | C141: 21 | D141: CHAUMONT | E141: 551157 | F141: SAINT DIZIER EUROPE | G141: 2.9 | H141: 132 | I141: 138 | J141: 130 | K141: 138 | L141: 105 | M141: 140 | N141: 73 | O141: 50 | P141: 116 | Q141: 266 | R141: 267 | S141: 151 | T141: 117 | U141: 171 | V141: 47 | W141: 27 | X141: 71 | Y141: 37 | Z141: 7
A142: 30 | B142: MEURTHE ET MOSELLE MEUSE | C142: 31 | D142: VERDUN | E142: 555624 | F142: STENAY | G142: 3.0 | H142: 133 | I142: 169 | J142: 188 | K142: 136 | L142: 156 | M142: 164 | N142: 191 | O142: 179 | P142: 77 | Q142: 246 | R142: 243 | S142: 186 | T142: 26 | U142: 22 | V142: 61 | W142: 67 | X142: 107 | Y142: 4 | Z142: 170
A143: 30 | B143: MOSELLE | C143: 45 | D143: METZ | E143: 557439 | F143: METZ POMPIDOU | G143: 3.6 | H143: 134 | I143: 101 | J143: 62 | K143: 150 | L143: 199 | M143: 192 | N143: 86 | O143: 73 | P143: 231 | Q143: 18 | R143: 15 | S143: 101 | T143: 162 | U143: 164 | V143: 151 | W143: 240 | X143: 225 | Y143: 175 | Z143: 255
A144: 30 | B144: MOSELLE | C144: 44 | D144: MOSELLE NORD | E144: 457306 | F144: FLORANGE | G144: 3.4 | H144: 135 | I144: 262 | J144: 266 | K144: 247 | L144: 29 | M144: 18 | N144: 91 | O144: 135 | P144: 196 | Q144: 47 | R144: 22 | S144: 231 | T144: 41 | U144: 46 | V144: 46 | W144: 78 | X144: 106 | Y144: 26 | Z144: 141
A145: 30 | B145: BAS-RHIN | C145: 5006 | D145: STRASBOURG | E145: 4033 | F145: LA WANTZENAU | G145: 1.3 | H145: 136 | I145: 136 | J145: 183 | K145: 60 | L145: 254 | M145: 221 | N145: 141 | O145: 224 | P145: 254 | Q145: 89 | R145: 31 | S145: 269 | T145: 256 | U145: 262 | V145: 228 | W145: 6 | X145: 2 | Y145: 111 | Z145: 91
A146: 30 | B146: BAS-RHIN | C146: 5006 | D146: STRASBOURG | E146: 4029 | F146: SCHILTIGHEIM KLEBER | G146: 3.0 | H146: 137 | I146: 240 | J146: 168 | K146: 263 | L146: 47 | M146: 56 | N146: 60 | O146: 88 | P146: 108 | Q146: 221 | R146: 227 | S146: 156 | T146: 6 | U146: 17 | V146: 5 | W146: 216 | X146: 255 | Y146: 85 | Z146: 170
A147: 30 | B147: HAUT-RHIN | C147: 5130 | D147: COLMAR | E147: 4139 | F147: INGERSHEIM | G147: 7.8 | H147: 138 | I147: 26 | J147: 47 | K147: 23 | L147: 164 | M147: 87 | N147: 225 | O147: 199 | P147: 218 | Q147: 201 | R147: 191 | S147: 180 | T147: 127 | U147: 120 | V147: 152 | W147: 269 | X147: 241 | Y147: 270 | Z147: 259
A148: 30 | B148: MEURTHE ET MOSELLE MEUSE | C148: 27 | D148: PONT A MOUSSON | E148: 554184 | F148: BRIEY CENTRALE | G148: 4.2 | H148: 139 | I148: 180 | J148: 145 | K148: 201 | L148: 170 | M148: 195 | N148: 134 | O148: 46 | P148: 160 | Q148: 28 | R148: 30 | S148: 64 | T148: 159 | U148: 154 | V148: 167 | W148: 91 | X148: 100 | Y148: 87 | Z148: 81
A149: 110 | B149: MEURTHE ET MOSELLE MEUSE | C149: 27 | D149: PONT A MOUSSON | E149: 554516 | F149: PAGNY SUR MOSELLE | G149: 3.0 | H149: 140 | I149: 72 | J149: 58 | K149: 95 | L149: 217 | M149: 226 | N149: 159 | O149: 224 | P149: 151 | Q149: 20 | R149: 8 | S149: 239 | T149: 214 | U149: 222 | V149: 179 | W149: 234 | X149: 217 | Y149: 158 | Z149: 250
A150: 110 | B150: MOSELLE | C150: 45 | D150: METZ | E150: 557105 | F150: ARS SUR MOSELLE | G150: 4.0 | H150: 141 | I150: 139 | J150: 145 | K150: 114 | L150: 146 | M150: 191 | N150: 98 | O150: 85 | P150: 101 | Q150: 132 | R150: 141 | S150: 91 | T150: 217 | U150: 216 | V150: 203 | W150: 43 | X150: 61 | Y150: 57 | Z150: 53
A151: 110 | B151: MOSELLE | C151: 42 | D151: MOSELLE EST | E151: 457258 | F151: DIEUZE | G151: 3.1 | H151: 142 | I151: 45 | J151: 31 | K151: 71 | L151: 153 | M151: 209 | N151: 236 | O151: 127 | P151: 14 | Q151: 229 | R151: 224 | S151: 192 | T151: 151 | U151: 170 | V151: 79 | W151: 232 | X151: 231 | Y151: 176 | Z151: 227
A152: 110 | B152: VOSGES | C152: 57 | D152: EPINAL | E152: 488291 | F152: EPINAL AVRINSART | G152: 2.0 | H152: 143 | I152: 28 | J152: 53 | K152: 14 | L152: 234 | M152: 185 | N152: 228 | O152: 42 | P152: 253 | Q152: 182 | R152: 117 | S152: 262 | T152: 202 | U152: 194 | V152: 191 | W152: 173 | X152: 171 | Y152: 189 | Z152: 95
A153: 110 | B153: MOSELLE | C153: 45 | D153: METZ | E153: 457446 | F153: METZ SAINT LOUIS | G153: 6.9 | H153: 144 | I153: 102 | J153: 106 | K153: 82 | L153: 257 | M153: 252 | N153: 220 | O153: 137 | P153: 198 | Q153: 74 | R153: 59 | S153: 145 | T153: 132 | U153: 142 | V153: 95 | W153: 115 | X153: 120 | Y153: 69 | Z153: 142
A154: 110 | B154: BAS-RHIN | C154: 5006 | D154: STRASBOURG | E154: 4010 | F154: STRASBOURG MEINAU | G154: 4.0 | H154: 145 | I154: 235 | J154: 214 | K154: 249 | L154: 17 | M154: 22 | N154: 15 | O154: 32 | P154: 95 | Q154: 232 | R154: 268 | S154: 21 | T154: 23 | U154: 44 | V154: 9 | W154: 192 | X154: 240 | Y154: 61 | Z154: 170
A155: 110 | B155: MARNE-ARDENNES | C155: 11 | D155: REIMS | E155: 451308 | F155: REIMS SAINT THOMAS | G155: 8.0 | H155: 146 | I155: 217 | J155: 195 | K155: 239 | L155: 162 | M155: 125 | N155: 40 | O155: 110 | P155: 249 | Q155: 59 | R155: 56 | S155: 114 | T155: 157 | U155: 166 | V155: 121 | W155: 26 | X155: 12 | Y155: 191 | Z155: 50
A156: 110 | B156: MEURTHE ET MOSELLE MEUSE | C156: 27 | D156: PONT A MOUSSON | E156: 554381 | F156: LAXOU ARISTIDE BRIAND | G156: 4.1 | H156: 147 | I156: 186 | J156: 195 | K156: 169 | L156: 151 | M156: 118 | N156: 154 | O156: 97 | P156: 208 | Q156: 55 | R156: 203 | S156: 5 | T156: 60 | U156: 83 | V156: 51 | W156: 171 | X156: 89 | Y156: 263 | Z156: 180
A157: 110 | B157: BAS-RHIN | C157: 5060 | D157: HAGUENAU | E157: 4031 | F157: TRUCHTERSHEIM | G157: 3.0 | H157: 148 | I157: 12 | J157: 28 | K157: 1 | L157: 227 | M157: 172 | N157: 268 | O157: 179 | P157: 189 | Q157: 234 | R157: 251 | S157: 110 | T157: 224 | U157: 185 | V157: 257 | W157: 199 | X157: 127 | Y157: 226 | Z157: 218
A158: 110 | B158: BAS-RHIN | C158: 5101 | D158: SELESTAT | E158: 4129 | F158: MARLENHEIM | G158: 1.9 | H158: 149 | I158: 151 | J158: 168 | K158: 127 | L158: 88 | M158: 98 | N158: 131 | O158: 224 | P158: 47 | Q158: 170 | R158: 144 | S158: 195 | T158: 206 | U158: 193 | V158: 208 | W158: 57 | X158: 69 | Y158: 27 | Z158: 153
A159: 110 | B159: BAS-RHIN | C159: 5006 | D159: STRASBOURG | E159: 4006 | F159: STRASBOURG NEUDORF | G159: 9.8 | H159: 150 | I159: 158 | J159: 183 | K159: 115 | L159: 68 | M159: 99 | N159: 63 | O159: 100 | P159: 89 | Q159: 194 | R159: 192 | S159: 153 | T159: 72 | U159: 71 | V159: 78 | W159: 202 | X159: 140 | Y159: 208 | Z159: 213
A160: 110 | B160: MEURTHE ET MOSELLE MEUSE | C160: 31 | D160: VERDUN | E160: 554700 | F160: VILLERUPT | G160: 3.0 | H160: 151 | I160: 17 | J160: 17 | K160: 33 | L160: 197 | M160: 257 | N160: 58 | O160: 118 | P160: 46 | Q160: 210 | R160: 193 | S160: 218 | T160: 259 | U160: 264 | V160: 230 | W160: 160 | X160: 255 | Y160: 47 | Z160: 78
A161: 110 | B161: VOSGES | C161: 55 | D161: SAINT DIE | E161: 488586 | F161: SAINT DIE | G161: 11.4 | H161: 152 | I161: 164 | J161: 183 | K161: 134 | L161: 168 | M161: 131 | N161: 187 | O161: 132 | P161: 183 | Q161: 40 | R161: 38 | S161: 100 | T161: 90 | U161: 55 | V161: 209 | W161: 214 | X161: 177 | Y161: 217 | Z161: 159
A162: 110 | B162: AUBE HAUTE MARNE | C162: 21 | D162: CHAUMONT | E162: 410566 | F162: CHAUMONT HOTEL DE VILLE | G162: 7.9 | H162: 153 | I162: 123 | J162: 70 | K162: 187 | L162: 145 | M162: 180 | N162: 166 | O162: 129 | P162: 61 | Q162: 125 | R162: 143 | S162: 77 | T162: 181 | U162: 189 | V162: 134 | W162: 140 | X162: 166 | Y162: 92 | Z162: 94
A163: 110 | B163: MOSELLE | C163: 42 | D163: MOSELLE EST | E163: 557305 | F163: FAULQUEMONT | G163: 2.1 | H163: 154 | I163: 107 | J163: 116 | K163: 79 | L163: 228 | M163: 238 | N163: 234 | O163: 152 | P163: 135 | Q163: 23 | R163: 96 | S163: 8 | T163: 198 | U163: 243 | V163: 56 | W163: 206 | X163: 255 | Y163: 56 | Z163: 183
A164: 110 | B164: MEURTHE ET MOSELLE MEUSE | C164: 26 | D164: NANCY | E164: 554296 | F164: ESSEY LES NANCY | G164: 3.9 | H164: 155 | I164: 116 | J164: 101 | K164: 131 | L164: 179 | M164: 141 | N164: 212 | O164: 145 | P164: 181 | Q164: 173 | R164: 170 | S164: 116 | T164: 141 | U164: 137 | V164: 140 | W164: 127 | X164: 86 | Y164: 205 | Z164: 128
A165: 110 | B165: BAS-RHIN | C165: 5060 | D165: HAGUENAU | E165: 4067 | F165: PFAFFENHOFFEN | G165: 3.0 | H165: 156 | I165: 73 | J165: 79 | K165: 64 | L165: 245 | M165: 247 | N165: 209 | O165: 121 | P165: 177 | Q165: 30 | R165: 19 | S165: 131 | T165: 161 | U165: 178 | V165: 101 | W165: 257 | X165: 271 | Y165: 186 | Z165: 250
A166: 110 | B166: MOSELLE | C166: 45 | D166: METZ | E166: 557445 | F166: METZ SAINT LIVIER | G166: 3.1 | H166: 157 | I166: 70 | J166: 75 | K166: 63 | L166: 247 | M166: 267 | N166: 231 | O166: 186 | P166: 27 | Q166: 98 | R166: 112 | S166: 78 | T166: 204 | U166: 181 | V166: 224 | W166: 146 | X166: 70 | Y166: 209 | Z166: 223
A167: 110 | B167: MOSELLE | C167: 45 | D167: METZ | E167: 557612 | F167: SAINTE MARIE AUX CHENES | G167: 3.1 | H167: 158 | I167: 60 | J167: 51 | K167: 75 | L167: 242 | M167: 233 | N167: 108 | O167: 224 | P167: 220 | Q167: 186 | R167: 152 | S167: 222 | T167: 191 | U167: 199 | V167: 146 | W167: 134 | X167: 137 | Y167: 148 | Z167: 85
A168: 110 | B168: BAS-RHIN | C168: 5060 | D168: HAGUENAU | E168: 4041 | F168: HOERDT | G168: 2.8 | H168: 159 | I168: 187 | J168: 195 | K168: 171 | L168: 44 | M168: 62 | N168: 216 | O168: 44 | P168: 17 | Q168: 51 | R168: 32 | S168: 178 | T168: 149 | U168: 130 | V168: 182 | W168: 247 | X168: 255 | Y168: 218 | Z168: 150
A169: 110 | B169: HAUT-RHIN | C169: 5130 | D169: COLMAR | E169: 4144 | F169: RIBEAUVILLE | G169: 2.7 | H169: 160 | I169: 214 | J169: 225 | K169: 213 | L169: 72 | M169: 60 | N169: 150 | O169: 165 | P169: 118 | Q169: 99 | R169: 139 | S169: 45 | T169: 45 | U169: 24 | V169: 172 | W169: 208 | X169: 122 | Y169: 256 | Z169: 208
A170: 110 | B170: MEURTHE ET MOSELLE MEUSE | C170: 26 | D170: NANCY | E170: 554116 | F170: BACCARAT | G170: 3.0 | H170: 161 | I170: 33 | J170: 40 | K170: 42 | L170: 260 | M170: 268 | N170: 272 | O170: 179 | P170: 30 | Q170: 135 | R170: 190 | S170: 36 | T170: 173 | U170: 140 | V170: 210 | W170: 238 | X170: 162 | Y170: 207 | Z170: 262
A171: 110 | B171: BAS-RHIN | C171: 5060 | D171: HAGUENAU | E171: 4085 | F171: INGWILLER | G171: 3.1 | H171: 162 | I171: 153 | J171: 145 | K171: 159 | L171: 205 | M171: 79 | N171: 130 | O171: 189 | P171: 267 | Q171: 198 | R171: 164 | S171: 223 | T171: 48 | U171: 75 | V171: 22 | W171: 137 | X171: 179 | Y171: 36 | Z171: 185
A172: 110 | B172: VOSGES | C172: 57 | D172: EPINAL | E172: 588396 | F172: LE VAL D AJOL | G172: 3.0 | H172: 163 | I172: 89 | J172: 159 | K172: 16 | L172: 120 | M172: 145 | N172: 266 | O172: 121 | P172: 11 | Q172: 16 | R172: 7 | S172: 239 | T172: 258 | U172: 261 | V172: 235 | W172: 260 | X172: 235 | Y172: 265 | Z172: 218
A173: 110 | B173: MARNE-ARDENNES | C173: 11 | D173: REIMS | E173: 451350 | F173: REIMS CENTRE VILLE | G173: 7.4 | H173: 164 | I173: 183 | J173: 188 | K173: 168 | L173: 163 | M173: 73 | N173: 36 | O173: 108 | P173: 268 | Q173: 113 | R173: 129 | S173: 74 | T173: 199 | U173: 179 | V173: 212 | W173: 46 | X173: 26 | Y173: 181 | Z173: 65
A174: 110 | B174: MEURTHE ET MOSELLE MEUSE | C174: 31 | D174: VERDUN | E174: 555406 | F174: LIGNY EN BARROIS | G174: 2.9 | H174: 165 | I174: 119 | J174: 145 | K174: 72 | L174: 159 | M174: 146 | N174: 87 | O174: 116 | P174: 205 | Q174: 152 | R174: 130 | S174: 150 | T174: 210 | U174: 152 | V174: 254 | W174: 128 | X174: 148 | Y174: 96 | Z174: 114
A175: 110 | B175: MARNE-ARDENNES | C175: 2 | D175: CHARLEVILLE MEZIERES | E175: 408840 | F175: RETHEL | G175: 4.6 | H175: 166 | I175: 104 | J175: 101 | K175: 96 | L175: 126 | M175: 176 | N175: 128 | O175: 78 | P175: 55 | Q175: 93 | R175: 115 | S175: 65 | T175: 261 | U175: 263 | V175: 240 | W175: 122 | X175: 48 | Y175: 215 | Z175: 246
A176: 110 | B176: MOSELLE | C176: 45 | D176: METZ | E176: 557441 | F176: METZ PLAPPEVILLE | G176: 4.1 | H176: 167 | I176: 112 | J176: 101 | K176: 117 | L176: 262 | M176: 243 | N176: 221 | O176: 151 | P176: 245 | Q176: 21 | R176: 11 | S176: 229 | T176: 208 | U176: 165 | V176: 251 | W176: 167 | X176: 178 | Y176: 71 | Z176: 210
A177: 110 | B177: VOSGES | C177: 55 | D177: SAINT DIE | E177: 588316 | F177: FRAIZE | G177: 4.0 | H177: 168 | I177: 150 | J177: 159 | K177: 130 | L177: 178 | M177: 208 | N177: 168 | O177: 202 | P177: 75 | Q177: 155 | R177: 186 | S177: 66 | T177: 152 | U177: 115 | V177: 206 | W177: 120 | X177: 152 | Y177: 108 | Z177: 73
A178: 110 | B178: AUBE HAUTE MARNE | C178: 21 | D178: CHAUMONT | E178: 451151 | F178: WASSY | G178: 3.0 | H178: 169 | I178: 197 | J178: 214 | K178: 174 | L178: 115 | M178: 151 | N178: 209 | O178: 121 | P178: 19 | Q178: 190 | R178: 181 | S178: 156 | T178: 56 | U178: 32 | V178: 191 | W178: 142 | X178: 209 | Y178: 99 | Z178: 56
A179: 110 | B179: MEURTHE ET MOSELLE MEUSE | C179: 27 | D179: PONT A MOUSSON | E179: 554506 | F179: CHALIGNY NEUVES MAISONS | G179: 4.0 | H179: 170 | I179: 258 | J179: 244 | K179: 259 | L179: 62 | M179: 119 | N179: 42 | O179: 32 | P179: 62 | Q179: 107 | R179: 87 | S179: 138 | T179: 196 | U179: 210 | V179: 129 | W179: 16 | X179: 9 | Y179: 246 | Z179: 13
A180: 110 | B180: MEURTHE ET MOSELLE MEUSE | C180: 27 | D180: PONT A MOUSSON | E180: 554686 | F180: VEZELISE | G180: 2.0 | H180: 171 | I180: 68 | J180: 106 | K180: 35 | L180: 201 | M180: 219 | N180: 259 | O180: 224 | P180: 32 | Q180: 189 | R180: 177 | S180: 156 | T180: 144 | U180: 163 | V180: 91 | W180: 249 | X180: 207 | Y180: 249 | Z180: 241
A181: 110 | B181: MOSELLE | C181: 45 | D181: METZ | E181: 557432 | F181: MAIZIERES LES METZ | G181: 3.9 | H181: 172 | I181: 94 | J181: 159 | K181: 25 | L181: 225 | M181: 235 | N181: 244 | O181: 200 | P181: 125 | Q181: 85 | R181: 67 | S181: 154 | T181: 165 | U181: 169 | V181: 142 | W181: 233 | X181: 188 | Y181: 213 | Z181: 240
A182: 110 | B182: MOSELLE | C182: 45 | D182: METZ | E182: 557712 | F182: WOIPPY BONNE FONTAINE | G182: 5.7 | H182: 173 | I182: 206 | J182: 159 | K182: 241 | L182: 135 | M182: 144 | N182: 53 | O182: 115 | P182: 182 | Q182: 181 | R182: 122 | S182: 254 | T182: 37 | U182: 49 | V182: 25 | W182: 158 | X182: 160 | Y182: 153 | Z182: 111
A183: 110 | B183: MOSELLE | C183: 44 | D183: MOSELLE NORD | E183: 557113 | F183: AUDUN LE TICHE | G183: 3.0 | H183: 174 | I183: 238 | J183: 265 | K183: 162 | L183: 40 | M183: 39 | N183: 41 | O183: 175 | P183: 141 | Q183: 169 | R183: 165 | S183: 128 | T183: 115 | U183: 94 | V183: 175 | W183: 74 | X183: 67 | Y183: 202 | Z183: 32
A184: 110 | B184: MOSELLE | C184: 42 | D184: MOSELLE EST | E184: 457614 | F184: SARREBOURG | G184: 9.1 | H184: 175 | I184: 148 | J184: 95 | K184: 210 | L184: 196 | M184: 169 | N184: 157 | O184: 157 | P184: 201 | Q184: 112 | R184: 100 | S184: 125 | T184: 107 | U184: 72 | V184: 207 | W184: 194 | X184: 187 | Y184: 133 | Z184: 191
A185: 110 | B185: MOSELLE | C185: 45 | D185: METZ | E185: 557224 | F185: CLOUANGE | G185: 3.0 | H185: 176 | I185: 127 | J185: 130 | K185: 104 | L185: 195 | M185: 224 | N185: 95 | O185: 175 | P185: 142 | Q185: 200 | R185: 158 | S185: 238 | T185: 102 | U185: 99 | V185: 125 | W185: 166 | X185: 220 | Y185: 35 | Z185: 217
A186: 110 | B186: HAUT-RHIN | C186: 5130 | D186: COLMAR | E186: 4143 | F186: MUNSTER | G186: 6.0 | H186: 177 | I186: 129 | J186: 137 | K186: 98 | L186: 100 | M186: 67 | N186: 180 | O186: 219 | P186: 124 | Q186: 217 | R186: 217 | S186: 176 | T186: 78 | U186: 59 | V186: 160 | W186: 258 | X186: 251 | Y186: 216 | Z186: 241
A187: 110 | B187: MEURTHE ET MOSELLE MEUSE | C187: 26 | D187: NANCY | E187: 454161 | F187: BAYON | G187: 0.9 | H187: 178 | I187: 203 | J187: 175 | K187: 228 | L187: 13 | M187: 2 | N187: 6 | O187: 224 | P187: 273 | Q187: 273 | R187: 273 | S187: 4 | T187: 111 | U187: 237 | V187: 6 | W187: 11 | X187: 247 | Y187: 21 | Z187: 1
A188: 110 | B188: MEURTHE ET MOSELLE MEUSE | C188: 26 | D188: NANCY | E188: 554471 | F188: NANCY JEAN JAURES | G188: 1.2 | H188: 179 | I188: 79 | J188: 62 | K188: 110 | L188: 271 | M188: 242 | N188: 269 | O188: 224 | P188: 266 | Q188: 94 | R188: 44 | S188: 247 | T188: 271 | U188: 269 | V188: 265 | W188: 14 | X188: 5 | Y188: 273 | Z188: 27
A189: 110 | B189: HAUT-RHIN | C189: 5169 | D189: MULHOUSE | E189: 4180 | F189: RIEDISHEIM | G189: 3.2 | H189: 180 | I189: 143 | J189: 153 | K189: 108 | L189: 243 | M189: 256 | N189: 88 | O189: 64 | P189: 206 | Q189: 32 | R189: 26 | S189: 123 | T189: 106 | U189: 108 | V189: 109 | W189: 254 | X189: 212 | Y189: 244 | Z189: 253
A190: 110 | B190: MOSELLE | C190: 44 | D190: MOSELLE NORD | E190: 457158 | F190: YUTZ | G190: 4.9 | H190: 181 | I190: 230 | J190: 251 | K190: 183 | L190: 127 | M190: 156 | N190: 241 | O190: 131 | P190: 20 | Q190: 171 | R190: 128 | S190: 228 | T190: 50 | U190: 47 | V190: 64 | W190: 108 | X190: 84 | Y190: 72 | Z190: 233
A191: 110 | B191: AUBE HAUTE MARNE | C191: 14 | D191: TROYES | E191: 510523 | F191: LA CHAPELLE ST LUC | G191: 5.7 | H191: 182 | I191: 198 | J191: 212 | K191: 181 | L191: 176 | M191: 182 | N191: 151 | O191: 114 | P191: 134 | Q191: 184 | R191: 215 | S191: 75 | T191: 51 | U191: 76 | V191: 27 | W191: 144 | X191: 124 | Y191: 130 | Z191: 154
A192: 110 | B192: HAUT-RHIN | C192: 5130 | D192: COLMAR | E192: 4135 | F192: COLMAR SAINTE MARIE | G192: 8.4 | H192: 183 | I192: 154 | J192: 130 | K192: 177 | L192: 95 | M192: 93 | N192: 109 | O192: 133 | P192: 110 | Q192: 212 | R192: 198 | S192: 214 | T192: 105 | U192: 97 | V192: 139 | W192: 226 | X192: 159 | Y192: 254 | Z192: 214
A193: 110 | B193: MEURTHE ET MOSELLE MEUSE | C193: 27 | D193: PONT A MOUSSON | E193: 454355 | F193: JARNY | G193: 4.5 | H193: 184 | I193: 91 | J193: 95 | K193: 84 | L193: 230 | M193: 232 | N193: 238 | O193: 156 | P193: 163 | Q193: 157 | R193: 213 | S193: 34 | T193: 153 | U193: 200 | V193: 49 | W193: 228 | X193: 119 | Y193: 247 | Z193: 262
A194: 110 | B194: VOSGES | C194: 55 | D194: SAINT DIE | E194: 588386 | F194: LE THILLOT | G194: 3.0 | H194: 185 | I194: 132 | J194: 145 | K194: 99 | L194: 220 | M194: 248 | N194: 266 | O194: 179 | P194: 21 | Q194: 252 | R194: 248 | S194: 156 | T194: 15 | U194: 12 | V194: 101 | W194: 267 | X194: 255 | Y194: 214 | Z194: 262
A195: 110 | B195: MEURTHE ET MOSELLE MEUSE | C195: 31 | D195: VERDUN | E195: 455456 | F195: MONTMEDY | G195: 2.8 | H195: 186 | I195: 157 | J195: 106 | K195: 211 | L195: 142 | M195: 201 | N195: 113 | O195: 224 | P195: 24 | Q195: 235 | R195: 220 | S195: 234 | T195: 139 | U195: 111 | V195: 199 | W195: 105 | X195: 56 | Y195: 251 | Z195: 104
A196: 110 | B196: AUBE HAUTE MARNE | C196: 14 | D196: TROYES | E196: 510522 | F196: TROYES CHARTREUX | G196: 2.9 | H196: 187 | I196: 224 | J196: 212 | K196: 238 | L196: 108 | M196: 143 | N196: 20 | O196: 172 | P196: 146 | Q196: 97 | R196: 105 | S196: 87 | T196: 83 | U196: 80 | V196: 112 | W196: 163 | X196: 215 | Y196: 123 | Z196: 75
A197: 110 | B197: MARNE-ARDENNES | C197: 6 | D197: CHALONS EN CHAMPAGNE | E197: 551103 | F197: FAGNIERES LECLERC | G197: 3.0 | H197: 188 | I197: 133 | J197: 153 | K197: 92 | L197: 181 | M197: 218 | N197: 69 | O197: 54 | P197: 175 | Q197: 250 | R197: 253 | S197: 131 | T197: 170 | U197: 229 | V197: 37 | W197: 98 | X197: 133 | Y197: 45 | Z197: 119
A198: 110 | B198: BAS-RHIN | C198: 5006 | D198: STRASBOURG | E198: 4039 | F198: REICHSTETT | G198: 1.8 | H198: 189 | I198: 264 | J198: 247 | K198: 264 | L198: 24 | M198: 13 | N198: 84 | O198: 139 | P198: 204 | Q198: 146 | R198: 189 | S198: 49 | T198: 18 | U198: 20 | V198: 26 | W198: 251 | X198: 246 | Y198: 204 | Z198: 235
A199: 160 | B199: HAUT-RHIN | C199: 5130 | D199: COLMAR | E199: 4141 | F199: HORBOURG WIHR | G199: 6.0 | H199: 190 | I199: 185 | J199: 210 | K199: 160 | L199: 221 | M199: 194 | N199: 120 | O199: 224 | P199: 227 | Q199: 42 | R199: 21 | S199: 203 | T199: 91 | U199: 88 | V199: 129 | W199: 229 | X199: 169 | Y199: 220 | Z199: 241
A200: 160 | B200: BAS-RHIN | C200: 5006 | D200: STRASBOURG | E200: 4028 | F200: BISCHHEIM | G200: 3.7 | H200: 191 | I200: 161 | J200: 123 | K200: 197 | L200: 119 | M200: 83 | N200: 199 | O200: 224 | P200: 153 | Q200: 249 | R200: 246 | S200: 169 | T200: 67 | U200: 85 | V200: 58 | W200: 225 | X200: 190 | Y200: 145 | Z200: 257
A201: 160 | B201: BAS-RHIN | C201: 5060 | D201: HAGUENAU | E201: 4030 | F201: BRUMATH | G201: 6.4 | H201: 192 | I201: 218 | J201: 227 | K201: 212 | L201: 74 | M201: 53 | N201: 137 | O201: 77 | P201: 192 | Q201: 56 | R201: 47 | S201: 112 | T201: 169 | U201: 141 | V201: 200 | W201: 188 | X201: 182 | Y201: 160 | Z201: 148
A202: 160 | B202: MEURTHE ET MOSELLE MEUSE | C202: 26 | D202: NANCY | E202: 554601 | F202: SAINT MAX | G202: 4.8 | H202: 193 | I202: 205 | J202: 195 | K202: 214 | L202: 185 | M202: 167 | N202: 246 | O202: 160 | P202: 107 | Q202: 101 | R202: 155 | S202: 32 | T202: 167 | U202: 159 | V202: 173 | W202: 87 | X202: 36 | Y202: 239 | Z202: 134
A203: 160 | B203: MOSELLE | C203: 42 | D203: MOSELLE EST | E203: 557458 | F203: MORHANGE | G203: 2.1 | H203: 194 | I203: 111 | J203: 195 | K203: 12 | L203: 103 | M203: 75 | N203: 234 | O203: 152 | P203: 106 | Q203: 256 | R203: 247 | S203: 208 | T203: 238 | U203: 256 | V203: 145 | W203: 153 | X203: 255 | Y203: 10 | Z203: 183
A204: 160 | B204: MOSELLE | C204: 42 | D204: MOSELLE EST | E204: 557523 | F204: PHALSBOURG | G204: 2.9 | H204: 195 | I204: 87 | J204: 40 | K204: 174 | L204: 246 | M204: 223 | N204: 174 | O204: 173 | P204: 238 | Q204: 139 | R204: 94 | S204: 216 | T204: 229 | U204: 215 | V204: 242 | W204: 200 | X204: 206 | Y204: 103 | Z204: 216
... 79 more rows

Sheet AG_EVOL_CLASS
B1: Accueil | D1: BAROMETRE BDD - AGENCES
D2: EVOLUTION CLASSEMENT 2020 / 2019
D3: =ACCUEIL!F7 -> 2021-02-07
H8: CLASSEMENT Général 2020 | I8: CLASSEMENT Général 2019 | J8: Evolution
A9: eds | B9: Direction | C9: eds | D9: Territoire | E9: eds | F9: Agence | G9: ="ETP perf "&DATEMAJ!$C$28 -> ETP perf Dec 2020 | H9: Rang | I9: Rang
A10: 50 | B10: BAS-RHIN | C10: 5006 | D10: STRASBOURG | E10: 4010 | F10: STRASBOURG MEINAU | G10: 2.6 | H10: 36 | I10: 284 | J10: 248
A11: 50 | B11: VOSGES | C11: 57 | D11: EPINAL | E11: 488561 | F11: REMIREMONT | G11: 6.2 | H11: 42 | I11: 270 | J11: 228
A12: 50 | B12: BAS-RHIN | C12: 5060 | D12: HAGUENAU | E12: 4079 | F12: SOULTZ SOUS FORETS | G12: 2.4 | H12: 56 | I12: 277 | J12: 221
A13: 50 | B13: MARNE-ARDENNES | C13: 6 | D13: CHALONS EN CHAMPAGNE | E13: 451115 | F13: MOURMELON suippes | G13: 3.0 | H13: 12 | I13: 232 | J13: 220
A14: 50 | B14: MOSELLE | C14: 44 | D14: MOSELLE NORD | E14: 557508 | F14: NILVANGE | G14: 2.6 | H14: 3 | I14: 220 | J14: 217
A15: 50 | B15: MEURTHE ET MOSELLE MEUSE | C15: 27 | D15: PONT A MOUSSON | E15: 454651 | F15: TOUL REPUBLIQUE | G15: 10.9 | H15: 1 | I15: 192 | J15: 191
A16: 50 | B16: MEURTHE ET MOSELLE MEUSE | C16: 26 | D16: NANCY | E16: 454671 | F16: VANDOEUVRE LES NANCY | G16: 4.4 | H16: 87 | I16: 276 | J16: 189
A17: 50 | B17: MEURTHE ET MOSELLE MEUSE | C17: 31 | D17: VERDUN | E17: 455456 | F17: MONTMEDY | G17: 1.7 | H17: 101 | I17: 265 | J17: 164
A18: 50 | B18: MOSELLE | C18: 44 | D18: MOSELLE NORD | E18: 457306 | F18: FLORANGE | G18: 2.8 | H18: 90 | I18: 253 | J18: 163
A19: 50 | B19: MARNE-ARDENNES | C19: 11 | D19: REIMS | E19: 451361 | F19: PIERRY LECLERC | G19: 1.9 | H19: 16 | I19: 178 | J19: 162
A20: 50 | B20: BAS-RHIN | C20: 5006 | D20: STRASBOURG | E20: 4045 | F20: STRASBOURG FRANCS BOURGEOIS | G20: 5.9 | H20: 112 | I20: 273 | J20: 161
A21: 50 | B21: MARNE-ARDENNES | C21: 6 | D21: CHALONS EN CHAMPAGNE | E21: 551128 | F21: SAINTE MENEHOULD | G21: 3.3 | H21: 94 | I21: 254 | J21: 160
A22: 50 | B22: MEURTHE ET MOSELLE MEUSE | C22: 26 | D22: NANCY | E22: 554491 | F22: NANCY SAINT SEBASTIEN | G22: 3.3 | H22: 48 | I22: 208 | J22: 160
A23: 50 | B23: MEURTHE ET MOSELLE MEUSE | C23: 26 | D23: NANCY | E23: 554471 | F23: NANCY JEAN JAURES | G23: 1.9 | H23: 93 | I23: 251 | J23: 158
A24: 50 | B24: MARNE-ARDENNES | C24: 2 | D24: CHARLEVILLE MEZIERES | E24: 508815 | F24: CARIGNAN | G24: 2.9 | H24: 40 | I24: 194 | J24: 154
A25: 50 | B25: VOSGES | C25: 57 | D25: EPINAL | E25: 588501 | F25: NEUFCHATEAU | G25: 4.7 | H25: 61 | I25: 214 | J25: 153
A26: 50 | B26: MARNE-ARDENNES | C26: 2 | D26: CHARLEVILLE MEZIERES | E26: 508839 | F26: GIVET | G26: 2.9 | H26: 25 | I26: 176 | J26: 151
A27: 50 | B27: MARNE-ARDENNES | C27: 11 | D27: REIMS | E27: 551349 | F27: REIMS SAINT REMI | G27: 2.8 | H27: 9 | I27: 158 | J27: 149
A28: 50 | B28: VOSGES | C28: 55 | D28: SAINT DIE | E28: 588551 | F28: RAMBERVILLERS | G28: 3.7 | H28: 82 | I28: 227 | J28: 145
A29: 50 | B29: MEURTHE ET MOSELLE MEUSE | C29: 26 | D29: NANCY | E29: 554356 | F29: JARVILLE LA MALGRANGE | G29: 3.6 | H29: 105 | I29: 244 | J29: 139
A30: 50 | B30: VOSGES | C30: 57 | D30: EPINAL | E30: 488706 | F30: VITTEL | G30: 3.3 | H30: 91 | I30: 229 | J30: 138
A31: 50 | B31: BAS-RHIN | C31: 5006 | D31: STRASBOURG | E31: 4047 | F31: STRASBOURG CRONENBOURG | G31: 5.6 | H31: 52 | I31: 189 | J31: 137
A32: 262 | B32: HAUT-RHIN | C32: 5130 | D32: COLMAR | E32: 4162 | F32: ENSISHEIM | G32: 4.5 | H32: 80 | I32: 212 | J32: 132
A33: 262 | B33: VOSGES | C33: 55 | D33: SAINT DIE | E33: 588587 | F33: SAINT DIE CATHEDRALE | G33: 4.0 | H33: 64 | I33: 195 | J33: 131
A34: 262 | B34: MEURTHE ET MOSELLE MEUSE | C34: 27 | D34: PONT A MOUSSON | E34: 454535 | F34: PONT A MOUSSON CENTRALE | G34: 7.6 | H34: 119 | I34: 246 | J34: 127
A35: 262 | B35: MARNE-ARDENNES | C35: 11 | D35: REIMS | E35: 551367 | F35: AY CHAMPAGNE | G35: 2.7 | H35: 55 | I35: 175 | J35: 120
A36: 262 | B36: BAS-RHIN | C36: 5101 | D36: SELESTAT | E36: 4110 | F36: SELESTAT OUEST | G36: 1.9 | H36: 69 | I36: 185 | J36: 116
A37: 262 | B37: BAS-RHIN | C37: 5006 | D37: STRASBOURG | E37: 4006 | F37: STRASBOURG NEUDORF | G37: 8.4 | H37: 146 | I37: 262 | J37: 116
A38: 262 | B38: MOSELLE | C38: 42 | D38: MOSELLE EST | E38: 457308 | F38: FORBACH CENTRALE | G38: 9.5 | H38: 122 | I38: 237 | J38: 115
A39: 262 | B39: BAS-RHIN | C39: 5060 | D39: HAGUENAU | E39: 4073 | F39: SCHWEIGHOUSE SUR MODER | G39: 2.4 | H39: 185 | I39: 290 | J39: 105
A40: 262 | B40: BAS-RHIN | C40: 5101 | D40: SELESTAT | E40: 4107 | F40: VILLE | G40: 2.1 | H40: 145 | I40: 249 | J40: 104
A41: 262 | B41: BAS-RHIN | C41: 5006 | D41: STRASBOURG | E41: 4020 | F41: STRASBOURG ROBERTSAU | G41: 4.7 | H41: 153 | I41: 257 | J41: 104
A42: 262 | B42: MEURTHE ET MOSELLE MEUSE | C42: 27 | D42: PONT A MOUSSON | E42: 554376 | F42: LAXOU LA SAPINIERE | G42: 3.0 | H42: 172 | I42: 275 | J42: 103
A43: 262 | B43: MOSELLE | C43: 42 | D43: MOSELLE EST | E43: 557305 | F43: FAULQUEMONT | G43: 2.9 | H43: 98 | I43: 201 | J43: 103
A44: 262 | B44: MEURTHE ET MOSELLE MEUSE | C44: 31 | D44: VERDUN | E44: 555624 | F44: STENAY | G44: 2.7 | H44: 143 | I44: 245 | J44: 102
A45: 262 | B45: MOSELLE | C45: 45 | D45: METZ | E45: 557712 | F45: WOIPPY BONNE FONTAINE | G45: 5.7 | H45: 180 | I45: 281 | J45: 101
A46: 262 | B46: MEURTHE ET MOSELLE MEUSE | C46: 26 | D46: NANCY | E46: 454426 | F46: LUNEVILLE CARNOT | G46: 8.5 | H46: 74 | I46: 174 | J46: 100
A47: 262 | B47: BAS-RHIN | C47: 5101 | D47: SELESTAT | E47: 4113 | F47: BARR | G47: 2.9 | H47: 46 | I47: 145 | J47: 99
A48: 262 | B48: HAUT-RHIN | C48: 5130 | D48: COLMAR | E48: 4139 | F48: INGERSHEIM | G48: 8.3 | H48: 140 | I48: 239 | J48: 99
A49: 262 | B49: HAUT-RHIN | C49: 5130 | D49: COLMAR | E49: 4144 | F49: RIBEAUVILLE | G49: 2.8 | H49: 203 | I49: 301 | J49: 98
A50: 262 | B50: BAS-RHIN | C50: 5006 | D50: STRASBOURG | E50: 4054 | F50: STRASBOURG MONTAGNE VERTE | G50: 2.7 | H50: 197 | I50: 294 | J50: 97
A51: 262 | B51: MARNE-ARDENNES | C51: 2 | D51: CHARLEVILLE MEZIERES | E51: 408814 | F51: VRIGNE AUX BOIS | G51: 0.6 | H51: 96 | I51: 193 | J51: 97
A52: 262 | B52: MEURTHE ET MOSELLE MEUSE | C52: 26 | D52: NANCY | E52: 554486 | F52: NANCY POINT CENTRAL | G52: 4.7 | H52: 113 | I52: 210 | J52: 97
A53: 262 | B53: MOSELLE | C53: 45 | D53: METZ | E53: 557432 | F53: MAIZIERES LES METZ | G53: 3.8 | H53: 123 | I53: 217 | J53: 94
A54: 262 | B54: BAS-RHIN | C54: 5006 | D54: STRASBOURG | E54: 4043 | F54: STRASBOURG HALLES | G54: 8.4 | H54: 26 | I54: 119 | J54: 93
A55: 262 | B55: MEURTHE ET MOSELLE MEUSE | C55: 31 | D55: VERDUN | E55: 455151 | F55: BAR LE DUC | G55: 9.8 | H55: 109 | I55: 197 | J55: 88
A56: 262 | B56: BAS-RHIN | C56: 5006 | D56: STRASBOURG | E56: 4039 | F56: REICHSTETT | G56: 1.4 | H56: 216 | I56: 303 | J56: 87
A57: 262 | B57: VOSGES | C57: 57 | D57: EPINAL | E57: 588206 | F57: CHARMES | G57: 2.7 | H57: 134 | I57: 221 | J57: 87
A58: 262 | B58: MARNE-ARDENNES | C58: 6 | D58: CHALONS EN CHAMPAGNE | E58: 451120 | F58: SARRY | G58: 2.5 | H58: 20 | I58: 106 | J58: 86
A59: 262 | B59: MARNE-ARDENNES | C59: 11 | D59: REIMS | E59: 451308 | F59: REIMS SAINT THOMAS | G59: 8.2 | H59: 132 | I59: 215 | J59: 83
A60: 262 | B60: BAS-RHIN | C60: 5006 | D60: STRASBOURG | E60: 4028 | F60: BISCHHEIM | G60: 2.9 | H60: 182 | I60: 263 | J60: 81
A61: 262 | B61: BAS-RHIN | C61: 5006 | D61: STRASBOURG | E61: 4024 | F61: STRASBOURG AUSTERLITZ | G61: 2.7 | H61: 213 | I61: 291 | J61: 78
A62: 262 | B62: VOSGES | C62: 55 | D62: SAINT DIE | E62: 588186 | F62: BRUYERES | G62: 2.7 | H62: 78 | I62: 155 | J62: 77
A63: 262 | B63: HAUT-RHIN | C63: 5130 | D63: COLMAR | E63: 4130 | F63: COLMAR REPUBLIQUE | G63: 7.9 | H63: 196 | I63: 272 | J63: 76
A64: 262 | B64: VOSGES | C64: 57 | D64: EPINAL | E64: 488286 | F64: EPINAL ARISTIDE BRIAND | G64: 8.8 | H64: 148 | I64: 223 | J64: 75
A65: 262 | B65: MARNE-ARDENNES | C65: 6 | D65: CHALONS EN CHAMPAGNE | E65: 451381 | F65: SEZANNE CHAMP BENOIST | G65: 6.4 | H65: 156 | I65: 230 | J65: 74
A66: 262 | B66: AUBE HAUTE MARNE | C66: 21 | D66: CHAUMONT | E66: 551157 | F66: SAINT DIZIER EUROPE | G66: 2.5 | H66: 54 | I66: 127 | J66: 73
A67: 262 | B67: HAUT-RHIN | C67: 5130 | D67: COLMAR | E67: 4148 | F67: ORBEY | G67: 3.1 | H67: 206 | I67: 279 | J67: 73
A68: 262 | B68: MARNE-ARDENNES | C68: 2 | D68: CHARLEVILLE MEZIERES | E68: 408806 | F68: SEDAN LA HALLE | G68: 8.7 | H68: 58 | I68: 129 | J68: 71
A69: 262 | B69: AUBE HAUTE MARNE | C69: 14 | D69: TROYES | E69: 510511 | F69: TROYES BROSSOLETTE | G69: 3.2 | H69: 81 | I69: 148 | J69: 67
A70: 262 | B70: BAS-RHIN | C70: 5101 | D70: SELESTAT | E70: 4120 | F70: WASSELONNE | G70: 2.5 | H70: 138 | I70: 205 | J70: 67
A71: 262 | B71: MOSELLE | C71: 44 | D71: MOSELLE NORD | E71: 557113 | F71: AUDUN LE TICHE | G71: 2.6 | H71: 166 | I71: 231 | J71: 65
A72: 262 | B72: MEURTHE ET MOSELLE MEUSE | C72: 31 | D72: VERDUN | E72: 455231 | F72: COMMERCY | G72: 4.5 | H72: 135 | I72: 199 | J72: 64
A73: 262 | B73: MEURTHE ET MOSELLE MEUSE | C73: 31 | D73: VERDUN | E73: 555679 | F73: VERDUN MAZEL | G73: 3.8 | H73: 62 | I73: 126 | J73: 64
A74: 262 | B74: MARNE-ARDENNES | C74: 2 | D74: CHARLEVILLE MEZIERES | E74: 408822 | F74: CHARLEVILLE MEZIERES | G74: 4.2 | H74: 4 | I74: 67 | J74: 63
A75: 262 | B75: VOSGES | C75: 57 | D75: EPINAL | E75: 588216 | F75: CHATENOIS | G75: 1.0 | H75: 243 | I75: 306 | J75: 63
A76: 262 | B76: VOSGES | C76: 57 | D76: EPINAL | E76: 588396 | F76: LE VAL D AJOL | G76: 2.8 | H76: 128 | I76: 191 | J76: 63
A77: 262 | B77: MOSELLE | C77: 45 | D77: METZ | E77: 557436 | F77: METZ CATHEDRALE | G77: 4.9 | H77: 103 | I77: 165 | J77: 62
A78: 262 | B78: MEURTHE ET MOSELLE MEUSE | C78: 27 | D78: PONT A MOUSSON | E78: 554686 | F78: VEZELISE | G78: 1.7 | H78: 111 | I78: 171 | J78: 60
A79: 262 | B79: VOSGES | C79: 55 | D79: SAINT DIE | E79: 488246 | F79: CORNIMONT LA BRESSE | G79: 2.9 | H79: 51 | I79: 109 | J79: 58
A80: 262 | B80: VOSGES | C80: 55 | D80: SAINT DIE | E80: 488586 | F80: SAINT DIE | G80: 10.4 | H80: 125 | I80: 183 | J80: 58
A81: 262 | B81: HAUT-RHIN | C81: 5130 | D81: COLMAR | E81: 4147 | F81: GUEBWILLER | G81: 5.9 | H81: 235 | I81: 292 | J81: 57
A82: 262 | B82: MARNE-ARDENNES | C82: 2 | D82: CHARLEVILLE MEZIERES | E82: 508820 | F82: VOUZIERS | G82: 2.8 | H82: 60 | I82: 117 | J82: 57
A83: 262 | B83: MEURTHE ET MOSELLE MEUSE | C83: 31 | D83: VERDUN | E83: 455298 | F83: ETAIN | G83: 1.9 | H83: 85 | I83: 142 | J83: 57
A84: 264 | B84: MEURTHE ET MOSELLE MEUSE | C84: 31 | D84: VERDUN | E84: 554700 | F84: VILLERUPT | G84: 2.7 | H84: 59 | I84: 116 | J84: 57
A85: 264 | B85: BAS-RHIN | C85: 5060 | D85: HAGUENAU | E85: 4071 | F85: WISSEMBOURG | G85: 8.7 | H85: 84 | I85: 140 | J85: 56
A86: 264 | B86: MEURTHE ET MOSELLE MEUSE | C86: 27 | D86: PONT A MOUSSON | E86: 554533 | F86: PONT A MOUSSON BREUIL | G86: 3.5 | H86: 151 | I86: 206 | J86: 55
A87: 264 | B87: AUBE HAUTE MARNE | C87: 14 | D87: TROYES | E87: 510513 | F87: TROYES 1er MAI | G87: 4.2 | H87: 221 | I87: 274 | J87: 53
A88: 264 | B88: VOSGES | C88: 57 | D88: EPINAL | E88: 488291 | F88: EPINAL AVRINSART | G88: 1.8 | H88: 160 | I88: 213 | J88: 53
A89: 264 | B89: MOSELLE | C89: 45 | D89: METZ | E89: 557441 | F89: METZ PLAPPEVILLE | G89: 2.6 | H89: 129 | I89: 181 | J89: 52
A90: 264 | B90: BAS-RHIN | C90: 5101 | D90: SELESTAT | E90: 4101 | F90: SELESTAT CENTRE | G90: 8.0 | H90: 245 | I90: 296 | J90: 51
A91: 264 | B91: HAUT-RHIN | C91: 5169 | D91: MULHOUSE | E91: 4181 | F91: WITTELSHEIM | G91: 4.0 | H91: 100 | I91: 150 | J91: 50
A92: 264 | B92: MOSELLE | C92: 45 | D92: METZ | E92: 457574 | F92: ROMBAS | G92: 3.3 | H92: 86 | I92: 136 | J92: 50
A93: 264 | B93: MOSELLE | C93: 44 | D93: MOSELLE NORD | E93: 557660 | F93: UCKANGE JEANNE D ARC | G93: 1.9 | H93: 14 | I93: 64 | J93: 50
A94: 264 | B94: MEURTHE ET MOSELLE MEUSE | C94: 26 | D94: NANCY | E94: 554296 | F94: ESSEY LES NANCY | G94: 3.7 | H94: 231 | I94: 278 | J94: 47
A95: 264 | B95: MEURTHE ET MOSELLE MEUSE | C95: 27 | D95: PONT A MOUSSON | E95: 554506 | F95: CHALIGNY NEUVES MAISONS | G95: 2.7 | H95: 191 | I95: 236 | J95: 45
A96: 264 | B96: MOSELLE | C96: 45 | D96: METZ | E96: 557459 | F96: MOULINS LES METZ | G96: 2.8 | H96: 167 | I96: 209 | J96: 42
A97: 264 | B97: MARNE-ARDENNES | C97: 6 | D97: CHALONS EN CHAMPAGNE | E97: 451101 | F97: CHALONS VIVIERS | G97: 9.7 | H97: 18 | I97: 58 | J97: 40
A98: 264 | B98: HAUT-RHIN | C98: 5130 | D98: COLMAR | E98: 4143 | F98: MUNSTER | G98: 5.4 | H98: 195 | I98: 234 | J98: 39
A99: 264 | B99: MOSELLE | C99: 45 | D99: METZ | E99: 557447 | F99: METZ SAINT MAXIMIN | G99: 3.0 | H99: 10 | I99: 48 | J99: 38
A100: 264 | B100: AUBE HAUTE MARNE | C100: 14 | D100: TROYES | E100: 510556 | F100: BAR SUR SEINE | G100: 3.8 | H100: 188 | I100: 225 | J100: 37
A101: 264 | B101: BAS-RHIN | C101: 5101 | D101: SELESTAT | E101: 4104 | F101: ERSTEIN | G101: 4.6 | H101: 266 | I101: 302 | J101: 36
A102: 264 | B102: AUBE HAUTE MARNE | C102: 14 | D102: TROYES | E102: 510522 | F102: TROYES CHARTREUX | G102: 2.6 | H102: 229 | I102: 264 | J102: 35
A103: 264 | B103: MARNE-ARDENNES | C103: 6 | D103: CHALONS EN CHAMPAGNE | E103: 451166 | F103: VITRY LE FRANCOIS | G103: 6.4 | H103: 193 | I103: 228 | J103: 35
A104: 264 | B104: MEURTHE ET MOSELLE MEUSE | C104: 27 | D104: PONT A MOUSSON | E104: 554321 | F104: FROUARD | G104: 2.6 | H104: 83 | I104: 118 | J104: 35
A105: 264 | B105: MOSELLE | C105: 42 | D105: MOSELLE EST | E105: 557250 | F105: CREUTZWALD | G105: 3.0 | H105: 76 | I105: 111 | J105: 35
A106: 264 | B106: MOSELLE | C106: 42 | D106: MOSELLE EST | E106: 457435 | F106: MERLEBACH | G106: 3.4 | H106: 236 | I106: 271 | J106: 35
A107: 264 | B107: MARNE-ARDENNES | C107: 2 | D107: CHARLEVILLE MEZIERES | E107: 408862 | F107: REVIN | G107: 3.9 | H107: 37 | I107: 71 | J107: 34
A108: 264 | B108: BAS-RHIN | C108: 5101 | D108: SELESTAT | E108: 4126 | F108: MUTZIG | G108: 2.6 | H108: 65 | I108: 98 | J108: 33
A109: 264 | B109: VOSGES | C109: 57 | D109: EPINAL | E109: 588716 | F109: XERTIGNY | G109: 2.6 | H109: 45 | I109: 78 | J109: 33
A110: 264 | B110: AUBE HAUTE MARNE | C110: 14 | D110: TROYES | E110: 410510 | F110: TROYES GAMBETTA | G110: 9.7 | H110: 99 | I110: 130 | J110: 31
A111: 264 | B111: HAUT-RHIN | C111: 5130 | D111: COLMAR | E111: 4153 | F111: ROUFFACH | G111: 3.7 | H111: 133 | I111: 164 | J111: 31
A112: 30 | B112: HAUT-RHIN | C112: 5169 | D112: MULHOUSE | E112: 4188 | F112: PFASTATT | G112: 3.1 | H112: 274 | I112: 305 | J112: 31
A113: 30 | B113: MEURTHE ET MOSELLE MEUSE | C113: 31 | D113: VERDUN | E113: 455678 | F113: VERDUN CENTRALE | G113: 9.2 | H113: 95 | I113: 125 | J113: 30
A114: 30 | B114: BAS-RHIN | C114: 5101 | D114: SELESTAT | E114: 4127 | F114: ROSHEIM | G114: 1.4 | H114: 260 | I114: 288 | J114: 28
A115: 30 | B115: MARNE-ARDENNES | C115: 2 | D115: CHARLEVILLE MEZIERES | E115: 508802 | F115: CHARLEVILLE NEVERS | G115: 3.6 | H115: 35 | I115: 63 | J115: 28
A116: 30 | B116: MOSELLE | C116: 45 | D116: METZ | E116: 457453 | F116: MONTIGNY CENTRALE | G116: 7.7 | H116: 77 | I116: 105 | J116: 28
A117: 30 | B117: MEURTHE ET MOSELLE MEUSE | C117: 27 | D117: PONT A MOUSSON | E117: 554416 | F117: LUDRES | G117: 3.9 | H117: 19 | I117: 45 | J117: 26
A118: 30 | B118: MOSELLE | C118: 42 | D118: MOSELLE EST | E118: 457345 | F118: GROSBLIEDERSTROFF | G118: 2.5 | H118: 120 | I118: 146 | J118: 26
A119: 30 | B119: MARNE-ARDENNES | C119: 11 | D119: REIMS | E119: 551369 | F119: DAMERY | G119: 2.9 | H119: 6 | I119: 31 | J119: 25
A120: 30 | B120: MOSELLE | C120: 45 | D120: METZ | E120: 557105 | F120: ARS SUR MOSELLE | G120: 3.8 | H120: 70 | I120: 95 | J120: 25
A121: 30 | B121: MEURTHE ET MOSELLE MEUSE | C121: 26 | D121: NANCY | E121: 454171 | F121: BLAMONT | G121: 1.1 | H121: 174 | I121: 198 | J121: 24
A122: 30 | B122: MOSELLE | C122: 45 | D122: METZ | E122: 557178 | F122: BOULAY | G122: 3.0 | H122: 244 | I122: 268 | J122: 24
A123: 30 | B123: AUBE HAUTE MARNE | C123: 14 | D123: TROYES | E123: 510530 | F123: ARCIS SUR AUBE | G123: 3.7 | H123: 246 | I123: 269 | J123: 23
A124: 30 | B124: HAUT-RHIN | C124: 5169 | D124: MULHOUSE | E124: 4183 | F124: WITTENHEIM | G124: 2.4 | H124: 257 | I124: 280 | J124: 23
A125: 30 | B125: VOSGES | C125: 55 | D125: SAINT DIE | E125: 588316 | F125: FRAIZE | G125: 4.0 | H125: 179 | I125: 202 | J125: 23
A126: 30 | B126: MOSELLE | C126: 42 | D126: MOSELLE EST | E126: 457165 | F126: BITCHE | G126: 3.3 | H126: 63 | I126: 85 | J126: 22
A127: 30 | B127: BAS-RHIN | C127: 5006 | D127: STRASBOURG | E127: 4023 | F127: STRASBOURG VOSGES | G127: 3.3 | H127: 277 | I127: 298 | J127: 21
A128: 30 | B128: BAS-RHIN | C128: 5060 | D128: HAGUENAU | E128: 4080 | F128: WOERTH | G128: 2.3 | H128: 275 | I128: 295 | J128: 20
A129: 30 | B129: VOSGES | C129: 55 | D129: SAINT DIE | E129: 488556 | F129: RAON L ETAPE | G129: 3.5 | H129: 73 | I129: 93 | J129: 20
A130: 30 | B130: MEURTHE ET MOSELLE MEUSE | C130: 27 | D130: PONT A MOUSSON | E130: 554196 | F130: CHAMPIGNEULLES | G130: 3.2 | H130: 89 | I130: 107 | J130: 18
A131: 30 | B131: MOSELLE | C131: 44 | D131: MOSELLE NORD | E131: 557307 | F131: FONTOY | G131: 3.1 | H131: 57 | I131: 75 | J131: 18
A132: 30 | B132: VOSGES | C132: 57 | D132: EPINAL | E132: 488451 | F132: MIRECOURT | G132: 4.6 | H132: 268 | I132: 286 | J132: 18
A133: 30 | B133: BAS-RHIN | C133: 5060 | D133: HAGUENAU | E133: 4082 | F133: BOUXWILLER | G133: 2.8 | H133: 118 | I133: 133 | J133: 15
A134: 30 | B134: HAUT-RHIN | C134: 5169 | D134: MULHOUSE | E134: 4174 | F134: MULHOUSE DORNACH | G134: 5.5 | H134: 278 | I134: 293 | J134: 15
A135: 30 | B135: MEURTHE ET MOSELLE MEUSE | C135: 27 | D135: PONT A MOUSSON | E135: 554381 | F135: LAXOU ARISTIDE BRIAND | G135: 4.4 | H135: 227 | I135: 242 | J135: 15
A136: 30 | B136: MOSELLE | C136: 44 | D136: MOSELLE NORD | E136: 457350 | F136: HAYANGE | G136: 9.0 | H136: 237 | I136: 252 | J136: 15
A137: 30 | B137: BAS-RHIN | C137: 5101 | D137: SELESTAT | E137: 4111 | F137: BENFELD | G137: 3.7 | H137: 273 | I137: 287 | J137: 14
A138: 30 | B138: MEURTHE ET MOSELLE MEUSE | C138: 26 | D138: NANCY | E138: 554636 | F138: TOMBLAINE | G138: 2.7 | H138: 34 | I138: 47 | J138: 13
A139: 30 | B139: AUBE HAUTE MARNE | C139: 14 | D139: TROYES | E139: 410512 | F139: TROYES ZOLA | G139: 4.5 | H139: 228 | I139: 240 | J139: 12
A140: 30 | B140: BAS-RHIN | C140: 5006 | D140: STRASBOURG | E140: 4029 | F140: SCHILTIGHEIM KLEBER | G140: 2.3 | H140: 116 | I140: 128 | J140: 12
A141: 30 | B141: MOSELLE | C141: 45 | D141: METZ | E141: 457443 | F141: METZ REPUBLIQUE | G141: 3.9 | H141: 30 | I141: 40 | J141: 10
A142: 30 | B142: MARNE-ARDENNES | C142: 2 | D142: CHARLEVILLE MEZIERES | E142: 408801 | F142: CHARLEVILLE JEAN JAURES | G142: 8.5 | H142: 71 | I142: 80 | J142: 9
A143: 30 | B143: MARNE-ARDENNES | C143: 11 | D143: REIMS | E143: 451370 | F143: EPERNAY VERRON | G143: 10.6 | H143: 41 | I143: 50 | J143: 9
A144: 30 | B144: MEURTHE ET MOSELLE MEUSE | C144: 26 | D144: NANCY | E144: 454481 | F144: NANCY PLACE DOMBASLE | G144: 10.4 | H144: 7 | I144: 16 | J144: 9
A145: 30 | B145: MEURTHE ET MOSELLE MEUSE | C145: 27 | D145: PONT A MOUSSON | E145: 554531 | F145: POMPEY | G145: 2.5 | H145: 13 | I145: 22 | J145: 9
A146: 30 | B146: MOSELLE | C146: 45 | D146: METZ | E146: 557224 | F146: CLOUANGE | G146: 3.3 | H146: 232 | I146: 241 | J146: 9
A147: 30 | B147: MOSELLE | C147: 44 | D147: MOSELLE NORD | E147: 457180 | F147: BOUSSE | G147: 2.3 | H147: 210 | I147: 219 | J147: 9
A148: 30 | B148: VOSGES | C148: 55 | D148: SAINT DIE | E148: 488326 | F148: GERARDMER | G148: 5.1 | H148: 17 | I148: 26 | J148: 9
A149: 30 | B149: BAS-RHIN | C149: 5060 | D149: HAGUENAU | E149: 4067 | F149: PFAFFENHOFFEN | G149: 2.9 | H149: 141 | I149: 149 | J149: 8
A150: 30 | B150: HAUT-RHIN | C150: 5169 | D150: MULHOUSE | E150: 4178 | F150: SAINT LOUIS | G150: 7.7 | H150: 247 | I150: 255 | J150: 8
A151: 30 | B151: MARNE-ARDENNES | C151: 11 | D151: REIMS | E151: 551365 | F151: DORMANS | G151: 2.7 | H151: 28 | I151: 36 | J151: 8
A152: 30 | B152: MEURTHE ET MOSELLE MEUSE | C152: 27 | D152: PONT A MOUSSON | E152: 554357 | F152: JOEUF MAIRIE | G152: 4.4 | H152: 211 | I152: 218 | J152: 7
A153: 30 | B153: BAS-RHIN | C153: 5101 | D153: SELESTAT | E153: 4129 | F153: MARLENHEIM | G153: 2.5 | H153: 205 | I153: 211 | J153: 6
A154: 110 | B154: HAUT-RHIN | C154: 5130 | D154: COLMAR | E154: 4134 | F154: COLMAR SAINT JOSEPH | G154: 0.9 | H154: 283 | I154: 289 | J154: 6
A155: 110 | B155: HAUT-RHIN | C155: 5169 | D155: MULHOUSE | E155: 4169 | F155: MULHOUSE ROOSEVELT | G155: 5.7 | H155: 276 | I155: 282 | J155: 6
A156: 110 | B156: MARNE-ARDENNES | C156: 11 | D156: REIMS | E156: 551314 | F156: FISMES | G156: 2.4 | H156: 43 | I156: 49 | J156: 6
A157: 110 | B157: VOSGES | C157: 57 | D157: EPINAL | E157: 488288 | F157: EPINAL LEOPOLD BOURG | G157: 1.9 | H157: 2 | I157: 8 | J157: 6
A158: 110 | B158: AUBE HAUTE MARNE | C158: 14 | D158: TROYES | E158: 510570 | F158: NOGENT SUR SEINE | G158: 3.8 | H158: 39 | I158: 43 | J158: 4
A159: 110 | B159: BAS-RHIN | C159: 5060 | D159: HAGUENAU | E159: 4031 | F159: TRUCHTERSHEIM | G159: 3.0 | H159: 29 | I159: 33 | J159: 4
A160: 110 | B160: BAS-RHIN | C160: 5060 | D160: HAGUENAU | E160: 4060 | F160: HAGUENAU HOUBLON | G160: 9.4 | H160: 224 | I160: 226 | J160: 2
A161: 110 | B161: BAS-RHIN | C161: 5006 | D161: STRASBOURG | E161: 4048 | F161: STRASBOURG KOENIGSHOFFEN | G161: 2.8 | H161: 281 | I161: 283 | J161: 2
A162: 110 | B162: VOSGES | C162: 55 | D162: SAINT DIE | E162: 488616 | F162: SENONES | G162: 1.9 | H162: 66 | I162: 66 | J162: 0
A163: 110 | B163: AUBE HAUTE MARNE | C163: 14 | D163: TROYES | E163: 510520 | F163: SAINT ANDRE LES VERGERS | G163: 4.5 | H163: 248 | I163: 247 | J163: -1
A164: 110 | B164: BAS-RHIN | C164: 5101 | D164: SELESTAT | E164: 4119 | F164: OBERNAI | G164: 5.3 | H164: 249 | I164: 248 | J164: -1
A165: 110 | B165: MOSELLE | C165: 42 | D165: MOSELLE EST | E165: 557458 | F165: MORHANGE | G165: 2.3 | H165: 170 | I165: 169 | J165: -1
A166: 110 | B166: MOSELLE | C166: 44 | D166: MOSELLE NORD | E166: 457632 | F166: THIONVILLE CENTRALE | G166: 10.8 | H166: 225 | I166: 224 | J166: -1
A167: 110 | B167: VOSGES | C167: 57 | D167: EPINAL | E167: 588336 | F167: GOLBEY | G167: 4.0 | H167: 158 | I167: 157 | J167: -1
A168: 110 | B168: AUBE HAUTE MARNE | C168: 21 | D168: CHAUMONT | E168: 410560 | F168: BOURBONNE LES BAINS | G168: 1.9 | H168: 27 | I168: 25 | J168: -2
A169: 110 | B169: BAS-RHIN | C169: 5060 | D169: HAGUENAU | E169: 4087 | F169: SAVERNE | G169: 7.7 | H169: 175 | I169: 173 | J169: -2
A170: 110 | B170: MARNE-ARDENNES | C170: 11 | D170: REIMS | E170: 551310 | F170: REIMS CHATILLONS | G170: 3.6 | H170: 5 | I170: 3 | J170: -2
A171: 110 | B171: MARNE-ARDENNES | C171: 11 | D171: REIMS | E171: 551306 | F171: REIMS SAINT MARCEAUX | G171: 4.8 | H171: 23 | I171: 21 | J171: -2
A172: 110 | B172: MEURTHE ET MOSELLE MEUSE | C172: 31 | D172: VERDUN | E172: 455566 | F172: REVIGNY SUR ORNAIN | G172: 2.9 | H172: 110 | I172: 108 | J172: -2
A173: 110 | B173: MARNE-ARDENNES | C173: 6 | D173: CHALONS EN CHAMPAGNE | E173: 551354 | F173: VERTUS | G173: 2.8 | H173: 15 | I173: 12 | J173: -3
A174: 110 | B174: MARNE-ARDENNES | C174: 11 | D174: REIMS | E174: 551340 | F174: BETHENY | G174: 3.0 | H174: 8 | I174: 5 | J174: -3
A175: 110 | B175: MARNE-ARDENNES | C175: 11 | D175: REIMS | E175: 551309 | F175: REIMS EUROPE | G175: 2.8 | H175: 21 | I175: 17 | J175: -4
A176: 110 | B176: MARNE-ARDENNES | C176: 11 | D176: REIMS | E176: 551341 | F176: REIMS JEAN JAURES | G176: 4.1 | H176: 67 | I176: 62 | J176: -5
A177: 110 | B177: BAS-RHIN | C177: 5060 | D177: HAGUENAU | E177: 4030 | F177: BRUMATH | G177: 7.3 | H177: 241 | I177: 235 | J177: -6
A178: 110 | B178: BAS-RHIN | C178: 5060 | D178: HAGUENAU | E178: 4066 | F178: NIEDERBRONN LES BAINS | G178: 5.7 | H178: 169 | I178: 163 | J178: -6
A179: 110 | B179: HAUT-RHIN | C179: 5169 | D179: MULHOUSE | E179: 4184 | F179: ILLZACH | G179: 3.2 | H179: 267 | I179: 260 | J179: -7
A180: 110 | B180: MARNE-ARDENNES | C180: 6 | D180: CHALONS EN CHAMPAGNE | E180: 551330 | F180: MONTMIRAIL | G180: 3.1 | H180: 31 | I180: 24 | J180: -7
A181: 110 | B181: MARNE-ARDENNES | C181: 2 | D181: CHARLEVILLE MEZIERES | E181: 508833 | F181: VILLERS SEMEUSE CORA | G181: 2.9 | H181: 11 | I181: 4 | J181: -7
A182: 110 | B182: BAS-RHIN | C182: 5060 | D182: HAGUENAU | E182: 4095 | F182: SARRE UNION | G182: 4.2 | H182: 161 | I182: 152 | J182: -9
A183: 110 | B183: MARNE-ARDENNES | C183: 11 | D183: REIMS | E183: 551305 | F183: REIMS HIPPODROME | G183: 3.7 | H183: 44 | I183: 35 | J183: -9
A184: 110 | B184: MOSELLE | C184: 45 | D184: METZ | E184: 557444 | F184: METZ SAINT JULIEN | G184: 6.0 | H184: 49 | I184: 39 | J184: -10
A185: 110 | B185: BAS-RHIN | C185: 5101 | D185: SELESTAT | E185: 4121 | F185: SCHIRMECK | G185: 3.0 | H185: 126 | I185: 115 | J185: -11
A186: 110 | B186: BAS-RHIN | C186: 5060 | D186: HAGUENAU | E186: 4092 | F186: HOCHFELDEN | G186: 2.4 | H186: 114 | I186: 102 | J186: -12
A187: 110 | B187: MOSELLE | C187: 42 | D187: MOSELLE EST | E187: 557503 | F187: NEUNKIRCH | G187: 2.7 | H187: 53 | I187: 41 | J187: -12
A188: 110 | B188: BAS-RHIN | C188: 5006 | D188: STRASBOURG | E188: 4027 | F188: SCHILTIGHEIM CENTRE | G188: 3.1 | H188: 217 | I188: 204 | J188: -13
A189: 110 | B189: MARNE-ARDENNES | C189: 11 | D189: REIMS | E189: 451336 | F189: TINQUEUX | G189: 5.2 | H189: 32 | I189: 18 | J189: -14
A190: 110 | B190: VOSGES | C190: 55 | D190: SAINT DIE | E190: 488346 | F190: GRANGES AUMONTZEY | G190: 1.8 | H190: 24 | I190: 10 | J190: -14
A191: 110 | B191: AUBE HAUTE MARNE | C191: 21 | D191: CHAUMONT | E191: 410541 | F191: LANGRES | G191: 6.7 | H191: 88 | I191: 73 | J191: -15
A192: 110 | B192: MOSELLE | C192: 42 | D192: MOSELLE EST | E192: 457163 | F192: BEHREN LES FORBACH | G192: 2.4 | H192: 47 | I192: 32 | J192: -15
A193: 110 | B193: HAUT-RHIN | C193: 5130 | D193: COLMAR | E193: 4164 | F193: SAINTE MARIE AUX MINES | G193: 2.8 | H193: 272 | I193: 256 | J193: -16
A194: 110 | B194: MARNE-ARDENNES | C194: 6 | D194: CHALONS EN CHAMPAGNE | E194: 551103 | F194: FAGNIERES LECLERC | G194: 2.7 | H194: 22 | I194: 6 | J194: -16
A195: 110 | B195: MARNE-ARDENNES | C195: 11 | D195: REIMS | E195: 451350 | F195: REIMS CENTRE VILLE | G195: 8.0 | H195: 136 | I195: 120 | J195: -16
A196: 110 | B196: MEURTHE ET MOSELLE MEUSE | C196: 26 | D196: NANCY | E196: 454161 | F196: BAYON | G196: 1.3 | H196: 233 | I196: 216 | J196: -17
A197: 110 | B197: MEURTHE ET MOSELLE MEUSE | C197: 27 | D197: PONT A MOUSSON | E197: 554257 | F197: DIEULOUARD | G197: 3.5 | H197: 164 | I197: 147 | J197: -17
A198: 110 | B198: MOSELLE | C198: 45 | D198: METZ | E198: 557434 | F198: MARLY | G198: 3.8 | H198: 33 | I198: 15 | J198: -18
A199: 110 | B199: MOSELLE | C199: 45 | D199: METZ | E199: 557612 | F199: SAINTE MARIE AUX CHENES | G199: 3.8 | H199: 152 | I199: 134 | J199: -18
A200: 110 | B200: HAUT-RHIN | C200: 5169 | D200: MULHOUSE | E200: 4194 | F200: THANN | G200: 8.5 | H200: 226 | I200: 207 | J200: -19
A201: 110 | B201: MOSELLE | C201: 42 | D201: MOSELLE EST | E201: 557353 | F201: HOMBOURG HAUT | G201: 2.3 | H201: 262 | I201: 243 | J201: -19
A202: 110 | B202: AUBE HAUTE MARNE | C202: 14 | D202: TROYES | E202: 410571 | F202: ROMILLY ORMES | G202: 6.6 | H202: 157 | I202: 137 | J202: -20
A203: 110 | B203: AUBE HAUTE MARNE | C203: 14 | D203: TROYES | E203: 510523 | F203: LA CHAPELLE ST LUC | G203: 5.7 | H203: 194 | I203: 172 | J203: -22
A204: 110 | B204: MOSELLE | C204: 44 | D204: MOSELLE NORD | E204: 457634 | F204: THIONVILLE LA MILLIAIRE | G204: 1.5 | H204: 280 | I204: 258 | J204: -22
... 89 more rows

Sheet AG_FICHE
A1: Accueil
A2: BAROMETRE BDD
A4: UNITE: | B4: Agence | E4: ETP perf : | F4: =VLOOKUP(A5,'RECAP AG'!$G$6:$DG$280,3,FALSE) -> 6.78
A5: =VLOOKUP(B5,LISTES!$C$6:$D$290,2,FALSE) -> 4189 | B5: ALTKIRCH
C6: Coefficient du critère | E6: Résultats | I6: Ecart au 1ier | M6: Evolution | O6: =IF(OR(A5=4017,A5=4022),"Rang estimé","Rang") -> Rang
E7: du 1ier | G7: de l'Agence | I7: Du mois | K7: Au 31/12/2019
A9: RANG au CLASSEMENT GENERAL | K9: =VLOOKUP($A$5,'RECAP AG AN'!$G$6:$FS$313,168,FALSE) -> 180 | M9: =+K9-O9 ->  | O9: =VLOOKUP($A$5,'RECAP AG'!$G$6:$DG$280,168,FALSE) -> 
A11: CRITERE CONQUETE | C11: 15% | O11: =VLOOKUP($A$5,'RECAP AG'!$G$6:$DG$280,23,FALSE) -> 3.099336138
B12: PNB Evolution nette Clients BP | C12: 4% | E12: ='RECAP AG'!#REF! ->  | G12: =VLOOKUP($A$5,'RECAP AG'!$G$6:$DG$280,6,FALSE) -> 1.0 | I12: =VLOOKUP($A$5,'RECAP AG'!$G$6:$DG$280,7,FALSE) -> 19500% | K12: =VLOOKUP($A$5,'RECAP AG AN'!$G$6:$FS$313,7,FALSE) -> 73% | M12: =+K12-I12 -> -19427% | O12: =VLOOKUP($A$5,'RECAP AG'!$G$6:$DG$280,8,FALSE) -> 0.4734
B13: PNB Evolution nette Clients PREMIUM | C13: 5% | E13: ='RECAP AG'!#REF! ->  | G13: =VLOOKUP($A$5,'RECAP AG'!$G$6:$DG$280,10,FALSE) -> 161.0 | I13: =VLOOKUP($A$5,'RECAP AG'!$G$6:$DG$280,11,FALSE) -> 70% | K13: =VLOOKUP($A$5,'RECAP AG AN'!$G$6:$FS$313,11,FALSE) -> 68% | M13: =+K13-I13 -> -2% | O13: =VLOOKUP($A$5,'RECAP AG'!$G$6:$DG$280,12,FALSE) -> 0.6817227199
B14: PNB Evolution nette Clients Jeunes Equipés | C14: 3% | E14: ='RECAP AG'!#REF! ->  | G14: =VLOOKUP($A$5,'RECAP AG'!$G$6:$DG$280,14,FALSE) -> 0.0 | I14: =VLOOKUP($A$5,'RECAP AG'!$G$6:$DG$280,15,FALSE) -> 0% | K14: =VLOOKUP($A$5,'RECAP AG AN'!$G$6:$FS$313,15,FALSE) -> 56% | M14: =+K14-I14 -> 56% | O14: =VLOOKUP($A$5,'RECAP AG'!$G$6:$DG$280,16,FALSE) -> 0
B15: PNB Evolution nette Clients Pro Actifs Equipés | C15: 3% | E15: ='RECAP AG'!W4 -> 0.0 | G15: =VLOOKUP($A$5,'RECAP AG'!$G$6:$DG$280,18,FALSE) -> 8.3 | I15: =VLOOKUP($A$5,'RECAP AG'!$G$6:$DG$280,19,FALSE) -> 122% | K15: =VLOOKUP($A$5,'RECAP AG AN'!$G$6:$FS$313,19,FALSE) -> 94% | M15: =+K15-I15 -> -28% | O15: =VLOOKUP($A$5,'RECAP AG'!$G$6:$DG$280,20,FALSE) -> 0.9447905291
A17: CRITERE BANCARISATION | C17: 15% | O17: =VLOOKUP($A$5,'RECAP AG'!$G$6:$DG$280,48,FALSE) -> 251
B18: PNB Ventes nettes forfaits | C18: 4% | E18: ='RECAP AG'!X4 -> 22.2 | G18: =VLOOKUP($A$5,'RECAP AG'!$G$6:$DG$280,31,FALSE) -> -0.4 | I18: =VLOOKUP($A$5,'RECAP AG'!$G$6:$DG$280,32,FALSE) -> 73% | K18: =VLOOKUP($A$5,'RECAP AG AN'!$G$6:$FS$313,32,FALSE) -> 52% | M18: =+K18-I18 -> -21% | O18: =VLOOKUP($A$5,'RECAP AG'!$G$6:$DG$280,33,FALSE) -> 232
B19: PNB Ventes nettes IZICARTES Débit Différé | C19: 4% | E19: ='RECAP AG'!AB4 -> 17.4 | G19: =VLOOKUP($A$5,'RECAP AG'!$G$6:$DG$280,35,FALSE) -> 0.8 | I19: =VLOOKUP($A$5,'RECAP AG'!$G$6:$DG$280,36,FALSE) -> 23800% | K19: =VLOOKUP($A$5,'RECAP AG AN'!$G$6:$FS$313,36,FALSE) -> 79% | M19: =+K19-I19 -> -23721% | O19: =VLOOKUP($A$5,'RECAP AG'!$G$6:$DG$280,37,FALSE) -> 0
B20: PNB Ventes nettes cartes HDG Débit Différé | C20: 4% | E20: ='RECAP AG'!AF4 -> 8.4 | G20: =VLOOKUP($A$5,'RECAP AG'!$G$6:$DG$280,39,FALSE) -> 0.0 | I20: =VLOOKUP($A$5,'RECAP AG'!$G$6:$DG$280,40,FALSE) -> 0% | K20: =VLOOKUP($A$5,'RECAP AG AN'!$G$6:$FS$313,40,FALSE) -> 80% | M20: =+K20-I20 -> 80% | O20: =VLOOKUP($A$5,'RECAP AG'!$G$6:$DG$280,41,FALSE) -> -29.22022
B21: PNB Ventes nettes Forfaits Pro, Carte pro | C21: 3% | E21: ='RECAP AG'!AJ4 -> -0.1 | G21: =VLOOKUP($A$5,'RECAP AG'!$G$6:$DG$280,43,FALSE) -> 0.8 | I21: =VLOOKUP($A$5,'RECAP AG'!$G$6:$DG$280,44,FALSE) -> 21600% | K21: =VLOOKUP($A$5,'RECAP AG AN'!$G$6:$FS$313,44,FALSE) -> 76% | M21: =+K21-I21 -> -21524% | O21: =VLOOKUP($A$5,'RECAP AG'!$G$6:$DG$280,45,FALSE) -> 5
A23: CRITERE EPARGNE | C23: 10% | O23: =VLOOKUP($A$5,'RECAP AG'!$G$6:$DG$280,69,FALSE) -> 0.4968810943
B24: PNB Epargne Liquide | C24: 3% | E24: ='RECAP AG'!AU4 -> 844.6 | G24: =VLOOKUP($A$5,'RECAP AG'!$G$6:$DG$280,56,FALSE) -> 20.2 | I24: =VLOOKUP($A$5,'RECAP AG'!$G$6:$DG$280,57,FALSE) -> 298% | K24: =VLOOKUP($A$5,'RECAP AG AN'!$G$6:$FS$313,57,FALSE) -> 99% | M24: =+K24-I24 -> -200% | O24: =VLOOKUP($A$5,'RECAP AG'!$G$6:$DG$280,58,FALSE) -> 0.9336688602
B25: PNB CA UC + arbitrage | C25: 4% | E25: ='RECAP AG'!AY4 -> 13.4 | G25: =VLOOKUP($A$5,'RECAP AG'!$G$6:$DG$280,60,FALSE) -> 58.0 | I25: =VLOOKUP($A$5,'RECAP AG'!$G$6:$DG$280,61,FALSE) -> 857% | K25: =VLOOKUP($A$5,'RECAP AG AN'!$G$6:$FS$313,61,FALSE) -> 78% | M25: =+K25-I25 -> -779% | O25: =VLOOKUP($A$5,'RECAP AG'!$G$6:$DG$280,62,FALSE) -> 0.6597468353
B26: PNB Excédent assurance vie | C26: 3% | E26: ='RECAP AG'!#REF! ->  | G26: =VLOOKUP($A$5,'RECAP AG'!$G$6:$DG$280,64,FALSE) -> 13.0 | I26: =VLOOKUP($A$5,'RECAP AG'!$G$6:$DG$280,65,FALSE) -> 192% | K26: =VLOOKUP($A$5,'RECAP AG AN'!$G$6:$FS$313,65,FALSE) -> 54% | M26: =+K26-I26 -> -138% | O26: =VLOOKUP($A$5,'RECAP AG'!$G$6:$DG$280,66,FALSE) -> 0.7600881906
A28: CRITERE CREDITS | C28: 15% | O28: =VLOOKUP($A$5,'RECAP AG'!$G$6:$DG$280,102,FALSE) -> 0.7089255318
B29: PNB crédit conso | C29: 4% | E29: ='RECAP AG'!BJ4 -> 45.0 | G29: =VLOOKUP($A$5,'RECAP AG'!$G$6:$DG$280,77,FALSE) -> 0.8 | I29: =VLOOKUP($A$5,'RECAP AG'!$G$6:$DG$280,78,FALSE) -> 16200% | K29: =VLOOKUP($A$5,'RECAP AG AN'!$G$6:$FS$313,78,FALSE) -> 35% | M29: =+K29-I29 -> -16165% | O29: =VLOOKUP($A$5,'RECAP AG'!$G$6:$DG$280,79,FALSE) -> 42
B30: PNB ADE crédit conso | C30: 1% | E30: ='RECAP AG'!#REF! ->  | G30: =VLOOKUP($A$5,'RECAP AG'!$G$6:$DG$280,81,FALSE) -> 0.6 | I30: =VLOOKUP($A$5,'RECAP AG'!$G$6:$DG$280,82,FALSE) -> 6500% | K30: =VLOOKUP($A$5,'RECAP AG AN'!$G$6:$FS$313,82,FALSE) -> 51% | M30: -6449% | O30: =VLOOKUP($A$5,'RECAP AG'!$G$6:$DG$280,83,FALSE) -> 0.7652148189
B31: PNB crédit immo | C31: 4% | E31: ='RECAP AG'!BN4 -> 25.2 | G31: =VLOOKUP($A$5,'RECAP AG'!$G$6:$DG$280,85,FALSE) -> 126.0 | I31: =VLOOKUP($A$5,'RECAP AG'!$G$6:$DG$280,86,FALSE) -> 0% | K31: =VLOOKUP($A$5,'RECAP AG AN'!$G$6:$FS$313,86,FALSE) -> 73% | M31: 73% | O31: =VLOOKUP($A$5,'RECAP AG'!$G$6:$DG$280,87,FALSE) -> 0
B32: PNB ADE crédit immo | C32: 2% | E32: ='RECAP AG'!#REF! ->  | G32: =VLOOKUP($A$5,'RECAP AG'!$G$6:$DG$280,89,FALSE) -> 0.0 | I32: =VLOOKUP($A$5,'RECAP AG'!$G$6:$DG$280,90,FALSE) -> 0% | K32: =VLOOKUP($A$5,'RECAP AG AN'!$G$6:$FS$313,90,FALSE) -> 61% | M32: 61% | O32: =VLOOKUP($A$5,'RECAP AG'!$G$6:$DG$280,91,FALSE) -> 0
B33: PNB SACCEF | C33: 2% | E33: ='RECAP AG'!#REF! ->  | G33: =VLOOKUP($A$5,'RECAP AG'!$G$6:$DG$280,93,FALSE) -> 0.0 | I33: =VLOOKUP($A$5,'RECAP AG'!$G$6:$DG$280,94,FALSE) -> 0% | K33: =VLOOKUP($A$5,'RECAP AG AN'!$G$6:$FS$313,94,FALSE) -> 71% | M33: 71% | O33: =VLOOKUP($A$5,'RECAP AG'!$G$6:$DG$280,95,FALSE) -> 0
B34: PNB Crédit MLT + Crédit Bail | C34: 2% | E34: ='RECAP AG'!BR4 -> 8.0 | G34: =VLOOKUP($A$5,'RECAP AG'!$G$6:$DG$280,97,FALSE) -> 0.0 | I34: =VLOOKUP($A$5,'RECAP AG'!$G$6:$DG$280,98,FALSE) -> 0% | K34: =VLOOKUP($A$5,'RECAP AG AN'!$G$6:$FS$313,98,FALSE) -> 96% | M34: 96% | O34: =VLOOKUP($A$5,'RECAP AG'!$G$6:$DG$280,99,FALSE) -> 0
A36: CRITERE IARD PREVOYANCE | C36: 15% | O36: =VLOOKUP($A$5,'RECAP AG'!$G$6:$DG$280,119,FALSE) -> 
B37: PNB Ventes nettes IARD | C37: 9% | E37: ='RECAP AG'!CC4 -> 163.5 | G37: =VLOOKUP($A$5,'RECAP AG'!$G$6:$DG$280,110,FALSE) ->  | I37: =VLOOKUP($A$5,'RECAP AG'!$G$6:$DG$280,111,FALSE) ->  | K37: =VLOOKUP($A$5,'RECAP AG AN'!$G$6:$FS$313,111,FALSE) -> 93% | M37: =+K37-I37 ->  | O37: =VLOOKUP($A$5,'RECAP AG'!$G$6:$DG$280,112,FALSE) -> 
B38: PNB Ventes nettes Prévoyance | C38: 6% | E38: ='RECAP AG'!CG4 -> 14.8 | G38: =VLOOKUP($A$5,'RECAP AG'!$G$6:$DG$280,114,FALSE) ->  | I38: =VLOOKUP($A$5,'RECAP AG'!$G$6:$DG$280,115,FALSE) ->  | K38: =VLOOKUP($A$5,'RECAP AG AN'!$G$6:$FS$313,115,FALSE) -> 89% | M38: =+K38-I38 ->  | O38: =VLOOKUP($A$5,'RECAP AG'!$G$6:$DG$280,116,FALSE) -> 
A40: CRITERE ACCELERATEURS PNB | C40: 15% | O40: =VLOOKUP($A$5,'RECAP AG'!$G$6:$DG$280,144,FALSE) -> 
B41: PNB Ventes brutes SED Finalisées | C41: 6% | E41: ='RECAP AG'!#REF! ->  | G41: =VLOOKUP($A$5,'RECAP AG'!$G$6:$DG$280,127,FALSE) ->  | I41: =VLOOKUP($A$5,'RECAP AG'!$G$6:$DG$280,128,FALSE) ->  | K41: =VLOOKUP($A$5,'RECAP AG AN'!$G$6:$FS$313,128,FALSE) -> 80% | M41: =+K41-I41 ->  | O41: =VLOOKUP($A$5,'RECAP AG'!$G$6:$DG$280,129,FALSE) -> 
B42: PNB clients équipés E documents | C42: 3% | E42: ='RECAP AG'!#REF! ->  | G42: =VLOOKUP($A$5,'RECAP AG'!$G$6:$DG$280,131,FALSE) ->  | I42: =VLOOKUP($A$5,'RECAP AG'!$G$6:$DG$280,132,FALSE) ->  | K42: =VLOOKUP($A$5,'RECAP AG AN'!$G$6:$FS$313,132,FALSE) -> 81% | M42: =+K42-I42 ->  | O42: =VLOOKUP($A$5,'RECAP AG'!$G$6:$DG$280,133,FALSE) -> 
B43: Economie opt'in | C43: 3% | E43: ='RECAP AG'!#REF! ->  | G43: =VLOOKUP($A$5,'RECAP AG'!$G$6:$DG$280,135,FALSE) ->  | I43: =VLOOKUP($A$5,'RECAP AG'!$G$6:$DG$280,136,FALSE) ->  | K43: =VLOOKUP($A$5,'RECAP AG AN'!$G$6:$FS$313,136,FALSE) -> 72% | M43: =+K43-I43 ->  | O43: =VLOOKUP($A$5,'RECAP AG'!$G$6:$DG$280,137,FALSE) -> 
B44: Remises commerciales | C44: 3% | E44: ='RECAP AG'!#REF! ->  | G44: =VLOOKUP($A$5,'RECAP AG'!$G$6:$DG$280,139,FALSE) ->  | I44: =VLOOKUP($A$5,'RECAP AG'!$G$6:$DG$280,140,FALSE) ->  | K44: =VLOOKUP($A$5,'RECAP AG AN'!$G$6:$FS$313,140,FALSE) -> 23% | M44: =+K44-I44 ->  | O44: =VLOOKUP($A$5,'RECAP AG'!$G$6:$DG$280,141,FALSE) -> 
A46: CRITERE Satisfaction Clients | C46: 15% | O46: =VLOOKUP($A$5,'RECAP AG'!$G$6:$DG$280,159,FALSE) -> 
B47: Objectifs NPS* | C47: 8% | E47: ='RECAP AG'!K4 -> 39 | G47: =VLOOKUP($A$5,'RECAP AG'!$G$6:$DG$280,151,FALSE) ->  | I47: =VLOOKUP($A$5,'RECAP AG'!$G$6:$DG$280,152,FALSE) ->  | K47: =VLOOKUP($A$5,'RECAP AG AN'!$G$6:$FS$313,152,FALSE) -> 78% | M47: =+K47-I47 ->  | O47: =VLOOKUP($A$5,'RECAP AG'!$G$6:$DG$280,153,FALSE) -> 
B48: Enquête Qualité Haute Définition | C48: 7% | E48: ='RECAP AG'!N4 -> 79% | G48: =VLOOKUP($A$5,'RECAP AG'!$G$6:$DG$280,154,FALSE) ->  | I48: =VLOOKUP($A$5,'RECAP AG'!$G$6:$DG$280,155,FALSE) ->  | K48: =VLOOKUP($A$5,'RECAP AG AN'!$G$6:$FS$313,155,FALSE) -> 11% | M48: =+K48-I48 ->  | O48: =VLOOKUP($A$5,'RECAP AG'!$G$6:$DG$280,156,FALSE) -> 

Sheet AG_TOTAL
B1: Accueil | H1: BAROMETRE BDD - AGENCES
H2: TOTAL GENERAL
H3: =ACCUEIL!F7 -> 2021-02-07
H7: TOTAL GENERAL | K7: Total Satisfaction Clients | N7: Total Bancarisation | Q7: Total Epargne | T7: Total IARD Prévoyance | W7: Total Crédits
I8: coef | J8: 100% | L8: coef | M8: =AG_SATISFACTION!P8 -> 20% | O8: coef | P8: =AG_BANCA!Z8 -> 20% | R8: coef | S8: =AG_EPARGNE!R8 -> 20% | U8: coef | V8: =AG_IARD!R8 -> 20% | X8: coef | Y8: =AG_CREDIT!V8 -> 20%
B9: Direction | C9: eds | D9: Territoire | E9: eds | F9: Agence | G9: ="ETP perf "&DATEMAJ!$C$28 -> ETP perf Dec 2020 | H9: Moyenne ecart au 1er | I9: % Ecart au 1er | J9: Rang CEGEE | K9: Moyenne ecart au 1er | L9: % Ecart au 1er | M9: Rang CEGEE | N9: Moyenne ecart au 1er | O9: % Ecart au 1er | P9: Rang CEGEE | Q9: Moyenne ecart au 1er | R9: % Ecart au 1er | S9: Rang CEGEE | T9: Moyenne ecart au 1er | U9: % Ecart au 1er | V9: Rang CEGEE | W9: Moyenne ecart au 1er | X9: % Ecart au 1er | Y9: Rang CEGEE
A10: 50 | B10: BAS-RHIN | C10: 5101 | D10: SELESTAT | E10: 4120 | F10: WASSELONNE | G10: 1.7 | H10: 24% | I10: 0% | J10: 1 | K10: 66% | L10: 64% | M10: 165 | N10: 57% | O10: 46% | P10: 15 | Q10: 0% | R10: 0% | S10: 1 | T10: 1% | U10: 0% | V10: 1 | W10: 40% | X10: 9% | Y10: 4
A11: 50 | B11: MEURTHE ET MOSELLE MEUSE | C11: 26 | D11: NANCY | E11: 454481 | F11: NANCY PLACE DOMBASLE | G11: 11.2 | H11: 26% | I11: 2% | J11: 2 | K11: 68% | L11: 66% | M11: 179 | N11: 11% | O11: 0% | P11: 1 | Q11: 49% | R11: 49% | S11: 8 | T11: 16% | U11: 15% | V11: 2 | W11: 30% | X11: 0% | Y11: 1
A12: 50 | B12: MEURTHE ET MOSELLE MEUSE | C12: 26 | D12: NANCY | E12: 554356 | F12: JARVILLE LA MALGRANGE | G12: 3.8 | H12: 38% | I12: 14% | J12: 3 | K12: 54% | L12: 52% | M12: 109 | N12: 29% | O12: 18% | P12: 2 | Q12: 71% | R12: 71% | S12: 129 | T12: 47% | U12: 47% | V12: 8 | W12: 32% | X12: 2% | Y12: 2
A13: 50 | B13: BAS-RHIN | C13: 5101 | D13: SELESTAT | E13: 4113 | F13: BARR | G13: 3.0 | H13: 41% | I13: 18% | J13: 4 | K13: 32% | L13: 30% | M13: 21 | N13: 43% | O13: 32% | P13: 5 | Q13: 46% | R13: 46% | S13: 7 | T13: 49% | U13: 48% | V13: 10 | W13: 81% | X13: 51% | Y13: 131
A14: 50 | B14: MEURTHE ET MOSELLE MEUSE | C14: 27 | D14: PONT A MOUSSON | E14: 554531 | F14: POMPEY | G14: 3.0 | H14: 45% | I14: 21% | J14: 5 | K14: 51% | L14: 49% | M14: 90 | N14: 42% | O14: 31% | P14: 4 | Q14: 55% | R14: 55% | S14: 12 | T14: 64% | U14: 63% | V14: 36 | W14: 55% | X14: 24% | Y14: 9
A15: 50 | B15: VOSGES | C15: 57 | D15: EPINAL | E15: 488288 | F15: EPINAL LEOPOLD BOURG | G15: 2.0 | H15: 47% | I15: 23% | J15: 6 | K15: 17% | L15: 15% | M15: 2 | N15: 64% | O15: 54% | P15: 28 | Q15: 71% | R15: 71% | S15: 126 | T15: 69% | U15: 69% | V15: 63 | W15: 57% | X15: 27% | Y15: 13
A16: 50 | B16: MEURTHE ET MOSELLE MEUSE | C16: 27 | D16: PONT A MOUSSON | E16: 454651 | F16: TOUL REPUBLIQUE | G16: 10.7 | H16: 49% | I16: 25% | J16: 7 | K16: 90% | L16: 88% | M16: 250 | N16: 38% | O16: 27% | P16: 3 | Q16: 66% | R16: 66% | S16: 66 | T16: 60% | U16: 59% | V16: 24 | W16: 33% | X16: 3% | Y16: 3
A17: 50 | B17: MARNE-ARDENNES | C17: 6 | D17: CHALONS EN CHAMPAGNE | E17: 451115 | F17: MOURMELON suippes | G17: 2.9 | H17: 49% | I17: 26% | J17: 8 | K17: 50% | L17: 48% | M17: 82 | N17: 74% | O17: 63% | P17: 90 | Q17: 43% | R17: 43% | S17: 4 | T17: 48% | U17: 48% | V17: 9 | W17: 74% | X17: 44% | Y17: 64
A18: 50 | B18: MARNE-ARDENNES | C18: 2 | D18: CHARLEVILLE MEZIERES | E18: 508802 | F18: CHARLEVILLE NEVERS | G18: 2.5 | H18: 51% | I18: 27% | J18: 9 | K18: 25% | L18: 23% | M18: 9 | N18: 74% | O18: 63% | P18: 93 | Q18: 60% | R18: 60% | S18: 27 | T18: 63% | U18: 62% | V18: 34 | W18: 76% | X18: 46% | Y18: 77
A19: 50 | B19: MOSELLE | C19: 45 | D19: METZ | E19: 557447 | F19: METZ SAINT MAXIMIN | G19: 3.1 | H19: 51% | I19: 27% | J19: 10 | K19: 49% | L19: 47% | M19: 78 | N19: 54% | O19: 44% | P19: 12 | Q19: 69% | R19: 69% | S19: 96 | T19: 66% | U19: 65% | V19: 46 | W19: 59% | X19: 29% | Y19: 17
A20: 50 | B20: MARNE-ARDENNES | C20: 11 | D20: REIMS | E20: 551314 | F20: FISMES | G20: 2.1 | H20: 51% | I20: 27% | J20: 11 | K20: 45% | L20: 43% | M20: 63 | N20: 50% | O20: 40% | P20: 8 | Q20: 70% | R20: 70% | S20: 108 | T20: 63% | U20: 62% | V20: 33 | W20: 70% | X20: 40% | Y20: 41
A21: 50 | B21: MEURTHE ET MOSELLE MEUSE | C21: 27 | D21: PONT A MOUSSON | E21: 554321 | F21: FROUARD | G21: 3.0 | H21: 51% | I21: 27% | J21: 12 | K21: 44% | L21: 42% | M21: 57 | N21: 75% | O21: 64% | P21: 97 | Q21: 41% | R21: 41% | S21: 2 | T21: 77% | U21: 76% | V21: 130 | W21: 64% | X21: 33% | Y21: 24
A22: 50 | B22: MEURTHE ET MOSELLE MEUSE | C22: 26 | D22: NANCY | E22: 554266 | F22: DOMBASLE SUR MEURTHE | G22: 3.5 | H22: 52% | I22: 28% | J22: 13 | K22: 67% | L22: 65% | M22: 168 | N22: 75% | O22: 64% | P22: 98 | Q22: 43% | R22: 43% | S22: 3 | T22: 57% | U22: 56% | V22: 17 | W22: 61% | X22: 31% | Y22: 21
A23: 50 | B23: MARNE-ARDENNES | C23: 2 | D23: CHARLEVILLE MEZIERES | E23: 408862 | F23: REVIN | G23: 3.6 | H23: 53% | I23: 29% | J23: 14 | K23: 47% | L23: 45% | M23: 67 | N23: 49% | O23: 38% | P23: 7 | Q23: 64% | R23: 64% | S23: 45 | T23: 80% | U23: 80% | V23: 171 | W23: 69% | X23: 38% | Y23: 34
A24: 50 | B24: MARNE-ARDENNES | C24: 11 | D24: REIMS | E24: 551367 | F24: AY CHAMPAGNE | G24: 3.0 | H24: 54% | I24: 30% | J24: 15 | K24: 51% | L24: 49% | M24: 85 | N24: 48% | O24: 37% | P24: 6 | Q24: 67% | R24: 67% | S24: 73 | T24: 83% | U24: 83% | V24: 200 | W24: 64% | X24: 33% | Y24: 25
A25: 50 | B25: MARNE-ARDENNES | C25: 11 | D25: REIMS | E25: 551369 | F25: DAMERY | G25: 3.0 | H25: 54% | I25: 30% | J25: 16 | K25: 37% | L25: 35% | M25: 30 | N25: 83% | O25: 72% | P25: 184 | Q25: 44% | R25: 44% | S25: 5 | T25: 69% | U25: 69% | V25: 61 | W25: 80% | X25: 50% | Y25: 123
A26: 50 | B26: MARNE-ARDENNES | C26: 6 | D26: CHALONS EN CHAMPAGNE | E26: 551110 | F26: CHALONS ROOSEVELT | G26: 5.0 | H26: 54% | I26: 30% | J26: 17 | K26: 24% | L26: 22% | M26: 8 | N26: 67% | O26: 56% | P26: 35 | Q26: 56% | R26: 56% | S26: 14 | T26: 87% | U26: 87% | V26: 227 | W26: 80% | X26: 50% | Y26: 119
A27: 50 | B27: MEURTHE ET MOSELLE MEUSE | C27: 27 | D27: PONT A MOUSSON | E27: 554416 | F27: LUDRES | G27: 4.0 | H27: 54% | I27: 30% | J27: 18 | K27: 18% | L27: 16% | M27: 3 | N27: 67% | O27: 57% | P27: 39 | Q27: 59% | R27: 59% | S27: 25 | T27: 92% | U27: 91% | V27: 247 | W27: 78% | X27: 48% | Y27: 96
A28: 50 | B28: MOSELLE | C28: 45 | D28: METZ | E28: 457443 | F28: METZ REPUBLIQUE | G28: 3.7 | H28: 54% | I28: 31% | J28: 19 | K28: 2% | L28: 0% | M28: 1 | N28: 89% | O28: 79% | P28: 239 | Q28: 66% | R28: 66% | S28: 70 | T28: 81% | U28: 81% | V28: 180 | W28: 76% | X28: 46% | Y28: 80
A29: 50 | B29: MARNE-ARDENNES | C29: 6 | D29: CHALONS EN CHAMPAGNE | E29: 551330 | F29: MONTMIRAIL | G29: 3.0 | H29: 55% | I29: 31% | J29: 20 | K29: 43% | L29: 41% | M29: 56 | N29: 70% | O29: 59% | P29: 57 | Q29: 60% | R29: 60% | S29: 26 | T29: 79% | U29: 78% | V29: 156 | W29: 64% | X29: 34% | Y29: 28
A30: 50 | B30: VOSGES | C30: 55 | D30: SAINT DIE | E30: 488246 | F30: CORNIMONT LA BRESSE | G30: 2.8 | H30: 55% | I30: 31% | J30: 21 | K30: 47% | L30: 45% | M30: 69 | N30: 67% | O30: 56% | P30: 38 | Q30: 63% | R30: 63% | S30: 41 | T30: 66% | U30: 65% | V30: 47 | W30: 75% | X30: 45% | Y30: 71
A31: 50 | B31: MOSELLE | C31: 44 | D31: MOSELLE NORD | E31: 557660 | F31: UCKANGE JEANNE D ARC | G31: 2.1 | H31: 55% | I31: 31% | J31: 22 | K31: 72% | L31: 70% | M31: 188 | N31: 78% | O31: 67% | P31: 118 | Q31: 69% | R31: 69% | S31: 100 | T31: 34% | U31: 34% | V31: 5 | W31: 66% | X31: 36% | Y31: 31
A32: 262 | B32: BAS-RHIN | C32: 5006 | D32: STRASBOURG | E32: 4047 | F32: STRASBOURG CRONENBOURG | G32: 5.5 | H32: 56% | I32: 32% | J32: 23 | K32: 42% | L32: 40% | M32: 51 | N32: 72% | O32: 61% | P32: 70 | Q32: 70% | R32: 70% | S32: 110 | T32: 62% | U32: 61% | V32: 30 | W32: 75% | X32: 45% | Y32: 72
A33: 262 | B33: MEURTHE ET MOSELLE MEUSE | C33: 31 | D33: VERDUN | E33: 554412 | F33: LONGUYON | G33: 2.8 | H33: 56% | I33: 33% | J33: 24 | K33: 29% | L33: 27% | M33: 16 | N33: 87% | O33: 77% | P33: 222 | Q33: 82% | R33: 82% | S33: 238 | T33: 59% | U33: 58% | V33: 20 | W33: 69% | X33: 38% | Y33: 33
A34: 262 | B34: BAS-RHIN | C34: 5006 | D34: STRASBOURG | E34: 4043 | F34: STRASBOURG HALLES | G34: 8.6 | H34: 56% | I34: 33% | J34: 25 | K34: 67% | L34: 65% | M34: 170 | N34: 59% | O34: 48% | P34: 18 | Q34: 61% | R34: 61% | S34: 29 | T34: 69% | U34: 68% | V34: 57 | W34: 71% | X34: 41% | Y34: 48
A35: 262 | B35: MARNE-ARDENNES | C35: 11 | D35: REIMS | E35: 551305 | F35: REIMS HIPPODROME | G35: 3.7 | H35: 57% | I35: 33% | J35: 26 | K35: 30% | L35: 28% | M35: 19 | N35: 73% | O35: 62% | P35: 79 | Q35: 73% | R35: 73% | S35: 147 | T35: 81% | U35: 80% | V35: 177 | W35: 70% | X35: 40% | Y35: 39
A36: 262 | B36: MARNE-ARDENNES | C36: 2 | D36: CHARLEVILLE MEZIERES | E36: 408801 | F36: CHARLEVILLE JEAN JAURES | G36: 9.8 | H36: 57% | I36: 33% | J36: 27 | K36: 61% | L36: 59% | M36: 142 | N36: 57% | O36: 46% | P36: 16 | Q36: 64% | R36: 64% | S36: 43 | T36: 84% | U36: 84% | V36: 207 | W36: 61% | X36: 31% | Y36: 19
A37: 262 | B37: BAS-RHIN | C37: 5060 | D37: HAGUENAU | E37: 4092 | F37: HOCHFELDEN | G37: 1.8 | H37: 57% | I37: 33% | J37: 28 | K37: 39% | L37: 37% | M37: 40 | N37: 92% | O37: 82% | P37: 256 | Q37: 75% | R37: 75% | S37: 168 | T37: 75% | U37: 75% | V37: 109 | W37: 46% | X37: 16% | Y37: 5
A38: 262 | B38: MARNE-ARDENNES | C38: 2 | D38: CHARLEVILLE MEZIERES | E38: 408822 | F38: CHARLEVILLE MEZIERES | G38: 4.5 | H38: 57% | I38: 33% | J38: 29 | K38: 54% | L38: 52% | M38: 108 | N38: 69% | O38: 59% | P38: 54 | Q38: 59% | R38: 59% | S38: 22 | T38: 72% | U38: 71% | V38: 81 | W38: 74% | X38: 43% | Y38: 59
A39: 262 | B39: BAS-RHIN | C39: 5060 | D39: HAGUENAU | E39: 4082 | F39: BOUXWILLER | G39: 3.0 | H39: 57% | I39: 33% | J39: 30 | K39: 50% | L39: 48% | M39: 83 | N39: 77% | O39: 66% | P39: 110 | Q39: 59% | R39: 59% | S39: 19 | T39: 66% | U39: 66% | V39: 49 | W39: 77% | X39: 46% | Y39: 83
A40: 262 | B40: MEURTHE ET MOSELLE MEUSE | C40: 27 | D40: PONT A MOUSSON | E40: 554357 | F40: JOEUF MAIRIE | G40: 4.0 | H40: 57% | I40: 33% | J40: 31 | K40: 60% | L40: 58% | M40: 134 | N40: 73% | O40: 62% | P40: 81 | Q40: 70% | R40: 70% | S40: 117 | T40: 71% | U40: 70% | V40: 73 | W40: 55% | X40: 25% | Y40: 10
A41: 262 | B41: VOSGES | C41: 55 | D41: SAINT DIE | E41: 488556 | F41: RAON L ETAPE | G41: 2.8 | H41: 57% | I41: 33% | J41: 32 | K41: 34% | L41: 32% | M41: 24 | N41: 83% | O41: 72% | P41: 183 | Q41: 67% | R41: 67% | S41: 77 | T41: 72% | U41: 71% | V41: 79 | W41: 74% | X41: 44% | Y41: 60
A42: 262 | B42: AUBE HAUTE MARNE | C42: 21 | D42: CHAUMONT | E42: 410560 | F42: BOURBONNE LES BAINS | G42: 2.0 | H42: 58% | I42: 34% | J42: 33 | K42: 22% | L42: 20% | M42: 7 | N42: 77% | O42: 66% | P42: 111 | Q42: 78% | R42: 78% | S42: 208 | T42: 65% | U42: 65% | V42: 43 | W42: 89% | X42: 59% | Y42: 227
A43: 262 | B43: MARNE-ARDENNES | C43: 11 | D43: REIMS | E43: 551310 | F43: REIMS CHATILLONS | G43: 3.8 | H43: 58% | I43: 34% | J43: 34 | K43: 58% | L43: 56% | M43: 124 | N43: 64% | O43: 53% | P43: 27 | Q43: 65% | R43: 65% | S43: 50 | T43: 74% | U43: 74% | V43: 98 | W43: 71% | X43: 41% | Y43: 45
A44: 262 | B44: MARNE-ARDENNES | C44: 6 | D44: CHALONS EN CHAMPAGNE | E44: 451120 | F44: SARRY | G44: 2.5 | H44: 58% | I44: 34% | J44: 35 | K44: 39% | L44: 37% | M44: 41 | N44: 57% | O44: 46% | P44: 14 | Q44: 64% | R44: 64% | S44: 46 | T44: 87% | U44: 87% | V44: 226 | W44: 85% | X44: 54% | Y44: 175
A45: 262 | B45: BAS-RHIN | C45: 5101 | D45: SELESTAT | E45: 4121 | F45: SCHIRMECK | G45: 4.0 | H45: 58% | I45: 34% | J45: 36 | K45: 37% | L45: 35% | M45: 32 | N45: 73% | O45: 62% | P45: 77 | Q45: 66% | R45: 66% | S45: 68 | T45: 74% | U45: 74% | V45: 101 | W45: 81% | X45: 51% | Y45: 139
A46: 262 | B46: HAUT-RHIN | C46: 5130 | D46: COLMAR | E46: 4153 | F46: ROUFFACH | G46: 3.8 | H46: 58% | I46: 34% | J46: 37 | K46: 57% | L46: 55% | M46: 120 | N46: 71% | O46: 60% | P46: 66 | Q46: 76% | R46: 76% | S46: 187 | T46: 55% | U46: 54% | V46: 13 | W46: 73% | X46: 43% | Y46: 55
A47: 262 | B47: MEURTHE ET MOSELLE MEUSE | C47: 26 | D47: NANCY | E47: 454671 | F47: VANDOEUVRE LES NANCY | G47: 5.0 | H47: 58% | I47: 34% | J47: 38 | K47: 52% | L47: 50% | M47: 93 | N47: 68% | O47: 57% | P47: 41 | Q47: 81% | R47: 81% | S47: 230 | T47: 75% | U47: 75% | V47: 112 | W47: 56% | X47: 26% | Y47: 12
A48: 262 | B48: BAS-RHIN | C48: 5101 | D48: SELESTAT | E48: 4107 | F48: VILLE | G48: 3.0 | H48: 58% | I48: 34% | J48: 39 | K48: 68% | L48: 66% | M48: 175 | N48: 53% | O48: 42% | P48: 11 | Q48: 67% | R48: 67% | S48: 75 | T48: 64% | U48: 64% | V48: 40 | W48: 81% | X48: 51% | Y48: 138
A49: 262 | B49: MARNE-ARDENNES | C49: 2 | D49: CHARLEVILLE MEZIERES | E49: 508820 | F49: VOUZIERS | G49: 3.0 | H49: 58% | I49: 34% | J49: 40 | K49: 85% | L49: 83% | M49: 236 | N49: 62% | O49: 52% | P49: 23 | Q49: 65% | R49: 65% | S49: 54 | T49: 67% | U49: 67% | V49: 53 | W49: 54% | X49: 24% | Y49: 8
A50: 262 | B50: MARNE-ARDENNES | C50: 11 | D50: REIMS | E50: 551340 | F50: BETHENY | G50: 3.2 | H50: 58% | I50: 34% | J50: 41 | K50: 44% | L50: 42% | M50: 58 | N50: 69% | O50: 58% | P50: 50 | Q50: 73% | R50: 73% | S50: 154 | T50: 87% | U50: 87% | V50: 225 | W50: 61% | X50: 31% | Y50: 20
A51: 262 | B51: MEURTHE ET MOSELLE MEUSE | C51: 31 | D51: VERDUN | E51: 455231 | F51: COMMERCY | G51: 4.0 | H51: 58% | I51: 34% | J51: 42 | K51: 68% | L51: 66% | M51: 178 | N51: 53% | O51: 42% | P51: 9 | Q51: 81% | R51: 81% | S51: 227 | T51: 62% | U51: 62% | V51: 31 | W51: 70% | X51: 40% | Y51: 40
A52: 262 | B52: MARNE-ARDENNES | C52: 2 | D52: CHARLEVILLE MEZIERES | E52: 508815 | F52: CARIGNAN | G52: 3.1 | H52: 58% | I52: 35% | J52: 43 | K52: 48% | L52: 46% | M52: 76 | N52: 60% | O52: 49% | P52: 19 | Q52: 65% | R52: 65% | S52: 53 | T52: 82% | U52: 82% | V52: 192 | W52: 80% | X52: 50% | Y52: 121
A53: 262 | B53: VOSGES | C53: 57 | D53: EPINAL | E53: 588631 | F53: THAON LES VOSGES | G53: 5.6 | H53: 58% | I53: 35% | J53: 44 | K53: 45% | L53: 43% | M53: 62 | N53: 67% | O53: 56% | P53: 34 | Q53: 78% | R53: 78% | S53: 209 | T53: 65% | U53: 65% | V53: 42 | W53: 81% | X53: 51% | Y53: 129
A54: 262 | B54: BAS-RHIN | C54: 5060 | D54: HAGUENAU | E54: 4066 | F54: NIEDERBRONN LES BAINS | G54: 6.0 | H54: 58% | I54: 35% | J54: 45 | K54: 36% | L54: 34% | M54: 27 | N54: 76% | O54: 65% | P54: 102 | Q54: 68% | R54: 68% | S54: 88 | T54: 78% | U54: 77% | V54: 137 | W54: 78% | X54: 48% | Y54: 100
A55: 262 | B55: BAS-RHIN | C55: 5006 | D55: STRASBOURG | E55: 4038 | F55: OBERHAUSBERGEN | G55: 5.0 | H55: 58% | I55: 35% | J55: 46 | K55: 67% | L55: 65% | M55: 173 | N55: 66% | O55: 56% | P55: 32 | Q55: 65% | R55: 65% | S55: 57 | T55: 77% | U55: 76% | V55: 128 | W55: 61% | X55: 30% | Y55: 18
A56: 262 | B56: MARNE-ARDENNES | C56: 11 | D56: REIMS | E56: 451361 | F56: PIERRY LECLERC | G56: 2.0 | H56: 59% | I56: 35% | J56: 47 | K56: 22% | L56: 20% | M56: 6 | N56: 74% | O56: 63% | P56: 91 | Q56: 88% | R56: 88% | S56: 264 | T56: 62% | U56: 61% | V56: 29 | W56: 91% | X56: 61% | Y56: 244
A57: 262 | B57: BAS-RHIN | C57: 5060 | D57: HAGUENAU | E57: 4071 | F57: WISSEMBOURG | G57: 8.8 | H57: 59% | I57: 35% | J57: 48 | K57: 39% | L57: 37% | M57: 43 | N57: 81% | O57: 70% | P57: 158 | Q57: 63% | R57: 63% | S57: 39 | T57: 69% | U57: 69% | V57: 64 | W57: 85% | X57: 55% | Y57: 179
A58: 262 | B58: VOSGES | C58: 57 | D58: EPINAL | E58: 588716 | F58: XERTIGNY | G58: 3.0 | H58: 59% | I58: 35% | J58: 49 | K58: 45% | L58: 43% | M58: 64 | N58: 79% | O58: 68% | P58: 133 | Q58: 68% | R58: 68% | S58: 82 | T58: 53% | U58: 52% | V58: 12 | W58: 92% | X58: 62% | Y58: 250
A59: 262 | B59: BAS-RHIN | C59: 5006 | D59: STRASBOURG | E59: 4020 | F59: STRASBOURG ROBERTSAU | G59: 4.9 | H59: 59% | I59: 35% | J59: 50 | K59: 65% | L59: 63% | M59: 156 | N59: 61% | O59: 50% | P59: 21 | Q59: 66% | R59: 66% | S59: 61 | T59: 77% | U59: 77% | V59: 136 | W59: 68% | X59: 38% | Y59: 32
A60: 262 | B60: MEURTHE ET MOSELLE MEUSE | C60: 31 | D60: VERDUN | E60: 555679 | F60: VERDUN MAZEL | G60: 4.0 | H60: 59% | I60: 35% | J60: 51 | K60: 35% | L60: 33% | M60: 25 | N60: 71% | O60: 60% | P60: 63 | Q60: 74% | R60: 74% | S60: 163 | T60: 73% | U60: 72% | V60: 85 | W60: 84% | X60: 54% | Y60: 170
A61: 262 | B61: MOSELLE | C61: 42 | D61: MOSELLE EST | E61: 557250 | F61: CREUTZWALD | G61: 3.1 | H61: 59% | I61: 35% | J61: 52 | K61: 39% | L61: 37% | M61: 39 | N61: 95% | O61: 84% | P61: 263 | Q61: 54% | R61: 54% | S61: 9 | T61: 76% | U61: 76% | V61: 122 | W61: 75% | X61: 44% | Y61: 68
A62: 262 | B62: MEURTHE ET MOSELLE MEUSE | C62: 31 | D62: VERDUN | E62: 455298 | F62: ETAIN | G62: 1.7 | H62: 59% | I62: 35% | J62: 53 | K62: 41% | L62: 39% | M62: 48 | N62: 104% | O62: 93% | P62: 273 | Q62: 88% | R62: 88% | S62: 263 | T62: 32% | U62: 32% | V62: 3 | W62: 74% | X62: 44% | Y62: 65
A63: 262 | B63: MOSELLE | C63: 42 | D63: MOSELLE EST | E63: 557503 | F63: NEUNKIRCH | G63: 3.8 | H63: 59% | I63: 35% | J63: 54 | K63: 25% | L63: 23% | M63: 10 | N63: 69% | O63: 58% | P63: 48 | Q63: 81% | R63: 81% | S63: 223 | T63: 78% | U63: 78% | V63: 148 | W63: 87% | X63: 56% | Y63: 201
A64: 262 | B64: MOSELLE | C64: 42 | D64: MOSELLE EST | E64: 557668 | F64: VALMONT | G64: 4.0 | H64: 59% | I64: 35% | J64: 55 | K64: 30% | L64: 28% | M64: 20 | N64: 81% | O64: 70% | P64: 160 | Q64: 70% | R64: 70% | S64: 106 | T64: 76% | U64: 75% | V64: 116 | W64: 83% | X64: 53% | Y64: 156
A65: 262 | B65: MEURTHE ET MOSELLE MEUSE | C65: 31 | D65: VERDUN | E65: 454414 | F65: LONGWY HAUT | G65: 4.0 | H65: 59% | I65: 35% | J65: 56 | K65: 61% | L65: 59% | M65: 141 | N65: 67% | O65: 56% | P65: 36 | Q65: 62% | R65: 62% | S65: 35 | T65: 61% | U65: 61% | V65: 27 | W65: 89% | X65: 58% | Y65: 224
A66: 262 | B66: AUBE HAUTE MARNE | C66: 14 | D66: TROYES | E66: 510511 | F66: TROYES BROSSOLETTE | G66: 3.0 | H66: 59% | I66: 35% | J66: 57 | K66: 58% | L66: 56% | M66: 125 | N66: 80% | O66: 69% | P66: 147 | Q66: 46% | R66: 46% | S66: 6 | T66: 73% | U66: 72% | V66: 89 | W66: 83% | X66: 53% | Y66: 161
A67: 262 | B67: MEURTHE ET MOSELLE MEUSE | C67: 31 | D67: VERDUN | E67: 455566 | F67: REVIGNY SUR ORNAIN | G67: 3.8 | H67: 60% | I67: 36% | J67: 58 | K67: 41% | L67: 39% | M67: 46 | N67: 70% | O67: 60% | P67: 59 | Q67: 71% | R67: 71% | S67: 124 | T67: 75% | U67: 75% | V67: 110 | W67: 84% | X67: 54% | Y67: 165
A68: 262 | B68: MOSELLE | C68: 45 | D68: METZ | E68: 457453 | F68: MONTIGNY CENTRALE | G68: 7.8 | H68: 60% | I68: 36% | J68: 59 | K68: 34% | L68: 32% | M68: 23 | N68: 76% | O68: 66% | P68: 109 | Q68: 76% | R68: 76% | S68: 188 | T68: 76% | U68: 76% | V68: 125 | W68: 78% | X68: 48% | Y68: 103
A69: 262 | B69: MEURTHE ET MOSELLE MEUSE | C69: 27 | D69: PONT A MOUSSON | E69: 554257 | F69: DIEULOUARD | G69: 4.2 | H69: 60% | I69: 36% | J69: 60 | K69: 46% | L69: 44% | M69: 66 | N69: 73% | O69: 62% | P69: 82 | Q69: 72% | R69: 72% | S69: 136 | T69: 70% | U69: 69% | V69: 66 | W69: 81% | X69: 51% | Y69: 135
A70: 262 | B70: BAS-RHIN | C70: 5101 | D70: SELESTAT | E70: 4126 | F70: MUTZIG | G70: 2.7 | H70: 60% | I70: 36% | J70: 61 | K70: 73% | L70: 71% | M70: 193 | N70: 68% | O70: 57% | P70: 45 | Q70: 73% | R70: 73% | S70: 148 | T70: 70% | U70: 70% | V70: 68 | W70: 58% | X70: 28% | Y70: 15
A71: 262 | B71: AUBE HAUTE MARNE | C71: 21 | D71: CHAUMONT | E71: 510590 | F71: CHAUMONT REPUBLIQUE | G71: 3.9 | H71: 60% | I71: 36% | J71: 62 | K71: 66% | L71: 64% | M71: 162 | N71: 74% | O71: 63% | P71: 92 | Q71: 64% | R71: 64% | S71: 49 | T71: 67% | U71: 67% | V71: 54 | W71: 71% | X71: 41% | Y71: 47
A72: 262 | B72: MEURTHE ET MOSELLE MEUSE | C72: 26 | D72: NANCY | E72: 554491 | F72: NANCY SAINT SEBASTIEN | G72: 3.1 | H72: 60% | I72: 36% | J72: 63 | K72: 38% | L72: 36% | M72: 38 | N72: 82% | O72: 71% | P72: 172 | Q72: 61% | R72: 61% | S72: 31 | T72: 75% | U72: 75% | V72: 113 | W72: 87% | X72: 57% | Y72: 207
A73: 262 | B73: MEURTHE ET MOSELLE MEUSE | C73: 26 | D73: NANCY | E73: 554636 | F73: TOMBLAINE | G73: 3.0 | H73: 60% | I73: 36% | J73: 64 | K73: 38% | L73: 36% | M73: 34 | N73: 89% | O73: 78% | P73: 232 | Q73: 70% | R73: 70% | S73: 114 | T73: 59% | U73: 59% | V73: 22 | W73: 87% | X73: 57% | Y73: 213
A74: 262 | B74: MARNE-ARDENNES | C74: 2 | D74: CHARLEVILLE MEZIERES | E74: 508819 | F74: MOUZON | G74: 1.8 | H74: 60% | I74: 37% | J74: 65 | K74: 43% | L74: 41% | M74: 53 | N74: 69% | O74: 58% | P74: 51 | Q74: 67% | R74: 67% | S74: 72 | T74: 98% | U74: 98% | V74: 267 | W74: 69% | X74: 39% | Y74: 36
A75: 262 | B75: MEURTHE ET MOSELLE MEUSE | C75: 31 | D75: VERDUN | E75: 455678 | F75: VERDUN CENTRALE | G75: 11.3 | H75: 60% | I75: 37% | J75: 66 | K75: 39% | L75: 37% | M75: 42 | N75: 72% | O75: 61% | P75: 69 | Q75: 81% | R75: 81% | S75: 224 | T75: 80% | U75: 79% | V75: 160 | W75: 74% | X75: 44% | Y75: 66
A76: 262 | B76: VOSGES | C76: 57 | D76: EPINAL | E76: 488706 | F76: VITTEL | G76: 3.9 | H76: 60% | I76: 37% | J76: 67 | K76: 41% | L76: 39% | M76: 47 | N76: 79% | O76: 68% | P76: 131 | Q76: 66% | R76: 66% | S76: 64 | T76: 82% | U76: 81% | V76: 184 | W76: 78% | X76: 48% | Y76: 104
A77: 262 | B77: MOSELLE | C77: 45 | D77: METZ | E77: 557444 | F77: METZ SAINT JULIEN | G77: 6.0 | H77: 61% | I77: 37% | J77: 68 | K77: 59% | L77: 57% | M77: 131 | N77: 79% | O77: 68% | P77: 134 | Q77: 70% | R77: 70% | S77: 111 | T77: 64% | U77: 63% | V77: 38 | W77: 76% | X77: 46% | Y77: 76
A78: 262 | B78: MARNE-ARDENNES | C78: 6 | D78: CHALONS EN CHAMPAGNE | E78: 551354 | F78: VERTUS | G78: 2.3 | H78: 61% | I78: 37% | J78: 69 | K78: 18% | L78: 16% | M78: 4 | N78: 83% | O78: 72% | P78: 186 | Q78: 91% | R78: 91% | S78: 268 | T78: 67% | U78: 67% | V78: 52 | W78: 89% | X78: 58% | Y78: 223
A79: 262 | B79: MARNE-ARDENNES | C79: 11 | D79: REIMS | E79: 551365 | F79: DORMANS | G79: 2.7 | H79: 61% | I79: 37% | J79: 70 | K79: 20% | L79: 18% | M79: 5 | N79: 80% | O79: 69% | P79: 149 | Q79: 77% | R79: 77% | S79: 199 | T79: 90% | U79: 89% | V79: 240 | W79: 81% | X79: 51% | Y79: 130
A80: 262 | B80: MOSELLE | C80: 44 | D80: MOSELLE NORD | E80: 557347 | F80: GUENANGE | G80: 3.0 | H80: 61% | I80: 37% | J80: 71 | K80: 50% | L80: 48% | M80: 81 | N80: 81% | O80: 70% | P80: 157 | Q80: 75% | R80: 75% | S80: 174 | T80: 78% | U80: 77% | V80: 143 | W80: 64% | X80: 34% | Y80: 29
A81: 262 | B81: BAS-RHIN | C81: 5006 | D81: STRASBOURG | E81: 4037 | F81: MUNDOLSHEIM | G81: 4.6 | H81: 61% | I81: 37% | J81: 72 | K81: 64% | L81: 62% | M81: 152 | N81: 53% | O81: 42% | P81: 10 | Q81: 73% | R81: 73% | S81: 153 | T81: 72% | U81: 72% | V81: 84 | W81: 86% | X81: 55% | Y81: 189
A82: 262 | B82: VOSGES | C82: 55 | D82: SAINT DIE | E82: 588186 | F82: BRUYERES | G82: 3.8 | H82: 61% | I82: 37% | J82: 73 | K82: 51% | L82: 49% | M82: 86 | N82: 73% | O82: 62% | P82: 76 | Q82: 75% | R82: 75% | S82: 167 | T82: 64% | U82: 64% | V82: 39 | W82: 85% | X82: 55% | Y82: 186
A83: 264 | B83: BAS-RHIN | C83: 5060 | D83: HAGUENAU | E83: 4087 | F83: SAVERNE | G83: 7.8 | H83: 61% | I83: 37% | J83: 74 | K83: 86% | L83: 84% | M83: 242 | N83: 69% | O83: 58% | P83: 49 | Q83: 70% | R83: 70% | S83: 109 | T83: 62% | U83: 62% | V83: 32 | W83: 61% | X83: 31% | Y83: 22
A84: 264 | B84: MEURTHE ET MOSELLE MEUSE | C84: 27 | D84: PONT A MOUSSON | E84: 554376 | F84: LAXOU LA SAPINIERE | G84: 3.0 | H84: 61% | I84: 37% | J84: 75 | K84: 69% | L84: 67% | M84: 181 | N84: 83% | O84: 72% | P84: 180 | Q84: 62% | R84: 62% | S84: 37 | T84: 69% | U84: 69% | V84: 65 | W84: 65% | X84: 35% | Y84: 30
A85: 264 | B85: MOSELLE | C85: 44 | D85: MOSELLE NORD | E85: 457192 | F85: CATTENOM | G85: 2.4 | H85: 61% | I85: 37% | J85: 76 | K85: 61% | L85: 59% | M85: 140 | N85: 73% | O85: 62% | P85: 78 | Q85: 68% | R85: 68% | S85: 78 | T85: 72% | U85: 71% | V85: 80 | W85: 76% | X85: 46% | Y85: 79
A86: 264 | B86: MARNE-ARDENNES | C86: 11 | D86: REIMS | E86: 551309 | F86: REIMS EUROPE | G86: 3.0 | H86: 61% | I86: 37% | J86: 77 | K86: 27% | L86: 25% | M86: 14 | N86: 89% | O86: 79% | P86: 240 | Q86: 67% | R86: 67% | S86: 71 | T86: 74% | U86: 73% | V86: 95 | W86: 93% | X86: 62% | Y86: 255
A87: 264 | B87: BAS-RHIN | C87: 5060 | D87: HAGUENAU | E87: 4095 | F87: SARRE UNION | G87: 4.1 | H87: 61% | I87: 37% | J87: 78 | K87: 56% | L87: 54% | M87: 118 | N87: 71% | O87: 60% | P87: 61 | Q87: 68% | R87: 68% | S87: 79 | T87: 75% | U87: 74% | V87: 103 | W87: 80% | X87: 50% | Y87: 125
A88: 264 | B88: VOSGES | C88: 55 | D88: SAINT DIE | E88: 488326 | F88: GERARDMER | G88: 6.0 | H88: 61% | I88: 37% | J88: 79 | K88: 28% | L88: 26% | M88: 15 | N88: 86% | O88: 75% | P88: 208 | Q88: 64% | R88: 64% | S88: 44 | T88: 83% | U88: 82% | V88: 194 | W88: 89% | X88: 59% | Y88: 230
A89: 264 | B89: MOSELLE | C89: 45 | D89: METZ | E89: 557434 | F89: MARLY | G89: 4.0 | H89: 61% | I89: 38% | J89: 80 | K89: 29% | L89: 27% | M89: 18 | N89: 79% | O89: 69% | P89: 143 | Q89: 66% | R89: 66% | S89: 62 | T89: 85% | U89: 85% | V89: 216 | W89: 90% | X89: 60% | Y89: 239
A90: 264 | B90: AUBE HAUTE MARNE | C90: 14 | D90: TROYES | E90: 510570 | F90: NOGENT SUR SEINE | G90: 4.7 | H90: 61% | I90: 38% | J90: 81 | K90: 25% | L90: 23% | M90: 11 | N90: 83% | O90: 73% | P90: 190 | Q90: 75% | R90: 75% | S90: 176 | T90: 89% | U90: 89% | V90: 236 | W90: 78% | X90: 47% | Y90: 94
A91: 264 | B91: MOSELLE | C91: 44 | D91: MOSELLE NORD | E91: 457348 | F91: HAGONDANGE | G91: 8.1 | H91: 61% | I91: 38% | J91: 82 | K91: 74% | L91: 71% | M91: 195 | N91: 70% | O91: 59% | P91: 56 | Q91: 64% | R91: 64% | S91: 48 | T91: 73% | U91: 72% | V91: 88 | W91: 70% | X91: 40% | Y91: 37
A92: 264 | B92: VOSGES | C92: 55 | D92: SAINT DIE | E92: 588587 | F92: SAINT DIE CATHEDRALE | G92: 4.0 | H92: 61% | I92: 38% | J92: 83 | K92: 43% | L92: 41% | M92: 54 | N92: 88% | O92: 77% | P92: 223 | Q92: 67% | R92: 67% | S92: 76 | T92: 71% | U92: 70% | V92: 74 | W92: 83% | X92: 52% | Y92: 154
A93: 264 | B93: MARNE-ARDENNES | C93: 6 | D93: CHALONS EN CHAMPAGNE | E93: 451101 | F93: CHALONS VIVIERS | G93: 8.7 | H93: 62% | I93: 38% | J93: 84 | K93: 38% | L93: 36% | M93: 36 | N93: 73% | O93: 62% | P93: 80 | Q93: 72% | R93: 72% | S93: 138 | T93: 86% | U93: 85% | V93: 218 | W93: 82% | X93: 52% | Y93: 145
A94: 264 | B94: MOSELLE | C94: 44 | D94: MOSELLE NORD | E94: 557182 | F94: BOUZONVILLE | G94: 2.7 | H94: 62% | I94: 38% | J94: 85 | K94: 38% | L94: 36% | M94: 35 | N94: 82% | O94: 71% | P94: 177 | Q94: 71% | R94: 71% | S94: 122 | T94: 73% | U94: 72% | V94: 87 | W94: 88% | X94: 58% | Y94: 218
A95: 264 | B95: MOSELLE | C95: 44 | D95: MOSELLE NORD | E95: 557303 | F95: FAMECK | G95: 3.8 | H95: 62% | I95: 38% | J95: 86 | K95: 48% | L95: 46% | M95: 77 | N95: 82% | O95: 71% | P95: 173 | Q95: 59% | R95: 59% | S95: 24 | T95: 82% | U95: 82% | V95: 188 | W95: 80% | X95: 50% | Y95: 118
A96: 264 | B96: BAS-RHIN | C96: 5060 | D96: HAGUENAU | E96: 4057 | F96: BISCHWILLER | G96: 6.6 | H96: 62% | I96: 38% | J96: 87 | K96: 66% | L96: 64% | M96: 166 | N96: 79% | O96: 68% | P96: 139 | Q96: 74% | R96: 74% | S96: 164 | T96: 55% | U96: 55% | V96: 14 | W96: 77% | X96: 47% | Y96: 84
A97: 264 | B97: MOSELLE | C97: 44 | D97: MOSELLE NORD | E97: 557622 | F97: SIERCK LES BAINS | G97: 2.1 | H97: 62% | I97: 38% | J97: 88 | K97: 61% | L97: 59% | M97: 144 | N97: 63% | O97: 52% | P97: 25 | Q97: 72% | R97: 72% | S97: 143 | T97: 85% | U97: 85% | V97: 213 | W97: 70% | X97: 40% | Y97: 38
A98: 264 | B98: BAS-RHIN | C98: 5060 | D98: HAGUENAU | E98: 4079 | F98: SOULTZ SOUS FORETS | G98: 1.7 | H98: 62% | I98: 38% | J98: 89 | K98: 41% | L98: 39% | M98: 49 | N98: 89% | O98: 78% | P98: 231 | Q98: 82% | R98: 82% | S98: 241 | T98: 87% | U98: 86% | V98: 221 | W98: 53% | X98: 23% | Y98: 7
A99: 264 | B99: MOSELLE | C99: 42 | D99: MOSELLE EST | E99: 457308 | F99: FORBACH CENTRALE | G99: 11.1 | H99: 62% | I99: 38% | J99: 90 | K99: 65% | L99: 63% | M99: 159 | N99: 71% | O99: 60% | P99: 60 | Q99: 71% | R99: 71% | S99: 131 | T99: 74% | U99: 73% | V99: 93 | W99: 72% | X99: 42% | Y99: 50
A100: 264 | B100: MOSELLE | C100: 44 | D100: MOSELLE NORD | E100: 557307 | F100: FONTOY | G100: 3.1 | H100: 62% | I100: 38% | J100: 91 | K100: 37% | L100: 35% | M100: 29 | N100: 81% | O100: 70% | P100: 165 | Q100: 69% | R100: 69% | S100: 104 | T100: 90% | U100: 90% | V100: 245 | W100: 75% | X100: 45% | Y100: 73
A101: 264 | B101: BAS-RHIN | C101: 5006 | D101: STRASBOURG | E101: 4054 | F101: STRASBOURG MONTAGNE VERTE | G101: 2.6 | H101: 62% | I101: 38% | J101: 92 | K101: 83% | L101: 81% | M101: 232 | N101: 71% | O101: 60% | P101: 64 | Q101: 87% | R101: 87% | S101: 262 | T101: 34% | U101: 33% | V101: 4 | W101: 78% | X101: 48% | Y101: 97
A102: 264 | B102: BAS-RHIN | C102: 5101 | D102: SELESTAT | E102: 4119 | F102: OBERNAI | G102: 3.9 | H102: 62% | I102: 38% | J102: 93 | K102: 81% | L102: 79% | M102: 219 | N102: 73% | O102: 62% | P102: 75 | Q102: 71% | R102: 71% | S102: 120 | T102: 47% | U102: 46% | V102: 7 | W102: 82% | X102: 52% | Y102: 152
A103: 264 | B103: MARNE-ARDENNES | C103: 2 | D103: CHARLEVILLE MEZIERES | E103: 508817 | F103: CHARLEVILLE MOHON | G103: 3.1 | H103: 62% | I103: 38% | J103: 94 | K103: 34% | L103: 32% | M103: 22 | N103: 94% | O103: 83% | P103: 261 | Q103: 82% | R103: 82% | S103: 236 | T103: 72% | U103: 71% | V103: 77 | W103: 72% | X103: 42% | Y103: 53
A104: 264 | B104: BAS-RHIN | C104: 5101 | D104: SELESTAT | E104: 4101 | F104: SELESTAT CENTRE | G104: 8.7 | H104: 62% | I104: 38% | J104: 95 | K104: 82% | L104: 80% | M104: 229 | N104: 64% | O104: 53% | P104: 26 | Q104: 69% | R104: 69% | S104: 91 | T104: 62% | U104: 61% | V104: 28 | W104: 78% | X104: 47% | Y104: 92
A105: 264 | B105: MARNE-ARDENNES | C105: 11 | D105: REIMS | E105: 451370 | F105: EPERNAY VERRON | G105: 10.6 | H105: 62% | I105: 38% | J105: 96 | K105: 46% | L105: 44% | M105: 65 | N105: 74% | O105: 63% | P105: 86 | Q105: 75% | R105: 75% | S105: 172 | T105: 74% | U105: 73% | V105: 96 | W105: 86% | X105: 55% | Y105: 190
A106: 264 | B106: MOSELLE | C106: 44 | D106: MOSELLE NORD | E106: 557508 | F106: NILVANGE | G106: 2.8 | H106: 62% | I106: 38% | J106: 97 | K106: 53% | L106: 51% | M106: 100 | N106: 78% | O106: 67% | P106: 125 | Q106: 73% | R106: 73% | S106: 145 | T106: 70% | U106: 70% | V106: 70 | W106: 81% | X106: 51% | Y106: 132
A107: 264 | B107: MEURTHE ET MOSELLE MEUSE | C107: 27 | D107: PONT A MOUSSON | E107: 554533 | F107: PONT A MOUSSON BREUIL | G107: 2.9 | H107: 62% | I107: 38% | J107: 98 | K107: 53% | L107: 51% | M107: 99 | N107: 71% | O107: 60% | P107: 65 | Q107: 69% | R107: 69% | S107: 90 | T107: 88% | U107: 88% | V107: 232 | W107: 74% | X107: 44% | Y107: 63
A108: 30 | B108: MARNE-ARDENNES | C108: 2 | D108: CHARLEVILLE MEZIERES | E108: 508833 | F108: VILLERS SEMEUSE CORA | G108: 3.1 | H108: 62% | I108: 39% | J108: 99 | K108: 65% | L108: 63% | M108: 160 | N108: 77% | O108: 66% | P108: 112 | Q108: 63% | R108: 63% | S108: 38 | T108: 78% | U108: 77% | V108: 140 | W108: 74% | X108: 43% | Y108: 58
A109: 30 | B109: VOSGES | C109: 57 | D109: EPINAL | E109: 488286 | F109: EPINAL ARISTIDE BRIAND | G109: 8.8 | H109: 62% | I109: 39% | J109: 100 | K109: 81% | L109: 79% | M109: 222 | N109: 61% | O109: 50% | P109: 22 | Q109: 66% | R109: 66% | S109: 63 | T109: 70% | U109: 70% | V109: 71 | W109: 77% | X109: 47% | Y109: 88
A110: 30 | B110: MOSELLE | C110: 42 | D110: MOSELLE EST | E110: 457163 | F110: BEHREN LES FORBACH | G110: 2.9 | H110: 62% | I110: 39% | J110: 101 | K110: 42% | L110: 40% | M110: 50 | N110: 74% | O110: 63% | P110: 89 | Q110: 73% | R110: 73% | S110: 150 | T110: 82% | U110: 81% | V110: 182 | W110: 86% | X110: 56% | Y110: 193
A111: 30 | B111: MARNE-ARDENNES | C111: 6 | D111: CHALONS EN CHAMPAGNE | E111: 451166 | F111: VITRY LE FRANCOIS | G111: 7.3 | H111: 62% | I111: 39% | J111: 102 | K111: 52% | L111: 50% | M111: 97 | N111: 67% | O111: 56% | P111: 37 | Q111: 77% | R111: 77% | S111: 192 | T111: 83% | U111: 82% | V111: 193 | W111: 77% | X111: 47% | Y111: 89
A112: 30 | B112: VOSGES | C112: 55 | D112: SAINT DIE | E112: 588551 | F112: RAMBERVILLERS | G112: 3.7 | H112: 63% | I112: 39% | J112: 103 | K112: 27% | L112: 25% | M112: 13 | N112: 89% | O112: 78% | P112: 237 | Q112: 69% | R112: 69% | S112: 105 | T112: 81% | U112: 80% | V112: 172 | W112: 90% | X112: 60% | Y112: 236
A113: 30 | B113: MARNE-ARDENNES | C113: 11 | D113: REIMS | E113: 451336 | F113: TINQUEUX | G113: 6.4 | H113: 63% | I113: 39% | J113: 104 | K113: 58% | L113: 56% | M113: 126 | N113: 69% | O113: 58% | P113: 53 | Q113: 72% | R113: 72% | S113: 141 | T113: 87% | U113: 86% | V113: 222 | W113: 70% | X113: 40% | Y113: 42
A114: 30 | B114: AUBE HAUTE MARNE | C114: 14 | D114: TROYES | E114: 410571 | F114: ROMILLY ORMES | G114: 5.5 | H114: 63% | I114: 39% | J114: 105 | K114: 51% | L114: 49% | M114: 88 | N114: 73% | O114: 62% | P114: 73 | Q114: 78% | R114: 78% | S114: 206 | T114: 81% | U114: 80% | V114: 179 | W114: 74% | X114: 44% | Y114: 61
A115: 30 | B115: VOSGES | C115: 57 | D115: EPINAL | E115: 588336 | F115: GOLBEY | G115: 3.8 | H115: 63% | I115: 39% | J115: 106 | K115: 52% | L115: 50% | M115: 96 | N115: 74% | O115: 63% | P115: 94 | Q115: 68% | R115: 68% | S115: 80 | T115: 84% | U115: 83% | V115: 203 | W115: 79% | X115: 49% | Y115: 110
A116: 30 | B116: MARNE-ARDENNES | C116: 11 | D116: REIMS | E116: 551341 | F116: REIMS JEAN JAURES | G116: 4.1 | H116: 63% | I116: 39% | J116: 107 | K116: 68% | L116: 66% | M116: 176 | N116: 68% | O116: 57% | P116: 46 | Q116: 68% | R116: 68% | S116: 81 | T116: 78% | U116: 78% | V116: 147 | W116: 75% | X116: 45% | Y116: 70
A117: 30 | B117: HAUT-RHIN | C117: 5169 | D117: MULHOUSE | E117: 4181 | F117: WITTELSHEIM | G117: 4.2 | H117: 63% | I117: 39% | J117: 108 | K117: 55% | L117: 53% | M117: 115 | N117: 78% | O117: 68% | P117: 129 | Q117: 74% | R117: 74% | S117: 165 | T117: 75% | U117: 74% | V117: 108 | W117: 75% | X117: 44% | Y117: 69
A118: 30 | B118: MARNE-ARDENNES | C118: 11 | D118: REIMS | E118: 551349 | F118: REIMS SAINT REMI | G118: 3.0 | H118: 63% | I118: 39% | J118: 109 | K118: 45% | L118: 43% | M118: 61 | N118: 73% | O118: 62% | P118: 83 | Q118: 73% | R118: 73% | S118: 151 | T118: 96% | U118: 95% | V118: 262 | W118: 72% | X118: 42% | Y118: 51
A119: 30 | B119: AUBE HAUTE MARNE | C119: 21 | D119: CHAUMONT | E119: 410541 | F119: LANGRES | G119: 6.7 | H119: 63% | I119: 39% | J119: 110 | K119: 39% | L119: 37% | M119: 44 | N119: 79% | O119: 68% | P119: 136 | Q119: 82% | R119: 82% | S119: 239 | T119: 75% | U119: 74% | V119: 104 | W119: 84% | X119: 54% | Y119: 169
A120: 30 | B120: MEURTHE ET MOSELLE MEUSE | C120: 26 | D120: NANCY | E120: 554486 | F120: NANCY POINT CENTRAL | G120: 5.0 | H120: 63% | I120: 39% | J120: 111 | K120: 52% | L120: 50% | M120: 98 | N120: 81% | O120: 70% | P120: 154 | Q120: 66% | R120: 66% | S120: 60 | T120: 82% | U120: 82% | V120: 189 | W120: 78% | X120: 48% | Y120: 102
A121: 30 | B121: MOSELLE | C121: 45 | D121: METZ | E121: 557440 | F121: METZ MOZART | G121: 3.1 | H121: 63% | I121: 39% | J121: 112 | K121: 55% | L121: 53% | M121: 114 | N121: 86% | O121: 76% | P121: 214 | Q121: 57% | R121: 57% | S121: 17 | T121: 74% | U121: 74% | V121: 97 | W121: 86% | X121: 56% | Y121: 198
A122: 30 | B122: MARNE-ARDENNES | C122: 11 | D122: REIMS | E122: 451301 | F122: REIMS HOTEL DE VILLE | G122: 7.7 | H122: 63% | I122: 39% | J122: 113 | K122: 58% | L122: 56% | M122: 128 | N122: 65% | O122: 54% | P122: 30 | Q122: 75% | R122: 75% | S122: 177 | T122: 81% | U122: 80% | V122: 178 | W122: 81% | X122: 51% | Y122: 133
A123: 30 | B123: MEURTHE ET MOSELLE MEUSE | C123: 27 | D123: PONT A MOUSSON | E123: 554196 | F123: CHAMPIGNEULLES | G123: 3.6 | H123: 63% | I123: 40% | J123: 114 | K123: 48% | L123: 46% | M123: 74 | N123: 82% | O123: 71% | P123: 174 | Q123: 70% | R123: 70% | S123: 115 | T123: 82% | U123: 82% | V123: 186 | W123: 79% | X123: 48% | Y123: 106
A124: 30 | B124: MOSELLE | C124: 45 | D124: METZ | E124: 457574 | F124: ROMBAS | G124: 4.0 | H124: 63% | I124: 40% | J124: 115 | K124: 48% | L124: 46% | M124: 75 | N124: 74% | O124: 63% | P124: 84 | Q124: 75% | R124: 75% | S124: 178 | T124: 78% | U124: 77% | V124: 138 | W124: 87% | X124: 56% | Y124: 203
A125: 30 | B125: MEURTHE ET MOSELLE MEUSE | C125: 27 | D125: PONT A MOUSSON | E125: 454535 | F125: PONT A MOUSSON CENTRALE | G125: 8.2 | H125: 63% | I125: 40% | J125: 116 | K125: 77% | L125: 75% | M125: 207 | N125: 69% | O125: 58% | P125: 52 | Q125: 72% | R125: 72% | S125: 144 | T125: 70% | U125: 70% | V125: 69 | W125: 72% | X125: 42% | Y125: 52
A126: 30 | B126: MEURTHE ET MOSELLE MEUSE | C126: 31 | D126: VERDUN | E126: 455151 | F126: BAR LE DUC | G126: 9.8 | H126: 64% | I126: 40% | J126: 117 | K126: 55% | L126: 53% | M126: 113 | N126: 77% | O126: 67% | P126: 117 | Q126: 75% | R126: 75% | S126: 175 | T126: 74% | U126: 74% | V126: 99 | W126: 79% | X126: 49% | Y126: 113
A127: 30 | B127: AUBE HAUTE MARNE | C127: 21 | D127: CHAUMONT | E127: 451154 | F127: JOINVILLE | G127: 2.0 | H127: 64% | I127: 40% | J127: 118 | K127: 37% | L127: 35% | M127: 31 | N127: 86% | O127: 75% | P127: 210 | Q127: 78% | R127: 78% | S127: 205 | T127: 76% | U127: 76% | V127: 120 | W127: 85% | X127: 54% | Y127: 172
A128: 30 | B128: VOSGES | C128: 57 | D128: EPINAL | E128: 488281 | F128: ELOYES | G128: 4.8 | H128: 64% | I128: 40% | J128: 119 | K128: 51% | L128: 49% | M128: 84 | N128: 79% | O128: 68% | P128: 141 | Q128: 72% | R128: 72% | S128: 137 | T128: 81% | U128: 80% | V128: 175 | W128: 79% | X128: 49% | Y128: 111
A129: 30 | B129: VOSGES | C129: 57 | D129: EPINAL | E129: 588501 | F129: NEUFCHATEAU | G129: 5.0 | H129: 64% | I129: 40% | J129: 120 | K129: 44% | L129: 42% | M129: 59 | N129: 84% | O129: 73% | P129: 193 | Q129: 66% | R129: 66% | S129: 69 | T129: 89% | U129: 88% | V129: 235 | W129: 79% | X129: 48% | Y129: 107
A130: 30 | B130: MOSELLE | C130: 42 | D130: MOSELLE EST | E130: 457165 | F130: BITCHE | G130: 2.5 | H130: 64% | I130: 40% | J130: 121 | K130: 54% | L130: 52% | M130: 110 | N130: 86% | O130: 75% | P130: 212 | Q130: 83% | R130: 83% | S130: 251 | T130: 51% | U130: 51% | V130: 11 | W130: 87% | X130: 57% | Y130: 211
A131: 30 | B131: MARNE-ARDENNES | C131: 2 | D131: CHARLEVILLE MEZIERES | E131: 508839 | F131: GIVET | G131: 3.8 | H131: 64% | I131: 40% | J131: 122 | K131: 43% | L131: 41% | M131: 55 | N131: 78% | O131: 68% | P131: 130 | Q131: 74% | R131: 74% | S131: 159 | T131: 85% | U131: 84% | V131: 211 | W131: 82% | X131: 52% | Y131: 150
A132: 30 | B132: MEURTHE ET MOSELLE MEUSE | C132: 31 | D132: VERDUN | E132: 554413 | F132: LONGWY BAS | G132: 3.9 | H132: 64% | I132: 40% | J132: 123 | K132: 47% | L132: 45% | M132: 71 | N132: 84% | O132: 73% | P132: 194 | Q132: 65% | R132: 65% | S132: 58 | T132: 84% | U132: 84% | V132: 205 | W132: 82% | X132: 52% | Y132: 148
A133: 30 | B133: HAUT-RHIN | C133: 5130 | D133: COLMAR | E133: 4157 | F133: NEUF BRISACH | G133: 4.0 | H133: 64% | I133: 40% | J133: 124 | K133: 78% | L133: 76% | M133: 210 | N133: 77% | O133: 66% | P133: 114 | Q133: 74% | R133: 74% | S133: 162 | T133: 56% | U133: 56% | V133: 16 | W133: 78% | X133: 48% | Y133: 95
A134: 30 | B134: VOSGES | C134: 57 | D134: EPINAL | E134: 488561 | F134: REMIREMONT | G134: 6.0 | H134: 64% | I134: 40% | J134: 125 | K134: 53% | L134: 51% | M134: 103 | N134: 88% | O134: 77% | P134: 226 | Q134: 62% | R134: 62% | S134: 36 | T134: 75% | U134: 75% | V134: 114 | W134: 85% | X134: 55% | Y134: 187
A135: 30 | B135: MARNE-ARDENNES | C135: 6 | D135: CHALONS EN CHAMPAGNE | E135: 551128 | F135: SAINTE MENEHOULD | G135: 3.7 | H135: 64% | I135: 40% | J135: 126 | K135: 52% | L135: 50% | M135: 92 | N135: 66% | O135: 55% | P135: 31 | Q135: 68% | R135: 68% | S135: 86 | T135: 83% | U135: 83% | V135: 201 | W135: 95% | X135: 65% | Y135: 266
A136: 30 | B136: MARNE-ARDENNES | C136: 2 | D136: CHARLEVILLE MEZIERES | E136: 408806 | F136: SEDAN LA HALLE | G136: 8.9 | H136: 64% | I136: 40% | J136: 127 | K136: 42% | L136: 40% | M136: 52 | N136: 77% | O136: 66% | P136: 116 | Q136: 72% | R136: 72% | S136: 140 | T136: 90% | U136: 90% | V136: 243 | W136: 82% | X136: 52% | Y136: 149
A137: 30 | B137: MEURTHE ET MOSELLE MEUSE | C137: 26 | D137: NANCY | E137: 554476 | F137: NANCY ARTEM | G137: 2.8 | H137: 64% | I137: 40% | J137: 128 | K137: 60% | L137: 58% | M137: 137 | N137: 71% | O137: 61% | P137: 67 | Q137: 79% | R137: 79% | S137: 214 | T137: 76% | U137: 76% | V137: 121 | W137: 77% | X137: 47% | Y137: 90
A138: 30 | B138: MEURTHE ET MOSELLE MEUSE | C138: 26 | D138: NANCY | E138: 454426 | F138: LUNEVILLE CARNOT | G138: 9.3 | H138: 64% | I138: 40% | J138: 129 | K138: 67% | L138: 65% | M138: 171 | N138: 81% | O138: 70% | P138: 161 | Q138: 74% | R138: 74% | S138: 161 | T138: 69% | U138: 69% | V138: 62 | W138: 73% | X138: 43% | Y138: 56
A139: 30 | B139: VOSGES | C139: 57 | D139: EPINAL | E139: 588206 | F139: CHARMES | G139: 2.8 | H139: 64% | I139: 40% | J139: 130 | K139: 74% | L139: 72% | M139: 196 | N139: 73% | O139: 62% | P139: 71 | Q139: 62% | R139: 62% | S139: 34 | T139: 77% | U139: 77% | V139: 133 | W139: 79% | X139: 49% | Y139: 112
A140: 30 | B140: MARNE-ARDENNES | C140: 6 | D140: CHALONS EN CHAMPAGNE | E140: 451381 | F140: SEZANNE CHAMP BENOIST | G140: 6.7 | H140: 64% | I140: 40% | J140: 131 | K140: 59% | L140: 57% | M140: 130 | N140: 68% | O140: 57% | P140: 43 | Q140: 71% | R140: 71% | S140: 121 | T140: 82% | U140: 81% | V140: 183 | W140: 85% | X140: 55% | Y140: 184
A141: 30 | B141: AUBE HAUTE MARNE | C141: 21 | D141: CHAUMONT | E141: 551157 | F141: SAINT DIZIER EUROPE | G141: 2.9 | H141: 64% | I141: 40% | J141: 132 | K141: 60% | L141: 58% | M141: 138 | N141: 76% | O141: 65% | P141: 105 | Q141: 89% | R141: 89% | S141: 266 | T141: 76% | U141: 75% | V141: 117 | W141: 64% | X141: 33% | Y141: 27
A142: 30 | B142: MEURTHE ET MOSELLE MEUSE | C142: 31 | D142: VERDUN | E142: 555624 | F142: STENAY | G142: 3.0 | H142: 64% | I142: 41% | J142: 133 | K142: 67% | L142: 65% | M142: 169 | N142: 81% | O142: 70% | P142: 156 | Q142: 83% | R142: 83% | S142: 246 | T142: 61% | U142: 61% | V142: 26 | W142: 74% | X142: 44% | Y142: 67
A143: 30 | B143: MOSELLE | C143: 45 | D143: METZ | E143: 557439 | F143: METZ POMPIDOU | G143: 3.6 | H143: 65% | I143: 41% | J143: 134 | K143: 53% | L143: 51% | M143: 101 | N143: 85% | O143: 74% | P143: 199 | Q143: 58% | R143: 58% | S143: 18 | T143: 80% | U143: 79% | V143: 162 | W143: 91% | X143: 61% | Y143: 240
